Workbook

Sheet Portada

Sheet Indice
S1: =MONTH(J48)+127+(K48-2010)*11 -> -21980
B3: Consejo Monetario Centroamericano
B4: Secretaría Ejecutiva
B5: www.secmca.org
B13: REPORTE EJECUTIVO MENSUAL
B14: DE INDICADORES MACROECONÓMICOS
B15: DE CENTROAMÉRICA, PANAMÁ Y REPÚBLICA DOMINICANA
J18: Con cifras al mes de:
B23: CONTENIDO
B26: INDICADORES REGIONALES
D27: Principales indicadores macroeconómicos región CARD y CAPARD
D28: CARD: evolución de los principales indicadores macroeconómicos
D29: CAPARD: evolución de los principales indicadores macroeconómicos
B31: INDICADORES POR PAÍS
D32: Cuadro comparativo por país
D33: Proyecciones 2023-2024
D34: Seguimiento de las proyecciones en 2023
D35: Evolución de indicadores macroeconómicos seleccionados (series mensuales)
D36: Nota técnica
J46: =CONCATENATE("Nº",((MONTH(J48))+127+((K48-2010)*11)),) -> Nº-21980
B47: Elaborado con información recibida al | G47: =+TODAY() -> 2024-05-28 | J47: REM N° 284
J48: Marzo 2024
B52: ADVERTENCIA El Consejo Monetario Centroamericano y su Secretaría Ejecutiva autorizan la reproducción total, gráficos y cifras de esta publicación, siempre que se mencione la fuente. No obstante, no asumen responsabilidad legal alguna o de cualquier otra índole, por la manipulación, interpretación personal y uso de dicha información. Derechos Reservados © 2020

Sheet Regional-cuadro
A1: Consejo Monetario Centroamericano | G1: =CONCATENATE(Indice!$J$47,",") -> REM N° 284, | H1: =Indice!$J$48 -> Marzo 2024
A2: Secretaría Ejecutiva
A3: PRINCIPALES INDICADORES MACROECONÓMICOS REGIONALES
B5: Agregados Regionales | D5: Región CARD 1/ | G5: Región CAPARD 1/
B7: I. SECTOR REAL
B8: 1. Indice de Precios al Consumidor (IPC) | D8: ABRIL 2023 2024 | G8: ABRIL 2023 2024
B9: 1.1 Variación interanual | D9: 6.2 % | E9: 2.8 % | G9: 5.5 % | H9: 2.6 %
B11: 2. Índice Mensual de Actividad Económica (IMAE) | D11: FEBRERO 2023 2024 | G11: FEBRERO 2023 2024
B12: 2.1 Variación acumulada de la tendencia-ciclo | D12: 3% | E12: 3.1 % | G12: 3.7 % | H12: 6.8 %
B14: 3. Producto Interno Bruto Trimestral (PIB) | D14: IV TRIMESTRE 2022 2023 | G14: III TRIMESTRE 2021 2022
B15: 3.1 PIB nominal (millones de US$) | D15: 97940.29272 | E15: 107260.5469 | G15: 94665.51931 | H15: 106757.4034
B16: 3.2 PIB real, tasa de variación interanual | D16: 3.2 % | E16: 4 % | G16: 13.42461292 | H16: 4.899427501
B18: 4. Producto Interno Bruto anual (PIB) | D18: ANUAL 2023 2024 | G18: ANUAL 2023 2024
B19: 4.1 PIB nominal (millones de US$) | D19: 398199.9188 | E19: 420115.2984 | G19: 475903.2724 | H19: 502436.6174
B20: 4.2 PIB real, tasa de variación interanual | D20: 3.4 % | E20: 4 % | G20: 3.9 % | H20: 4 %
B22: II. SECTOR EXTERNO
B23: 1. Comercio Exterior 2/ | D23: ACUMULADO A DICIEMBRE 2022 2023 | G23: ACUMULADO A DICIEMBRE 2022 2023
B24: 1.1 Balanza de bienes (millones de US$) | D24: -60144.94865 | E24: -56017.88827 | G24: -73927.61865 | H24: -73384.93827
B25: 1.2 Exportaciones totales FOB (millones de US$) | D25: 72220.44349 | E25: 70614.19788 | G25: 87687.12349 | H25: 87531.75788
B26: 1.2.1 Tasa crecimiento interanual | D26: 12.9 % | E26: -2.2 % | G26: 13.8 % | H26: -0.2 %
B27: 1.3 Importaciones totales CIF (millones de US$) | D27: 132365.3921 | E27: 126632.0861 | G27: 161614.7421 | H27: 160916.6961
B28: 1.3.1 Tasa crecimiento interanual | D28: 21.3 % | E28: -4.3 % | G28: 24.4 % | H28: -0.4 %
B30: 2. Ingreso de Remesas familiares | C30: sin Costa Rica | D30: ACUMULADO A MARZO 2023 2024 | G30: ACUMULADO A DICIEMBRE 2022 2023
B31: 2.1 Ingreso de Remesas familiares (millones de US$) | D31: 11968.77666 | E31: 12455.69183 | G31: 48325.73301 | H31: 52675.2659
B33: 3. Inversión Extranjera Directa (IED) | D33: ACUMULADO AL IV TRIMESTRE | G33: ACUMULADO AL III TRIMESTRE
D34: 2022 | E34: 2023 | G34: 2022 | H34: 2023
B35: 3.1. IED en la economía declarante, acumulado (millones de US$) | D35: 11089.71423 | E35: 12930.18323 | G35: 10821.95029 | H35: 10943.97552
B36: 3.2. Tasa de Variación interanual | D36: -9.4 % | E36: 16.6 % | G36: 18.7 % | H36: 1.1 %
B38: 4. Cuenta Corriente | D38: ACUMULADO AL IV TRIMESTRE | G38: ACUMULADO AL III TRIMESTRE
D39: 2022 | E39: 2023 | G39: 2022 | H39: 2023
B40: 4.1. Cuenta Corriente (millones de US$) | D40: -11538.90613 | E40: -1928.669024 | G40: -9659.589225 | H40: -512.9098564
B42: 5. Reservas Internacionales Netas del Banco Central (RIN) 3/ | D42: SALDO A MARZO 2023 2024 | G42: SALDO A FEBRERO 2023 2024
B43: 5.1 RIN del Banco Central (millones de US$) | D43: 61004.5302 | E43: 63864.56314 | G43: 65321.45714 | H43: 64277.04943
D44: ACUMULADO A DICIEMBRE 2022 2023 | G44: ACUMULADO A DICIEMBRE 2022 2023
B45: 5.2 RIN Banco Central/ Importaciones (meses de importación promedio) | D45: 5.786884848 | E45: 6.419498983 | G45: 5.310818984 | H45: 5.718778415
B47: III. SECTOR FISCAL
B48: 1. Resultado del Gobierno Central | D48: ACUMULADO A ENERO 2023 2024 | G48: ACUMULADO A DICIEMBRE 2022 2023
B49: 1.1 Ingresos totales del Gobierno Central, incluye donaciones (millones US$) | D49: 5209.293186 | E49: 6204.788666 | G49: 66283.20285 | H49: 73588.7515
B50: 1.2 Gastos totales del Gobierno Central (millones US$) | D50: 5062.390796 | E50: 5664.489719 | G50: 77668.15765 | H50: 86655.33458
B51: 1.3 Donaciones recibidas (millones US$) | D51: 4.616108553 | E51: 6.240603422 | G51: 210.6986913 | H51: 300.3765152
B52: 1.4 Resultado del Gobierno Central (millones US$) | D52: 151.5184978 | E52: 546.5395505 | G52: -11174.25611 | H52: -12766.20656
B53: 1.5 Resultado del Gobierno Central / PIB | D53: 0.0004238562133 | E53: 0.00152888385 | G53: -0.02600580936 | H53: -0.0297107504
B56: 2. Deuda Pública | D56: ENERO 2023 2024 | G56: ENERO 2023 2024
B57: 2.1 Deuda Interna (millones de US$) 4/ | D57: 108904.1494 | E57: 111186.8964 | G57: 116325.5594 | H57: 118191.8364
B58: 2.2 Deuda Externa (millones de US$) | D58: 94425.40138 | E58: 101412.1208 | G58: 131222.6214 | H58: 141301.7408
B59: 2.3 Deuda Total (millones de US$) 4/ | D59: 203329.5508 | E59: 212599.0172 | G59: 247548.1808 | H59: 259493.5772
B60: 2.4 Deuda Total / PIB 4/ | D60: 0.5106217787 | E60: 0.5060492155 | G60: 0.5201649057 | H60: 0.5164702735
B62: Agregados Regionales | C62: Región CARD | F62: Región CAPARD
B63: IV. SECTOR MONETARIO | C63: 2023 | D63: 2022 | E63: 2023 | F63: 2023 | G63: 2022 | H63: 2023
B64: 1. Agregados Monetarios | C64: Porcentaje respecto a M3 a DICIEMBRE | D64: Variación Interanual a DICIEMBRE | F64: Porcentaje respecto a M3 a DICIEMBRE | G64: Variación Interanual a DICIEMBRE
B65: 1.1 M1 5/ | C65: 0.3580757159 | D65: 0.0625765479 | E65: 0.1258815246 | F65: 0.3378158747 | G65: 0.04938752302 | H65: 0.1113355083
B66: 1.2 M2 6/ | C66: 0.7836583054 | D66: 0.07591954437 | E66: 0.1382491354 | F66: 0.8194828322 | G66: 0.05898066994 | H66: 0.1168036734
B67: 1.3 M3 7/ | C67: 1 | D67: 0.06495962326 | E67: 0.1104994239 | F67: 1 | G67: 0.05339861183 | H67: 0.09807417938
B68: 1.4 Base Monetaria Amplia 8/ | C68: 0.3236588159 | D68: 0.01171254466 | E68: 0.1305622697 | F68: 0.2797613191 | G68: 0.01551075282 | H68: 0.1228576374
B70: 2. Crédito Neto de las OSD 9/ con el Sector Público | C70: Saldo en millones de US$ a DICIEMBRE | D70: Variación Interanual a DICIEMBRE | F70: Saldo en millones de US$ a DICIEMBRE | G70: Variación Interanual a DICIEMBRE
B71: 2.1 Total Activos | C71: 35079.2821 | D71: -0.003456752756 | E71: 0.01217090792 | F71: 39350.84975 | G71: -0.004136615821 | H71: 0.028004862
B72: 2.2 Total Pasivos | C72: 20518.00267 | D72: 0.06702234804 | E72: 0.1323659532 | F72: 24268.70618 | G72: 0.1330253721 | H72: 0.1413617408
B73: 2.3 Crédito neto | C73: 14561.27944 | D73: -0.07070901963 | E73: -0.1195197393 | F73: 15082.14357 | G73: -0.1349895531 | H73: -0.1136449058
B75: 3. Crédito 10/ de las OSD 9/ con el Sector Privado | C75: Saldo en millones de US$ a DICIEMBRE | D75: Variación Interanual a DICIEMBRE | F75: Saldo en millones de US$ a DICIEMBRE | G75: Variación Interanual a DICIEMBRE
B76: 3.1 Otras Sociedades No Financieras 11/ | C76: 76343.71771 | D76: 0.1218733651 | E76: 0.1135719083 | F76: 102135.594 | G76: 0.1038237833 | H76: 0.08858757211
B77: 3.2 Hogares e ISFLSH 12/ | C77: 88920.36304 | D77: 0.1524688613 | E77: 0.1702470168 | F77: 118613.0868 | G77: 0.1166609659 | H77: 0.1353563229
B78: 3.3 Otros 13/ | C78: 2612.234072 | D78: 0.2784063418 | E78: 0.3284878533 | F78: 3469.337734 | G78: 0.2189915597 | H78: 0.2382680067
B79: 3.4 Total | C79: 167876.3148 | D79: 0.1394342886 | E79: 0.1458500585 | F79: 224218.0185 | G79: 0.1119281792 | H79: 0.1149697558
B80: Fuente: Cálculos de la Secretaría Ejecutiva con base en la información proporcionada por los Bancos Centrales de la región.
B81: */ No incluye las remesas de Costa Rica debido a que se compilan trimestralmente. En 2013 Costa Rica recibió 229 millones de US$ de remesas netas (ingresos-egresos).
B82: Notas:
B83: 1/ La región CARD incluye a los países centroamericanos y a la República Dominicana. La región CAPARD incluye a los países centroamericanos, Panamá y la República Dominicana.
B84: 2/ Incluye comercio intrarregional. No incluye la maquila en el caso de Honduras. En Panamá incluye: exportación de mercancías generales, reexportaciones nacionales y reexportaciones de la Zona Libre de Colón.
B85: 3/ En Panamá, al no tener banco central, las RIN son administradas por el Banco Nacional de Panamá (BNP).
B86: 4/ Incluye la deuda interna consolidada en los casos de Guatemala, Honduras y República Dominicana, tal como lo recomienda la versión del 2001 del Manual de Estadísticas de Finanzas Públicas del FMI. En el resto de países se considera únicamente la deuda interna bruta.
B87: 5/ M1: incluye billetes y monedas en poder del público más los depósitos transferibles en MN.
B88: 6/ M2: incluye M1 más otros depósitos en MN, más valores distintos de acciones emitidos por las sociedades de depósito en moneda nacional.
B89: 7/ M3: incluye M2 más depósitos transferibles en ME, más otros depósitos en ME, más valores distintos de acciones emitidos por las sociedades de depósito en ME.
B90: 8/ Base Monetaria Amplia: incluye billetes y monedas en circulación, más depósitos transferibles por concepto de encaje en MN, más valores por concepto de encaje en MN, más pasivos frente a OSD de encaje legal en ME, más otros pasivos frente a OSD a corto plazo, más depósitos y valores de otros sectores.
B91: 9/ OSD corresponde a otras sociedades de depósito, por ejemplo: Bancos comerciales, cooperativas, y otras sociedades de depósito que reciben dinero de público.
B92: 10/ Incluye valores distintos de acciones y préstamos.
B93: 11/ Otras sociedades no Financieras abarca las sociedades y cuasisociedades que se dedican principalmente a la producción de bienes y servicios no financieros.
B94: 12/ ISFLSH corresponde a Instituciones sin fines de lucro que dan servicios a los hogares, en estas podemos encontrar organizaciones del tipo ONG´s.
B95: 13/ Incluye otros sectores residentes, por ejemplo otras sociedades financieras.

Sheet Región CARD-graficos
B1: Consejo Monetario Centroamericano | P1: =CONCATENATE(Indice!$J$47,",") -> REM N° 284, | Q1: =Indice!$J$48 -> Marzo 2024
B2: Secretaría Ejecutiva
B3: REGIÓN CARD: EVOLUCIÓN DE LOS PRINCIPALES INDICADORES MACROECONÓMICOS
B5: Región CARD: Inflación, serie original y tendencia de largo plazo | K5: Región CARD: Ciclo de crecimiento de la Actividad Económica
B6: (cálculos basados en el IPC, variación interanual) | K6: (cálculos basados en el IMAE, variación interanual)
B21: Región CARD: | K21: Región CARD:
B22: Reservas Internacionales Netas del Banco Central | K22: Flujos trimestrales de Inversión Extranjera Directa (IED) en la economía declarante
K36: Los flujos negativos observados en El Salvador y Honduras surgen debido a amortizaciones netas de préstamos con el inversionista directo, mayores a lo registrado por acciones u otras aportaciones de capital, los cuales por metodología deben sumarse al valor de la IED. El valor de Guatemala del IV trimestre de 2021 corresponde a la venta de una empresa de telecomunicaciones a un no residente.
B38: =CONCATENATE("Región CARD:") -> Región CARD: | K38: Región CARD:
B39: Flujos mensuales de comercio exterior | K39: Ingreso de Remesas, sin acumular
B55: Región CARD: | K55: Región CARD: Saldo Operacional (con donaciones) del Gobierno Central con respecto al PIB
B56: Deuda Pública Bruta Total, Interna y Externa | K56: =CONCATENATE("Datos a ",'Saldo Operacional'!C4," de cada año") -> Datos a enero de cada año
B69: Incluye la deuda interna consolidada en los casos de Guatemala, Honduras y República Dominicana, tal como lo recomienda la versión del 2001 del Manual de Estadísticas de Finanzas Públicas del FMI. En el resto de países se considera únicamente la deuda interna bruta. A partir de 2019 se dispone únicamente de datos trimestrales de Nicaragua.
B71: Región CARD: | K71: Región CARD:
B72: =CONCATENATE("Agregados Monetarios (Millones US$)"," ","y variación interanual") -> Agregados Monetarios (Millones US$) y variación interanual | K72: =CONCATENATE("Crédito Total (Millones US$)"," ","y variación interanual") -> Crédito Total (Millones US$) y variación interanual
B90: OJO, REVISAR AÑO DE INICIO DE TODOS ESTOS GRAFICOS PARA ARMONIZAR !!!
C92: deuda: a partir de diciembre 2011 mensual
C93: remesas: desde 2006
C94: ied:2008
C95: agregados monetarios:2002
C96: crédito osd:2003
C98: ***la serie mas corta es la de remesas 2008, la extensión se puede evaluar a partir de esta fecha para que se armonizado pero se perdería información en otras series
K101: OSD: Corresponde a Otras Sociedades de Depósito, por ejemplo: bancos comerciales y cooperativas.
B103: La región CARD la conforman los países de Centroamérica y República Dominicana

Sheet Región CAPARD-graficos
B1: Consejo Monetario Centroamericano | P1: =CONCATENATE(Indice!$J$47,",") -> REM N° 284, | Q1: =Indice!$J$48 -> Marzo 2024
B2: Secretaría Ejecutiva
B3: REGIÓN CAPARD: EVOLUCIÓN DE LOS PRINCIPALES INDICADORES MACROECONÓMICOS
B5: Región CAPARD: Inflación, serie original y tendencia de largo plazo | K5: Región CAPARD: Ciclo de crecimiento de la Actividad Económica
B6: (cálculos basados en el IPC, variación interanual) | K6: (cálculos basados en el IMAE, variación interanual)
B21: Región CAPARD: | K21: Región CAPARD:
B22: Reservas Internacionales Netas del Banco Central | K22: Flujos trimestrales de Inversión Extranjera Directa (IED) en la economía declarante
B35: En Panamá, el Banco Nacional de Panamá (BNP) funciona como receptor y gestor de las RIN que corresponden a los activos externos de reserva menos los pasivos de corto plazo frente a no residentes. Los primeros se componen de: billetes y depósitos en moneda extranjera e inversiones en títulos (incluidos los títulos de deuda y participaciones de capital); los pasivos se componen de los depósitos transferibles de no residentes en moneda extranjera. | K35: Los flujos negativos observados en El Salvador, Honduras y Panamá surgen debido a amortizaciones netas de préstamos con el inversionista directo, mayores a lo registrado por acciones u otras aportaciones de capital, los cuales por metodología deben sumarse al valor de la IED.
B38: =CONCATENATE("Región CAPARD:") -> Región CAPARD: | K38: Región CAPARD:
B39: Flujos mensuales de comercio exterior | K39: Ingreso de Remesas, sin acumular
B55: Región CAPARD: | K55: Región CAPARD: Saldo Operacional (con donaciones) del Gobierno Central con respecto al PIB
B56: Deuda Pública Bruta Total, Interna y Externa | K56: =CONCATENATE("Datos a ",'Saldo Operacional'!G4," de cada año") -> Datos a septiembre de cada año
B69: Incluye la deuda interna consolidada en los casos de Guatemala, Honduras y República Dominicana, tal como lo recomienda la versión del 2001 del Manual de Estadísticas de Finanzas Públicas del FMI. En el resto de países se considera únicamente la deuda interna bruta. A partir de 2019 se dispone únicamente de datos trimestrales de Nicaragua.
B71: Región CAPARD: | K71: Región CAPARD:
B72: =CONCATENATE("Agregados Monetarios (Millones US$)"," ","y variación interanual") -> Agregados Monetarios (Millones US$) y variación interanual | K72: =CONCATENATE("Crédito Total (Millones US$)"," ","y variación interanual") -> Crédito Total (Millones US$) y variación interanual
B90: OJO, REVISAR AÑO DE INICIO DE TODOS ESTOS GRAFICOS PARA ARMONIZAR !!!
C92: deuda: a partir de diciembre 2011 mensual
C93: remesas: desde 2006
C94: ied:2008
C95: agregados monetarios:2002
C96: crédito osd:2003
C98: ***la serie mas corta es la de remesas 2008, la extensión se puede evaluar a partir de esta fecha para que se armonizado pero se perdería información en otras series
K100: OSD: Corresponde a Otras Sociedades de Depósito, por ejemplo: bancos comerciales y cooperativas.
B103: La región CAPARD la conforman los países de Centroamérica, Panamá y República Dominicana.

Sheet Comparativo
A1: Consejo Monetario Centroamericano
A2: Secretaría Ejecutiva
A3: CUADRO COMPARATIVO POR PAIS
E4: =CONCATENATE(Indice!$J$47,",") -> REM N° 284, | F4: =Indice!$J$48 -> Marzo 2024
A6: Indicadores | B6: Costa Rica | D6: El Salvador | F6: Guatemala | H6: Honduras | J6: Nicaragua | L6: Rep. Dominicana | N6: Panamá
A8: I. SECTOR REAL
A9: 1. Precios al Consumidor | B9: ABRIL 2023 2024 | D9: ABRIL 2023 2024 | F9: ABRIL 2023 2024 | H9: ABRIL 2023 2024 | J9: ABRIL 2023 2024 | L9: ABRIL 2023 2024 | N9: ABRIL 2023 2024
A10: 1.1 Tasa de variación interanual en el mes indicado | B10: 2.442818001 | C10: -0.5208129709 | D10: 5.433774321 | E10: 1.147553695 | F10: 8.315809597 | G10: 3.354758207 | H10: 7.444039563 | I10: 4.84496124 | J10: 9.534494269 | K10: 5.433855166 | L10: 5.152113251 | M10: 3.032200647 | N10: 0.9510614814 | O10: 1.665535206
A11: 1.2 Tasa de variación acumulada al mes indicado respecto a diciembre | B11: -1.260890482 | C11: -0.01002125245 | D11: 0.9391876027 | E11: 0.8582031854 | F11: 1.571556618 | G11: 0.77 | H11: 2.02669303 | I11: 1.691729323 | J11: 2.128258963 | K11: 1.963949361 | L11: 1.205292808 | M11: 0.6808626368 | N11: 1.347489452 | O11: 1.093556387
A12: =CONCATENATE(" 1.3 Tasa de variación de los precios en el 2023 y proyectado para el 2024") -> 1.3 Tasa de variación de los precios en el 2023 y proyectado para el 2024 | B12: -1.765292223 | C12: 3.0 ± 1 | D12: 1.228770447 | E12: 0.5 - 1.0 | F12: 4.176874813 | G12: 4.0 ± 1 | H12: 5.190311419 | I12: 4.0 ± 1 | J12: 5.603756341 | K12: 3.0 - 4.0 | L12: 3.568878554 | M12: 4.0 ± 1 | N12: 1.920905003 | O12: n.d.
A13: 1.4 Tasa de variación interanual del índice subyacente de inflación | B13: 4.230874862 | C13: 0.9723165256 | D13: 3.619588361 | E13: 0.5993150685 | F13: 4.99 | G13: 3.63 | H13: 6.944804353 | I13: 4.918827235 | J13: 8.608424529 | K13: 5.397867922 | L13: 5.827232796 | M13: 3.993895792 | N13: n.d. | O13: n.d.
A14: 2. Producción | B14: MARZO 2023 2024 | D14: FEBRERO 2023 2024 | F14: JUNIO 2022 2023 | H14: MARZO 2023 2024 | J14: FEBRERO 2023 2024 | L14: MARZO 2023 2024 | N14: MARZO 2023 2024
A15: 2.1 IMAE (variación acumulada Tendencia-Ciclo en el mes indicado) | B15: 4.748127386 | C15: 3.672366219 | D15: 2.805422742 | E15: 0.8371200324 | F15: 4.572557996 | G15: 3.641197717 | H15: 2.394554557 | I15: 4.1520409 | J15: 3.042100043 | K15: 4.557327834 | L15: 1.578888983 | M15: 3.913189079 | N15: 8.858336283 | O15: 0.7036113045
A16: 2.2 Tasa de variación del PIB real estimado para 2022 y 2023 | B16: 5.111921832 | C16: 3.8 | D16: 3.506640412 | E16: 3.5 - 4.0 | F16: 3.526792127 | G16: 2.5 - 4.5 | H16: 3.582561136 | I16: 3.5 – 4.0 | J16: 4.0 - 5.0 | K16: 3.5 - 4.5 | L16: 2.36061569 | M16: 5 | N16: 6 | O16: n.d.
A17: 2.3 Tasa de variación interanual del PIB trimestral, a precios constantes a/ | B17: I TRIMESTRE 2022 2023 | D17: IV TRIMESTRE 2022 2023 | F17: IV TRIMESTRE 2022 2023 | H17: IV TRIMESTRE 2022 2023 | J17: IV TRIMESTRE 2022 2023 | L17: IV TRIMESTRE 2022 2023 | N17: III TRIMESTRE 2021 2022
B18: 4.17450205 | C18: 3.701363502 | D18: 1.584141992 | E18: 4.359895493 | F18: 3.417843544 | G18: 2.023755719 | H18: 1.814751051 | I18: 5.240807089 | J18: 2.341444655 | K18: 5.164223725 | L18: 3.331281601 | M18: 4.231166569 | N18: 25.4974906 | O18: 9.480235762
A19: 2.4 PIB a precios corrientes en millones de US dólares b/(estimado) | B19: 2022 | C19: 2023 | D19: =+B19 -> 2022 | E19: =+C19 -> 2023 | F19: 2022 | G19: 2023 | H19: 2022 | I19: 2023 | J19: 2022 | K19: 2023 | L19: 2022 | M19: 2023 | N19: 2022 | O19: 2023
B20: 86497.94152 | C20: n.d. | D20: 34015.62 | E20: n.d. | F20: 104450.5551 | G20: n.d | H20: 34400.5101 | I20: n.d. | J20: 17417.82264 | K20: n.d. | L20: 121417.4695 | M20: 123005.7 | N20: 77703.35361 | O20: n.d.
A22: II. SECTOR EXTERNO
A23: 1.Indicadores de Balanza de Pagos y del comercio exterior
A24: 1.1 Comercio exterior, acumulado en millones de US$ c/ | B24: FEBRERO 2023 2024 | D24: ABRIL 2023 2024 | F24: FEBRERO 2023 2024 | H24: MARZO 2023 2024 | J24: MARZO 2023 2024 | L24: DICIEMBRE 2022 2023 | N24: FEBRERO 2023 2024
A25: 1.1.1 Exportaciones totales de bienes FOB | B25: 2761.457279 | C25: 3218.611264 | D25: 2260.73 | E25: 2131.28 | F25: 2411.583125 | G25: 2381.606021 | H25: 2889.945269 | I25: 2729.277974 | J25: 2014.583116 | K25: 1924.538129 | L25: 13750.2 | M25: 12931.9 | N25: 2722.45 | O25: 1993.96
A26: 1.1.2 Importaciones totales de bienes CIF | B26: 3654.469366 | C26: 3824.797495 | D26: 5116.23 | E26: 5172.32 | F26: 4760.024113 | G26: 5228.170705 | H26: 4721.902911 | I26: 4561.097186 | J26: 2262.208018 | K26: 2236.40151 | L26: 30912.6 | M26: 28823.1 | N26: 4057.59 | O26: 5264.13
A27: 1.1.3 Saldo acumulado (exportaciones - importaciones) | B27: -893.0120864 | C27: -606.1862312 | D27: -2855.5 | E27: -3041.04 | F27: -2348.440988 | G27: -2846.564684 | H27: -1831.957642 | I27: -1831.819213 | J27: -247.624902 | K27: -311.8633808 | L27: -17162.4 | M27: -15891.2 | N27: -1335.14 | O27: -4155.74
A28: 1.1.4 Saldo en el 2023 (preliminar) y proyectado para el 2024 | B28: -4409.722568 | C28: n.d. | D28: -9150.25 | E28: n.d. | F28: -16133.4656 | G28: -17627.20388 | H28: -7979.213704 | I28: -10243.79895 | J28: -2454.036395 | K28: n.d. | L28: -15891.2 | M28: n.d. | N28: -17367.05 | O28: n.d.
A29: 2.5 Saldo RIN/ Importaciones (meses de importación promedio) | B29: 4.686873437 | C29: 7.193458009 | D29: 2.101414518 | E29: 0.815944645 | F29: 8.423108591 | G29: 7.924263062 | H29: 5.167641195 | I29: 4.699264042 | J29: 6.389027873 | K29: 7.652208213 | L29: 5.603982481 | M29: 6.435535764 | N29: 5.603982481 | O29: 6.435535764
A30: 1.2 Transferencias Corrientes, acumulado en millones de US$ | B30: IV TRIMESTRE 2022 2023 | D30: ABRIL 2023 2024 | F30: MARZO 2023 2024 | H30: ABRIL 2023 2024 | J30: MARZO 2023 2024 | L30: MARZO 2023 2024 | N30: IV TRIMESTRE 2022 2023
A31: 1.2.1 Ingreso de remesas familiares d/ | B31: 575.2867613 | C31: 588.9471888 | D31: 2580.27 | E31: 2637.44 | F31: 4433.418706 | G31: 4682.567331 | H31: 2811.6558 | I31: 2983.7596 | J31: 1020.3 | K31: 1140.9 | L31: 2481.347356 | M31: 2635.6 | N31: 469.5405052 | O31: 458.7914049
A32: 1.2.2 Saldo en el 2022 (preliminar) y proyectado para el 2023 | B32: n.d | C32: n.d. | D32: 8181.79 | E32: n.d. | F32: 19804.00205 | G32: 21685.38225 | H32: 9177.4713 | I32: 9332.6 | J32: 4660.1 | K32: n.d. | L32: 10157.23678 | M32: n.d. | N32: 458.7914049 | O32: n.d.
A33: 1.3 Inversión directa, saldo en millones de US$ | B33: IV TRIMESTRE 2022 2023 | D33: IV TRIMESTRE 2022 2023 | F33: IV TRIMESTRE 2022 2023 | H33: IV TRIMESTRE 2022 2023 | J33: IV TRIMESTRE 2022 2023 | L33: IV TRIMESTRE 2022 2023 | N33: III TRIMESTRE 2022 2023
A34: 1.3.1 Inversión Extranjera Directa en la economía declarante e/ | B34: 3163.86923 | C34: 3921.38457 | D34: 170.8601797 | E34: 759.7330682 | F34: 1442.1074 | G34: 1552.34209 | H34: 920.2774208 | I34: 1076.423498 | J34: 1293.8 | K34: 1230.1 | L34: 4098.8 | M34: 4390.2 | N34: 2272.600124 | O34: 1235.454397
A35: 1.4 Balanza en cuenta corriente, saldo en millones de US$ | B35: IV TRIMESTRE 2022 2023 | D35: IV TRIMESTRE 2022 2023 | F35: IV TRIMESTRE 2022 2023 | H35: IV TRIMESTRE 2022 2023 | J35: IV TRIMESTRE 2022 2023 | L35: IV TRIMESTRE 2022 2023 | N35: III TRIMESTRE 2020 2022
A36: 1.4.1 Saldo de Balanza en Cuenta Corriente | B36: -2235.084635 | C36: -844.4963533 | D36: -2182.174971 | E36: -465.6883958 | F36: 1197.13214 | G36: 3281.14299 | H36: -1382.978659 | I36: -904.5272644 | J36: -386.9 | K36: 1381.2 | L36: -6548.9 | M36: -4376.3 | N36: -723.3118785 | O36: 168.9932759
A37: 1.4.2 Saldo en el 2022 (preliminar) y proyectado para 2023 | B37: -844.4963533 | C37: n.d. | D37: -465.6883958 | E37: n.d. | F37: 3281.14299 | G37: 3322.112861 | H37: -904.5272644 | I37: n.d. | J37: 1381.2 | K37: n.d. | L37: -4376.3 | M37: n.d. | N37: 0 | O37: n.d.
A39: 1.5 Saldo RIN del Banco Central, en millones de US$ | B39: ABRIL 2023 2024 | D39: ABRIL 2023 2024 | F39: ABRIL 2023 2024 | H39: ABRIL 2023 2024 | J39: MARZO 2023 2024 | L39: ABRIL 2023 2024 | N39: FEBRERO 2023 2024
A40: 1.5.1 Saldo RIN a fines de mes | B40: 11137.79366 | C40: 13551 | D40: 2687.83 | E40: 3119.03 | F40: 20173.6 | G40: 21223 | H40: 8059.4 | I40: 7188 | J40: 4817.770027 | K40: 5704 | L40: 16154.84127 | M40: 13788 | N40: 5643.133335 | O40: n.d.
A41: 1.5.2 Saldo en el 2022 y proyectado para el 2023 | B41: 13218.91281 | C41: n.d. | D41: 2645.52 | E41: n.d. | F41: 21319.4 | G41: 21819.4 | H41: 7555.9 | J41: 5443.047519 | K41: n.d. | L41: 15457.67424 | M41: n.d. | N41: 6236.201357 | O41: n.d.
B42: FEBRERO 2023 2024 | D42: ABRIL 2023 2024 | F42: FEBRERO 2023 2024 | H42: MARZO 2023 2024 | J42: MARZO 2023 2024 | L42: DICIEMBRE 2022 2023 | N42: FEBRERO 2023 2024
A43: 1.5.3 Saldo RIN/ Importaciones (importación promedio al mes indicado) | B43: 4.686873437 | C43: 7.193458009 | D43: 2.101414518 | E43: 0.815944645 | F43: 8.423108591 | G43: 7.924263062 | H43: 5.167641195 | I43: 4.699264042 | J43: 6.389027873 | K43: 7.652208213 | L43: 5.603982481 | M43: 6.435535764 | N43: 2.781519737 | O43: n.d.
A44: 1.5.3 Saldo RIN/ Importaciones (importación promedio al mes indicado) | B44: IV TRIMESTRE 2022 2023 | D44: ABRIL | F44: MARZO TRIMESTRE | H44: ABRIL TRIMESTRE | J44: MARZO TRIMESTRE | L44: MARZO TRIMESTRE | N44: MARZO TRIMESTRE
A45: 1.5.3 Saldo RIN/ Importaciones (importación promedio al mes indicado) | B45: 575.2867613 | C45: 588.9471888 | D45: 2580.27 | E45: 2637.44 | F45: 4433.418706 | G45: 4682.567331 | H45: 2811.6558 | I45: 2983.7596 | J45: 1020.3 | K45: 1140.9 | L45: 2481.347356 | M45: 2635.6 | N45: 2481.347356 | O45: 2635.6
A46: 1.5.3 Saldo RIN/ Importaciones (importación promedio al mes indicado) | B46: 588.9471888 | D46: 8181.79 | F46: 19804.00205 | G46: 21685.38225 | H46: 9177.4713 | I46: 9332.6 | J46: 4660.1 | K46: n.d. | L46: 10157.23678 | M46: n.d. | N46: 10157.23678 | O46: n.d.
A47: 2. Tipo de Cambio | B47: MARZO 2023 2024 | D47: MARZO 2023 2024 | F47: MARZO 2023 2024 | H47: MARZO 2023 2024 | J47: MARZO 2023 2024 | L47: FEBRERO 2023 2024 | N47: MARZO 2023 2024
A48: 2.1 Unidades Moneda Nacional por US$, promedio compra | B48: 544.6977419 | C48: 503.5906452 | D48: 8.75 | E48: 8.75 | F48: 7.78249 | G48: 7.78043 | H48: 24.57602174 | I48: 24.6725 | J48: 36.186 | K48: 36.46137711 | L48: 55.8418 | M48: 58.5124 | N48: 1 | O48: 1
A49: 2.2 ITCER-USA, 2000=100, tasa de variación interanual | B49: -15.33224935 | C49: -1.348330833 | D49: -1.053627461 | E49: 2.679658211 | F49: -2.096668058 | G49: 0.20758504 | H49: -2.982700357 | I49: -0.8361588379 | J49: -3.266902779 | K49: -1.090723927 | L49: -1.339431049 | M49: 4.646712216 | N49: 3.540132644 | O49: 1.747998089
A50: 2.3 ITCER-Global f/, 2000=100, tasa de variación interanual | B50: -16.44403671 | C50: -1.607147736 | D50: -1.284359715 | E50: 2.634430178 | F50: -1.804940298 | G50: 0.3444318279 | H50: -3.861928845 | I50: -1.078348742 | J50: -2.728095536 | K50: -1.382831548 | L50: -4.576275476 | M50: 4.322107224 | N50: 0.03838699487 | O50: 0.4260917283
A51: 2.4 ITCER-Región g/, 2000=100, tasa de variación interanual | B51: -14.05173242 | C51: -1.379158228 | D51: 3.274187075 | E51: 3.095905867 | F51: 1.749773987 | G51: -0.4464212067 | H51: 0.9596223761 | I51: -1.522377162 | J51: 2.678912388 | K51: -1.59483312 | L51: 3.231678127 | M51: 6.5416997 | N51: 13.94785149 | O51: 1.849780285
A52: 2.5 ITCER-Global f/, tasa de variación con el año base (2000) | B52: -18.08536911 | C52: -19.40185825 | D52: 9.604895228 | E52: 12.49235966 | F52: -46.34826473 | G52: -46.16347107 | H52: -19.43093422 | I52: -20.29974972 | J52: 14.28041748 | K52: 12.70011182 | L52: 17.08177282 | M52: 22.14217258 | N52: 4.858064293 | O52: 5.304855831
A54: III. SECTOR FISCAL
A55: 1. Resultado del Gobierno Central, en millones de US$ | B55: MARZO 2023 2024 | D55: ENERO 2023 2024 | F55: MARZO 2023 2024 | H55: FEBRERO 2023 2024 | J55: FEBRERO 2023 2024 | L55: MARZO 2023 2024 | N55: MARZO 2023 2024
A56: 1.1 Ingresos totales, acumulado | B56: 3607.868626 | C56: 3805.917492 | D56: 582.8991013 | E56: 762.0267066 | F56: 3115.044847 | G56: 3289.179077 | H56: 846.1530144 | I56: 933.4667881 | J56: 688.3749774 | K56: 837.9736951 | L56: 4441.927929 | M56: 4994.874077 | N56: 1578.8 | O56: 1944.2
A57: 1.2 Ingresos tributarios, acumulado | B57: 3252.020338 | C57: 3376.008392 | D57: 566.9765013 | E57: 744.7677276 | F57: 2936.751817 | G57: 3163.437028 | H57: 748.2675037 | I57: 839.42126 | J57: 646.1134125 | K57: 791.3516436 | L57: 4070.199202 | M57: 4359.241422 | N57: 1249.2 | O57: 1550.5
A58: 1.3 Gastos totales, acumulado | B58: 4046.872519 | C58: 4482.068876 | D58: 576.8400939 | E58: 695.9508519 | F58: 3136.651183 | G58: 2954.3222 | H58: 667.7930202 | I58: 804.9920738 | J58: 565.1377344 | K58: 630.1099898 | L58: 5647.50271 | M58: 5659.045548 | N58: 3969.6 | O58: 3725.6
A59: 1.4 Donaciones, acumulado | B59: 0 | C59: 0 | D59: 0.05456314 | E59: 0.04056314 | F59: 0.4260213937 | G59: 0.568715346 | H59: 9.306773297 | I59: 8.102001214 | J59: 0.3940632294 | K59: 0.6826069031 | L59: 1.694447983 | M59: 2.216625233 | N59: 0 | O59: 0
A60: 1.5 Déficit (-) superávit (+) con donaciones | B60: -439.0038931 | C60: -676.1513843 | D60: 6.113570535 | E60: 66.11641786 | F60: -21.18031439 | G60: 335.4255924 | H60: 187.6667675 | I60: 136.5767155 | J60: 123.6313063 | K60: 208.5463121 | L60: -1203.880332 | M60: -661.9548454 | N60: -2390.8 | O60: -1781.4
A61: 1.5.1 Financiamiento interno | B61: 1427.947354 | C61: -5.152344437 | D61: 29.36333345 | E61: -20.84200633 | F61: 66.05676679 | G61: -216.5249887 | H61: -267.3502031 | I61: -94.13601624 | J61: -156.7293609 | K61: -275.5619275 | L61: -934.6086493 | M61: 374.280119 | N61: n.d. | O61: n.d.
A62: 1.5.2 Financiamiento externo | B62: -988.9434728 | C62: 681.3037304 | D62: -35.47690398 | E62: -45.27441153 | F62: -44.8764524 | G62: -118.9006037 | H62: 79.68343561 | I62: -42.44069925 | J62: 33.0980546 | K62: 67.01561532 | L62: 2056.141525 | M62: 213.5236088 | N62: n.d. | O62: n.d.
A63: 1.6 Déficit (-) superávit (+) en el 2021 y estimado 2022, con donaciones | B63: -2841.706281 | C63: n.d. | D63: -760.5967177 | E63: n.d. | F63: -1599.765533 | G63: -2630.014919 | H63: -1233.804305 | I63: n.d. | J63: 474.172414 | K63: n.d. | L63: -4013.326648 | M63: n.d. | N63: -3077.4 | O63: n.d.
A64: 1.7 Ingresos Corrientes, tasa de variación interanual | B64: 3.966538992 | C64: -3.986716779 | D64: -6.522447665 | E64: 30.73046516 | F64: 11.77211665 | G64: 5.399163094 | H64: 12.59088696 | I64: 10.65332366 | J64: 3.729434335 | K64: 22.86154647 | L64: 12.3366652 | M64: 18.47385514 | N64: -11.24915673 | O64: 23.09495154
A65: 1.8 Relación Gasto Capital / Gasto Total, en porcentajes | B65: 4.862616696 | C65: 4.540293913 | D65: 3.768658626 | E65: 4.041154834 | F65: 16.87849603 | G65: 12.29348978 | H65: 7.504398873 | I65: 5.518181595 | J65: 13.4560577 | K65: 11.99921795 | L65: 10.48824109 | M65: 10.13097905 | N65: 24.61205159 | O65: 32.06731802
A66: 1.9 Ahorro Corriente, en millones de US$ | B66: -233.1008772 | C66: -480.9683491 | D66: 27.79814135 | E66: 94.20030621 | F66: 505.3912909 | G66: 696.8795957 | H66: 220.3881669 | I66: 163.7568098 | J66: 199.2973063 | K66: 283.4719763 | L66: -609.9444741 | M66: -91.08795274 | N66: -1413.9 | O66: -587.6
A67: 2. Saldo Deuda Pública, en millones de US$ | B67: MARZO 2023 2024 | D67: ENERO 2023 2024 | F67: MARZO 2023 2024 | H67: FEBRERO 2023 2024 | J67: FEBRERO 2023 2024 | L67: MARZO 2023 2024 | N67: ABRIL 2023 2024
A68: 2.1 Saldo Deuda Pública Total h/ | B68: 60904.80298 | C68: 69507.23272 | D68: 25476.26356 | E68: 20139.91997 | F68: 27112.51269 | G68: 27156.46266 | H68: 15205.74984 | I68: 14136.77194 | J68: 9808.116927 | K68: 9520.646003 | L68: 71944.33164 | M68: 72781.04077 | N68: 45460.32 | O68: 50541.59
A69: 2.1.1 Saldo Deuda Interna Bruta | B69: 45375.24298 | C69: 51410.04272 | D69: 13763.61409 | E69: 8050.574111 | F69: 22850.63047 | G69: 21355.30934 | H69: 13286.54847 | I69: 12610.21198 | J69: 1667.675657 | K69: 1687.300923 | L69: 34789.79164 | M69: 34941.37077 | N69: 6993.15 | O69: 7523.7
A70: 2.1.1.1 Sector Público No Financiero | B70: 41051.18263 | C70: 43038.22082 | D70: 7391.712036 | E70: 7886.074111 | F70: 16164.12157 | G70: 16045.11189 | H70: 11250.42945 | I70: 11145.07581 | J70: 757.2606052 | K70: 606.1327123 | L70: 16469.31 | M70: 16289.06 | N70: 6993.15 | O70: 7523.7
A71: a) Gobierno Central | B71: 39441.26754 | C71: 41827.34642 | D71: 6831.36758 | E71: 7318.162111 | F71: 16164.12157 | G71: 16045.11189 | H71: 8154.54737 | I71: 8050.555089 | J71: 757.2606052 | K71: 606.1327123 | L71: 16178.68 | M71: 16125.1 | N71: 6989.33 | O71: 7519.88
A72: b) Resto del Sector Público No Financiero | B72: 1609.915089 | C72: 1210.874402 | D72: 560.344456 | E72: 567.912 | F72: n.d. | G72: n.d. | H72: 3095.882083 | I72: 3094.520725 | J72: n.d. | K72: n.d. | L72: 290.63 | M72: 163.96 | N72: 3.82 | O72: 3.82
A73: 2.1.1.2 Sector Público Financiero | B73: 4324.060354 | C73: 8371.821897 | D73: 6371.902057 | E73: 164.5 | F73: 6686.508902 | G73: 5310.197455 | H73: 2036.119017 | I73: 1465.136165 | J73: 910.4150516 | K73: 1081.168211 | L73: 18320.48164 | M73: 18652.31077 | N73: n.d. | O73: n.d.
A74: a) Banco Central | B74: 4324.060354 | C74: 8371.821897 | D74: 0 | E74: 0 | F74: 6686.508902 | G74: 5310.197455 | H74: 1913.027676 | I74: 1383.748826 | J74: 910.4150516 | K74: 1081.168211 | L74: 18320.48164 | M74: 18652.31077 | N74: n.d. | O74: n.d.
A75: b) Resto del Sector Público Financiero | B75: n.d. | C75: n.d. | D75: 6371.902057 | E75: 164.5 | F75: n.d. | G75: n.d. | H75: 123.0913414 | I75: 81.3873388 | J75: n.d. | K75: n.d. | L75: n.d. | M75: n.d. | N75: n.d. | O75: n.d.
A76: 2.1.2 Deuda Intragubernamental | B76: n.d. | C76: n.d. | D76: n.d. | E76: n.d. | F76: 6786.005987 | G76: 6523.205085 | H76: 7684.498628 | I76: 7827.340043 | J76: n.d. | K76: n.d. | L76: 2419.91 | M76: 2244.01 | N76: n.d. | O76: n.d.
A77: a) Deuda Intragubernamental SPNF | B77: n.d. | C77: n.d. | D77: n.d. | E77: n.d. | F77: 3948.770303 | G77: 3912.606188 | H77: 4382.286139 | I77: 4475.588229 | J77: n.d. | K77: n.d. | L77: 2419.91 | M77: 2244.01 | N77: n.d. | O77: n.d.
A78: b) Deuda Intragubernamental del BC | B78: n.d. | C78: n.d. | D78: n.d. | E78: n.d. | F78: 2837.235684 | G78: 2610.598898 | H78: 3302.212489 | I78: 3351.751814 | J78: n.d. | K78: n.d. | L78: n.d. | M78: n.d. | N78: n.d. | O78: n.d.
A79: 2.1.3 Saldo Deuda Interna Consolidada (2.1.1 - 2.1.2) | B79: n.d. | C79: n.d. | D79: n.d. | E79: n.d. | F79: 16064.62449 | G79: 14832.10426 | H79: 5602.049842 | I79: 4782.871935 | J79: n.d. | K79: n.d. | L79: 32369.88164 | M79: 32697.36077 | N79: n.d. | O79: n.d.
A80: 2.1.4 Saldo Deuda Externa | B80: 15529.56 | C80: 18097.19 | D80: 11712.64947 | E80: 12089.34586 | F80: 11047.8882 | G80: 12324.3584 | H80: 9603.7 | I80: 9353.9 | J80: 8140.44127 | K80: 7833.34508 | L80: 39574.45 | M80: 40083.68 | N80: 38467.17 | O80: 43017.89
A81: 2.1.4.1 Sector Público No Financiero | B81: 13153.818 | C81: 17068.668 | D81: 11197.06007 | E81: 11533.42963 | F81: 11047.8882 | G81: 12324.3584 | H81: 8968.8 | I81: 8645.4 | J81: 6322.471996 | K81: 6761.694698 | L81: 38473.57 | M81: 38996.91 | N81: 38467.17 | O81: 43017.89
A82: a) Gobierno Central | B82: 11083.932 | C82: 15030.909 | D82: 10619.70449 | E82: 11012.99406 | F82: 11026.2572 | G82: 12307.8797 | H82: 8782.6 | I82: 8490.1 | J82: 6285.219688 | K82: 6727.844906 | L82: 38467.61 | M82: 38990.95 | N82: 38455.14 | O82: 43008.21
A83: b) Resto del Sector Público No Financiero | B83: 2069.886 | C83: 2037.759 | D83: 577.35558 | E83: 520.43557 | F83: 21.631 | G83: 16.4787 | H83: 186.2 | I83: 155.3 | J83: 37.25230724 | K83: 33.84979228 | L83: 5.96 | M83: 5.96 | N83: 12.03 | O83: 9.68
A84: 2.1.4.2 Sector Público Financiero | B84: 2375.742 | C84: 1028.522 | D84: 515.5894 | E84: 555.91623 | F84: n.d. | G84: n.d. | H84: 634.9 | I84: 708.5 | J84: 1817.969274 | K84: 1071.650382 | L84: 1100.88 | M84: 1086.77 | N84: 0 | O84: 0
A85: a) Banco Central | B85: 1789.42 | C85: 676.91 | D85: 85.96565 | E85: 6.92407 | F85: 0 | G85: 0 | H85: 618.3 | I85: 692.2 | J85: 1817.969274 | K85: 1071.650382 | L85: 1100.88 | M85: 1086.77 | N85: 0 | O85: 0
A86: b) Resto del Sector Público Financiero | B86: 586.322 | C86: 351.612 | D86: 429.62375 | E86: 548.99216 | F86: n.d. | G86: n.d. | H86: 16.6 | I86: 16.3 | J86: 0 | K86: 0 | L86: n.d. | M86: n.d. | N86: 0 | O86: 0
A87: 2.2 Relación Deuda Pública Total/PIB h/ | B87: 70.41185248 | C87: 76.22855425 | D87: 74.89577895 | E87: 56.28824094 | F87: 25.95727008 | G87: 28.39763857 | H87: 44.20210572 | I87: 37.72335929 | J87: 56.31080949 | K87: 50.39820604 | L87: 59.25369056 | M87: 58.89720309 | N87: 58.50496521 | O87: 61.39550559
A88: 2.2.1.a Deuda Interna/PIB (bruta) | B88: 52.45817667 | C88: 56.38137324 | D88: 40.46262891 | E88: 22.50022125 | F88: 21.87698328 | G88: 22.33134573 | H88: 38.62311469 | I88: 33.64980063 | J88: 9.574535755 | K88: 8.931845544 | L88: 28.65303633 | M88: 28.27589423 | N88: 8.999804609 | O88: 9.139430822
A89: 2.2.1.b Deuda Interna/PIB (consolidada) | B89: n.d. | C89: n.d. | D89: n.d. | E89: n.d. | F89: 15.38012361 | G89: 13.10095035 | H89: 16.28478713 | I89: 12.76288514 | J89: n.d. | K89: n.d. | L89: 26.65998705 | M89: 26.45995547 | N89: n.d. | O89: n.d.
A90: 2.2.2 Deuda Externa/PIB | B90: 17.95367581 | C90: 19.84718102 | D90: 34.43315004 | E90: 33.78801969 | F90: 10.57714647 | G90: 10.88590026 | H90: 27.91731859 | I90: 24.96047415 | J90: 46.73627374 | K90: 41.4663605 | L90: 32.5937035 | M90: 32.43724762 | N90: 49.5051606 | O90: 52.25607477
A92: IV. SECTOR MONEDA Y CREDITO i/
A93: 1. Principales variables monetarias, tasas de variación | B93: FEBRERO 2023 2024 | D93: FEBRERO 2023 2024 | F93: ENERO 2023 2024 | H93: FEBRERO 2023 2024 | J93: ENERO 2023 2024 | L93: MARZO 2023 2024 | N93: DICIEMBRE 2022 2023
A94: 1.1 Base Monetaria Restringida, tasa interanual ponderada para los componentes | B94: 11.61824217 | C94: 5.444682892 | D94: -13.63012769 | E94: 0.07165366357 | F94: 11.00161026 | G94: 12.39531949 | H94: -12.85296747 | I94: 13.99449607 | J94: 7.318451713 | K94: 14.37522818 | L94: 16.85010608 | M94: 6.728613968 | N94: 10.86784118 | O94: -2.173132535
A95: 1.1.1 Billetes y monedas en circulación | B95: 0.2753951663 | C95: 0.5919867769 | D95: 0 | E95: 0 | F95: 8.506681795 | G95: 8.897852723 | H95: 3.064418032 | I95: 0.6096430496 | J95: 7.115286565 | K95: 11.86405401 | L95: 3.982110634 | M95: 8.822229889 | N95: 10.86784118 | O95: -2.173132535
A96: 1.1.2 Depósitos transferibles por concepto de encaje en MN | B96: 11.342847 | C96: 4.852696116 | D96: -13.63012769 | E96: 0.07165366357 | F96: 2.342622174 | G96: 3.354526868 | H96: -12.41586796 | I96: 12.63222898 | J96: 0.2031651486 | K96: 2.511174165 | L96: 12.86799545 | M96: -2.093615921 | N96: n.a. | O96: n.a.
A97: 1.1.3 Valores por concepto de encaje en MN j/ | B97: n.a. | C97: n.a. | D97: n.d. | E97: n.d. | F97: 0.1523062934 | G97: 0.1429398966 | H97: -3.501517547 | I97: 0.7526240454 | J97: n.a. | K97: n.a. | L97: n.a. | M97: n.a. | N97: n.a. | O97: n.a.
A98: 1.2. Agregados monetarios, tasa interanual ponderada para los componentes
A99: 1.2.1 Agregado Monetario M1, tasa de variación interanual | B99: -5.85732253 | C99: 16.15411141 | D99: 1.858995015 | E99: -4.832253871 | F99: 11.28285611 | G99: 9.163722738 | H99: 12.40508767 | I99: 10.68242235 | J99: 7.830976308 | K99: 19.4878708 | L99: 8.453067113 | M99: 8.920059636 | N99: -3.312549893 | O99: 1.132537777
A100: 1.2.1.1 Billetes y monedas en poder del público | B100: 0.1291872873 | C100: 0.6716814438 | D100: -0.0003423339678 | E100: 0.0005211740973 | F100: 5.463870245 | G100: 5.435205124 | H100: 2.13020817 | I100: -0.4535768749 | J100: 4.028728878 | K100: 8.460884995 | L100: 1.117535801 | M100: 3.928205427 | N100: n.a. | O100: n.a.
A101: 1.2.1.2 Depósitos transferibles en MN | B101: -5.986509818 | C101: 15.48242997 | D101: 1.859337348 | E101: -4.832775045 | F101: 5.818985866 | G101: 3.728517613 | H101: 10.2748795 | I101: 11.13599922 | J101: 3.802247429 | K101: 11.0269858 | L101: 7.335531312 | M101: 4.991854209 | N101: -3.312549893 | O101: 1.132537777
A102: 1.2.2 Agregado Monetario M2, tasa de variación interanual | B102: -1.076252423 | C102: 17.33103527 | D102: 7.245851962 | E102: 4.877118219 | F102: 9.82088855 | G102: 7.833359839 | H102: 12.63851609 | I102: 12.91326241 | J102: 7.830976308 | K102: 19.4878708 | L102: 9.485686131 | M102: 16.62074707 | N102: 0.2088831874 | O102: 3.946897485
A103: 1.2.2.1 Otros depósitos en MN | B103: 0.163841471 | C103: 0.3217716021 | D103: 6.613594014 | E103: 3.629254605 | F103: 5.280516219 | G103: 3.599115688 | H103: 7.854577229 | I103: 9.870502474 | J103: n.a. | K103: n.a. | L103: 13.82454239 | M103: 12.97693647 | N103: 1.040705134 | O103: 3.672497218
A104: 1.2.2.2 Valores distintos de acciones emitidos por las sociedades de depósitos en MN | B104: 3.127312258 | C104: 5.546390112 | D104: 0.09553149448 | E104: 2.572947588 | F104: -0.6159514852 | G104: -0.009374837845 | H104: 1.266612793 | I104: 0.02015361872 | J104: n.a. | K104: n.a. | L104: -7.982616285 | M104: -0.1649853112 | N104: 0 | O104: 0
A105: 1.2.2.3 Agregado Monetario M1 | B105: -4.367406152 | C105: 11.46287355 | D105: 0.5367264532 | E105: -1.325083974 | F105: 5.156323816 | G105: 4.24361899 | H105: 3.517326064 | I105: 3.022606313 | J105: 7.830976308 | K105: 19.4878708 | L105: 3.643760029 | M105: 3.808795914 | N105: -0.8318219468 | O105: 0.2744002664
A106: 1.2.3 Agregado Monetario M3, tasa de variación interanual k/ | B106: -3.355108996 | C106: 7.964671834 | D106: 7.245851962 | E106: 4.877118219 | F106: 6.791626215 | G106: 6.290697841 | H106: 12.0671932 | I106: 10.65626986 | J106: 11.70904664 | K106: 11.58766178 | L106: 7.914979782 | M106: 14.7280285 | N106: 0.2088831874 | O106: 3.946897485
A107: 1.2.3.1 Depósitos transferibles en ME | B107: -2.384622517 | C107: -2.705371703 | D107: n.a. | E107: n.a. | F107: -0.13473038 | G107: -0.006014799403 | H107: 1.224562443 | I107: -0.4912978958 | J107: 0.8148011208 | K107: 2.675625553 | L107: -0.09613889947 | M107: n.a. | N107: n.a. | O107: n.a.
A108: 1.2.3.2 Otros depósitos en ME | B108: 0.02793248605 | C108: -0.03530505293 | D108: n.a. | E108: n.a. | F108: -0.9873548671 | G108: -0.2608865771 | H108: 0.8917435 | I108: 0.7470398484 | J108: 8.655692404 | K108: 3.534651901 | L108: 1.164765334 | M108: 2.557296179 | N108: n.a. | O108: n.a.
A109: 1.2.3.3 Valores distintos de acciones emitidos por las sociedades de depósito en ME | B109: -0.347470647 | C109: -0.02412792422 | D109: n.a. | E109: n.a. | F109: -0.09099867611 | G109: -0.008246262319 | H109: -0.1743100256 | I109: 0.002480096904 | J109: n.a. | K109: n.a. | L109: n.a. | M109: n.a. | N109: n.a. | O109: n.a.
A110: 1.2.3.4 Agregado Monetario M2 | B110: -0.6509483188 | C110: 10.72947651 | D110: 7.245851962 | E110: 4.877118219 | F110: 8.004710138 | G110: 6.56584548 | H110: 10.12519728 | I110: 10.39804781 | J110: 2.238553114 | K110: 5.377384326 | L110: 6.846353348 | M110: 12.17073232 | N110: 0.2088831874 | O110: 3.946897485
A111: 1.3. Titulos emitidos por el Banco Central, tasa de variación interanual | B111: 5.271124741 | C111: 99.06666403 | D111: -72.68230026 | E111: 46.80992828 | F111: -12.82466319 | G111: -11.78650821 | H111: 5.030677708 | I111: -17.53964574 | J111: -42.95743253 | K111: 242.4413237 | L111: 15.54831366 | M111: 10.61730611 | N111: 0.06270738847 | O111: 0.06266807365
A112: 1.3.1 Títulos emitidos por el BC en MN | B112: 2.398415238 | C112: 99.29845842 | D112: -3.447933977 | E112: 0 | F112: -12.89872309 | G112: -11.79228452 | H112: 2.270751154 | I112: -17.3647838 | J112: n.a. | K112: n.a. | L112: 15.54831366 | M112: 10.61730611 | N112: 0.06270738847 | O112: 0.06266807365
A113: 1.3.2 Títulos emitidos por el BC en ME | B113: n.d. | C113: -0.2317943873 | D113: -69.23436628 | E113: 46.80992828 | F113: 0.07405990263 | G113: 0.00577631255 | H113: 2.759926554 | I113: -0.1748619452 | J113: -42.95743253 | K113: 224.9540043 | L113: n.d. | M113: n.d. | N113: n.a. | O113: n.a.
A114: 1.4. Saldo de los créditos de las Otras Sociedades de Depósito, tasa de variación interanual | B114: -0.5781236169 | C114: 2.56975311 | D114: 10.82376642 | E114: 5.393952121 | F114: 8.09032141 | G114: 9.70235346 | H114: 13.79184706 | I114: 11.49080799 | J114: 11.97560185 | K114: 10.68249114 | L114: 13.11125633 | M114: 19.37723058 | N114: 8.08540376 | O114: 6.005957716
A115: 1.4.1 Al Sector Público neto | B115: -1.609642248 | C115: 0.4486560201 | D115: 2.676618581 | E115: 2.3988578 | F115: -1.272245373 | G115: -0.7567560123 | H115: -1.64010474 | I115: -2.80358582 | J115: 1.027390605 | K115: -0.3681340207 | L115: 2.436163027 | M115: 4.4700606 | N115: -0.0473952276 | O115: 0.727199233
A116: 1.4.2 Al Sector Privado | B116: -0.05256118369 | C116: 2.79464704 | D116: 8.447244504 | E116: 2.904889907 | F116: 8.516809976 | G116: 7.35687939 | H116: 14.94968201 | I116: 14.01376684 | J116: 12.21464998 | K116: 12.24408892 | L116: 10.38103824 | M116: 14.47257617 | N116: 2.523097529 | O116: 1.963418558
A117: 1.4.3 A no residentes y otros | B117: 1.084079815 | C117: -0.6735499496 | D117: -0.3000966632 | E117: 0.09020441443 | F117: 0.8457568076 | G117: 3.102230083 | H117: 0.4822697939 | I117: 0.2806269717 | J117: -1.266438733 | K117: -1.193463758 | L117: 0.2940550584 | M117: 0.4345938125 | N117: 5.60970146 | O117: 3.315339925
A118: 2. Relaciones Analíticas | B118: FEBRERO 2023 2024 | D118: FEBRERO 2022 2023 | F118: ENERO 2023 2024 | H118: FEBRERO 2023 2024 | J118: ENERO 2023 2024 | L118: MARZO 2023 2024 | N118: DICIEMBRE 2022 2023
A119: 2.1 Multiplicador Monetario (M2/BMAmplia) | B119: 1.740810529 | C119: 1.653998769 | D119: 7.360646554 | E119: 7.615597049 | F119: 2.630977054 | G119: 2.674724619 | H119: 2.269458077 | I119: 2.61701027 | J119: 0.6058664035 | K119: 0.6019825812 | L119: 2.400716196 | M119: 2.836026243 | N119: 15.50275803 | O119: 17.07503122
A120: 2.2 Relación RIN / BMAmplia, en porcentajes | B120: 64.17786735 | C120: 76.39122464 | D120: 97.10399754 | E120: 100.0243111 | F120: 114.3111643 | G120: 113.0992552 | H120: 100.0938556 | I120: 90.8666639 | J120: 160.2009183 | K120: 164.0156448 | L120: 124.9663529 | M120: 117.6976651 | N120: 256.4738945 | O120: 269.3813687
A121: 2.3 Relación Cuasidinero / M2, en porcentajes L/ | B121: 29.04051942 | C121: 29.7522996 | D121: 72.9862172 | E121: 75.06551353 | F121: 53.69110228 | G121: 53.11977965 | H121: 71.70486043 | I121: 72.26389069 | J121: 0 | K121: 0 | L121: 57.30077971 | M121: 60.12028959 | N121: 75.77120412 | O121: 76.42719817
A122: 2.4 Relación Depósitos en ME / Depósitos Totales, en porcentajes m/ | B122: 44.99166549 | C122: 38.91634569 | D122: n.a. | E122: n.a. | F122: 19.29611942 | G122: 18.05617364 | H122: 21.58334368 | I122: 19.53147862 | J122: 85.93300236 | K122: 84.07109663 | L122: 29.79145069 | M122: 28.34159225 | N122: n.a. | O122: n.a.
A123: 2.5 Relación Créditos en ME / Créditos Totales, en porcentajes m/ n/ | B123: 33.03683993 | C123: 30.73791105 | D123: n.a. | E123: n.a. | F123: 23.3808842 | G123: 22.77543878 | H123: 21.77817741 | I123: 20.25539133 | J123: 100 | K123: 100 | L123: 19.86927276 | M123: 20.35599945 | N123: n.a. | O123: n.a.
A124: 2.6 Relación Crédito-sector privado / PIB, en porcentajes | B124: 49.79074807 | C124: 51.69211856 | D124: 52.46461945 | E124: 51.62601526 | F124: 35.32309325 | G124: 39.31289898 | H124: 65.83870488 | I124: 71.64577553 | J124: 23.87212636 | K124: 25.84758596 | L124: 25.77584555 | M124: 31.24773506 | N124: 76.89318917 | O124: 73.7129986
A125: 2.7 Relación Saldo de OMA's / M3, en porcentajes | B125: 6.179984805 | C125: 11.39473624 | D125: 1.372802521 | E125: 2.154250624 | F125: 11.44917353 | G125: 9.501975204 | H125: 12.10508853 | I125: 9.020635614 | J125: 6.205732754 | K125: 19.04421425 | L125: 42.43421448 | M125: 40.91379024 | N125: 3.191535952 | O125: 3.072276425
A126: 3. Tasas de Interés y de encaje ñ/ | B126: MARZO 2023 2024 | D126: OCTUBRE 2022 2023 | F126: ABRIL 2023 2024 | H126: MARZO 2023 2024 | J126: FEBRERO 2023 2024 | L126: ABRIL 2023 2024 | N126: DICIEMBRE 2022 2023
A127: 3.1 Tasa interés activa nominal promedio corto plazo en MN | B127: 13.02 | C127: 12.91074743 | D127: 6.66 | E127: 7.81 | F127: 11.93 | G127: 12.24 | H127: 14.18 | I127: 15.32 | J127: 8.168818665 | K127: 11.85836411 | L127: 15.8702 | M127: 14.3984 | N127: 8.295555556 | O127: 8.95
A128: 3.2 Tasa interés activa real promedio corto plazo en MN | B128: 8.238668522 | C128: 14.26630557 | D128: -0.7536115187 | E128: 5.009955433 | F128: 3.336715496 | G128: 8.596838643 | H128: 4.701951456 | I128: 10.08303985 | J128: -0.9137894927 | K128: 7.522219294 | L128: 10.19293518 | M128: 11.03169619 | N128: 6.094397803 | O128: 6.896617526
A129: 3.3 Tasa interés activa promedio corto plazo en ME | B129: 7.68 | C129: 7.50715622 | D129: 6.66 | E129: 7.81 | F129: 6.48 | G129: 7.01 | H129: 8.43 | I129: 9.9 | J129: 9.105156597 | K129: 8.451788282 | L129: 7.6569 | M129: 8.3306 | N129: 8.295555556 | O129: 8.95
A130: 3.4 Tasa interés pasiva nominal promedio 180 días en MN | B130: 6.69 | C130: 4.94 | D130: 4.66 | E130: 5.26 | F130: 4.09 | G130: 4.82 | H130: 5.24 | I130: 7.73 | J130: 3.941775432 | K130: 4.294040319 | L130: 9.8744 | M130: 9.5745 | N130: 1.68 | O130: 3.88
A131: 3.5 Tasa interés pasiva real promedio 180 días en MN | B131: 2.176460313 | C131: 6.199864758 | D131: -2.614597614 | E131: 2.526184109 | F131: -3.901378397 | G131: 1.41768199 | H131: -3.495941748 | I131: 2.837720111 | J131: -4.785900706 | K131: 0.2511234983 | L131: 4.490909981 | M131: 6.349761833 | N131: -0.3866934953 | O131: 1.922171901
A132: 3.6 Tasa interés pasiva promedio 180 días en ME | B132: 3.5119979 | C132: 3.55689401 | D132: 4.66 | E132: 5.26 | F132: 3.16 | G132: 3.77 | H132: 3.77 | I132: 5.53 | J132: 3.704718176 | K132: 4.578520972 | L132: 4.0679 | M132: 4.5794 | N132: 1.68 | O132: 3.88
A133: 3.7 Tasa de interés de Política Monetaria de fin de mes o/ | B133: 8.5 | C133: 5.25 | D133: n.a. | E133: n.a. | F133: 5 | G133: 5 | H133: 3 | I133: 3 | J133: 7 | K133: 7 | L133: 8.5 | M133: 7 | N133: n.a. | O133: n.a.
A134: 3.8 Tasa de encaje efectivo promedio (Obligaciones MN) | B134: 15.70888996 | C134: 15.47649639 | D134: 12.23444765 | E134: 11.58668332 | F134: 14.70859048 | G134: 14.71268158 | H134: 12.74511774 | I134: 15.23869791 | J134: 15.4341086 | K134: 15.93207461 | L134: 12.22242865 | M134: 12.23113199 | N134: n.a. | O134: n.a.
A135: 3.9 Tasa de encaje efectivo promedio (Obligaciones ME) | B135: 16.01865199 | C135: 16.08598643 | D135: 12.23444765 | E135: 11.58668332 | F135: 16.72478083 | G135: 15.76199704 | H135: 28.1 | I135: 28 | J135: 15.74310699 | K135: 16.06293166 | L135: 26.410256 | M135: 22.804623 | N135: n.a. | O135: n.a.
A137: V. SECTOR BURSÁTIL | B137: ENERO 2023 2024 | D137: OCTUBRE 2022 2023 | F137: FEBRERO 2023 2024 | H137: DICIEMBRE 2021 2022 | J137: MARZO 2023 2024 | L137: ABRIL 2023 2024 | N137: SEPTIEMBRE 2021 2022
A139: 1 Volúmen Total Negociado por tipo de emisor, acumulado en mill.US$ | B139: 1272.057152 | C139: 1267.27775 | D139: 2412.714726 | E139: 4249.953731 | F139: 16105.91645 | G139: 122527.9465 | H139: 5790.011741 | I139: 4967.479825 | J139: 726.7005349 | K139: 2023.34248 | L139: 3373.41549 | M139: 21752.47018 | N139: 7887.739605 | O139: 4968.559939
A140: 1.1 Público | B140: 1048.478444 | C140: 1014.528033 | D140: 1321.060854 | E140: 2176.841212 | F140: 16049.09475 | G140: 122042.7897 | H140: 5657.922873 | I140: 4848.51538 | J140: 722.6392845 | K140: 1989.595169 | L140: 2789.479329 | M140: 16798.70621 | N140: 2403.935056 | O140: 1168.588806
A141: 1.2 Privado | B141: 223.5787073 | C141: 252.7497171 | D141: 1091.653871 | E141: 2073.112519 | F141: 56.82169916 | G141: 485.1568563 | H141: 132.0888675 | I141: 118.9644459 | J141: 4.061250433 | K141: 33.74731021 | L141: 583.9361614 | M141: 4953.763969 | N141: 5483.804549 | O141: 3799.971133
A142: 2. Relaciones Analíticas
A143: 2.1 Reportos / volúmen total negociado, en porcentajes | B143: 80.71347894 | C143: 67.95348311 | D143: 45.62216464 | E143: 52.47053296 | F143: 54.00492154 | G143: 55.3658748 | H143: 0 | I143: 0 | J143: 3.513474125 | K143: 11.10524509 | L143: n.d. | M143: n.d. | N143: 1.667863679 | O143: 7.647175028
A144: 2.2 Mercado Secundario / Mercado Primario, (número de veces) | B144: 2.575810905 | C144: 4.236816891 | D144: 1.071517677 | E144: 0.7220840249 | F144: 1.188427963 | G144: 1.262445491 | H144: 0.1460482617 | I144: 0.1383941071 | J144: 0.05896626303 | K144: 0.03161380147 | L144: n.d. | M144: n.d. | N144: 0.3268791673 | O144: 0.2607335641
A145: 2.3 Volúmen negociado en MN / Volúmen Total, en porcentajes | B145: 45.84128884 | C145: 51.43623823 | D145: 100 | E145: 100 | F145: 93.89835166 | G145: 93.18681273 | H145: 94.36151246 | I145: 96.23371996 | J145: 47.22603807 | K145: 66.45187761 | L145: 81.36060555 | M145: 69.29340777 | N145: 100 | O145: 100
A146: 2.4 Rendimiento Promedio: Operaciones de Reporto de 1 semana | B146: n.d. | C146: n.d. | D146: 5.343151615 | E146: 6.29766177 | F146: n.a. | G146: n.a. | H146: n.a. | I146: n.a. | J146: n.a. | K146: n.a. | L146: n.a. | M146: n.a. | N146: n.d. | O146: n.d.
A148: Notas:
A149: Notación: n.a.=no aplica , n.d.=no disponible, n.o.=No hubo transacción ese mes.
A151: a/ En Costa Rica corresponde a la nueva serie del PIB año base 2017; b/ Datos preliminares de 2021 y estimado 2022 (bancos centrales o WEO); c/ Los datos de Honduras no incluyen la maquila; d/ Las remesas provienen de la Balanza Cambiaria en Guatemala y Honduras y de la Balanza de Pagos para el resto de países; e/ Los flujos negativos de IED que se pudieran observar en El Salvador surgen debido a que en algunos periodos hay amortizaciones netas de préstamos con el inversionista directo, mayores a lo registrado por acciones u otras aportaciones de capital, los cuales por razones metodológicas deben sumarse al valor de la IED; f/ Incluye dentro de los socios comerciales al resto de países centroamericanos, República Dominicana, Panamá, Brasil, Canadá, China, Colombia, Corea del Sur, Haití, Japón, México, Estados Unidos y Zona Euro. Valores sobre (bajo) 100 significan una depreciación (apreciación) real de la moneda. Ver nota metodológica en http://www.secmca.org/nota/propuesta-de-actualizacion-del-indice-de-tipo-de-cambio-efectivo-real-itcer/; g/ Incluye dentro de los socios comerciales al resto de países Centroamericanos, República Dominicana y Panamá. Valores sobre (bajo) 100 significan una depreciación (apreciación) real de la moneda; h/ En Guatemala, Honduras y República Dominicana se refiere a la Deuda Pública Consolidada tal como lo recomienda la versión del 2001 del Manual de Estadísticas de Finanzas Públicas del FMI. En el resto de países se compila únicamente la deuda bruta. La Deuda Intragubernamental es la obligación contraída por una institución del gobierno con otra, por ejemplo los bonos emitidos por el Gobierno Central y que son comprados por una institución pública. Se resta de la deuda bruta para obtener la deuda consolidada; i/ Las estadísticas monetarias responden a los conceptos definidos en los cuadros armonizados que fueron aprobados por el CMCA en diciembre de 2007. Las tasas de variación de los componentes de cada concepto están ponderadas, de modo que la suma de las tasas coincide con la tasa de variación interanual de dicho concepto; j/ Costa Rica, Nicaragua y República Dominicana no tienen encaje remunerado; k/ En El Salvador el agregado monetario M3 es igual a M2 debido a que no existen pasivos de las Sociedades de Depósito en otra moneda que no sea el US dólar; L/ Esta relación es cero para Nicaragua debido a que todo el cuasidinero en MN se registra como cuasidinero en ME, dado que los depósitos y valores distintos de acciones en MN poseen cláusulas de mantenimiento de valor; m/ Esta relación no aplica a El Salvador debido a que no existen depósitos en una moneda distinta al US dólar, dada la vigencia de la Ley de Integración Monetaria; n/ Esta relación es 100 en Nicaragua debido a que los créditos en MN están indexados al tipo de cambio (mantenimiento de valor). Para efectos prácticos, están dolarizados; ñ/ En El Salvador desde el 2001 las tasas en MN y ME son las mismas, debido a la Ley de Integración Monetaria que circula el US dólar como la moneda local; o/ Para Costa Rica la Tasa de Política Monetaria (TPM) corresponde a la tasa de interés que utiliza el BCCR como referencia para conducir el costo de las operaciones a un día plazo en el Mercado Integrado de Liquidez dentro de un corredor formado por las tasas de interés de sus facilidades permanentes de crédito y de depósito en este mercado; en República Dominicana corresponde a la tasa de referencia para las operaciones de expansión y contracción al plazo de un día hábil; en Honduras la Tasa de Política Monetaria corresponde a la tasa máxima permitida para las posturas de compra y la tasa mínima para las posturas de venta, en las subastas de Letras del Banco Central de Honduras dirigidas a las instituciones del sistema financiero nacional; en Guatemala corresponde a la tasa de interés de los depósitos a plazo a un día (overnight); en El Salvador no aplica por no tener política monetaria y Nicaragua no define tasa de política monetaria.

Sheet Proyecciones
A2: Consejo Monetario Centroamericano | K2: =CONCATENATE(Indice!$J$47,",") -> REM N° 284, | L2: =Indice!$J$48 -> Marzo 2024
A3: Secretaría Ejecutiva
A4: PROYECCIONES/METAS 2023-2024 DE LOS PRINCIPALES INDICADORES MACROECONÓMICOS
A6: Cuadro 1 | I6: Cuadro 2
A7: Inflación (IPC) porcentajes | B7: 2020 | C7: =B7+1 -> 2021 | D7: =C7+1 -> 2022 | E7: =CONCATENATE("Proyección inicial ", D7+1) -> Proyección inicial 2023 | F7: =CONCATENATE("Proyección revisada ", D7+1) -> Proyección revisada 2023 | G7: =CONCATENATE("Proyección ",D7+2) -> Proyección 2024 | I7: PIB real variación anual | J7: =B7 -> 2020 | K7: =C7 -> 2021 | L7: =+CONCATENATE(D7) -> 2022 | M7: =+E7 -> Proyección inicial 2023 | N7: =+F7 -> Proyección revisada 2023 | O7: =+G7 -> Proyección 2024
A8: Costa Rica | B8: 3.29890791 | C8: 7.877153761 | D8: -1.765292223 | E8: 3.0 ± 1 | F8: 3.0 ± 1 | G8: 3.0 ± 1 | I8: Costa Rica | J8: 7.935762247 | K8: 4.55149178 | L8: 5.111921832 | M8: 4 | N8: 3.8 | O8: 3.8
A9: El Salvador | B9: 6.114806269 | C9: 7.319683773 | D9: 1.228770447 | E9: 0.5 - 1.0 | G9: 0.5 - 1.0 | H9: os | I9: El Salvador | J9: 11.90958165 | K9: 2.7994315 | L9: 3.506640412 | M9: 3.5 - 4.0 | O9: 3.5 - 4.0
A10: Guatemala | B10: 3.067814855 | C10: 9.236292428 | D10: 4.176874813 | E10: 4.0 ± 1 | G10: 4.0 ± 1 | I10: Guatemala | J10: 8.033267709 | K10: 4.200155896 | L10: 3.526792127 | M10: 2.5 - 4.5 | O10: n.d.
A11: Honduras | B11: 5.315804516 | C11: 9.796472185 | D11: 5.190311419 | E11: 4.0 - 5.0 | F11: 4.0 ± 1 | G11: 4.0 ± 1 | I11: Honduras | J11: 12.56534045 | K11: 4.14356194 | L11: 3.582561136 | M11: 3.5 - 4.0 | N11: 3.5 – 4.0 | O11: 3.5 – 4.0
A12: Nicaragua | B12: 7.210067535 | C12: 11.59344791 | D12: 5.603756341 | E12: 3.0 - 4.0 | G12: 3.0 - 4.0 | I12: Nicaragua | J12: 10.31581801 | K12: 3.752466716 | L12: 4.0 - 5.0 | M12: 3.5 - 4.5 | O12: 3.5 - 4.5
A13: Rep Dominicana | B13: 8.495698987 | C13: 7.826916116 | D13: 3.568878554 | E13: 4.0 ± 1 | G13: 4.0 ± 1 | I13: Rep Dominicana | J13: 12.27199024 | K13: 4.858324033 | L13: 2.36061569 | M13: 5 | N13: 5 | O13: 5
A14: Promedio región CARD | B14: 5.578487313 | C14: 8.618409705 | D14: 3.022443362 | E14: 0-0 | G14: n.d. | I14: Promedio región CARD | J14: 10.2898053 | K14: 4.315671109 | L14: 3.442935197 | M14: 4 | O14: n.d.
A16: Cuadro 3 | I16: Cuadro 4
A17: Cuenta Corriente/PIB porcentajes | B17: =B7 -> 2020 | C17: =C7 -> 2021 | D17: =+CONCATENATE(D7) -> 2022 | E17: =+E7 -> Proyección inicial 2023 | F17: =+F7 -> Proyección revisada 2023 | G17: =+G7 -> Proyección 2024 | I17: RIN del Banco Central en millones de US$ | J17: =B7 -> 2020 | K17: 2021 | L17: 2022 | M17: Proyección inicial 2023 | N17: Proyección revisada 2023 | O17: Proyección 2024
A18: Costa Rica | B18: -3.172297938 | C18: -3.227906869 | D18: -2.1 | E18: -2 | G18: -2 | I18: Costa Rica | J18: 6918.14017 | K18: 8550 | L18: 13218.91281 | O18: n.d.
A19: El Salvador | B19: -4.305530387 | C19: -6.821660918 | D19: n.d. | E19: n.d. | G19: n.d. | I19: El Salvador | J19: 3342.39 | K19: 2440.44 | L19: 2645.52 | M19: n.d. | O19: n.d.
A20: Guatemala | B20: 2.166322612 | C20: 1.251846615 | D20: 3.141336096 | E20: 3 | G20: 2.8 | I20: Guatemala | J20: 20939.6 | K20: 20019.8 | L20: 21319.4 | M20: 21819.4 | O20: 21819.4 | P20: =+M20 -> 21819.4
A21: Honduras | B21: -3.465632644 | C21: -4.40074123 | D21: -3.5 | E21: -3.5 | F21: -3 | G21: -3 | I21: Honduras | J21: 8677.556815 | K21: 8421.5 | L21: 7555.9 | O21: n.d. | P21: =+N21 -> 
A22: Nicaragua | B22: -3.82420287 | C22: -2.472210492 | D22: 7.929808612 | E22: 3.0 - 4.0 | G22: n.d. | I22: Nicaragua | J22: 3954.552242 | K22: 4356.370027 | L22: 5443.047519 | O22: n.d.
A23: Rep Dominicana | B23: -2.840875456 | C23: -5.767952295 | D23: -3.604341302 | G23: n.d. | I23: Rep Dominicana | J23: 13033.91743 | K23: 14436.13907 | L23: 15457.67424 | O23: n.d. | P23: =+M23 -> 
A24: Promedio región CARD | B24: -1.65053303 | C24: -3.10756607 | D24: n.d | E24: n.d | G24: n.d. | I24: Total región CARD | J24: 56866.15666 | K24: 58224.2491 | L24: 65640.45457 | M24: n.d. | O24: n.d. | P24: =+SUM(P18:P23) -> 21819.4
A26: Cuadro 5 | I26: Cuadro 6
A27: Exportaciones variación anual | B27: =B7 -> 2020 | C27: =C7 -> 2021 | D27: =D17 -> 2022 | E27: =E7 -> Proyección inicial 2023 | F27: =F7 -> Proyección revisada 2023 | G27: =G7 -> Proyección 2024 | I27: Importaciones variación anual | J27: =B7 -> 2020 | K27: =C7 -> 2021 | L27: =D17 -> 2022 | M27: =E7 -> Proyección inicial 2023 | N27: =F7 -> Proyección revisada 2023 | O27: =G7 -> Proyección 2024
A28: Costa Rica | B28: 23.66563281 | C28: 9.486834046 | D28: 15.15567169 | G28: n.d. | H28: =+E28 ->  | I28: Costa Rica | J28: 31.67823031 | K28: 16.40935352 | L28: 5.229163194 | O28: n.d.
A29: El Salvador | B29: 33.0763324 | C29: 11.26242985 | D29: -8.671967123 | E29: n.d. | G29: n.d. | H29: =+E29 -> n.d. | I29: El Salvador | J29: 47.83138988 | K29: 17.03850611 | L29: -8.532085263 | M29: n.d. | O29: n.d.
A30: Guatemala | B30: 22.68653221 | C30: 14.9370769 | D30: -9.376281266 | E30: 4.0 - 7.0 | G30: 3.5- 6.5 | H30: 11.9 | I30: Guatemala | J30: 46.14265 | K30: 20.72993359 | L30: -5.615219361 | M30: 6.0 - 9.0 | O30: 5.5 - 8.5
A31: Honduras | B31: 33.4950241 | C31: 19.91076165 | D31: -7.338167546 | E31: 6.3 | F31: 6.1 | G31: 6.1 | H31: 13.6 | I31: Honduras | J31: 50.01742998 | K31: 22.81409528 | L31: -6.628149896 | M31: 7.2 | N31: 6.1 | O31: 6.1
A32: Nicaragua | B32: 29.37827577 | C32: 12.60924644 | D32: -2.424123704 | E32: n.d. | G32: n.d. | H32: 8.2 | I32: Nicaragua | J32: 41.82411758 | K32: 21.01940798 | L32: -1.25650536 | M32: n.d. | O32: n.d.
A33: Rep Dominicana | B33: 21.20482629 | C33: 10.1214121 | D33: -5.951186165 | G33: n.d. | H33: 47 | I33: Rep Dominicana | J33: 41.95849167 | K33: 27.3066469 | L33: -6.75937967 | O33: n.d.
A34: Promedio región CARD | B34: 24.67053375 | C34: 12.40865212 | D34: n.d. | E34: n.d. | G34: n.d. | I34: Promedio región CARD | J34: 42.70904812 | K34: 22.1145908 | L34: n.d. | M34: n.d. | O34: n.d.
A35: En Honduras no se incluyen los bienes para la transformación. | I35: En Honduras no se incluyen los bienes para la transformación.
A36: Cuadro 7 | I36: Cuadro 8
A37: Remesas (Ingreso) en millones de US$ | B37: =B7 -> 2020 | C37: 2021 | D37: 2022 | E37: Proyección inicial 2023 | F37: Proyección revisada 2023 | G37: Proyección 2024 | I37: Saldo Operacional del Gobierno Central/PIB | J37: =B7 -> 2020 | K37: =C7 -> 2021 | L37: =D17 -> 2022 | M37: =E7 -> Proyección inicial 2023 | N37: =F7 -> Proyección revisada 2023 | O37: =G7 -> Proyección 2024
A38: Costa Rica | B38: 558.8144439 | C38: 575.2867613 | D38: 588.9471888 | G38: n.d. | H38: =+E38 ->  | I38: Costa Rica | J38: -4.991797417 | K38: -2.487110426 | L38: -3.25572236 | M38: -3.1 | O38: -3.1 | P38: =+N38 -> 
A39: El Salvador | B39: 7585.24 | C39: 7819.57 | D39: 8181.79 | G39: n.d. | H39: =+E39 ->  | I39: El Salvador | J39: -4.878138857 | K39: -1.836252176 | L39: -2.236021915 | M39: n.d. | O39: n.d. | P39: =+M39 -> n.d.
A40: Guatemala | B40: 15295.7 | C40: 18040.32108 | D40: 19804.00205 | E40: 21685.38225 | G40: 22986.51 | H40: =+E40 -> 21685.38225 | I40: Guatemala | J40: -1.161798646 | K40: -1.695309387 | L40: -1.256987101 | M40: -2.41146714 | O40: n.d. | P40: =+M40 -> -2.41146714
A41: Honduras | B41: 7370.0331 | C41: 8686.1973 | D41: 9177.4713 | E41: 9919.1 | F41: 9332.6 | G41: 9332.6 | H41: =+F41 -> 9332.6 | I41: Honduras | J41: -5.023680033 | K41: -1.303919367 | L41: -3.595094272 | M41: 3.6 | O41: 3.6 | P41: -3.7
A42: Nicaragua | B42: 2146.9 | C42: 3224.9 | D42: 4660.1 | E42: n.d. | G42: n.d. | I42: Nicaragua | J42: -0.7343271038 | K42: 1.295238901 | L42: 2.733859753 | M42: n.d. | O42: n.d. | P42: =+M42 -> n.d.
A43: Rep Dominicana | B43: 10402.4692 | C43: 9856.497461 | D43: 10157.23678 | G43: n.d. | I43: Rep Dominicana | J43: -2.939321382 | K43: -3.247304283 | L43: -3.253874508 | O43: n.d. | P43: =+M43 -> 
A44: Total región CARD | B44: 43359.15674 | C44: 48202.77261 | D44: n.d. | E44: n.d. | G44: n.d. | I44: Promedio región CARD | J44: -3.000268319 | K44: -2.123838932 | L44: n.d. | M44: n.d | O44: n.d.
I45: Incluye donaciones
A46: Fuente: Bancos Centrales Centroamericanos y de República Dominicana.
A47: NOTAS:
A48: La región CARD incluye a los países de Centroamérica y República Dominicana
A49: Los promedios regionales están ponderados conforme al tamaño de cada economía.

Sheet Seguimiento proyecciones
A2: CONSEJO MONETARIO CENTROAMERICANO | M2: =CONCATENATE(Indice!$J$47,",") -> REM N° 284, | N2: =Indice!$J$48 -> Marzo 2024
A3: SECRETARIA EJECUTIVA
A4: SEGUIMIENTO DE LAS PROYECCIONES EN 2023
A6: Inflación Acumulada en 2024 | I6: Resultado operacional del Gobierno Central 2023
I7: (incluye las donaciones)
A25: Cuando se especifica un rango en las metas de inflación, se toma el límite superior. | I25: El saldo positivo de República Dominicana se debe a que en enero del 2015 se incluye dentro de las donaciones la suma de RD$ 93,157.2 millones, correspondiente al descuento generado por la transacción de deuda realizada con Petrocaribe.
A28: Saldo en la Cuenta Corriente 2023 | I28: Reservas Internacionales Netas
I29: del Banco Central 2023
A50: Exportaciones Totales con Maquila 2023 | I50: Importaciones Totales con Maquila 2023
A72: Ingresos por Remesas Familiares 2023
A93: Los datos de Costa Rica no están disponibles en forma mensual. Anualmente Costa Rica recibe alrededor de 500 millones de US dólares por concepto de remesas.

Sheet Gráficos-pais
S2: Seleccione el país
A3: CONSEJO MONETARIO CENTROAMERICANO | O3: =CONCATENATE(Indice!$J$47,",") -> REM N° 284, | P3: =Indice!$J$48 -> Marzo 2024
A4: SECRETARIA EJECUTIVA
A5: EVOLUCIÓN POR PAÍS DE INDICADORES MACROECONÓMICOS SELECCIONADOS
A10: Tasa de Inflación Interanual | J10: IMAE | S10: Nota: Se le recuerda habilitar las macros para hacer uso de las herramientas dinámicas presentes en este informe.
J11: Variación interanual de la Tendencia-Ciclo
A34: ITCER bilateral USA año base 2000 | J34: Tipo de Cambio Nominal Tasa de variación interanual
A35: 2000=100 | J35: Tasa de Variación Interanual
A58: RIN Banco Central | J58: RIN Banco Central/ Base Monetaria Amplia
A81: En Panamá, el Banco Nacional de Panamá (BNP) funciona como receptor y gestor de las RIN que corresponden a los activos externos de reserva menos los pasivos de corto plazo frente a no residentes. Los primeros se componen de: billetes y depósitos en moneda extranjera e inversiones en títulos (incluidos los títulos de deuda y participaciones de capital); los pasivos se componen de los depósitos transferibles de no residentes en moneda extranjera. En Costa Rica se dió un aumento en las RIN en marzo de 2018 de US$ 1.000 millones provenientes del FLAR. | J81: República Dominicana presenta un incremento de US$1,246 millones en febrero de 2018 debido a la colocación de bonos soberanos en el mercado global de capitales. En El Salvador al cierre de febrero de 2017 las Reservas Internacionales Netas (RIN) alcanzaron un nivel de US$3,510.9 millones, un incremento de US$607 millones respecto al mes de enero de 2017, explicado por la colocación de bonos del Gobierno de El Salvador ($601 millones). La relación RIN a Base Monetaria es alta en Panamá (escala derecha) debido a que la base monetaria es pequeña; esto es consecuencia de que no existe encaje legal debido a la ausencia de Banco Central.
A85: Exportaciones totales FOB, del mes | J85: Importaciones totales CIF, del mes
A86: Promedio móvil de los últimos 12 meses | J86: Promedio móvil de los últimos 12 meses
A107: Las cifras de Honduras no incluyen la maquila. | J107: Las cifras de Honduras no incluyen la maquila.
A109: Tasa de interés pasiva real en MN a 180 días | J109: Tasa de interés activa real en MN de corto plazo
A132: La tasa real se obtiene deflatando con la tasa de variación interanual del IPC al mes indicado. | J132: La tasa real se obtiene deflatando con la tasa de variación interanual del IPC al mes indicado.
A134: Tasa de interés pasiva en ME a 180 días | J134: Tasa de interés activa en ME de corto plazo
J158: En Honduras, a partir de enero 2017, la CNBS implementó las Normas Internacionales de Información Financiera (NIIF) en los balances contables de los Bancos Comerciales, Sociedades Financieras y Banhprovi, permitiendo cambios en el cálculo de las tasas de interés activas y pasivas.
J159: En Costa Rica a partir de enero 2019 cambia la metodología de cálculo de tasas de interés para utilizar tasas ponderadas por el monto de la operación.
A160: Tasa de interés líder de Política Monetaria | J160: Créditos de las OSD al sector Privado, Variación Interanual
A161: evolución mensual
A182: En Nicaragua corresponde a la Tasa de Referencia de Reportos Monetarios (TRM) que el BCN utiliza para indicar el costo de operaciones a un día en las subastas de reportos monetarios. Es definida por el Comité de Operaciones de Mercado Abierto. La serie inicia en abril de 2020.

Sheet Nota Técnica
K1: Consejo Monetario Centroamericano
K2: Secretaría Ejecutiva
D5: REPORTE EJECUTIVO MENSUAL
D7: DE INDICADORES MACROECONÓMICOS
D8: DE CENTROAMÉRICA, REPÚBLICA DOMINICANA y
D9: PANAMÁ
B12: Glosario de Términos
B13: PIB | D13: Producto Interno Bruto
B14: IMAE | D14: Índice Mensual de Actividad Económica
B15: IPC | D15: Índice de Precios al Consumidor
B16: ISI | D16: Índice Subyacente de Inflación. En algunos países se utiliza el Indice del Nucleo Inflacionario (INI)
B17: Región CARD | D17: La región incluye los siguientes países: Costa Rica, El Salvador, Guatemala, Honduras, Nicaragua y República Dominicana
B18: Región CAPARD | D18: La región incluye los siguientes países: Costa Rica, El Salvador, Guatemala, Honduras, Nicaragua, Panamá y República Dominicana
B20: Definición de términos
B22: Variación Interanual | E22: Variación porcentual del nivel del mes respecto al mismo mes del año anterior.
B23: Variación acumulada | E23: Variación porcentual del nivel del mes vigente respecto al mes de diciembre del año anterior.
B24: Aceleración | E24: Diferencia en valor absoluto entre la variación (interanual) de un mes respecto al mes anterior. Su interpretación se realiza en puntos porcentuales.
B25: Metas de Inflación | E25: Esquema donde el Banco Central hace explícita su meta de inflación puntual o rango, y los instrumentos de política monetaria se direccionan en la obtención de dicha meta.
B26: Inflación Subyacente | E26: El Índice subyacente de Inflación (ISI) se define como el componente del cambio total de precios común a todos los bienes y servicios, cuya persistencia se mantendría en el mediano y largo plazo. El ISI constituye una medida alternativa del IPC, al que se le han eliminado algunos de los bienes y servicios cuyos precios son, por lo general, los más volátiles. El algunos países se denomina índice del nucleo inflacionario.
B27: Tendencia-Ciclo | E27: Serie de tiempo que excluye los componentes de estacionalidad e irregularidad.
B28: RIN/meses de importación promedio | E28: Tanto en el cuadro regional como en el compartivo por país se calcula la relación de RIN a importaciones promedio. En ambos casos el denominador corresponde al promedio de importaciones observadas de enero al mes indicado. En el cálculo regional se suman las importaciones totales y las RIN de todos los países de la región.
B31: Periodos base de los principales indicadores del sector real
D32: Año Base o de referencia del Indicador Mensual de Actividad Económica IMAE | H32: Año Base o de referencia del Producto Interno Bruto en términos constantes | L32: Periodo base de los Índices de Precios al Consumidor
B33: País
B34: Costa Rica | E34: 2017 | I34: 2017 | M34: Diciembre 2020
B35: El Salvador | E35: 2014 | I35: 2014 | M35: Diciembre 2009
B36: Guatemala | E36: 2013 | I36: 2013 | M36: Diciembre 2023
B37: Honduras | E37: 2000 | I37: 2000 | M37: Diciembre 1999
B38: Nicaragua | E38: 2006 | I38: 2006 | M38: 2006
B39: República Dominicana | E39: 2007 | I39: 2007 | M39: Oct.2019-Sept. 2020
B40: Panamá | E40: 2007 | I40: 2007 | M40: 2013
B44: Los ponderadores
B46: Los cálculos regionales están basados en promedios ponderados de las tasas de variación de cada país. Los ponderadores por país se obtienen Banco Mundial utilizando el Gasto de consumo final de los hogares (GCFH) y de las instituciones sin fines de lucro que sirven a los hogares (ISFLSH) según la paridad del poder de compra (PPC) para las variables de precios y del Producto Interno Bruto según PPC para las variables de producción. Para mayor detalle consultar el Documento de Trabajo SECMCA-01-2021 “Propuesta de cambio en el método de agregación de variables y ponderadores regionales”, http://www.secmca.org/wp-content/uploads/2021/03/Propuesta-de-cambio-en-el-m%C3%A9todo-deagregaci%C3%B3n-de-variables-y-ponderadores-regionales.pdf.

Sheet Gráfico Seguimiento (hidden)
B1: INFLACIÓN | D1: RIN | F1: RESULTADO OPERACIONAL GC | H1: CUENTA CORRIENTE | J1: Exportaciones | L1: Importaciones | N1: Remesas acumuladas | P1: Remesas sin CR-NI | Q1: MARZO
B2: Proy.dic/24 | C2: ABR.24 | D2: Proy.dic/24 | E2: ABR.24 | F2: Proy.dic/24 | G2: FEB.24 | H2: Proy.dic/24 | I2: IV TRIM.23 | J2: Proy.dic/24 | K2: FEB.24 | L2: Proy.dic/24 | M2: FEB.24 | N2: Proy.dic/24 | O2: MAR.24 | P2: Proy.dic/24 | Q2: MAR.24
A3: CR | B3: 4 | C3: -0.01002125245 | E3: 13551 | G3: -759.0107432 | I3: -844.4963533 | K3: 3218.611264 | M3: 3824.797495
A4: ES | B4: 1 | C4: 0.8582031854 | E4: 3119 | I4: -465.6883958 | K4: 1037.7 | M4: 2533.37 | O4: 1895.69 | Q4: 1895.69
A5: GT | B5: 5 | C5: 0.77 | D5: 21819.4 | E5: 21223 | F5: -2630.014919 | G5: 181.24491 | H5: 1535.2 | I5: 3281.14299 | J5: 14966.67118 | K5: 2381.606021 | L5: 32593.87506 | M5: 5228.170705 | N5: 21685.38225 | O5: 4682.567331 | P5: 21685.38225 | Q5: 4682.567331
A6: HO | B6: 5 | C6: 1.691729323 | E6: 7188 | G6: 136.5767155 | I6: -904.5272644 | J6: 12383.24407 | K6: 1810.806084 | L6: 20907.88686 | M6: 3032.847544 | N6: 9332.6 | O6: 2100.9345 | P6: 9332.6 | Q6: 2100.9345
A7: NI | B7: 4 | C7: 1.963949361 | G7: -341.9680668 | I7: 1381.2 | K7: 1270.723021 | M7: 1517.531242 | O7: 1140.9 | Q7: 1140.9
A8: RD | B8: 5 | C8: 0.6808626368 | E8: 13788 | G8: -341.9680668 | I8: -4376.3 | O8: 2635.6 | Q8: 2635.6
B9: Nicaragua siempre da error el link y por eso se ingresa a mano

Sheet Datos_Regional (M) (hidden)
A1: Variables Mensuales Regional | D1: IPC CARD | E1: IPC CARD_T | F1: IPC CAPARD | G1: IPC CAPARD_T | H1: CARD | J1: CAPARD | L1: RIN_CARD | M1: RIN Diciembres | N1: RIN_CAPARD | O1: RIN Diciembres | P1: CARD | V1: CAPARD | AB1: Crédito de las OSD con SPNF | AF1: Créditos de las OSD con el sector privado, saldo en millones de USD | AL1: Tasa de variación Interanual | AS1: Crédito de las OSD con SPNF | AW1: Créditos de las OSD con el sector privado, saldo en millones de USD | BC1: Tasa de variación Interanual | BJ1: Tasa de Política Monetaria | BQ1: CARD Saldo operacional GC | BR1: CAPARD Saldo operacional GC | BS1: CARD | BV1: CAPARD | BY1: Crédito de las OSD con el Sector Privado MN | CM1: Mill-US$ | CN1: Mill-US$ | CO1: % | CP1: Mill-US$ | CQ1: Mill-US$ | CR1: % | CS1: CARD | DA1: CAPARD
H2: IMAER_TC | I2: IMAER_T | J2: IMAER CARD_TC | K2: IMAER CAPARD_T | P2: M1 | Q2: M2 | R2: M3 | S2: M1_% | T2: M2_% | U2: M3_% | V2: M1 | W2: M2 | X2: M3 | Y2: M1_% | Z2: M2_% | AA2: M3_% | AB2: Activos | AC2: Pasivos | AD2: Crédito Neto | AE2: %Interanual | AF2: Otras sociedades no financieras | AG2: Otros sectores 1/ | AH2: Otras sociedades no financieras | AI2: Hogares e ISFLSH | AK2: TOTAL | AL2: Otras sociedades no financieras | AN2: Otros sectores 1/ | AO2: Otras sociedades no financieras | AP2: Hogares e ISFLSH | AQ2: TOTAL | AR2: Aceleración | AS2: Activos | AT2: Pasivos | AU2: Crédito Neto | AV2: %Interanual | AW2: Otras sociedades no financieras | AX2: Otros sectores 1/ | AY2: Otras sociedades no financieras | AZ2: Hogares e ISFLSH | BB2: TOTAL | BC2: Otras sociedades no financieras | BE2: Otros sectores 1/ | BF2: Otras sociedades no financieras | BG2: Hogares e ISFLSH | BH2: TOTAL | BI2: Aceleración | BJ2: Costa Rica | BK2: El Salvador | BL2: Guatemala | BM2: Honduras | BN2: Nicaragua | BO2: República Dominicana | BP2: PA | BS2: Deuda Pública total | BT2: Deuda Interna | BU2: Deuda Externa | BV2: Deuda Pública total | BW2: Deuda Interna | BX2: Deuda Externa | BY2: CR | BZ2: SV | CA2: GT | CB2: HO | CC2: NI | CD2: RD | CE2: PA | CF2: CR % | CG2: SV % | CH2: GT % | CI2: HO % | CJ2: NI % | CK2: RD % | CL2: PA % | CM2: CARD Saldo Operacional con donaciones | CN2: CARD PIB a precios corrientes | CO2: CARD Saldo operacional/PIB | CP2: CAPARD Saldo Operacional con donaciones | CQ2: CAPARD PIB a precios corrientes | CR2: CAPARD Saldo operacional/PIB | CS2: Credito TOTAL | CT2: Créditos de las OSD a sector Público | CU2: Créditos de las OSD a sector Privado | CV2: Créditos de las OSD a no residentes y otros | CW2: Credito TOTAL % | CX2: Créditos de las OSD a sector Público % | CY2: Créditos de las OSD a sector Privado % | CZ2: Créditos de las OSD a no residentes y otros % | DA2: Credito TOTAL | DB2: Créditos de las OSD a sector Público | DC2: Créditos de las OSD a sector Privado | DD2: Créditos de las OSD a no residentes y otros | DE2: Credito TOTAL % | DF2: Créditos de las OSD a sector Público % | DG2: Créditos de las OSD a sector Privado % | DH2: Créditos de las OSD a no residentes y otros %
A3: 1990 | B3: enero | C3: =A3&"-"&B3 -> 1990-enero | D3: n.d. | E3: n.d. | F3: n.d. | G3: n.d. | H3: n.d. | I3: n.d. | J3: n.d. | K3: n.d. | L3: n.d. | M3: =IF(B3<>"diciembre","",L3) ->  | N3: n.d. | O3: =IF(B3<>"diciembre","",N3) ->  | P3: n.d. | Q3: n.d. | R3: n.d. | S3: n.d. | T3: n.d. | U3: n.d. | V3: n.d. | W3: n.d. | X3: n.d. | Y3: n.d. | Z3: n.d. | AA3: n.d. | AC3: n.d. | AD3: n.d. | AE3: n.d. | AF3: n.d. | AG3: n.d. | AH3: n.d. | AI3: n.d. | AK3: n.d. | AL3: n.d. | AN3: n.d. | AO3: n.d. | AP3: n.d. | AQ3: n.d. | AR3: n.d. | AS3: n.d. | AT3: n.d. | AU3: n.d. | AV3: n.d. | AW3: n.d. | AX3: n.d. | AY3: n.d. | AZ3: n.d. | BA3: n.d. | BB3: n.d. | BC3: n.d. | BD3: n.d. | BE3: n.d. | BF3: n.d. | BG3: n.d. | BH3: n.d. | BI3: n.d. | BJ3: n.d. | BK3: n.a. | BL3: n.d. | BM3: n.d. | BN3: n.a. | BO3: n.d. | BP3: n.a. | BQ3: n.d. | BR3: n.d. | BS3: n.d. | BT3: n.d. | BU3: n.d. | BV3: n.d. | BW3: n.d. | BX3: n.d. | BY3: n.d. | BZ3: n.d. | CA3: n.d. | CB3: n.d. | CC3: n.d. | CD3: n.d. | CE3: n.d. | CF3: n.d. | CG3: n.d. | CH3: n.d. | CI3: n.d. | CJ3: n.d. | CK3: n.d. | CL3: n.d. | CM3: n.d. | CN3: n.d. | CO3: =IF(OR(CM3="n.d.",CM3="",CN3="",CN3="n.d."),"n.d.",(CM3/CN3)*100) -> n.d. | CP3: n.d. | CQ3: n.d. | CR3: =IF(OR(CP3="n.d.",CP3="",CQ3="",CQ3="n.d."),"n.d.",(CP3/CQ3)*100) -> n.d. | CS3: n.d. | CT3: n.d. | CU3: n.d. | CV3: n.d. | CW3: n.d. | CX3: n.d. | CY3: n.d. | CZ3: n.d. | DA3: n.d. | DB3: n.d. | DC3: n.d. | DD3: n.d. | DE3: n.d. | DF3: n.d. | DG3: n.d. | DH3: n.d.
A4: 1990 | B4: febrero | C4: =A4&"-"&B4 -> 1990-febrero | D4: n.d. | E4: n.d. | F4: n.d. | G4: n.d. | H4: n.d. | I4: n.d. | J4: n.d. | K4: n.d. | L4: n.d. | M4: =IF(B4<>"diciembre","",L4) ->  | N4: n.d. | O4: =IF(B4<>"diciembre","",N4) ->  | P4: n.d. | Q4: n.d. | R4: n.d. | S4: n.d. | T4: n.d. | U4: n.d. | V4: n.d. | W4: n.d. | X4: n.d. | Y4: n.d. | Z4: n.d. | AA4: n.d. | AC4: n.d. | AD4: n.d. | AE4: n.d. | AF4: n.d. | AG4: n.d. | AH4: n.d. | AI4: n.d. | AJ4: =IFERROR(+AF4+AH4,"") ->  | AK4: n.d. | AL4: n.d. | AN4: n.d. | AO4: n.d. | AP4: n.d. | AQ4: n.d. | AR4: n.d. | AS4: n.d. | AT4: n.d. | AU4: n.d. | AV4: n.d. | AW4: n.d. | AX4: n.d. | AY4: n.d. | AZ4: n.d. | BA4: n.d. | BB4: n.d. | BC4: n.d. | BD4: n.d. | BE4: n.d. | BF4: n.d. | BG4: n.d. | BH4: n.d. | BI4: n.d. | BJ4: n.d. | BK4: n.a. | BL4: n.d. | BM4: n.d. | BN4: n.a. | BO4: n.d. | BP4: n.a. | BQ4: n.d. | BR4: n.d. | BS4: n.d. | BT4: n.d. | BU4: n.d. | BV4: n.d. | BW4: n.d. | BX4: n.d. | BY4: n.d. | BZ4: n.d. | CA4: n.d. | CB4: n.d. | CC4: n.d. | CD4: n.d. | CE4: n.d. | CF4: n.d. | CG4: n.d. | CH4: n.d. | CI4: n.d. | CJ4: n.d. | CK4: n.d. | CL4: n.d. | CM4: n.d. | CN4: n.d. | CO4: n.d. | CP4: n.d. | CQ4: n.d. | CR4: =IF(OR(CP4="n.d.",CP4="",CQ4="",CQ4="n.d."),"n.d.",(CP4/CQ4)*100) -> n.d. | CS4: n.d. | CT4: n.d. | CU4: n.d. | CV4: n.d. | CW4: n.d. | CX4: n.d. | CY4: n.d. | CZ4: n.d. | DA4: n.d. | DB4: n.d. | DC4: n.d. | DD4: n.d. | DE4: n.d. | DF4: n.d. | DG4: n.d. | DH4: n.d.
A5: 1990 | B5: marzo | C5: 1990-marzo | D5: n.d. | E5: n.d. | F5: n.d. | G5: n.d. | H5: n.d. | I5: n.d. | J5: n.d. | K5: n.d. | L5: n.d. | N5: n.d. | P5: n.d. | Q5: n.d. | R5: n.d. | S5: n.d. | T5: n.d. | U5: n.d. | V5: n.d. | W5: n.d. | X5: n.d. | Y5: n.d. | Z5: n.d. | AA5: n.d. | AC5: n.d. | AD5: n.d. | AE5: n.d. | AF5: n.d. | AG5: n.d. | AH5: n.d. | AI5: n.d. | AJ5: =IFERROR(+AF5+AH5,"") ->  | AK5: n.d. | AL5: n.d. | AN5: n.d. | AO5: n.d. | AP5: n.d. | AQ5: n.d. | AR5: n.d. | AS5: n.d. | AT5: n.d. | AU5: n.d. | AV5: n.d. | AW5: n.d. | AX5: n.d. | AY5: n.d. | AZ5: n.d. | BA5: n.d. | BB5: n.d. | BC5: n.d. | BD5: n.d. | BE5: n.d. | BF5: n.d. | BG5: n.d. | BH5: n.d. | BI5: n.d. | BJ5: n.d. | BK5: n.a. | BL5: n.d. | BM5: n.d. | BN5: n.a. | BO5: n.d. | BP5: n.a. | BQ5: n.d. | BR5: n.d. | BS5: n.d. | BT5: n.d. | BU5: n.d. | BV5: n.d. | BW5: n.d. | BX5: n.d. | BY5: n.d. | BZ5: n.d. | CA5: n.d. | CB5: n.d. | CC5: n.d. | CD5: n.d. | CE5: n.d. | CF5: n.d. | CG5: n.d. | CH5: n.d. | CI5: n.d. | CJ5: n.d. | CK5: n.d. | CL5: n.d. | CM5: n.d. | CN5: n.d. | CO5: n.d. | CP5: n.d. | CQ5: n.d. | CR5: n.d. | CS5: n.d. | CT5: n.d. | CU5: n.d. | CV5: n.d. | CW5: n.d. | CX5: n.d. | CY5: n.d. | CZ5: n.d. | DA5: n.d. | DB5: n.d. | DC5: n.d. | DD5: n.d. | DE5: n.d. | DF5: n.d. | DG5: n.d. | DH5: n.d.
A6: 1990 | B6: abril | C6: 1990-abril | D6: n.d. | E6: n.d. | F6: n.d. | G6: n.d. | H6: n.d. | I6: n.d. | J6: n.d. | K6: n.d. | L6: n.d. | N6: n.d. | P6: n.d. | Q6: n.d. | R6: n.d. | S6: n.d. | T6: n.d. | U6: n.d. | V6: n.d. | W6: n.d. | X6: n.d. | Y6: n.d. | Z6: n.d. | AA6: n.d. | AC6: n.d. | AD6: n.d. | AE6: n.d. | AF6: n.d. | AG6: n.d. | AH6: n.d. | AI6: n.d. | AJ6: =IFERROR(+AF6+AH6,"n.d.") -> n.d. | AK6: n.d. | AL6: n.d. | AN6: n.d. | AO6: n.d. | AP6: n.d. | AQ6: n.d. | AR6: n.d. | AS6: n.d. | AT6: n.d. | AU6: n.d. | AV6: n.d. | AW6: n.d. | AX6: n.d. | AY6: n.d. | AZ6: n.d. | BA6: n.d. | BB6: n.d. | BC6: n.d. | BD6: n.d. | BE6: n.d. | BF6: n.d. | BG6: n.d. | BH6: n.d. | BI6: n.d. | BJ6: n.d. | BK6: n.a. | BL6: n.d. | BM6: n.d. | BN6: n.a. | BO6: n.d. | BP6: n.a. | BQ6: n.d. | BR6: n.d. | BS6: n.d. | BT6: n.d. | BU6: n.d. | BV6: n.d. | BW6: n.d. | BX6: n.d. | BY6: n.d. | BZ6: n.d. | CA6: n.d. | CB6: n.d. | CC6: n.d. | CD6: n.d. | CE6: n.d. | CF6: n.d. | CG6: n.d. | CH6: n.d. | CI6: n.d. | CJ6: n.d. | CK6: n.d. | CL6: n.d. | CM6: n.d. | CN6: n.d. | CO6: n.d. | CP6: n.d. | CQ6: n.d. | CR6: n.d. | CS6: n.d. | CT6: n.d. | CU6: n.d. | CV6: n.d. | CW6: n.d. | CX6: n.d. | CY6: n.d. | CZ6: n.d. | DA6: n.d. | DB6: n.d. | DC6: n.d. | DD6: n.d. | DE6: n.d. | DF6: n.d. | DG6: n.d. | DH6: n.d.
A7: 1990 | B7: mayo | C7: 1990-mayo | D7: n.d. | E7: n.d. | F7: n.d. | G7: n.d. | H7: n.d. | I7: n.d. | J7: n.d. | K7: n.d. | L7: n.d. | N7: n.d. | P7: n.d. | Q7: n.d. | R7: n.d. | S7: n.d. | T7: n.d. | U7: n.d. | V7: n.d. | W7: n.d. | X7: n.d. | Y7: n.d. | Z7: n.d. | AA7: n.d. | AC7: n.d. | AD7: n.d. | AE7: n.d. | AF7: n.d. | AG7: n.d. | AH7: n.d. | AI7: n.d. | AJ7: =IFERROR(+AF7+AH7,"n.d.") -> n.d. | AK7: n.d. | AL7: n.d. | AN7: n.d. | AO7: n.d. | AP7: n.d. | AQ7: n.d. | AR7: n.d. | AS7: n.d. | AT7: n.d. | AU7: n.d. | AV7: n.d. | AW7: n.d. | AX7: n.d. | AY7: n.d. | AZ7: n.d. | BA7: n.d. | BB7: n.d. | BC7: n.d. | BD7: n.d. | BE7: n.d. | BF7: n.d. | BG7: n.d. | BH7: n.d. | BI7: n.d. | BJ7: n.d. | BK7: n.a. | BL7: n.d. | BM7: n.d. | BN7: n.a. | BO7: n.d. | BP7: n.a. | BQ7: n.d. | BR7: n.d. | BS7: n.d. | BT7: n.d. | BU7: n.d. | BV7: n.d. | BW7: n.d. | BX7: n.d. | BY7: n.d. | BZ7: n.d. | CA7: n.d. | CB7: n.d. | CC7: n.d. | CD7: n.d. | CE7: n.d. | CF7: n.d. | CG7: n.d. | CH7: n.d. | CI7: n.d. | CJ7: n.d. | CK7: n.d. | CL7: n.d. | CM7: n.d. | CN7: n.d. | CO7: n.d. | CP7: n.d. | CQ7: n.d. | CR7: n.d. | CS7: n.d. | CT7: n.d. | CU7: n.d. | CV7: n.d. | CW7: n.d. | CX7: n.d. | CY7: n.d. | CZ7: n.d. | DA7: n.d. | DB7: n.d. | DC7: n.d. | DD7: n.d. | DE7: n.d. | DF7: n.d. | DG7: n.d. | DH7: n.d.
A8: 1990 | B8: junio | C8: 1990-junio | D8: n.d. | E8: n.d. | F8: n.d. | G8: n.d. | H8: n.d. | I8: n.d. | J8: n.d. | K8: n.d. | L8: n.d. | N8: n.d. | P8: n.d. | Q8: n.d. | R8: n.d. | S8: n.d. | T8: n.d. | U8: n.d. | V8: n.d. | W8: n.d. | X8: n.d. | Y8: n.d. | Z8: n.d. | AA8: n.d. | AC8: n.d. | AD8: n.d. | AE8: n.d. | AF8: n.d. | AG8: n.d. | AH8: n.d. | AI8: n.d. | AJ8: n.d. | AK8: n.d. | AL8: n.d. | AN8: n.d. | AO8: n.d. | AP8: n.d. | AQ8: n.d. | AR8: n.d. | AS8: n.d. | AT8: n.d. | AU8: n.d. | AV8: n.d. | AW8: n.d. | AX8: n.d. | AY8: n.d. | AZ8: n.d. | BA8: n.d. | BB8: n.d. | BC8: n.d. | BD8: n.d. | BE8: n.d. | BF8: n.d. | BG8: n.d. | BH8: n.d. | BI8: n.d. | BJ8: n.d. | BK8: n.a. | BL8: n.d. | BM8: n.d. | BN8: n.a. | BO8: n.d. | BP8: n.a. | BQ8: n.d. | BR8: n.d. | BS8: n.d. | BT8: n.d. | BU8: n.d. | BV8: n.d. | BW8: n.d. | BX8: n.d. | BY8: n.d. | BZ8: n.d. | CA8: n.d. | CB8: n.d. | CC8: n.d. | CD8: n.d. | CE8: n.d. | CF8: n.d. | CG8: n.d. | CH8: n.d. | CI8: n.d. | CJ8: n.d. | CK8: n.d. | CL8: n.d. | CM8: n.d. | CN8: n.d. | CO8: n.d. | CP8: n.d. | CQ8: n.d. | CR8: n.d. | CS8: n.d. | CT8: n.d. | CU8: n.d. | CV8: n.d. | CW8: n.d. | CX8: n.d. | CY8: n.d. | CZ8: n.d. | DA8: n.d. | DB8: n.d. | DC8: n.d. | DD8: n.d. | DE8: n.d. | DF8: n.d. | DG8: n.d. | DH8: n.d.
A9: 1990 | B9: julio | C9: 1990-julio | D9: n.d. | E9: n.d. | F9: n.d. | G9: n.d. | H9: n.d. | I9: n.d. | J9: n.d. | K9: n.d. | L9: n.d. | N9: n.d. | P9: n.d. | Q9: n.d. | R9: n.d. | S9: n.d. | T9: n.d. | U9: n.d. | V9: n.d. | W9: n.d. | X9: n.d. | Y9: n.d. | Z9: n.d. | AA9: n.d. | AC9: n.d. | AD9: n.d. | AE9: n.d. | AF9: n.d. | AG9: n.d. | AH9: n.d. | AI9: n.d. | AJ9: n.d. | AK9: n.d. | AL9: n.d. | AN9: n.d. | AO9: n.d. | AP9: n.d. | AQ9: n.d. | AR9: n.d. | AS9: n.d. | AT9: n.d. | AU9: n.d. | AV9: n.d. | AW9: n.d. | AX9: n.d. | AY9: n.d. | AZ9: n.d. | BA9: n.d. | BB9: n.d. | BC9: n.d. | BD9: n.d. | BE9: n.d. | BF9: n.d. | BG9: n.d. | BH9: n.d. | BI9: n.d. | BJ9: n.d. | BK9: n.a. | BL9: n.d. | BM9: n.d. | BN9: n.a. | BO9: n.d. | BP9: n.a. | BQ9: n.d. | BR9: n.d. | BS9: n.d. | BT9: n.d. | BU9: n.d. | BV9: n.d. | BW9: n.d. | BX9: n.d. | BY9: n.d. | BZ9: n.d. | CA9: n.d. | CB9: n.d. | CC9: n.d. | CD9: n.d. | CE9: n.d. | CF9: n.d. | CG9: n.d. | CH9: n.d. | CI9: n.d. | CJ9: n.d. | CK9: n.d. | CL9: n.d. | CM9: n.d. | CN9: n.d. | CO9: n.d. | CP9: n.d. | CQ9: n.d. | CR9: n.d. | CS9: n.d. | CT9: n.d. | CU9: n.d. | CV9: n.d. | CW9: n.d. | CX9: n.d. | CY9: n.d. | CZ9: n.d. | DA9: n.d. | DB9: n.d. | DC9: n.d. | DD9: n.d. | DE9: n.d. | DF9: n.d. | DG9: n.d. | DH9: n.d.
A10: 1990 | B10: agosto | C10: 1990-agosto | D10: n.d. | E10: n.d. | F10: n.d. | G10: n.d. | H10: n.d. | I10: n.d. | J10: n.d. | K10: n.d. | L10: n.d. | N10: n.d. | P10: n.d. | Q10: n.d. | R10: n.d. | S10: n.d. | T10: n.d. | U10: n.d. | V10: n.d. | W10: n.d. | X10: n.d. | Y10: n.d. | Z10: n.d. | AA10: n.d. | AC10: n.d. | AD10: n.d. | AE10: n.d. | AF10: n.d. | AG10: n.d. | AH10: n.d. | AI10: n.d. | AJ10: n.d. | AK10: n.d. | AL10: n.d. | AN10: n.d. | AO10: n.d. | AP10: n.d. | AQ10: n.d. | AR10: n.d. | AS10: n.d. | AT10: n.d. | AU10: n.d. | AV10: n.d. | AW10: n.d. | AX10: n.d. | AY10: n.d. | AZ10: n.d. | BA10: n.d. | BB10: n.d. | BC10: n.d. | BD10: n.d. | BE10: n.d. | BF10: n.d. | BG10: n.d. | BH10: n.d. | BI10: n.d. | BJ10: n.d. | BK10: n.a. | BL10: n.d. | BM10: n.d. | BN10: n.a. | BO10: n.d. | BP10: n.a. | BQ10: n.d. | BR10: n.d. | BS10: n.d. | BT10: n.d. | BU10: n.d. | BV10: n.d. | BW10: n.d. | BX10: n.d. | BY10: n.d. | BZ10: n.d. | CA10: n.d. | CB10: n.d. | CC10: n.d. | CD10: n.d. | CE10: n.d. | CF10: n.d. | CG10: n.d. | CH10: n.d. | CI10: n.d. | CJ10: n.d. | CK10: n.d. | CL10: n.d. | CM10: n.d. | CN10: n.d. | CO10: n.d. | CP10: n.d. | CQ10: n.d. | CR10: n.d. | CS10: n.d. | CT10: n.d. | CU10: n.d. | CV10: n.d. | CW10: n.d. | CX10: n.d. | CY10: n.d. | CZ10: n.d. | DA10: n.d. | DB10: n.d. | DC10: n.d. | DD10: n.d. | DE10: n.d. | DF10: n.d. | DG10: n.d. | DH10: n.d.
A11: 1990 | B11: septiembre | C11: 1990-septiembre | D11: n.d. | E11: n.d. | F11: n.d. | G11: n.d. | H11: n.d. | I11: n.d. | J11: n.d. | K11: n.d. | L11: n.d. | N11: n.d. | P11: n.d. | Q11: n.d. | R11: n.d. | S11: n.d. | T11: n.d. | U11: n.d. | V11: n.d. | W11: n.d. | X11: n.d. | Y11: n.d. | Z11: n.d. | AA11: n.d. | AC11: n.d. | AD11: n.d. | AE11: n.d. | AF11: n.d. | AG11: n.d. | AH11: n.d. | AI11: n.d. | AJ11: n.d. | AK11: n.d. | AL11: n.d. | AN11: n.d. | AO11: n.d. | AP11: n.d. | AQ11: n.d. | AR11: n.d. | AS11: n.d. | AT11: n.d. | AU11: n.d. | AV11: n.d. | AW11: n.d. | AX11: n.d. | AY11: n.d. | AZ11: n.d. | BA11: n.d. | BB11: n.d. | BC11: n.d. | BD11: n.d. | BE11: n.d. | BF11: n.d. | BG11: n.d. | BH11: n.d. | BI11: n.d. | BJ11: n.d. | BK11: n.a. | BL11: n.d. | BM11: n.d. | BN11: n.a. | BO11: n.d. | BP11: n.a. | BQ11: n.d. | BR11: n.d. | BS11: n.d. | BT11: n.d. | BU11: n.d. | BV11: n.d. | BW11: n.d. | BX11: n.d. | BY11: n.d. | BZ11: n.d. | CA11: n.d. | CB11: n.d. | CC11: n.d. | CD11: n.d. | CE11: n.d. | CF11: n.d. | CG11: n.d. | CH11: n.d. | CI11: n.d. | CJ11: n.d. | CK11: n.d. | CL11: n.d. | CM11: n.d. | CN11: n.d. | CO11: n.d. | CP11: n.d. | CQ11: n.d. | CR11: n.d. | CS11: n.d. | CT11: n.d. | CU11: n.d. | CV11: n.d. | CW11: n.d. | CX11: n.d. | CY11: n.d. | CZ11: n.d. | DA11: n.d. | DB11: n.d. | DC11: n.d. | DD11: n.d. | DE11: n.d. | DF11: n.d. | DG11: n.d. | DH11: n.d.
A12: 1990 | B12: octubre | C12: 1990-octubre | D12: n.d. | E12: n.d. | F12: n.d. | G12: n.d. | H12: n.d. | I12: n.d. | J12: n.d. | K12: n.d. | L12: n.d. | N12: n.d. | P12: n.d. | Q12: n.d. | R12: n.d. | S12: n.d. | T12: n.d. | U12: n.d. | V12: n.d. | W12: n.d. | X12: n.d. | Y12: n.d. | Z12: n.d. | AA12: n.d. | AC12: n.d. | AD12: n.d. | AE12: n.d. | AF12: n.d. | AG12: n.d. | AH12: n.d. | AI12: n.d. | AJ12: n.d. | AK12: n.d. | AL12: n.d. | AN12: n.d. | AO12: n.d. | AP12: n.d. | AQ12: n.d. | AR12: n.d. | AS12: n.d. | AT12: n.d. | AU12: n.d. | AV12: n.d. | AW12: n.d. | AX12: n.d. | AY12: n.d. | AZ12: n.d. | BA12: n.d. | BB12: n.d. | BC12: n.d. | BD12: n.d. | BE12: n.d. | BF12: n.d. | BG12: n.d. | BH12: n.d. | BI12: n.d. | BJ12: n.d. | BK12: n.a. | BL12: n.d. | BM12: n.d. | BN12: n.a. | BO12: n.d. | BP12: n.a. | BQ12: n.d. | BR12: n.d. | BS12: n.d. | BT12: n.d. | BU12: n.d. | BV12: n.d. | BW12: n.d. | BX12: n.d. | BY12: n.d. | BZ12: n.d. | CA12: n.d. | CB12: n.d. | CC12: n.d. | CD12: n.d. | CE12: n.d. | CF12: n.d. | CG12: n.d. | CH12: n.d. | CI12: n.d. | CJ12: n.d. | CK12: n.d. | CL12: n.d. | CM12: n.d. | CN12: n.d. | CO12: n.d. | CP12: n.d. | CQ12: n.d. | CR12: n.d. | CS12: n.d. | CT12: n.d. | CU12: n.d. | CV12: n.d. | CW12: n.d. | CX12: n.d. | CY12: n.d. | CZ12: n.d. | DA12: n.d. | DB12: n.d. | DC12: n.d. | DD12: n.d. | DE12: n.d. | DF12: n.d. | DG12: n.d. | DH12: n.d.
A13: 1990 | B13: noviembre | C13: 1990-noviembre | D13: n.d. | E13: n.d. | F13: n.d. | G13: n.d. | H13: n.d. | I13: n.d. | J13: n.d. | K13: n.d. | L13: n.d. | N13: n.d. | P13: n.d. | Q13: n.d. | R13: n.d. | S13: n.d. | T13: n.d. | U13: n.d. | V13: n.d. | W13: n.d. | X13: n.d. | Y13: n.d. | Z13: n.d. | AA13: n.d. | AC13: n.d. | AD13: n.d. | AE13: n.d. | AF13: n.d. | AG13: n.d. | AH13: n.d. | AI13: n.d. | AJ13: n.d. | AK13: n.d. | AL13: n.d. | AN13: n.d. | AO13: n.d. | AP13: n.d. | AQ13: n.d. | AR13: n.d. | AS13: n.d. | AT13: n.d. | AU13: n.d. | AV13: n.d. | AW13: n.d. | AX13: n.d. | AY13: n.d. | AZ13: n.d. | BA13: n.d. | BB13: n.d. | BC13: n.d. | BD13: n.d. | BE13: n.d. | BF13: n.d. | BG13: n.d. | BH13: n.d. | BI13: n.d. | BJ13: n.d. | BK13: n.a. | BL13: n.d. | BM13: n.d. | BN13: n.a. | BO13: n.d. | BP13: n.a. | BQ13: n.d. | BR13: n.d. | BS13: n.d. | BT13: n.d. | BU13: n.d. | BV13: n.d. | BW13: n.d. | BX13: n.d. | BY13: n.d. | BZ13: n.d. | CA13: n.d. | CB13: n.d. | CC13: n.d. | CD13: n.d. | CE13: n.d. | CF13: n.d. | CG13: n.d. | CH13: n.d. | CI13: n.d. | CJ13: n.d. | CK13: n.d. | CL13: n.d. | CM13: n.d. | CN13: n.d. | CO13: n.d. | CP13: n.d. | CQ13: n.d. | CR13: n.d. | CS13: n.d. | CT13: n.d. | CU13: n.d. | CV13: n.d. | CW13: n.d. | CX13: n.d. | CY13: n.d. | CZ13: n.d. | DA13: n.d. | DB13: n.d. | DC13: n.d. | DD13: n.d. | DE13: n.d. | DF13: n.d. | DG13: n.d. | DH13: n.d.
A14: 1990 | B14: diciembre | C14: 1990-diciembre | D14: n.d. | E14: n.d. | F14: n.d. | G14: n.d. | H14: n.d. | I14: n.d. | J14: n.d. | K14: n.d. | L14: n.d. | M14: n.d. | N14: n.d. | O14: n.d. | P14: n.d. | Q14: n.d. | R14: n.d. | S14: n.d. | T14: n.d. | U14: n.d. | V14: n.d. | W14: n.d. | X14: n.d. | Y14: n.d. | Z14: n.d. | AA14: n.d. | AC14: n.d. | AD14: n.d. | AE14: n.d. | AF14: n.d. | AG14: n.d. | AH14: n.d. | AI14: n.d. | AJ14: n.d. | AK14: n.d. | AL14: n.d. | AN14: n.d. | AO14: n.d. | AP14: n.d. | AQ14: n.d. | AR14: n.d. | AS14: n.d. | AT14: n.d. | AU14: n.d. | AV14: n.d. | AW14: n.d. | AX14: n.d. | AY14: n.d. | AZ14: n.d. | BA14: n.d. | BB14: n.d. | BC14: n.d. | BD14: n.d. | BE14: n.d. | BF14: n.d. | BG14: n.d. | BH14: n.d. | BI14: n.d. | BJ14: n.d. | BK14: n.a. | BL14: n.d. | BM14: n.d. | BN14: n.a. | BO14: n.d. | BP14: n.a. | BQ14: n.d. | BR14: n.d. | BS14: n.d. | BT14: n.d. | BU14: n.d. | BV14: n.d. | BW14: n.d. | BX14: n.d. | BY14: n.d. | BZ14: n.d. | CA14: n.d. | CB14: n.d. | CC14: n.d. | CD14: n.d. | CE14: n.d. | CF14: n.d. | CG14: n.d. | CH14: n.d. | CI14: n.d. | CJ14: n.d. | CK14: n.d. | CL14: n.d. | CM14: n.d. | CN14: n.d. | CO14: n.d. | CP14: n.d. | CQ14: n.d. | CR14: n.d. | CS14: n.d. | CT14: n.d. | CU14: n.d. | CV14: n.d. | CW14: n.d. | CX14: n.d. | CY14: n.d. | CZ14: n.d. | DA14: n.d. | DB14: n.d. | DC14: n.d. | DD14: n.d. | DE14: n.d. | DF14: n.d. | DG14: n.d. | DH14: n.d.
A15: 1991 | B15: enero | C15: 1991-enero | D15: n.d. | E15: n.d. | F15: n.d. | G15: n.d. | H15: n.d. | I15: n.d. | J15: n.d. | K15: n.d. | L15: n.d. | N15: n.d. | P15: n.d. | Q15: n.d. | R15: n.d. | S15: n.d. | T15: n.d. | U15: n.d. | V15: n.d. | W15: n.d. | X15: n.d. | Y15: n.d. | Z15: n.d. | AA15: n.d. | AC15: n.d. | AD15: n.d. | AE15: n.d. | AF15: n.d. | AG15: n.d. | AH15: n.d. | AI15: n.d. | AJ15: n.d. | AK15: n.d. | AL15: n.d. | AN15: n.d. | AO15: n.d. | AP15: n.d. | AQ15: n.d. | AR15: n.d. | AS15: n.d. | AT15: n.d. | AU15: n.d. | AV15: n.d. | AW15: n.d. | AX15: n.d. | AY15: n.d. | AZ15: n.d. | BA15: n.d. | BB15: n.d. | BC15: n.d. | BD15: n.d. | BE15: n.d. | BF15: n.d. | BG15: n.d. | BH15: n.d. | BI15: n.d. | BJ15: n.d. | BK15: n.a. | BL15: n.d. | BM15: n.d. | BN15: n.a. | BO15: n.d. | BP15: n.a. | BQ15: n.d. | BR15: n.d. | BS15: n.d. | BT15: n.d. | BU15: n.d. | BV15: n.d. | BW15: n.d. | BX15: n.d. | BY15: n.d. | BZ15: n.d. | CA15: n.d. | CB15: n.d. | CC15: n.d. | CD15: n.d. | CE15: n.d. | CF15: n.d. | CG15: n.d. | CH15: n.d. | CI15: n.d. | CJ15: n.d. | CK15: n.d. | CL15: n.d. | CM15: n.d. | CN15: n.d. | CO15: n.d. | CP15: n.d. | CQ15: n.d. | CR15: n.d. | CS15: n.d. | CT15: n.d. | CU15: n.d. | CV15: n.d. | CW15: n.d. | CX15: n.d. | CY15: n.d. | CZ15: n.d. | DA15: n.d. | DB15: n.d. | DC15: n.d. | DD15: n.d. | DE15: n.d. | DF15: n.d. | DG15: n.d. | DH15: n.d.
A16: 1991 | B16: febrero | C16: 1991-febrero | D16: n.d. | E16: n.d. | F16: n.d. | G16: n.d. | H16: n.d. | I16: n.d. | J16: n.d. | K16: n.d. | L16: n.d. | N16: n.d. | P16: n.d. | Q16: n.d. | R16: n.d. | S16: n.d. | T16: n.d. | U16: n.d. | V16: n.d. | W16: n.d. | X16: n.d. | Y16: n.d. | Z16: n.d. | AA16: n.d. | AC16: n.d. | AD16: n.d. | AE16: n.d. | AF16: n.d. | AG16: n.d. | AH16: n.d. | AI16: n.d. | AJ16: n.d. | AK16: n.d. | AL16: n.d. | AN16: n.d. | AO16: n.d. | AP16: n.d. | AQ16: n.d. | AR16: n.d. | AS16: n.d. | AT16: n.d. | AU16: n.d. | AV16: n.d. | AW16: n.d. | AX16: n.d. | AY16: n.d. | AZ16: n.d. | BA16: n.d. | BB16: n.d. | BC16: n.d. | BD16: n.d. | BE16: n.d. | BF16: n.d. | BG16: n.d. | BH16: n.d. | BI16: n.d. | BJ16: n.d. | BK16: n.a. | BL16: n.d. | BM16: n.d. | BN16: n.a. | BO16: n.d. | BP16: n.a. | BQ16: n.d. | BR16: n.d. | BS16: n.d. | BT16: n.d. | BU16: n.d. | BV16: n.d. | BW16: n.d. | BX16: n.d. | BY16: n.d. | BZ16: n.d. | CA16: n.d. | CB16: n.d. | CC16: n.d. | CD16: n.d. | CE16: n.d. | CF16: n.d. | CG16: n.d. | CH16: n.d. | CI16: n.d. | CJ16: n.d. | CK16: n.d. | CL16: n.d. | CM16: n.d. | CN16: n.d. | CO16: n.d. | CP16: n.d. | CQ16: n.d. | CR16: n.d. | CS16: n.d. | CT16: n.d. | CU16: n.d. | CV16: n.d. | CW16: n.d. | CX16: n.d. | CY16: n.d. | CZ16: n.d. | DA16: n.d. | DB16: n.d. | DC16: n.d. | DD16: n.d. | DE16: n.d. | DF16: n.d. | DG16: n.d. | DH16: n.d.
A17: 1991 | B17: marzo | C17: 1991-marzo | D17: n.d. | E17: n.d. | F17: n.d. | G17: n.d. | H17: n.d. | I17: n.d. | J17: n.d. | K17: n.d. | L17: n.d. | N17: n.d. | P17: n.d. | Q17: n.d. | R17: n.d. | S17: n.d. | T17: n.d. | U17: n.d. | V17: n.d. | W17: n.d. | X17: n.d. | Y17: n.d. | Z17: n.d. | AA17: n.d. | AC17: n.d. | AD17: n.d. | AE17: n.d. | AF17: n.d. | AG17: n.d. | AH17: n.d. | AI17: n.d. | AJ17: n.d. | AK17: n.d. | AL17: n.d. | AN17: n.d. | AO17: n.d. | AP17: n.d. | AQ17: n.d. | AR17: n.d. | AS17: n.d. | AT17: n.d. | AU17: n.d. | AV17: n.d. | AW17: n.d. | AX17: n.d. | AY17: n.d. | AZ17: n.d. | BA17: n.d. | BB17: n.d. | BC17: n.d. | BD17: n.d. | BE17: n.d. | BF17: n.d. | BG17: n.d. | BH17: n.d. | BI17: n.d. | BJ17: n.d. | BK17: n.a. | BL17: n.d. | BM17: n.d. | BN17: n.a. | BO17: n.d. | BP17: n.a. | BQ17: n.d. | BR17: n.d. | BS17: n.d. | BT17: n.d. | BU17: n.d. | BV17: n.d. | BW17: n.d. | BX17: n.d. | BY17: n.d. | BZ17: n.d. | CA17: n.d. | CB17: n.d. | CC17: n.d. | CD17: n.d. | CE17: n.d. | CF17: n.d. | CG17: n.d. | CH17: n.d. | CI17: n.d. | CJ17: n.d. | CK17: n.d. | CL17: n.d. | CM17: n.d. | CN17: n.d. | CO17: n.d. | CP17: n.d. | CQ17: n.d. | CR17: n.d. | CS17: n.d. | CT17: n.d. | CU17: n.d. | CV17: n.d. | CW17: n.d. | CX17: n.d. | CY17: n.d. | CZ17: n.d. | DA17: n.d. | DB17: n.d. | DC17: n.d. | DD17: n.d. | DE17: n.d. | DF17: n.d. | DG17: n.d. | DH17: n.d.
A18: 1991 | B18: abril | C18: 1991-abril | D18: n.d. | E18: n.d. | F18: n.d. | G18: n.d. | H18: n.d. | I18: n.d. | J18: n.d. | K18: n.d. | L18: n.d. | N18: n.d. | P18: n.d. | Q18: n.d. | R18: n.d. | S18: n.d. | T18: n.d. | U18: n.d. | V18: n.d. | W18: n.d. | X18: n.d. | Y18: n.d. | Z18: n.d. | AA18: n.d. | AC18: n.d. | AD18: n.d. | AE18: n.d. | AF18: n.d. | AG18: n.d. | AH18: n.d. | AI18: n.d. | AJ18: n.d. | AK18: n.d. | AL18: n.d. | AN18: n.d. | AO18: n.d. | AP18: n.d. | AQ18: n.d. | AR18: n.d. | AS18: n.d. | AT18: n.d. | AU18: n.d. | AV18: n.d. | AW18: n.d. | AX18: n.d. | AY18: n.d. | AZ18: n.d. | BA18: n.d. | BB18: n.d. | BC18: n.d. | BD18: n.d. | BE18: n.d. | BF18: n.d. | BG18: n.d. | BH18: n.d. | BI18: n.d. | BJ18: n.d. | BK18: n.a. | BL18: n.d. | BM18: n.d. | BN18: n.a. | BO18: n.d. | BP18: n.a. | BQ18: n.d. | BR18: n.d. | BS18: n.d. | BT18: n.d. | BU18: n.d. | BV18: n.d. | BW18: n.d. | BX18: n.d. | BY18: n.d. | BZ18: n.d. | CA18: n.d. | CB18: n.d. | CC18: n.d. | CD18: n.d. | CE18: n.d. | CF18: n.d. | CG18: n.d. | CH18: n.d. | CI18: n.d. | CJ18: n.d. | CK18: n.d. | CL18: n.d. | CM18: n.d. | CN18: n.d. | CO18: n.d. | CP18: n.d. | CQ18: n.d. | CR18: n.d. | CS18: n.d. | CT18: n.d. | CU18: n.d. | CV18: n.d. | CW18: n.d. | CX18: n.d. | CY18: n.d. | CZ18: n.d. | DA18: n.d. | DB18: n.d. | DC18: n.d. | DD18: n.d. | DE18: n.d. | DF18: n.d. | DG18: n.d. | DH18: n.d.
A19: 1991 | B19: mayo | C19: 1991-mayo | D19: n.d. | E19: n.d. | F19: n.d. | G19: n.d. | H19: n.d. | I19: n.d. | J19: n.d. | K19: n.d. | L19: n.d. | N19: n.d. | P19: n.d. | Q19: n.d. | R19: n.d. | S19: n.d. | T19: n.d. | U19: n.d. | V19: n.d. | W19: n.d. | X19: n.d. | Y19: n.d. | Z19: n.d. | AA19: n.d. | AC19: n.d. | AD19: n.d. | AE19: n.d. | AF19: n.d. | AG19: n.d. | AH19: n.d. | AI19: n.d. | AJ19: n.d. | AK19: n.d. | AL19: n.d. | AN19: n.d. | AO19: n.d. | AP19: n.d. | AQ19: n.d. | AR19: n.d. | AS19: n.d. | AT19: n.d. | AU19: n.d. | AV19: n.d. | AW19: n.d. | AX19: n.d. | AY19: n.d. | AZ19: n.d. | BA19: n.d. | BB19: n.d. | BC19: n.d. | BD19: n.d. | BE19: n.d. | BF19: n.d. | BG19: n.d. | BH19: n.d. | BI19: n.d. | BJ19: n.d. | BK19: n.a. | BL19: n.d. | BM19: n.d. | BN19: n.a. | BO19: n.d. | BP19: n.a. | BQ19: n.d. | BR19: n.d. | BS19: n.d. | BT19: n.d. | BU19: n.d. | BV19: n.d. | BW19: n.d. | BX19: n.d. | BY19: n.d. | BZ19: n.d. | CA19: n.d. | CB19: n.d. | CC19: n.d. | CD19: n.d. | CE19: n.d. | CF19: n.d. | CG19: n.d. | CH19: n.d. | CI19: n.d. | CJ19: n.d. | CK19: n.d. | CL19: n.d. | CM19: n.d. | CN19: n.d. | CO19: n.d. | CP19: n.d. | CQ19: n.d. | CR19: n.d. | CS19: n.d. | CT19: n.d. | CU19: n.d. | CV19: n.d. | CW19: n.d. | CX19: n.d. | CY19: n.d. | CZ19: n.d. | DA19: n.d. | DB19: n.d. | DC19: n.d. | DD19: n.d. | DE19: n.d. | DF19: n.d. | DG19: n.d. | DH19: n.d.
A20: 1991 | B20: junio | C20: 1991-junio | D20: n.d. | E20: n.d. | F20: n.d. | G20: n.d. | H20: n.d. | I20: n.d. | J20: n.d. | K20: n.d. | L20: n.d. | N20: n.d. | P20: n.d. | Q20: n.d. | R20: n.d. | S20: n.d. | T20: n.d. | U20: n.d. | V20: n.d. | W20: n.d. | X20: n.d. | Y20: n.d. | Z20: n.d. | AA20: n.d. | AC20: n.d. | AD20: n.d. | AE20: n.d. | AF20: n.d. | AG20: n.d. | AH20: n.d. | AI20: n.d. | AJ20: n.d. | AK20: n.d. | AL20: n.d. | AN20: n.d. | AO20: n.d. | AP20: n.d. | AQ20: n.d. | AR20: n.d. | AS20: n.d. | AT20: n.d. | AU20: n.d. | AV20: n.d. | AW20: n.d. | AX20: n.d. | AY20: n.d. | AZ20: n.d. | BA20: n.d. | BB20: n.d. | BC20: n.d. | BD20: n.d. | BE20: n.d. | BF20: n.d. | BG20: n.d. | BH20: n.d. | BI20: n.d. | BJ20: n.d. | BK20: n.a. | BL20: n.d. | BM20: n.d. | BN20: n.a. | BO20: n.d. | BP20: n.a. | BQ20: n.d. | BR20: n.d. | BS20: n.d. | BT20: n.d. | BU20: n.d. | BV20: n.d. | BW20: n.d. | BX20: n.d. | BY20: n.d. | BZ20: n.d. | CA20: n.d. | CB20: n.d. | CC20: n.d. | CD20: n.d. | CE20: n.d. | CF20: n.d. | CG20: n.d. | CH20: n.d. | CI20: n.d. | CJ20: n.d. | CK20: n.d. | CL20: n.d. | CM20: n.d. | CN20: n.d. | CO20: n.d. | CP20: n.d. | CQ20: n.d. | CR20: n.d. | CS20: n.d. | CT20: n.d. | CU20: n.d. | CV20: n.d. | CW20: n.d. | CX20: n.d. | CY20: n.d. | CZ20: n.d. | DA20: n.d. | DB20: n.d. | DC20: n.d. | DD20: n.d. | DE20: n.d. | DF20: n.d. | DG20: n.d. | DH20: n.d.
A21: 1991 | B21: julio | C21: 1991-julio | D21: n.d. | E21: n.d. | F21: n.d. | G21: n.d. | H21: n.d. | I21: n.d. | J21: n.d. | K21: n.d. | L21: n.d. | N21: n.d. | P21: n.d. | Q21: n.d. | R21: n.d. | S21: n.d. | T21: n.d. | U21: n.d. | V21: n.d. | W21: n.d. | X21: n.d. | Y21: n.d. | Z21: n.d. | AA21: n.d. | AC21: n.d. | AD21: n.d. | AE21: n.d. | AF21: n.d. | AG21: n.d. | AH21: n.d. | AI21: n.d. | AJ21: n.d. | AK21: n.d. | AL21: n.d. | AN21: n.d. | AO21: n.d. | AP21: n.d. | AQ21: n.d. | AR21: n.d. | AS21: n.d. | AT21: n.d. | AU21: n.d. | AV21: n.d. | AW21: n.d. | AX21: n.d. | AY21: n.d. | AZ21: n.d. | BA21: n.d. | BB21: n.d. | BC21: n.d. | BD21: n.d. | BE21: n.d. | BF21: n.d. | BG21: n.d. | BH21: n.d. | BI21: n.d. | BJ21: n.d. | BK21: n.a. | BL21: n.d. | BM21: n.d. | BN21: n.a. | BO21: n.d. | BP21: n.a. | BQ21: n.d. | BR21: n.d. | BS21: n.d. | BT21: n.d. | BU21: n.d. | BV21: n.d. | BW21: n.d. | BX21: n.d. | BY21: n.d. | BZ21: n.d. | CA21: n.d. | CB21: n.d. | CC21: n.d. | CD21: n.d. | CE21: n.d. | CF21: n.d. | CG21: n.d. | CH21: n.d. | CI21: n.d. | CJ21: n.d. | CK21: n.d. | CL21: n.d. | CM21: n.d. | CN21: n.d. | CO21: n.d. | CP21: n.d. | CQ21: n.d. | CR21: n.d. | CS21: n.d. | CT21: n.d. | CU21: n.d. | CV21: n.d. | CW21: n.d. | CX21: n.d. | CY21: n.d. | CZ21: n.d. | DA21: n.d. | DB21: n.d. | DC21: n.d. | DD21: n.d. | DE21: n.d. | DF21: n.d. | DG21: n.d. | DH21: n.d.
A22: 1991 | B22: agosto | C22: 1991-agosto | D22: n.d. | E22: n.d. | F22: n.d. | G22: n.d. | H22: n.d. | I22: n.d. | J22: n.d. | K22: n.d. | L22: n.d. | N22: n.d. | P22: n.d. | Q22: n.d. | R22: n.d. | S22: n.d. | T22: n.d. | U22: n.d. | V22: n.d. | W22: n.d. | X22: n.d. | Y22: n.d. | Z22: n.d. | AA22: n.d. | AC22: n.d. | AD22: n.d. | AE22: n.d. | AF22: n.d. | AG22: n.d. | AH22: n.d. | AI22: n.d. | AJ22: n.d. | AK22: n.d. | AL22: n.d. | AN22: n.d. | AO22: n.d. | AP22: n.d. | AQ22: n.d. | AR22: n.d. | AS22: n.d. | AT22: n.d. | AU22: n.d. | AV22: n.d. | AW22: n.d. | AX22: n.d. | AY22: n.d. | AZ22: n.d. | BA22: n.d. | BB22: n.d. | BC22: n.d. | BD22: n.d. | BE22: n.d. | BF22: n.d. | BG22: n.d. | BH22: n.d. | BI22: n.d. | BJ22: n.d. | BK22: n.a. | BL22: n.d. | BM22: n.d. | BN22: n.a. | BO22: n.d. | BP22: n.a. | BQ22: n.d. | BR22: n.d. | BS22: n.d. | BT22: n.d. | BU22: n.d. | BV22: n.d. | BW22: n.d. | BX22: n.d. | BY22: n.d. | BZ22: n.d. | CA22: n.d. | CB22: n.d. | CC22: n.d. | CD22: n.d. | CE22: n.d. | CF22: n.d. | CG22: n.d. | CH22: n.d. | CI22: n.d. | CJ22: n.d. | CK22: n.d. | CL22: n.d. | CM22: n.d. | CN22: n.d. | CO22: n.d. | CP22: n.d. | CQ22: n.d. | CR22: n.d. | CS22: n.d. | CT22: n.d. | CU22: n.d. | CV22: n.d. | CW22: n.d. | CX22: n.d. | CY22: n.d. | CZ22: n.d. | DA22: n.d. | DB22: n.d. | DC22: n.d. | DD22: n.d. | DE22: n.d. | DF22: n.d. | DG22: n.d. | DH22: n.d.
A23: 1991 | B23: septiembre | C23: 1991-septiembre | D23: n.d. | E23: n.d. | F23: n.d. | G23: n.d. | H23: n.d. | I23: n.d. | J23: n.d. | K23: n.d. | L23: n.d. | N23: n.d. | P23: n.d. | Q23: n.d. | R23: n.d. | S23: n.d. | T23: n.d. | U23: n.d. | V23: n.d. | W23: n.d. | X23: n.d. | Y23: n.d. | Z23: n.d. | AA23: n.d. | AC23: n.d. | AD23: n.d. | AE23: n.d. | AF23: n.d. | AG23: n.d. | AH23: n.d. | AI23: n.d. | AJ23: n.d. | AK23: n.d. | AL23: n.d. | AN23: n.d. | AO23: n.d. | AP23: n.d. | AQ23: n.d. | AR23: n.d. | AS23: n.d. | AT23: n.d. | AU23: n.d. | AV23: n.d. | AW23: n.d. | AX23: n.d. | AY23: n.d. | AZ23: n.d. | BA23: n.d. | BB23: n.d. | BC23: n.d. | BD23: n.d. | BE23: n.d. | BF23: n.d. | BG23: n.d. | BH23: n.d. | BI23: n.d. | BJ23: n.d. | BK23: n.a. | BL23: n.d. | BM23: n.d. | BN23: n.a. | BO23: n.d. | BP23: n.a. | BQ23: n.d. | BR23: n.d. | BS23: n.d. | BT23: n.d. | BU23: n.d. | BV23: n.d. | BW23: n.d. | BX23: n.d. | BY23: n.d. | BZ23: n.d. | CA23: n.d. | CB23: n.d. | CC23: n.d. | CD23: n.d. | CE23: n.d. | CF23: n.d. | CG23: n.d. | CH23: n.d. | CI23: n.d. | CJ23: n.d. | CK23: n.d. | CL23: n.d. | CM23: n.d. | CN23: n.d. | CO23: n.d. | CP23: n.d. | CQ23: n.d. | CR23: n.d. | CS23: n.d. | CT23: n.d. | CU23: n.d. | CV23: n.d. | CW23: n.d. | CX23: n.d. | CY23: n.d. | CZ23: n.d. | DA23: n.d. | DB23: n.d. | DC23: n.d. | DD23: n.d. | DE23: n.d. | DF23: n.d. | DG23: n.d. | DH23: n.d.
A24: 1991 | B24: octubre | C24: 1991-octubre | D24: n.d. | E24: n.d. | F24: n.d. | G24: n.d. | H24: n.d. | I24: n.d. | J24: n.d. | K24: n.d. | L24: n.d. | N24: n.d. | P24: n.d. | Q24: n.d. | R24: n.d. | S24: n.d. | T24: n.d. | U24: n.d. | V24: n.d. | W24: n.d. | X24: n.d. | Y24: n.d. | Z24: n.d. | AA24: n.d. | AC24: n.d. | AD24: n.d. | AE24: n.d. | AF24: n.d. | AG24: n.d. | AH24: n.d. | AI24: n.d. | AJ24: n.d. | AK24: n.d. | AL24: n.d. | AN24: n.d. | AO24: n.d. | AP24: n.d. | AQ24: n.d. | AR24: n.d. | AS24: n.d. | AT24: n.d. | AU24: n.d. | AV24: n.d. | AW24: n.d. | AX24: n.d. | AY24: n.d. | AZ24: n.d. | BA24: n.d. | BB24: n.d. | BC24: n.d. | BD24: n.d. | BE24: n.d. | BF24: n.d. | BG24: n.d. | BH24: n.d. | BI24: n.d. | BJ24: n.d. | BK24: n.a. | BL24: n.d. | BM24: n.d. | BN24: n.a. | BO24: n.d. | BP24: n.a. | BQ24: n.d. | BR24: n.d. | BS24: n.d. | BT24: n.d. | BU24: n.d. | BV24: n.d. | BW24: n.d. | BX24: n.d. | BY24: n.d. | BZ24: n.d. | CA24: n.d. | CB24: n.d. | CC24: n.d. | CD24: n.d. | CE24: n.d. | CF24: n.d. | CG24: n.d. | CH24: n.d. | CI24: n.d. | CJ24: n.d. | CK24: n.d. | CL24: n.d. | CM24: n.d. | CN24: n.d. | CO24: n.d. | CP24: n.d. | CQ24: n.d. | CR24: n.d. | CS24: n.d. | CT24: n.d. | CU24: n.d. | CV24: n.d. | CW24: n.d. | CX24: n.d. | CY24: n.d. | CZ24: n.d. | DA24: n.d. | DB24: n.d. | DC24: n.d. | DD24: n.d. | DE24: n.d. | DF24: n.d. | DG24: n.d. | DH24: n.d.
A25: 1991 | B25: noviembre | C25: 1991-noviembre | D25: n.d. | E25: n.d. | F25: n.d. | G25: n.d. | H25: n.d. | I25: n.d. | J25: n.d. | K25: n.d. | L25: n.d. | N25: n.d. | P25: n.d. | Q25: n.d. | R25: n.d. | S25: n.d. | T25: n.d. | U25: n.d. | V25: n.d. | W25: n.d. | X25: n.d. | Y25: n.d. | Z25: n.d. | AA25: n.d. | AC25: n.d. | AD25: n.d. | AE25: n.d. | AF25: n.d. | AG25: n.d. | AH25: n.d. | AI25: n.d. | AJ25: n.d. | AK25: n.d. | AL25: n.d. | AN25: n.d. | AO25: n.d. | AP25: n.d. | AQ25: n.d. | AR25: n.d. | AS25: n.d. | AT25: n.d. | AU25: n.d. | AV25: n.d. | AW25: n.d. | AX25: n.d. | AY25: n.d. | AZ25: n.d. | BA25: n.d. | BB25: n.d. | BC25: n.d. | BD25: n.d. | BE25: n.d. | BF25: n.d. | BG25: n.d. | BH25: n.d. | BI25: n.d. | BJ25: n.d. | BK25: n.a. | BL25: n.d. | BM25: n.d. | BN25: n.a. | BO25: n.d. | BP25: n.a. | BQ25: n.d. | BR25: n.d. | BS25: n.d. | BT25: n.d. | BU25: n.d. | BV25: n.d. | BW25: n.d. | BX25: n.d. | BY25: n.d. | BZ25: n.d. | CA25: n.d. | CB25: n.d. | CC25: n.d. | CD25: n.d. | CE25: n.d. | CF25: n.d. | CG25: n.d. | CH25: n.d. | CI25: n.d. | CJ25: n.d. | CK25: n.d. | CL25: n.d. | CM25: n.d. | CN25: n.d. | CO25: n.d. | CP25: n.d. | CQ25: n.d. | CR25: n.d. | CS25: n.d. | CT25: n.d. | CU25: n.d. | CV25: n.d. | CW25: n.d. | CX25: n.d. | CY25: n.d. | CZ25: n.d. | DA25: n.d. | DB25: n.d. | DC25: n.d. | DD25: n.d. | DE25: n.d. | DF25: n.d. | DG25: n.d. | DH25: n.d.
A26: 1991 | B26: diciembre | C26: 1991-diciembre | D26: n.d. | E26: n.d. | F26: n.d. | G26: n.d. | H26: n.d. | I26: n.d. | J26: n.d. | K26: n.d. | L26: n.d. | M26: n.d. | N26: n.d. | O26: n.d. | P26: n.d. | Q26: n.d. | R26: n.d. | S26: n.d. | T26: n.d. | U26: n.d. | V26: n.d. | W26: n.d. | X26: n.d. | Y26: n.d. | Z26: n.d. | AA26: n.d. | AC26: n.d. | AD26: n.d. | AE26: n.d. | AF26: n.d. | AG26: n.d. | AH26: n.d. | AI26: n.d. | AJ26: n.d. | AK26: n.d. | AL26: n.d. | AN26: n.d. | AO26: n.d. | AP26: n.d. | AQ26: n.d. | AR26: n.d. | AS26: n.d. | AT26: n.d. | AU26: n.d. | AV26: n.d. | AW26: n.d. | AX26: n.d. | AY26: n.d. | AZ26: n.d. | BA26: n.d. | BB26: n.d. | BC26: n.d. | BD26: n.d. | BE26: n.d. | BF26: n.d. | BG26: n.d. | BH26: n.d. | BI26: n.d. | BJ26: n.d. | BK26: n.a. | BL26: n.d. | BM26: n.d. | BN26: n.a. | BO26: n.d. | BP26: n.a. | BQ26: n.d. | BR26: n.d. | BS26: n.d. | BT26: n.d. | BU26: n.d. | BV26: n.d. | BW26: n.d. | BX26: n.d. | BY26: n.d. | BZ26: n.d. | CA26: n.d. | CB26: n.d. | CC26: n.d. | CD26: n.d. | CE26: n.d. | CF26: n.d. | CG26: n.d. | CH26: n.d. | CI26: n.d. | CJ26: n.d. | CK26: n.d. | CL26: n.d. | CM26: n.d. | CN26: n.d. | CO26: n.d. | CP26: n.d. | CQ26: n.d. | CR26: n.d. | CS26: n.d. | CT26: n.d. | CU26: n.d. | CV26: n.d. | CW26: n.d. | CX26: n.d. | CY26: n.d. | CZ26: n.d. | DA26: n.d. | DB26: n.d. | DC26: n.d. | DD26: n.d. | DE26: n.d. | DF26: n.d. | DG26: n.d. | DH26: n.d.
A27: 1992 | B27: enero | C27: 1992-enero | D27: n.d. | E27: n.d. | F27: n.d. | G27: n.d. | H27: n.d. | I27: n.d. | J27: n.d. | K27: n.d. | L27: n.d. | N27: n.d. | P27: n.d. | Q27: n.d. | R27: n.d. | S27: n.d. | T27: n.d. | U27: n.d. | V27: n.d. | W27: n.d. | X27: n.d. | Y27: n.d. | Z27: n.d. | AA27: n.d. | AC27: n.d. | AD27: n.d. | AE27: n.d. | AF27: n.d. | AG27: n.d. | AH27: n.d. | AI27: n.d. | AJ27: n.d. | AK27: n.d. | AL27: n.d. | AN27: n.d. | AO27: n.d. | AP27: n.d. | AQ27: n.d. | AR27: n.d. | AS27: n.d. | AT27: n.d. | AU27: n.d. | AV27: n.d. | AW27: n.d. | AX27: n.d. | AY27: n.d. | AZ27: n.d. | BA27: n.d. | BB27: n.d. | BC27: n.d. | BD27: n.d. | BE27: n.d. | BF27: n.d. | BG27: n.d. | BH27: n.d. | BI27: n.d. | BJ27: n.d. | BK27: n.a. | BL27: n.d. | BM27: n.d. | BN27: n.a. | BO27: n.d. | BP27: n.a. | BQ27: n.d. | BR27: n.d. | BS27: n.d. | BT27: n.d. | BU27: n.d. | BV27: n.d. | BW27: n.d. | BX27: n.d. | BY27: n.d. | BZ27: n.d. | CA27: n.d. | CB27: n.d. | CC27: n.d. | CD27: n.d. | CE27: n.d. | CF27: n.d. | CG27: n.d. | CH27: n.d. | CI27: n.d. | CJ27: n.d. | CK27: n.d. | CL27: n.d. | CM27: n.d. | CN27: n.d. | CO27: n.d. | CP27: n.d. | CQ27: n.d. | CR27: n.d. | CS27: n.d. | CT27: n.d. | CU27: n.d. | CV27: n.d. | CW27: n.d. | CX27: n.d. | CY27: n.d. | CZ27: n.d. | DA27: n.d. | DB27: n.d. | DC27: n.d. | DD27: n.d. | DE27: n.d. | DF27: n.d. | DG27: n.d. | DH27: n.d.
A28: 1992 | B28: febrero | C28: 1992-febrero | D28: n.d. | E28: n.d. | F28: n.d. | G28: n.d. | H28: n.d. | I28: n.d. | J28: n.d. | K28: n.d. | L28: n.d. | N28: n.d. | P28: n.d. | Q28: n.d. | R28: n.d. | S28: n.d. | T28: n.d. | U28: n.d. | V28: n.d. | W28: n.d. | X28: n.d. | Y28: n.d. | Z28: n.d. | AA28: n.d. | AC28: n.d. | AD28: n.d. | AE28: n.d. | AF28: n.d. | AG28: n.d. | AH28: n.d. | AI28: n.d. | AJ28: n.d. | AK28: n.d. | AL28: n.d. | AN28: n.d. | AO28: n.d. | AP28: n.d. | AQ28: n.d. | AR28: n.d. | AS28: n.d. | AT28: n.d. | AU28: n.d. | AV28: n.d. | AW28: n.d. | AX28: n.d. | AY28: n.d. | AZ28: n.d. | BA28: n.d. | BB28: n.d. | BC28: n.d. | BD28: n.d. | BE28: n.d. | BF28: n.d. | BG28: n.d. | BH28: n.d. | BI28: n.d. | BJ28: n.d. | BK28: n.a. | BL28: n.d. | BM28: n.d. | BN28: n.a. | BO28: n.d. | BP28: n.a. | BQ28: n.d. | BR28: n.d. | BS28: n.d. | BT28: n.d. | BU28: n.d. | BV28: n.d. | BW28: n.d. | BX28: n.d. | BY28: n.d. | BZ28: n.d. | CA28: n.d. | CB28: n.d. | CC28: n.d. | CD28: n.d. | CE28: n.d. | CF28: n.d. | CG28: n.d. | CH28: n.d. | CI28: n.d. | CJ28: n.d. | CK28: n.d. | CL28: n.d. | CM28: n.d. | CN28: n.d. | CO28: n.d. | CP28: n.d. | CQ28: n.d. | CR28: n.d. | CS28: n.d. | CT28: n.d. | CU28: n.d. | CV28: n.d. | CW28: n.d. | CX28: n.d. | CY28: n.d. | CZ28: n.d. | DA28: n.d. | DB28: n.d. | DC28: n.d. | DD28: n.d. | DE28: n.d. | DF28: n.d. | DG28: n.d. | DH28: n.d.
A29: 1992 | B29: marzo | C29: 1992-marzo | D29: n.d. | E29: n.d. | F29: n.d. | G29: n.d. | H29: n.d. | I29: n.d. | J29: n.d. | K29: n.d. | L29: n.d. | N29: n.d. | P29: n.d. | Q29: n.d. | R29: n.d. | S29: n.d. | T29: n.d. | U29: n.d. | V29: n.d. | W29: n.d. | X29: n.d. | Y29: n.d. | Z29: n.d. | AA29: n.d. | AC29: n.d. | AD29: n.d. | AE29: n.d. | AF29: n.d. | AG29: n.d. | AH29: n.d. | AI29: n.d. | AJ29: n.d. | AK29: n.d. | AL29: n.d. | AN29: n.d. | AO29: n.d. | AP29: n.d. | AQ29: n.d. | AR29: n.d. | AS29: n.d. | AT29: n.d. | AU29: n.d. | AV29: n.d. | AW29: n.d. | AX29: n.d. | AY29: n.d. | AZ29: n.d. | BA29: n.d. | BB29: n.d. | BC29: n.d. | BD29: n.d. | BE29: n.d. | BF29: n.d. | BG29: n.d. | BH29: n.d. | BI29: n.d. | BJ29: n.d. | BK29: n.a. | BL29: n.d. | BM29: n.d. | BN29: n.a. | BO29: n.d. | BP29: n.a. | BQ29: n.d. | BR29: n.d. | BS29: n.d. | BT29: n.d. | BU29: n.d. | BV29: n.d. | BW29: n.d. | BX29: n.d. | BY29: n.d. | BZ29: n.d. | CA29: n.d. | CB29: n.d. | CC29: n.d. | CD29: n.d. | CE29: n.d. | CF29: n.d. | CG29: n.d. | CH29: n.d. | CI29: n.d. | CJ29: n.d. | CK29: n.d. | CL29: n.d. | CM29: n.d. | CN29: n.d. | CO29: n.d. | CP29: n.d. | CQ29: n.d. | CR29: n.d. | CS29: n.d. | CT29: n.d. | CU29: n.d. | CV29: n.d. | CW29: n.d. | CX29: n.d. | CY29: n.d. | CZ29: n.d. | DA29: n.d. | DB29: n.d. | DC29: n.d. | DD29: n.d. | DE29: n.d. | DF29: n.d. | DG29: n.d. | DH29: n.d.
A30: 1992 | B30: abril | C30: 1992-abril | D30: n.d. | E30: n.d. | F30: n.d. | G30: n.d. | H30: n.d. | I30: n.d. | J30: n.d. | K30: n.d. | L30: n.d. | N30: n.d. | P30: n.d. | Q30: n.d. | R30: n.d. | S30: n.d. | T30: n.d. | U30: n.d. | V30: n.d. | W30: n.d. | X30: n.d. | Y30: n.d. | Z30: n.d. | AA30: n.d. | AC30: n.d. | AD30: n.d. | AE30: n.d. | AF30: n.d. | AG30: n.d. | AH30: n.d. | AI30: n.d. | AJ30: n.d. | AK30: n.d. | AL30: n.d. | AN30: n.d. | AO30: n.d. | AP30: n.d. | AQ30: n.d. | AR30: n.d. | AS30: n.d. | AT30: n.d. | AU30: n.d. | AV30: n.d. | AW30: n.d. | AX30: n.d. | AY30: n.d. | AZ30: n.d. | BA30: n.d. | BB30: n.d. | BC30: n.d. | BD30: n.d. | BE30: n.d. | BF30: n.d. | BG30: n.d. | BH30: n.d. | BI30: n.d. | BJ30: n.d. | BK30: n.a. | BL30: n.d. | BM30: n.d. | BN30: n.a. | BO30: n.d. | BP30: n.a. | BQ30: n.d. | BR30: n.d. | BS30: n.d. | BT30: n.d. | BU30: n.d. | BV30: n.d. | BW30: n.d. | BX30: n.d. | BY30: n.d. | BZ30: n.d. | CA30: n.d. | CB30: n.d. | CC30: n.d. | CD30: n.d. | CE30: n.d. | CF30: n.d. | CG30: n.d. | CH30: n.d. | CI30: n.d. | CJ30: n.d. | CK30: n.d. | CL30: n.d. | CM30: n.d. | CN30: n.d. | CO30: n.d. | CP30: n.d. | CQ30: n.d. | CR30: n.d. | CS30: n.d. | CT30: n.d. | CU30: n.d. | CV30: n.d. | CW30: n.d. | CX30: n.d. | CY30: n.d. | CZ30: n.d. | DA30: n.d. | DB30: n.d. | DC30: n.d. | DD30: n.d. | DE30: n.d. | DF30: n.d. | DG30: n.d. | DH30: n.d.
A31: 1992 | B31: mayo | C31: 1992-mayo | D31: n.d. | E31: n.d. | F31: n.d. | G31: n.d. | H31: n.d. | I31: n.d. | J31: n.d. | K31: n.d. | L31: n.d. | N31: n.d. | P31: n.d. | Q31: n.d. | R31: n.d. | S31: n.d. | T31: n.d. | U31: n.d. | V31: n.d. | W31: n.d. | X31: n.d. | Y31: n.d. | Z31: n.d. | AA31: n.d. | AC31: n.d. | AD31: n.d. | AE31: n.d. | AF31: n.d. | AG31: n.d. | AH31: n.d. | AI31: n.d. | AJ31: n.d. | AK31: n.d. | AL31: n.d. | AN31: n.d. | AO31: n.d. | AP31: n.d. | AQ31: n.d. | AR31: n.d. | AS31: n.d. | AT31: n.d. | AU31: n.d. | AV31: n.d. | AW31: n.d. | AX31: n.d. | AY31: n.d. | AZ31: n.d. | BA31: n.d. | BB31: n.d. | BC31: n.d. | BD31: n.d. | BE31: n.d. | BF31: n.d. | BG31: n.d. | BH31: n.d. | BI31: n.d. | BJ31: n.d. | BK31: n.a. | BL31: n.d. | BM31: n.d. | BN31: n.a. | BO31: n.d. | BP31: n.a. | BQ31: n.d. | BR31: n.d. | BS31: n.d. | BT31: n.d. | BU31: n.d. | BV31: n.d. | BW31: n.d. | BX31: n.d. | BY31: n.d. | BZ31: n.d. | CA31: n.d. | CB31: n.d. | CC31: n.d. | CD31: n.d. | CE31: n.d. | CF31: n.d. | CG31: n.d. | CH31: n.d. | CI31: n.d. | CJ31: n.d. | CK31: n.d. | CL31: n.d. | CM31: n.d. | CN31: n.d. | CO31: n.d. | CP31: n.d. | CQ31: n.d. | CR31: n.d. | CS31: n.d. | CT31: n.d. | CU31: n.d. | CV31: n.d. | CW31: n.d. | CX31: n.d. | CY31: n.d. | CZ31: n.d. | DA31: n.d. | DB31: n.d. | DC31: n.d. | DD31: n.d. | DE31: n.d. | DF31: n.d. | DG31: n.d. | DH31: n.d.
A32: 1992 | B32: junio | C32: 1992-junio | D32: n.d. | E32: n.d. | F32: n.d. | G32: n.d. | H32: n.d. | I32: n.d. | J32: n.d. | K32: n.d. | L32: n.d. | N32: n.d. | P32: n.d. | Q32: n.d. | R32: n.d. | S32: n.d. | T32: n.d. | U32: n.d. | V32: n.d. | W32: n.d. | X32: n.d. | Y32: n.d. | Z32: n.d. | AA32: n.d. | AC32: n.d. | AD32: n.d. | AE32: n.d. | AF32: n.d. | AG32: n.d. | AH32: n.d. | AI32: n.d. | AJ32: n.d. | AK32: n.d. | AL32: n.d. | AN32: n.d. | AO32: n.d. | AP32: n.d. | AQ32: n.d. | AR32: n.d. | AS32: n.d. | AT32: n.d. | AU32: n.d. | AV32: n.d. | AW32: n.d. | AX32: n.d. | AY32: n.d. | AZ32: n.d. | BA32: n.d. | BB32: n.d. | BC32: n.d. | BD32: n.d. | BE32: n.d. | BF32: n.d. | BG32: n.d. | BH32: n.d. | BI32: n.d. | BJ32: n.d. | BK32: n.a. | BL32: n.d. | BM32: n.d. | BN32: n.a. | BO32: n.d. | BP32: n.a. | BQ32: n.d. | BR32: n.d. | BS32: n.d. | BT32: n.d. | BU32: n.d. | BV32: n.d. | BW32: n.d. | BX32: n.d. | BY32: n.d. | BZ32: n.d. | CA32: n.d. | CB32: n.d. | CC32: n.d. | CD32: n.d. | CE32: n.d. | CF32: n.d. | CG32: n.d. | CH32: n.d. | CI32: n.d. | CJ32: n.d. | CK32: n.d. | CL32: n.d. | CM32: n.d. | CN32: n.d. | CO32: n.d. | CP32: n.d. | CQ32: n.d. | CR32: n.d. | CS32: n.d. | CT32: n.d. | CU32: n.d. | CV32: n.d. | CW32: n.d. | CX32: n.d. | CY32: n.d. | CZ32: n.d. | DA32: n.d. | DB32: n.d. | DC32: n.d. | DD32: n.d. | DE32: n.d. | DF32: n.d. | DG32: n.d. | DH32: n.d.
A33: 1992 | B33: julio | C33: 1992-julio | D33: n.d. | E33: n.d. | F33: n.d. | G33: n.d. | H33: n.d. | I33: n.d. | J33: n.d. | K33: n.d. | L33: n.d. | N33: n.d. | P33: n.d. | Q33: n.d. | R33: n.d. | S33: n.d. | T33: n.d. | U33: n.d. | V33: n.d. | W33: n.d. | X33: n.d. | Y33: n.d. | Z33: n.d. | AA33: n.d. | AC33: n.d. | AD33: n.d. | AE33: n.d. | AF33: n.d. | AG33: n.d. | AH33: n.d. | AI33: n.d. | AJ33: n.d. | AK33: n.d. | AL33: n.d. | AN33: n.d. | AO33: n.d. | AP33: n.d. | AQ33: n.d. | AR33: n.d. | AS33: n.d. | AT33: n.d. | AU33: n.d. | AV33: n.d. | AW33: n.d. | AX33: n.d. | AY33: n.d. | AZ33: n.d. | BA33: n.d. | BB33: n.d. | BC33: n.d. | BD33: n.d. | BE33: n.d. | BF33: n.d. | BG33: n.d. | BH33: n.d. | BI33: n.d. | BJ33: n.d. | BK33: n.a. | BL33: n.d. | BM33: n.d. | BN33: n.a. | BO33: n.d. | BP33: n.a. | BQ33: n.d. | BR33: n.d. | BS33: n.d. | BT33: n.d. | BU33: n.d. | BV33: n.d. | BW33: n.d. | BX33: n.d. | BY33: n.d. | BZ33: n.d. | CA33: n.d. | CB33: n.d. | CC33: n.d. | CD33: n.d. | CE33: n.d. | CF33: n.d. | CG33: n.d. | CH33: n.d. | CI33: n.d. | CJ33: n.d. | CK33: n.d. | CL33: n.d. | CM33: n.d. | CN33: n.d. | CO33: n.d. | CP33: n.d. | CQ33: n.d. | CR33: n.d. | CS33: n.d. | CT33: n.d. | CU33: n.d. | CV33: n.d. | CW33: n.d. | CX33: n.d. | CY33: n.d. | CZ33: n.d. | DA33: n.d. | DB33: n.d. | DC33: n.d. | DD33: n.d. | DE33: n.d. | DF33: n.d. | DG33: n.d. | DH33: n.d.
A34: 1992 | B34: agosto | C34: 1992-agosto | D34: n.d. | E34: n.d. | F34: n.d. | G34: n.d. | H34: n.d. | I34: n.d. | J34: n.d. | K34: n.d. | L34: n.d. | N34: n.d. | P34: n.d. | Q34: n.d. | R34: n.d. | S34: n.d. | T34: n.d. | U34: n.d. | V34: n.d. | W34: n.d. | X34: n.d. | Y34: n.d. | Z34: n.d. | AA34: n.d. | AC34: n.d. | AD34: n.d. | AE34: n.d. | AF34: n.d. | AG34: n.d. | AH34: n.d. | AI34: n.d. | AJ34: n.d. | AK34: n.d. | AL34: n.d. | AN34: n.d. | AO34: n.d. | AP34: n.d. | AQ34: n.d. | AR34: n.d. | AS34: n.d. | AT34: n.d. | AU34: n.d. | AV34: n.d. | AW34: n.d. | AX34: n.d. | AY34: n.d. | AZ34: n.d. | BA34: n.d. | BB34: n.d. | BC34: n.d. | BD34: n.d. | BE34: n.d. | BF34: n.d. | BG34: n.d. | BH34: n.d. | BI34: n.d. | BJ34: n.d. | BK34: n.a. | BL34: n.d. | BM34: n.d. | BN34: n.a. | BO34: n.d. | BP34: n.a. | BQ34: n.d. | BR34: n.d. | BS34: n.d. | BT34: n.d. | BU34: n.d. | BV34: n.d. | BW34: n.d. | BX34: n.d. | BY34: n.d. | BZ34: n.d. | CA34: n.d. | CB34: n.d. | CC34: n.d. | CD34: n.d. | CE34: n.d. | CF34: n.d. | CG34: n.d. | CH34: n.d. | CI34: n.d. | CJ34: n.d. | CK34: n.d. | CL34: n.d. | CM34: n.d. | CN34: n.d. | CO34: n.d. | CP34: n.d. | CQ34: n.d. | CR34: n.d. | CS34: n.d. | CT34: n.d. | CU34: n.d. | CV34: n.d. | CW34: n.d. | CX34: n.d. | CY34: n.d. | CZ34: n.d. | DA34: n.d. | DB34: n.d. | DC34: n.d. | DD34: n.d. | DE34: n.d. | DF34: n.d. | DG34: n.d. | DH34: n.d.
A35: 1992 | B35: septiembre | C35: 1992-septiembre | D35: n.d. | E35: n.d. | F35: n.d. | G35: n.d. | H35: n.d. | I35: n.d. | J35: n.d. | K35: n.d. | L35: n.d. | N35: n.d. | P35: n.d. | Q35: n.d. | R35: n.d. | S35: n.d. | T35: n.d. | U35: n.d. | V35: n.d. | W35: n.d. | X35: n.d. | Y35: n.d. | Z35: n.d. | AA35: n.d. | AC35: n.d. | AD35: n.d. | AE35: n.d. | AF35: n.d. | AG35: n.d. | AH35: n.d. | AI35: n.d. | AJ35: n.d. | AK35: n.d. | AL35: n.d. | AN35: n.d. | AO35: n.d. | AP35: n.d. | AQ35: n.d. | AR35: n.d. | AS35: n.d. | AT35: n.d. | AU35: n.d. | AV35: n.d. | AW35: n.d. | AX35: n.d. | AY35: n.d. | AZ35: n.d. | BA35: n.d. | BB35: n.d. | BC35: n.d. | BD35: n.d. | BE35: n.d. | BF35: n.d. | BG35: n.d. | BH35: n.d. | BI35: n.d. | BJ35: n.d. | BK35: n.a. | BL35: n.d. | BM35: n.d. | BN35: n.a. | BO35: n.d. | BP35: n.a. | BQ35: n.d. | BR35: n.d. | BS35: n.d. | BT35: n.d. | BU35: n.d. | BV35: n.d. | BW35: n.d. | BX35: n.d. | BY35: n.d. | BZ35: n.d. | CA35: n.d. | CB35: n.d. | CC35: n.d. | CD35: n.d. | CE35: n.d. | CF35: n.d. | CG35: n.d. | CH35: n.d. | CI35: n.d. | CJ35: n.d. | CK35: n.d. | CL35: n.d. | CM35: n.d. | CN35: n.d. | CO35: n.d. | CP35: n.d. | CQ35: n.d. | CR35: n.d. | CS35: n.d. | CT35: n.d. | CU35: n.d. | CV35: n.d. | CW35: n.d. | CX35: n.d. | CY35: n.d. | CZ35: n.d. | DA35: n.d. | DB35: n.d. | DC35: n.d. | DD35: n.d. | DE35: n.d. | DF35: n.d. | DG35: n.d. | DH35: n.d.
A36: 1992 | B36: octubre | C36: 1992-octubre | D36: n.d. | E36: n.d. | F36: n.d. | G36: n.d. | H36: n.d. | I36: n.d. | J36: n.d. | K36: n.d. | L36: n.d. | N36: n.d. | P36: n.d. | Q36: n.d. | R36: n.d. | S36: n.d. | T36: n.d. | U36: n.d. | V36: n.d. | W36: n.d. | X36: n.d. | Y36: n.d. | Z36: n.d. | AA36: n.d. | AC36: n.d. | AD36: n.d. | AE36: n.d. | AF36: n.d. | AG36: n.d. | AH36: n.d. | AI36: n.d. | AJ36: n.d. | AK36: n.d. | AL36: n.d. | AN36: n.d. | AO36: n.d. | AP36: n.d. | AQ36: n.d. | AR36: n.d. | AS36: n.d. | AT36: n.d. | AU36: n.d. | AV36: n.d. | AW36: n.d. | AX36: n.d. | AY36: n.d. | AZ36: n.d. | BA36: n.d. | BB36: n.d. | BC36: n.d. | BD36: n.d. | BE36: n.d. | BF36: n.d. | BG36: n.d. | BH36: n.d. | BI36: n.d. | BJ36: n.d. | BK36: n.a. | BL36: n.d. | BM36: n.d. | BN36: n.a. | BO36: n.d. | BP36: n.a. | BQ36: n.d. | BR36: n.d. | BS36: n.d. | BT36: n.d. | BU36: n.d. | BV36: n.d. | BW36: n.d. | BX36: n.d. | BY36: n.d. | BZ36: n.d. | CA36: n.d. | CB36: n.d. | CC36: n.d. | CD36: n.d. | CE36: n.d. | CF36: n.d. | CG36: n.d. | CH36: n.d. | CI36: n.d. | CJ36: n.d. | CK36: n.d. | CL36: n.d. | CM36: n.d. | CN36: n.d. | CO36: n.d. | CP36: n.d. | CQ36: n.d. | CR36: n.d. | CS36: n.d. | CT36: n.d. | CU36: n.d. | CV36: n.d. | CW36: n.d. | CX36: n.d. | CY36: n.d. | CZ36: n.d. | DA36: n.d. | DB36: n.d. | DC36: n.d. | DD36: n.d. | DE36: n.d. | DF36: n.d. | DG36: n.d. | DH36: n.d.
A37: 1992 | B37: noviembre | C37: 1992-noviembre | D37: n.d. | E37: n.d. | F37: n.d. | G37: n.d. | H37: n.d. | I37: n.d. | J37: n.d. | K37: n.d. | L37: n.d. | N37: n.d. | P37: n.d. | Q37: n.d. | R37: n.d. | S37: n.d. | T37: n.d. | U37: n.d. | V37: n.d. | W37: n.d. | X37: n.d. | Y37: n.d. | Z37: n.d. | AA37: n.d. | AC37: n.d. | AD37: n.d. | AE37: n.d. | AF37: n.d. | AG37: n.d. | AH37: n.d. | AI37: n.d. | AJ37: n.d. | AK37: n.d. | AL37: n.d. | AN37: n.d. | AO37: n.d. | AP37: n.d. | AQ37: n.d. | AR37: n.d. | AS37: n.d. | AT37: n.d. | AU37: n.d. | AV37: n.d. | AW37: n.d. | AX37: n.d. | AY37: n.d. | AZ37: n.d. | BA37: n.d. | BB37: n.d. | BC37: n.d. | BD37: n.d. | BE37: n.d. | BF37: n.d. | BG37: n.d. | BH37: n.d. | BI37: n.d. | BJ37: n.d. | BK37: n.a. | BL37: n.d. | BM37: n.d. | BN37: n.a. | BO37: n.d. | BP37: n.a. | BQ37: n.d. | BR37: n.d. | BS37: n.d. | BT37: n.d. | BU37: n.d. | BV37: n.d. | BW37: n.d. | BX37: n.d. | BY37: n.d. | BZ37: n.d. | CA37: n.d. | CB37: n.d. | CC37: n.d. | CD37: n.d. | CE37: n.d. | CF37: n.d. | CG37: n.d. | CH37: n.d. | CI37: n.d. | CJ37: n.d. | CK37: n.d. | CL37: n.d. | CM37: n.d. | CN37: n.d. | CO37: n.d. | CP37: n.d. | CQ37: n.d. | CR37: n.d. | CS37: n.d. | CT37: n.d. | CU37: n.d. | CV37: n.d. | CW37: n.d. | CX37: n.d. | CY37: n.d. | CZ37: n.d. | DA37: n.d. | DB37: n.d. | DC37: n.d. | DD37: n.d. | DE37: n.d. | DF37: n.d. | DG37: n.d. | DH37: n.d.
A38: 1992 | B38: diciembre | C38: 1992-diciembre | D38: n.d. | E38: n.d. | F38: n.d. | G38: n.d. | H38: n.d. | I38: n.d. | J38: n.d. | K38: n.d. | L38: n.d. | M38: n.d. | N38: n.d. | O38: n.d. | P38: n.d. | Q38: n.d. | R38: n.d. | S38: n.d. | T38: n.d. | U38: n.d. | V38: n.d. | W38: n.d. | X38: n.d. | Y38: n.d. | Z38: n.d. | AA38: n.d. | AC38: n.d. | AD38: n.d. | AE38: n.d. | AF38: n.d. | AG38: n.d. | AH38: n.d. | AI38: n.d. | AJ38: n.d. | AK38: n.d. | AL38: n.d. | AN38: n.d. | AO38: n.d. | AP38: n.d. | AQ38: n.d. | AR38: n.d. | AS38: n.d. | AT38: n.d. | AU38: n.d. | AV38: n.d. | AW38: n.d. | AX38: n.d. | AY38: n.d. | AZ38: n.d. | BA38: n.d. | BB38: n.d. | BC38: n.d. | BD38: n.d. | BE38: n.d. | BF38: n.d. | BG38: n.d. | BH38: n.d. | BI38: n.d. | BJ38: n.d. | BK38: n.a. | BL38: n.d. | BM38: n.d. | BN38: n.a. | BO38: n.d. | BP38: n.a. | BQ38: n.d. | BR38: n.d. | BS38: n.d. | BT38: n.d. | BU38: n.d. | BV38: n.d. | BW38: n.d. | BX38: n.d. | BY38: n.d. | BZ38: n.d. | CA38: n.d. | CB38: n.d. | CC38: n.d. | CD38: n.d. | CE38: n.d. | CF38: n.d. | CG38: n.d. | CH38: n.d. | CI38: n.d. | CJ38: n.d. | CK38: n.d. | CL38: n.d. | CM38: n.d. | CN38: n.d. | CO38: n.d. | CP38: n.d. | CQ38: n.d. | CR38: n.d. | CS38: n.d. | CT38: n.d. | CU38: n.d. | CV38: n.d. | CW38: n.d. | CX38: n.d. | CY38: n.d. | CZ38: n.d. | DA38: n.d. | DB38: n.d. | DC38: n.d. | DD38: n.d. | DE38: n.d. | DF38: n.d. | DG38: n.d. | DH38: n.d.
A39: 1993 | B39: enero | C39: 1993-enero | D39: 13.40879408 | E39: n.d. | F39: 12.21877424 | G39: n.d. | H39: n.d. | I39: n.d. | J39: n.d. | K39: n.d. | L39: n.d. | N39: n.d. | P39: n.d. | Q39: n.d. | R39: n.d. | S39: n.d. | T39: n.d. | U39: n.d. | V39: n.d. | W39: n.d. | X39: n.d. | Y39: n.d. | Z39: n.d. | AA39: n.d. | AC39: n.d. | AD39: n.d. | AE39: n.d. | AF39: n.d. | AG39: n.d. | AH39: n.d. | AI39: n.d. | AJ39: n.d. | AK39: n.d. | AL39: n.d. | AN39: n.d. | AO39: n.d. | AP39: n.d. | AQ39: n.d. | AR39: n.d. | AS39: n.d. | AT39: n.d. | AU39: n.d. | AV39: n.d. | AW39: n.d. | AX39: n.d. | AY39: n.d. | AZ39: n.d. | BA39: n.d. | BB39: n.d. | BC39: n.d. | BD39: n.d. | BE39: n.d. | BF39: n.d. | BG39: n.d. | BH39: n.d. | BI39: n.d. | BJ39: n.d. | BK39: n.a. | BL39: n.d. | BM39: n.d. | BN39: n.a. | BO39: n.d. | BP39: n.a. | BQ39: n.d. | BR39: n.d. | BS39: n.d. | BT39: n.d. | BU39: n.d. | BV39: n.d. | BW39: n.d. | BX39: n.d. | BY39: n.d. | BZ39: n.d. | CA39: n.d. | CB39: n.d. | CC39: n.d. | CD39: n.d. | CE39: n.d. | CF39: n.d. | CG39: n.d. | CH39: n.d. | CI39: n.d. | CJ39: n.d. | CK39: n.d. | CL39: n.d. | CM39: n.d. | CN39: n.d. | CO39: n.d. | CP39: n.d. | CQ39: n.d. | CR39: n.d. | CS39: n.d. | CT39: n.d. | CU39: n.d. | CV39: n.d. | CW39: n.d. | CX39: n.d. | CY39: n.d. | CZ39: n.d. | DA39: n.d. | DB39: n.d. | DC39: n.d. | DD39: n.d. | DE39: n.d. | DF39: n.d. | DG39: n.d. | DH39: n.d.
A40: 1993 | B40: febrero | C40: 1993-febrero | D40: 13.58078603 | E40: n.d. | F40: 12.32983275 | G40: n.d. | H40: n.d. | I40: n.d. | J40: n.d. | K40: n.d. | L40: n.d. | N40: n.d. | P40: n.d. | Q40: n.d. | R40: n.d. | S40: n.d. | T40: n.d. | U40: n.d. | V40: n.d. | W40: n.d. | X40: n.d. | Y40: n.d. | Z40: n.d. | AA40: n.d. | AC40: n.d. | AD40: n.d. | AE40: n.d. | AF40: n.d. | AG40: n.d. | AH40: n.d. | AI40: n.d. | AJ40: n.d. | AK40: n.d. | AL40: n.d. | AN40: n.d. | AO40: n.d. | AP40: n.d. | AQ40: n.d. | AR40: n.d. | AS40: n.d. | AT40: n.d. | AU40: n.d. | AV40: n.d. | AW40: n.d. | AX40: n.d. | AY40: n.d. | AZ40: n.d. | BA40: n.d. | BB40: n.d. | BC40: n.d. | BD40: n.d. | BE40: n.d. | BF40: n.d. | BG40: n.d. | BH40: n.d. | BI40: n.d. | BJ40: n.d. | BK40: n.a. | BL40: n.d. | BM40: n.d. | BN40: n.a. | BO40: n.d. | BP40: n.a. | BQ40: n.d. | BR40: n.d. | BS40: n.d. | BT40: n.d. | BU40: n.d. | BV40: n.d. | BW40: n.d. | BX40: n.d. | BY40: n.d. | BZ40: n.d. | CA40: n.d. | CB40: n.d. | CC40: n.d. | CD40: n.d. | CE40: n.d. | CF40: n.d. | CG40: n.d. | CH40: n.d. | CI40: n.d. | CJ40: n.d. | CK40: n.d. | CL40: n.d. | CM40: n.d. | CN40: n.d. | CO40: n.d. | CP40: n.d. | CQ40: n.d. | CR40: n.d. | CS40: n.d. | CT40: n.d. | CU40: n.d. | CV40: n.d. | CW40: n.d. | CX40: n.d. | CY40: n.d. | CZ40: n.d. | DA40: n.d. | DB40: n.d. | DC40: n.d. | DD40: n.d. | DE40: n.d. | DF40: n.d. | DG40: n.d. | DH40: n.d.
A41: 1993 | B41: marzo | C41: 1993-marzo | D41: 13.10195228 | E41: n.d. | F41: 11.8716164 | G41: n.d. | H41: n.d. | I41: n.d. | J41: n.d. | K41: n.d. | L41: n.d. | N41: n.d. | P41: n.d. | Q41: n.d. | R41: n.d. | S41: n.d. | T41: n.d. | U41: n.d. | V41: n.d. | W41: n.d. | X41: n.d. | Y41: n.d. | Z41: n.d. | AA41: n.d. | AC41: n.d. | AD41: n.d. | AE41: n.d. | AF41: n.d. | AG41: n.d. | AH41: n.d. | AI41: n.d. | AJ41: n.d. | AK41: n.d. | AL41: n.d. | AN41: n.d. | AO41: n.d. | AP41: n.d. | AQ41: n.d. | AR41: n.d. | AS41: n.d. | AT41: n.d. | AU41: n.d. | AV41: n.d. | AW41: n.d. | AX41: n.d. | AY41: n.d. | AZ41: n.d. | BA41: n.d. | BB41: n.d. | BC41: n.d. | BD41: n.d. | BE41: n.d. | BF41: n.d. | BG41: n.d. | BH41: n.d. | BI41: n.d. | BJ41: n.d. | BK41: n.a. | BL41: n.d. | BM41: n.d. | BN41: n.a. | BO41: n.d. | BP41: n.a. | BQ41: n.d. | BR41: n.d. | BS41: n.d. | BT41: n.d. | BU41: n.d. | BV41: n.d. | BW41: n.d. | BX41: n.d. | BY41: n.d. | BZ41: n.d. | CA41: n.d. | CB41: n.d. | CC41: n.d. | CD41: n.d. | CE41: n.d. | CF41: n.d. | CG41: n.d. | CH41: n.d. | CI41: n.d. | CJ41: n.d. | CK41: n.d. | CL41: n.d. | CM41: n.d. | CN41: n.d. | CO41: n.d. | CP41: n.d. | CQ41: n.d. | CR41: n.d. | CS41: n.d. | CT41: n.d. | CU41: n.d. | CV41: n.d. | CW41: n.d. | CX41: n.d. | CY41: n.d. | CZ41: n.d. | DA41: n.d. | DB41: n.d. | DC41: n.d. | DD41: n.d. | DE41: n.d. | DF41: n.d. | DG41: n.d. | DH41: n.d.
A42: 1993 | B42: abril | C42: 1993-abril | D42: 12.85468616 | E42: n.d. | F42: 11.61809816 | G42: n.d. | H42: n.d. | I42: n.d. | J42: n.d. | K42: n.d. | L42: n.d. | N42: n.d. | P42: n.d. | Q42: n.d. | R42: n.d. | S42: n.d. | T42: n.d. | U42: n.d. | V42: n.d. | W42: n.d. | X42: n.d. | Y42: n.d. | Z42: n.d. | AA42: n.d. | AC42: n.d. | AD42: n.d. | AE42: n.d. | AF42: n.d. | AG42: n.d. | AH42: n.d. | AI42: n.d. | AJ42: n.d. | AK42: n.d. | AL42: n.d. | AN42: n.d. | AO42: n.d. | AP42: n.d. | AQ42: n.d. | AR42: n.d. | AS42: n.d. | AT42: n.d. | AU42: n.d. | AV42: n.d. | AW42: n.d. | AX42: n.d. | AY42: n.d. | AZ42: n.d. | BA42: n.d. | BB42: n.d. | BC42: n.d. | BD42: n.d. | BE42: n.d. | BF42: n.d. | BG42: n.d. | BH42: n.d. | BI42: n.d. | BJ42: n.d. | BK42: n.a. | BL42: n.d. | BM42: n.d. | BN42: n.a. | BO42: n.d. | BP42: n.a. | BQ42: n.d. | BR42: n.d. | BS42: n.d. | BT42: n.d. | BU42: n.d. | BV42: n.d. | BW42: n.d. | BX42: n.d. | BY42: n.d. | BZ42: n.d. | CA42: n.d. | CB42: n.d. | CC42: n.d. | CD42: n.d. | CE42: n.d. | CF42: n.d. | CG42: n.d. | CH42: n.d. | CI42: n.d. | CJ42: n.d. | CK42: n.d. | CL42: n.d. | CM42: n.d. | CN42: n.d. | CO42: n.d. | CP42: n.d. | CQ42: n.d. | CR42: n.d. | CS42: n.d. | CT42: n.d. | CU42: n.d. | CV42: n.d. | CW42: n.d. | CX42: n.d. | CY42: n.d. | CZ42: n.d. | DA42: n.d. | DB42: n.d. | DC42: n.d. | DD42: n.d. | DE42: n.d. | DF42: n.d. | DG42: n.d. | DH42: n.d.
A43: 1993 | B43: mayo | C43: 1993-mayo | D43: 13.01369863 | E43: n.d. | F43: 11.76021382 | G43: n.d. | H43: n.d. | I43: n.d. | J43: n.d. | K43: n.d. | L43: n.d. | N43: n.d. | P43: n.d. | Q43: n.d. | R43: n.d. | S43: n.d. | T43: n.d. | U43: n.d. | V43: n.d. | W43: n.d. | X43: n.d. | Y43: n.d. | Z43: n.d. | AA43: n.d. | AC43: n.d. | AD43: n.d. | AE43: n.d. | AF43: n.d. | AG43: n.d. | AH43: n.d. | AI43: n.d. | AJ43: n.d. | AK43: n.d. | AL43: n.d. | AN43: n.d. | AO43: n.d. | AP43: n.d. | AQ43: n.d. | AR43: n.d. | AS43: n.d. | AT43: n.d. | AU43: n.d. | AV43: n.d. | AW43: n.d. | AX43: n.d. | AY43: n.d. | AZ43: n.d. | BA43: n.d. | BB43: n.d. | BC43: n.d. | BD43: n.d. | BE43: n.d. | BF43: n.d. | BG43: n.d. | BH43: n.d. | BI43: n.d. | BJ43: n.d. | BK43: n.a. | BL43: n.d. | BM43: n.d. | BN43: n.a. | BO43: n.d. | BP43: n.a. | BQ43: n.d. | BR43: n.d. | BS43: n.d. | BT43: n.d. | BU43: n.d. | BV43: n.d. | BW43: n.d. | BX43: n.d. | BY43: n.d. | BZ43: n.d. | CA43: n.d. | CB43: n.d. | CC43: n.d. | CD43: n.d. | CE43: n.d. | CF43: n.d. | CG43: n.d. | CH43: n.d. | CI43: n.d. | CJ43: n.d. | CK43: n.d. | CL43: n.d. | CM43: n.d. | CN43: n.d. | CO43: n.d. | CP43: n.d. | CQ43: n.d. | CR43: n.d. | CS43: n.d. | CT43: n.d. | CU43: n.d. | CV43: n.d. | CW43: n.d. | CX43: n.d. | CY43: n.d. | CZ43: n.d. | DA43: n.d. | DB43: n.d. | DC43: n.d. | DD43: n.d. | DE43: n.d. | DF43: n.d. | DG43: n.d. | DH43: n.d.
A44: 1993 | B44: junio | C44: 1993-junio | D44: 13.42338539 | E44: n.d. | F44: 12.09495102 | G44: n.d. | H44: n.d. | I44: n.d. | J44: n.d. | K44: n.d. | L44: n.d. | N44: n.d. | P44: n.d. | Q44: n.d. | R44: n.d. | S44: n.d. | T44: n.d. | U44: n.d. | V44: n.d. | W44: n.d. | X44: n.d. | Y44: n.d. | Z44: n.d. | AA44: n.d. | AC44: n.d. | AD44: n.d. | AE44: n.d. | AF44: n.d. | AG44: n.d. | AH44: n.d. | AI44: n.d. | AJ44: n.d. | AK44: n.d. | AL44: n.d. | AN44: n.d. | AO44: n.d. | AP44: n.d. | AQ44: n.d. | AR44: n.d. | AS44: n.d. | AT44: n.d. | AU44: n.d. | AV44: n.d. | AW44: n.d. | AX44: n.d. | AY44: n.d. | AZ44: n.d. | BA44: n.d. | BB44: n.d. | BC44: n.d. | BD44: n.d. | BE44: n.d. | BF44: n.d. | BG44: n.d. | BH44: n.d. | BI44: n.d. | BJ44: n.d. | BK44: n.a. | BL44: n.d. | BM44: n.d. | BN44: n.a. | BO44: n.d. | BP44: n.a. | BQ44: n.d. | BR44: n.d. | BS44: n.d. | BT44: n.d. | BU44: n.d. | BV44: n.d. | BW44: n.d. | BX44: n.d. | BY44: n.d. | BZ44: n.d. | CA44: n.d. | CB44: n.d. | CC44: n.d. | CD44: n.d. | CE44: n.d. | CF44: n.d. | CG44: n.d. | CH44: n.d. | CI44: n.d. | CJ44: n.d. | CK44: n.d. | CL44: n.d. | CM44: n.d. | CN44: n.d. | CO44: n.d. | CP44: n.d. | CQ44: n.d. | CR44: n.d. | CS44: n.d. | CT44: n.d. | CU44: n.d. | CV44: n.d. | CW44: n.d. | CX44: n.d. | CY44: n.d. | CZ44: n.d. | DA44: n.d. | DB44: n.d. | DC44: n.d. | DD44: n.d. | DE44: n.d. | DF44: n.d. | DG44: n.d. | DH44: n.d.
A45: 1993 | B45: julio | C45: 1993-julio | D45: 14.32748538 | E45: n.d. | F45: 12.95743092 | G45: n.d. | H45: n.d. | I45: n.d. | J45: n.d. | K45: n.d. | L45: n.d. | N45: n.d. | P45: n.d. | Q45: n.d. | R45: n.d. | S45: n.d. | T45: n.d. | U45: n.d. | V45: n.d. | W45: n.d. | X45: n.d. | Y45: n.d. | Z45: n.d. | AA45: n.d. | AC45: n.d. | AD45: n.d. | AE45: n.d. | AF45: n.d. | AG45: n.d. | AH45: n.d. | AI45: n.d. | AJ45: n.d. | AK45: n.d. | AL45: n.d. | AN45: n.d. | AO45: n.d. | AP45: n.d. | AQ45: n.d. | AR45: n.d. | AS45: n.d. | AT45: n.d. | AU45: n.d. | AV45: n.d. | AW45: n.d. | AX45: n.d. | AY45: n.d. | AZ45: n.d. | BA45: n.d. | BB45: n.d. | BC45: n.d. | BD45: n.d. | BE45: n.d. | BF45: n.d. | BG45: n.d. | BH45: n.d. | BI45: n.d. | BJ45: n.d. | BK45: n.a. | BL45: n.d. | BM45: n.d. | BN45: n.a. | BO45: n.d. | BP45: n.a. | BQ45: n.d. | BR45: n.d. | BS45: n.d. | BT45: n.d. | BU45: n.d. | BV45: n.d. | BW45: n.d. | BX45: n.d. | BY45: n.d. | BZ45: n.d. | CA45: n.d. | CB45: n.d. | CC45: n.d. | CD45: n.d. | CE45: n.d. | CF45: n.d. | CG45: n.d. | CH45: n.d. | CI45: n.d. | CJ45: n.d. | CK45: n.d. | CL45: n.d. | CM45: n.d. | CN45: n.d. | CO45: n.d. | CP45: n.d. | CQ45: n.d. | CR45: n.d. | CS45: n.d. | CT45: n.d. | CU45: n.d. | CV45: n.d. | CW45: n.d. | CX45: n.d. | CY45: n.d. | CZ45: n.d. | DA45: n.d. | DB45: n.d. | DC45: n.d. | DD45: n.d. | DE45: n.d. | DF45: n.d. | DG45: n.d. | DH45: n.d.
A46: 1993 | B46: agosto | C46: 1993-agosto | D46: 13.37185307 | E46: n.d. | F46: 12.03396087 | G46: n.d. | H46: n.d. | I46: n.d. | J46: n.d. | K46: n.d. | L46: n.d. | N46: n.d. | P46: n.d. | Q46: n.d. | R46: n.d. | S46: n.d. | T46: n.d. | U46: n.d. | V46: n.d. | W46: n.d. | X46: n.d. | Y46: n.d. | Z46: n.d. | AA46: n.d. | AC46: n.d. | AD46: n.d. | AE46: n.d. | AF46: n.d. | AG46: n.d. | AH46: n.d. | AI46: n.d. | AJ46: n.d. | AK46: n.d. | AL46: n.d. | AN46: n.d. | AO46: n.d. | AP46: n.d. | AQ46: n.d. | AR46: n.d. | AS46: n.d. | AT46: n.d. | AU46: n.d. | AV46: n.d. | AW46: n.d. | AX46: n.d. | AY46: n.d. | AZ46: n.d. | BA46: n.d. | BB46: n.d. | BC46: n.d. | BD46: n.d. | BE46: n.d. | BF46: n.d. | BG46: n.d. | BH46: n.d. | BI46: n.d. | BJ46: n.d. | BK46: n.a. | BL46: n.d. | BM46: n.d. | BN46: n.a. | BO46: n.d. | BP46: n.a. | BQ46: n.d. | BR46: n.d. | BS46: n.d. | BT46: n.d. | BU46: n.d. | BV46: n.d. | BW46: n.d. | BX46: n.d. | BY46: n.d. | BZ46: n.d. | CA46: n.d. | CB46: n.d. | CC46: n.d. | CD46: n.d. | CE46: n.d. | CF46: n.d. | CG46: n.d. | CH46: n.d. | CI46: n.d. | CJ46: n.d. | CK46: n.d. | CL46: n.d. | CM46: n.d. | CN46: n.d. | CO46: n.d. | CP46: n.d. | CQ46: n.d. | CR46: n.d. | CS46: n.d. | CT46: n.d. | CU46: n.d. | CV46: n.d. | CW46: n.d. | CX46: n.d. | CY46: n.d. | CZ46: n.d. | DA46: n.d. | DB46: n.d. | DC46: n.d. | DD46: n.d. | DE46: n.d. | DF46: n.d. | DG46: n.d. | DH46: n.d.
A47: 1993 | B47: septiembre | C47: 1993-septiembre | D47: 11.8602762 | E47: n.d. | F47: 10.69868996 | G47: n.d. | H47: n.d. | I47: n.d. | J47: n.d. | K47: n.d. | L47: n.d. | N47: n.d. | P47: n.d. | Q47: n.d. | R47: n.d. | S47: n.d. | T47: n.d. | U47: n.d. | V47: n.d. | W47: n.d. | X47: n.d. | Y47: n.d. | Z47: n.d. | AA47: n.d. | AC47: n.d. | AD47: n.d. | AE47: n.d. | AF47: n.d. | AG47: n.d. | AH47: n.d. | AI47: n.d. | AJ47: n.d. | AK47: n.d. | AL47: n.d. | AN47: n.d. | AO47: n.d. | AP47: n.d. | AQ47: n.d. | AR47: n.d. | AS47: n.d. | AT47: n.d. | AU47: n.d. | AV47: n.d. | AW47: n.d. | AX47: n.d. | AY47: n.d. | AZ47: n.d. | BA47: n.d. | BB47: n.d. | BC47: n.d. | BD47: n.d. | BE47: n.d. | BF47: n.d. | BG47: n.d. | BH47: n.d. | BI47: n.d. | BJ47: n.d. | BK47: n.a. | BL47: n.d. | BM47: n.d. | BN47: n.a. | BO47: n.d. | BP47: n.a. | BQ47: n.d. | BR47: n.d. | BS47: n.d. | BT47: n.d. | BU47: n.d. | BV47: n.d. | BW47: n.d. | BX47: n.d. | BY47: n.d. | BZ47: n.d. | CA47: n.d. | CB47: n.d. | CC47: n.d. | CD47: n.d. | CE47: n.d. | CF47: n.d. | CG47: n.d. | CH47: n.d. | CI47: n.d. | CJ47: n.d. | CK47: n.d. | CL47: n.d. | CM47: n.d. | CN47: n.d. | CO47: n.d. | CP47: n.d. | CQ47: n.d. | CR47: n.d. | CS47: n.d. | CT47: n.d. | CU47: n.d. | CV47: n.d. | CW47: n.d. | CX47: n.d. | CY47: n.d. | CZ47: n.d. | DA47: n.d. | DB47: n.d. | DC47: n.d. | DD47: n.d. | DE47: n.d. | DF47: n.d. | DG47: n.d. | DH47: n.d.
A48: 1993 | B48: octubre | C48: 1993-octubre | D48: 11.61575563 | E48: n.d. | F48: 10.64213564 | G48: n.d. | H48: n.d. | I48: n.d. | J48: n.d. | K48: n.d. | L48: n.d. | N48: n.d. | P48: n.d. | Q48: n.d. | R48: n.d. | S48: n.d. | T48: n.d. | U48: n.d. | V48: n.d. | W48: n.d. | X48: n.d. | Y48: n.d. | Z48: n.d. | AA48: n.d. | AC48: n.d. | AD48: n.d. | AE48: n.d. | AF48: n.d. | AG48: n.d. | AH48: n.d. | AI48: n.d. | AJ48: n.d. | AK48: n.d. | AL48: n.d. | AN48: n.d. | AO48: n.d. | AP48: n.d. | AQ48: n.d. | AR48: n.d. | AS48: n.d. | AT48: n.d. | AU48: n.d. | AV48: n.d. | AW48: n.d. | AX48: n.d. | AY48: n.d. | AZ48: n.d. | BA48: n.d. | BB48: n.d. | BC48: n.d. | BD48: n.d. | BE48: n.d. | BF48: n.d. | BG48: n.d. | BH48: n.d. | BI48: n.d. | BJ48: n.d. | BK48: n.a. | BL48: n.d. | BM48: n.d. | BN48: n.a. | BO48: n.d. | BP48: n.a. | BQ48: n.d. | BR48: n.d. | BS48: n.d. | BT48: n.d. | BU48: n.d. | BV48: n.d. | BW48: n.d. | BX48: n.d. | BY48: n.d. | BZ48: n.d. | CA48: n.d. | CB48: n.d. | CC48: n.d. | CD48: n.d. | CE48: n.d. | CF48: n.d. | CG48: n.d. | CH48: n.d. | CI48: n.d. | CJ48: n.d. | CK48: n.d. | CL48: n.d. | CM48: n.d. | CN48: n.d. | CO48: n.d. | CP48: n.d. | CQ48: n.d. | CR48: n.d. | CS48: n.d. | CT48: n.d. | CU48: n.d. | CV48: n.d. | CW48: n.d. | CX48: n.d. | CY48: n.d. | CZ48: n.d. | DA48: n.d. | DB48: n.d. | DC48: n.d. | DD48: n.d. | DE48: n.d. | DF48: n.d. | DG48: n.d. | DH48: n.d.
A49: 1993 | B49: noviembre | C49: 1993-noviembre | D49: 10.83003953 | E49: n.d. | F49: 9.911190053 | G49: n.d. | H49: n.d. | I49: n.d. | J49: n.d. | K49: n.d. | L49: n.d. | N49: n.d. | P49: n.d. | Q49: n.d. | R49: n.d. | S49: n.d. | T49: n.d. | U49: n.d. | V49: n.d. | W49: n.d. | X49: n.d. | Y49: n.d. | Z49: n.d. | AA49: n.d. | AC49: n.d. | AD49: n.d. | AE49: n.d. | AF49: n.d. | AG49: n.d. | AH49: n.d. | AI49: n.d. | AJ49: n.d. | AK49: n.d. | AL49: n.d. | AN49: n.d. | AO49: n.d. | AP49: n.d. | AQ49: n.d. | AR49: n.d. | AS49: n.d. | AT49: n.d. | AU49: n.d. | AV49: n.d. | AW49: n.d. | AX49: n.d. | AY49: n.d. | AZ49: n.d. | BA49: n.d. | BB49: n.d. | BC49: n.d. | BD49: n.d. | BE49: n.d. | BF49: n.d. | BG49: n.d. | BH49: n.d. | BI49: n.d. | BJ49: n.d. | BK49: n.a. | BL49: n.d. | BM49: n.d. | BN49: n.a. | BO49: n.d. | BP49: n.a. | BQ49: n.d. | BR49: n.d. | BS49: n.d. | BT49: n.d. | BU49: n.d. | BV49: n.d. | BW49: n.d. | BX49: n.d. | BY49: n.d. | BZ49: n.d. | CA49: n.d. | CB49: n.d. | CC49: n.d. | CD49: n.d. | CE49: n.d. | CF49: n.d. | CG49: n.d. | CH49: n.d. | CI49: n.d. | CJ49: n.d. | CK49: n.d. | CL49: n.d. | CM49: n.d. | CN49: n.d. | CO49: n.d. | CP49: n.d. | CQ49: n.d. | CR49: n.d. | CS49: n.d. | CT49: n.d. | CU49: n.d. | CV49: n.d. | CW49: n.d. | CX49: n.d. | CY49: n.d. | CZ49: n.d. | DA49: n.d. | DB49: n.d. | DC49: n.d. | DD49: n.d. | DE49: n.d. | DF49: n.d. | DG49: n.d. | DH49: n.d.
A50: 1993 | B50: diciembre | C50: 1993-diciembre | D50: 10.21044427 | E50: n.d. | F50: 9.323519103 | G50: n.d. | H50: n.d. | I50: n.d. | J50: n.d. | K50: n.d. | L50: n.d. | M50: n.d. | N50: n.d. | O50: n.d. | P50: n.d. | Q50: n.d. | R50: n.d. | S50: n.d. | T50: n.d. | U50: n.d. | V50: n.d. | W50: n.d. | X50: n.d. | Y50: n.d. | Z50: n.d. | AA50: n.d. | AC50: n.d. | AD50: n.d. | AE50: n.d. | AF50: n.d. | AG50: n.d. | AH50: n.d. | AI50: n.d. | AJ50: n.d. | AK50: n.d. | AL50: n.d. | AN50: n.d. | AO50: n.d. | AP50: n.d. | AQ50: n.d. | AR50: n.d. | AS50: n.d. | AT50: n.d. | AU50: n.d. | AV50: n.d. | AW50: n.d. | AX50: n.d. | AY50: n.d. | AZ50: n.d. | BA50: n.d. | BB50: n.d. | BC50: n.d. | BD50: n.d. | BE50: n.d. | BF50: n.d. | BG50: n.d. | BH50: n.d. | BI50: n.d. | BJ50: n.d. | BK50: n.a. | BL50: n.d. | BM50: n.d. | BN50: n.a. | BO50: n.d. | BP50: n.a. | BQ50: n.d. | BR50: n.d. | BS50: n.d. | BT50: n.d. | BU50: n.d. | BV50: n.d. | BW50: n.d. | BX50: n.d. | BY50: n.d. | BZ50: n.d. | CA50: n.d. | CB50: n.d. | CC50: n.d. | CD50: n.d. | CE50: n.d. | CF50: n.d. | CG50: n.d. | CH50: n.d. | CI50: n.d. | CJ50: n.d. | CK50: n.d. | CL50: n.d. | CM50: n.d. | CN50: n.d. | CO50: n.d. | CP50: n.d. | CQ50: n.d. | CR50: n.d. | CS50: n.d. | CT50: n.d. | CU50: n.d. | CV50: n.d. | CW50: n.d. | CX50: n.d. | CY50: n.d. | CZ50: n.d. | DA50: n.d. | DB50: n.d. | DC50: n.d. | DD50: n.d. | DE50: n.d. | DF50: n.d. | DG50: n.d. | DH50: n.d.
A51: 1994 | B51: enero | C51: 1994-enero | D51: 9.788867562 | E51: n.d. | F51: 8.883511925 | G51: n.d. | H51: n.d. | I51: n.d. | J51: n.d. | K51: n.d. | L51: n.d. | N51: n.d. | P51: n.d. | Q51: n.d. | R51: n.d. | S51: n.d. | T51: n.d. | U51: n.d. | V51: n.d. | W51: n.d. | X51: n.d. | Y51: n.d. | Z51: n.d. | AA51: n.d. | AC51: n.d. | AD51: n.d. | AE51: n.d. | AF51: n.d. | AG51: n.d. | AH51: n.d. | AI51: n.d. | AJ51: n.d. | AK51: n.d. | AL51: n.d. | AN51: n.d. | AO51: n.d. | AP51: n.d. | AQ51: n.d. | AR51: n.d. | AS51: n.d. | AT51: n.d. | AU51: n.d. | AV51: n.d. | AW51: n.d. | AX51: n.d. | AY51: n.d. | AZ51: n.d. | BA51: n.d. | BB51: n.d. | BC51: n.d. | BD51: n.d. | BE51: n.d. | BF51: n.d. | BG51: n.d. | BH51: n.d. | BI51: n.d. | BJ51: n.d. | BK51: n.a. | BL51: n.d. | BM51: n.d. | BN51: n.a. | BO51: n.d. | BP51: n.a. | BQ51: n.d. | BR51: n.d. | BS51: n.d. | BT51: n.d. | BU51: n.d. | BV51: n.d. | BW51: n.d. | BX51: n.d. | BY51: n.d. | BZ51: n.d. | CA51: n.d. | CB51: n.d. | CC51: n.d. | CD51: n.d. | CE51: n.d. | CF51: n.d. | CG51: n.d. | CH51: n.d. | CI51: n.d. | CJ51: n.d. | CK51: n.d. | CL51: n.d. | CM51: n.d. | CN51: n.d. | CO51: n.d. | CP51: n.d. | CQ51: n.d. | CR51: n.d. | CS51: n.d. | CT51: n.d. | CU51: n.d. | CV51: n.d. | CW51: n.d. | CX51: n.d. | CY51: n.d. | CZ51: n.d. | DA51: n.d. | DB51: n.d. | DC51: n.d. | DD51: n.d. | DE51: n.d. | DF51: n.d. | DG51: n.d. | DH51: n.d.
A52: 1994 | B52: febrero | C52: 1994-febrero | D52: 9.765474817 | E52: n.d. | F52: 8.864265928 | G52: n.d. | H52: n.d. | I52: n.d. | J52: n.d. | K52: n.d. | L52: n.d. | N52: n.d. | P52: n.d. | Q52: n.d. | R52: n.d. | S52: n.d. | T52: n.d. | U52: n.d. | V52: n.d. | W52: n.d. | X52: n.d. | Y52: n.d. | Z52: n.d. | AA52: n.d. | AC52: n.d. | AD52: n.d. | AE52: n.d. | AF52: n.d. | AG52: n.d. | AH52: n.d. | AI52: n.d. | AJ52: n.d. | AK52: n.d. | AL52: n.d. | AN52: n.d. | AO52: n.d. | AP52: n.d. | AQ52: n.d. | AR52: n.d. | AS52: n.d. | AT52: n.d. | AU52: n.d. | AV52: n.d. | AW52: n.d. | AX52: n.d. | AY52: n.d. | AZ52: n.d. | BA52: n.d. | BB52: n.d. | BC52: n.d. | BD52: n.d. | BE52: n.d. | BF52: n.d. | BG52: n.d. | BH52: n.d. | BI52: n.d. | BJ52: n.d. | BK52: n.a. | BL52: n.d. | BM52: n.d. | BN52: n.a. | BO52: n.d. | BP52: n.a. | BQ52: n.d. | BR52: n.d. | BS52: n.d. | BT52: n.d. | BU52: n.d. | BV52: n.d. | BW52: n.d. | BX52: n.d. | BY52: n.d. | BZ52: n.d. | CA52: n.d. | CB52: n.d. | CC52: n.d. | CD52: n.d. | CE52: n.d. | CF52: n.d. | CG52: n.d. | CH52: n.d. | CI52: n.d. | CJ52: n.d. | CK52: n.d. | CL52: n.d. | CM52: n.d. | CN52: n.d. | CO52: n.d. | CP52: n.d. | CQ52: n.d. | CR52: n.d. | CS52: n.d. | CT52: n.d. | CU52: n.d. | CV52: n.d. | CW52: n.d. | CX52: n.d. | CY52: n.d. | CZ52: n.d. | DA52: n.d. | DB52: n.d. | DC52: n.d. | DD52: n.d. | DE52: n.d. | DF52: n.d. | DG52: n.d. | DH52: n.d.
A53: 1994 | B53: marzo | C53: 1994-marzo | D53: 10.39509014 | E53: n.d. | F53: 9.436571034 | G53: n.d. | H53: n.d. | I53: n.d. | J53: n.d. | K53: n.d. | L53: n.d. | N53: n.d. | P53: n.d. | Q53: n.d. | R53: n.d. | S53: n.d. | T53: n.d. | U53: n.d. | V53: n.d. | W53: n.d. | X53: n.d. | Y53: n.d. | Z53: n.d. | AA53: n.d. | AC53: n.d. | AD53: n.d. | AE53: n.d. | AF53: n.d. | AG53: n.d. | AH53: n.d. | AI53: n.d. | AJ53: n.d. | AK53: n.d. | AL53: n.d. | AN53: n.d. | AO53: n.d. | AP53: n.d. | AQ53: n.d. | AR53: n.d. | AS53: n.d. | AT53: n.d. | AU53: n.d. | AV53: n.d. | AW53: n.d. | AX53: n.d. | AY53: n.d. | AZ53: n.d. | BA53: n.d. | BB53: n.d. | BC53: n.d. | BD53: n.d. | BE53: n.d. | BF53: n.d. | BG53: n.d. | BH53: n.d. | BI53: n.d. | BJ53: n.d. | BK53: n.a. | BL53: n.d. | BM53: n.d. | BN53: n.a. | BO53: n.d. | BP53: n.a. | BQ53: n.d. | BR53: n.d. | BS53: n.d. | BT53: n.d. | BU53: n.d. | BV53: n.d. | BW53: n.d. | BX53: n.d. | BY53: n.d. | BZ53: n.d. | CA53: n.d. | CB53: n.d. | CC53: n.d. | CD53: n.d. | CE53: n.d. | CF53: n.d. | CG53: n.d. | CH53: n.d. | CI53: n.d. | CJ53: n.d. | CK53: n.d. | CL53: n.d. | CM53: n.d. | CN53: n.d. | CO53: n.d. | CP53: n.d. | CQ53: n.d. | CR53: n.d. | CS53: n.d. | CT53: n.d. | CU53: n.d. | CV53: n.d. | CW53: n.d. | CX53: n.d. | CY53: n.d. | CZ53: n.d. | DA53: n.d. | DB53: n.d. | DC53: n.d. | DD53: n.d. | DE53: n.d. | DF53: n.d. | DG53: n.d. | DH53: n.d.
A54: 1994 | B54: abril | C54: 1994-abril | D54: 10.8952381 | E54: n.d. | F54: 9.927859842 | G54: n.d. | H54: n.d. | I54: n.d. | J54: n.d. | K54: n.d. | L54: n.d. | N54: n.d. | P54: n.d. | Q54: n.d. | R54: n.d. | S54: n.d. | T54: n.d. | U54: n.d. | V54: n.d. | W54: n.d. | X54: n.d. | Y54: n.d. | Z54: n.d. | AA54: n.d. | AC54: n.d. | AD54: n.d. | AE54: n.d. | AF54: n.d. | AG54: n.d. | AH54: n.d. | AI54: n.d. | AJ54: n.d. | AK54: n.d. | AL54: n.d. | AN54: n.d. | AO54: n.d. | AP54: n.d. | AQ54: n.d. | AR54: n.d. | AS54: n.d. | AT54: n.d. | AU54: n.d. | AV54: n.d. | AW54: n.d. | AX54: n.d. | AY54: n.d. | AZ54: n.d. | BA54: n.d. | BB54: n.d. | BC54: n.d. | BD54: n.d. | BE54: n.d. | BF54: n.d. | BG54: n.d. | BH54: n.d. | BI54: n.d. | BJ54: n.d. | BK54: n.a. | BL54: n.d. | BM54: n.d. | BN54: n.a. | BO54: n.d. | BP54: n.a. | BQ54: n.d. | BR54: n.d. | BS54: n.d. | BT54: n.d. | BU54: n.d. | BV54: n.d. | BW54: n.d. | BX54: n.d. | BY54: n.d. | BZ54: n.d. | CA54: n.d. | CB54: n.d. | CC54: n.d. | CD54: n.d. | CE54: n.d. | CF54: n.d. | CG54: n.d. | CH54: n.d. | CI54: n.d. | CJ54: n.d. | CK54: n.d. | CL54: n.d. | CM54: n.d. | CN54: n.d. | CO54: n.d. | CP54: n.d. | CQ54: n.d. | CR54: n.d. | CS54: n.d. | CT54: n.d. | CU54: n.d. | CV54: n.d. | CW54: n.d. | CX54: n.d. | CY54: n.d. | CZ54: n.d. | DA54: n.d. | DB54: n.d. | DC54: n.d. | DD54: n.d. | DE54: n.d. | DF54: n.d. | DG54: n.d. | DH54: n.d.
A55: 1994 | B55: mayo | C55: 1994-mayo | D55: 11.28787879 | E55: n.d. | F55: 10.24940212 | G55: n.d. | H55: n.d. | I55: n.d. | J55: n.d. | K55: n.d. | L55: n.d. | N55: n.d. | P55: n.d. | Q55: n.d. | R55: n.d. | S55: n.d. | T55: n.d. | U55: n.d. | V55: n.d. | W55: n.d. | X55: n.d. | Y55: n.d. | Z55: n.d. | AA55: n.d. | AC55: n.d. | AD55: n.d. | AE55: n.d. | AF55: n.d. | AG55: n.d. | AH55: n.d. | AI55: n.d. | AJ55: n.d. | AK55: n.d. | AL55: n.d. | AN55: n.d. | AO55: n.d. | AP55: n.d. | AQ55: n.d. | AR55: n.d. | AS55: n.d. | AT55: n.d. | AU55: n.d. | AV55: n.d. | AW55: n.d. | AX55: n.d. | AY55: n.d. | AZ55: n.d. | BA55: n.d. | BB55: n.d. | BC55: n.d. | BD55: n.d. | BE55: n.d. | BF55: n.d. | BG55: n.d. | BH55: n.d. | BI55: n.d. | BJ55: n.d. | BK55: n.a. | BL55: n.d. | BM55: n.d. | BN55: n.a. | BO55: n.d. | BP55: n.a. | BQ55: n.d. | BR55: n.d. | BS55: n.d. | BT55: n.d. | BU55: n.d. | BV55: n.d. | BW55: n.d. | BX55: n.d. | BY55: n.d. | BZ55: n.d. | CA55: n.d. | CB55: n.d. | CC55: n.d. | CD55: n.d. | CE55: n.d. | CF55: n.d. | CG55: n.d. | CH55: n.d. | CI55: n.d. | CJ55: n.d. | CK55: n.d. | CL55: n.d. | CM55: n.d. | CN55: n.d. | CO55: n.d. | CP55: n.d. | CQ55: n.d. | CR55: n.d. | CS55: n.d. | CT55: n.d. | CU55: n.d. | CV55: n.d. | CW55: n.d. | CX55: n.d. | CY55: n.d. | CZ55: n.d. | DA55: n.d. | DB55: n.d. | DC55: n.d. | DD55: n.d. | DE55: n.d. | DF55: n.d. | DG55: n.d. | DH55: n.d.
A56: 1994 | B56: junio | C56: 1994-junio | D56: 10.56940826 | E56: n.d. | F56: 9.579831933 | G56: n.d. | H56: n.d. | I56: n.d. | J56: n.d. | K56: n.d. | L56: n.d. | N56: n.d. | P56: n.d. | Q56: n.d. | R56: n.d. | S56: n.d. | T56: n.d. | U56: n.d. | V56: n.d. | W56: n.d. | X56: n.d. | Y56: n.d. | Z56: n.d. | AA56: n.d. | AC56: n.d. | AD56: n.d. | AE56: n.d. | AF56: n.d. | AG56: n.d. | AH56: n.d. | AI56: n.d. | AJ56: n.d. | AK56: n.d. | AL56: n.d. | AN56: n.d. | AO56: n.d. | AP56: n.d. | AQ56: n.d. | AR56: n.d. | AS56: n.d. | AT56: n.d. | AU56: n.d. | AV56: n.d. | AW56: n.d. | AX56: n.d. | AY56: n.d. | AZ56: n.d. | BA56: n.d. | BB56: n.d. | BC56: n.d. | BD56: n.d. | BE56: n.d. | BF56: n.d. | BG56: n.d. | BH56: n.d. | BI56: n.d. | BJ56: n.d. | BK56: n.a. | BL56: n.d. | BM56: n.d. | BN56: n.a. | BO56: n.d. | BP56: n.a. | BQ56: n.d. | BR56: n.d. | BS56: n.d. | BT56: n.d. | BU56: n.d. | BV56: n.d. | BW56: n.d. | BX56: n.d. | BY56: n.d. | BZ56: n.d. | CA56: n.d. | CB56: n.d. | CC56: n.d. | CD56: n.d. | CE56: n.d. | CF56: n.d. | CG56: n.d. | CH56: n.d. | CI56: n.d. | CJ56: n.d. | CK56: n.d. | CL56: n.d. | CM56: n.d. | CN56: n.d. | CO56: n.d. | CP56: n.d. | CQ56: n.d. | CR56: n.d. | CS56: n.d. | CT56: n.d. | CU56: n.d. | CV56: n.d. | CW56: n.d. | CX56: n.d. | CY56: n.d. | CZ56: n.d. | DA56: n.d. | DB56: n.d. | DC56: n.d. | DD56: n.d. | DE56: n.d. | DF56: n.d. | DG56: n.d. | DH56: n.d.
A57: 1994 | B57: julio | C57: 1994-julio | D57: 9.462915601 | E57: n.d. | F57: 8.595041322 | G57: n.d. | H57: n.d. | I57: n.d. | J57: n.d. | K57: n.d. | L57: n.d. | N57: n.d. | P57: n.d. | Q57: n.d. | R57: n.d. | S57: n.d. | T57: n.d. | U57: n.d. | V57: n.d. | W57: n.d. | X57: n.d. | Y57: n.d. | Z57: n.d. | AA57: n.d. | AC57: n.d. | AD57: n.d. | AE57: n.d. | AF57: n.d. | AG57: n.d. | AH57: n.d. | AI57: n.d. | AJ57: n.d. | AK57: n.d. | AL57: n.d. | AN57: n.d. | AO57: n.d. | AP57: n.d. | AQ57: n.d. | AR57: n.d. | AS57: n.d. | AT57: n.d. | AU57: n.d. | AV57: n.d. | AW57: n.d. | AX57: n.d. | AY57: n.d. | AZ57: n.d. | BA57: n.d. | BB57: n.d. | BC57: n.d. | BD57: n.d. | BE57: n.d. | BF57: n.d. | BG57: n.d. | BH57: n.d. | BI57: n.d. | BJ57: n.d. | BK57: n.a. | BL57: n.d. | BM57: n.d. | BN57: n.a. | BO57: n.d. | BP57: n.a. | BQ57: n.d. | BR57: n.d. | BS57: n.d. | BT57: n.d. | BU57: n.d. | BV57: n.d. | BW57: n.d. | BX57: n.d. | BY57: n.d. | BZ57: n.d. | CA57: n.d. | CB57: n.d. | CC57: n.d. | CD57: n.d. | CE57: n.d. | CF57: n.d. | CG57: n.d. | CH57: n.d. | CI57: n.d. | CJ57: n.d. | CK57: n.d. | CL57: n.d. | CM57: n.d. | CN57: n.d. | CO57: n.d. | CP57: n.d. | CQ57: n.d. | CR57: n.d. | CS57: n.d. | CT57: n.d. | CU57: n.d. | CV57: n.d. | CW57: n.d. | CX57: n.d. | CY57: n.d. | CZ57: n.d. | DA57: n.d. | DB57: n.d. | DC57: n.d. | DD57: n.d. | DE57: n.d. | DF57: n.d. | DG57: n.d. | DH57: n.d.
A58: 1994 | B58: agosto | C58: 1994-agosto | D58: 10.70258464 | E58: n.d. | F58: 9.78583196 | G58: n.d. | H58: n.d. | I58: n.d. | J58: n.d. | K58: n.d. | L58: n.d. | N58: n.d. | P58: n.d. | Q58: n.d. | R58: n.d. | S58: n.d. | T58: n.d. | U58: n.d. | V58: n.d. | W58: n.d. | X58: n.d. | Y58: n.d. | Z58: n.d. | AA58: n.d. | AC58: n.d. | AD58: n.d. | AE58: n.d. | AF58: n.d. | AG58: n.d. | AH58: n.d. | AI58: n.d. | AJ58: n.d. | AK58: n.d. | AL58: n.d. | AN58: n.d. | AO58: n.d. | AP58: n.d. | AQ58: n.d. | AR58: n.d. | AS58: n.d. | AT58: n.d. | AU58: n.d. | AV58: n.d. | AW58: n.d. | AX58: n.d. | AY58: n.d. | AZ58: n.d. | BA58: n.d. | BB58: n.d. | BC58: n.d. | BD58: n.d. | BE58: n.d. | BF58: n.d. | BG58: n.d. | BH58: n.d. | BI58: n.d. | BJ58: n.d. | BK58: n.a. | BL58: n.d. | BM58: n.d. | BN58: n.a. | BO58: n.d. | BP58: n.a. | BQ58: n.d. | BR58: n.d. | BS58: n.d. | BT58: n.d. | BU58: n.d. | BV58: n.d. | BW58: n.d. | BX58: n.d. | BY58: n.d. | BZ58: n.d. | CA58: n.d. | CB58: n.d. | CC58: n.d. | CD58: n.d. | CE58: n.d. | CF58: n.d. | CG58: n.d. | CH58: n.d. | CI58: n.d. | CJ58: n.d. | CK58: n.d. | CL58: n.d. | CM58: n.d. | CN58: n.d. | CO58: n.d. | CP58: n.d. | CQ58: n.d. | CR58: n.d. | CS58: n.d. | CT58: n.d. | CU58: n.d. | CV58: n.d. | CW58: n.d. | CX58: n.d. | CY58: n.d. | CZ58: n.d. | DA58: n.d. | DB58: n.d. | DC58: n.d. | DD58: n.d. | DE58: n.d. | DF58: n.d. | DG58: n.d. | DH58: n.d.
A59: 1994 | B59: septiembre | C59: 1994-septiembre | D59: 11.83732752 | E59: n.d. | F59: 10.81525312 | G59: n.d. | H59: n.d. | I59: n.d. | J59: n.d. | K59: n.d. | L59: n.d. | N59: n.d. | P59: n.d. | Q59: n.d. | R59: n.d. | S59: n.d. | T59: n.d. | U59: n.d. | V59: n.d. | W59: n.d. | X59: n.d. | Y59: n.d. | Z59: n.d. | AA59: n.d. | AC59: n.d. | AD59: n.d. | AE59: n.d. | AF59: n.d. | AG59: n.d. | AH59: n.d. | AI59: n.d. | AJ59: n.d. | AK59: n.d. | AL59: n.d. | AN59: n.d. | AO59: n.d. | AP59: n.d. | AQ59: n.d. | AR59: n.d. | AS59: n.d. | AT59: n.d. | AU59: n.d. | AV59: n.d. | AW59: n.d. | AX59: n.d. | AY59: n.d. | AZ59: n.d. | BA59: n.d. | BB59: n.d. | BC59: n.d. | BD59: n.d. | BE59: n.d. | BF59: n.d. | BG59: n.d. | BH59: n.d. | BI59: n.d. | BJ59: n.d. | BK59: n.a. | BL59: n.d. | BM59: n.d. | BN59: n.a. | BO59: n.d. | BP59: n.a. | BQ59: n.d. | BR59: n.d. | BS59: n.d. | BT59: n.d. | BU59: n.d. | BV59: n.d. | BW59: n.d. | BX59: n.d. | BY59: n.d. | BZ59: n.d. | CA59: n.d. | CB59: n.d. | CC59: n.d. | CD59: n.d. | CE59: n.d. | CF59: n.d. | CG59: n.d. | CH59: n.d. | CI59: n.d. | CJ59: n.d. | CK59: n.d. | CL59: n.d. | CM59: n.d. | CN59: n.d. | CO59: n.d. | CP59: n.d. | CQ59: n.d. | CR59: n.d. | CS59: n.d. | CT59: n.d. | CU59: n.d. | CV59: n.d. | CW59: n.d. | CX59: n.d. | CY59: n.d. | CZ59: n.d. | DA59: n.d. | DB59: n.d. | DC59: n.d. | DD59: n.d. | DE59: n.d. | DF59: n.d. | DG59: n.d. | DH59: n.d.
A60: 1994 | B60: octubre | C60: 1994-octubre | D60: 12.42347857 | E60: n.d. | F60: 11.28138246 | G60: n.d. | H60: n.d. | I60: n.d. | J60: n.d. | K60: n.d. | L60: n.d. | N60: n.d. | P60: n.d. | Q60: n.d. | R60: n.d. | S60: n.d. | T60: n.d. | U60: n.d. | V60: n.d. | W60: n.d. | X60: n.d. | Y60: n.d. | Z60: n.d. | AA60: n.d. | AC60: n.d. | AD60: n.d. | AE60: n.d. | AF60: n.d. | AG60: n.d. | AH60: n.d. | AI60: n.d. | AJ60: n.d. | AK60: n.d. | AL60: n.d. | AN60: n.d. | AO60: n.d. | AP60: n.d. | AQ60: n.d. | AR60: n.d. | AS60: n.d. | AT60: n.d. | AU60: n.d. | AV60: n.d. | AW60: n.d. | AX60: n.d. | AY60: n.d. | AZ60: n.d. | BA60: n.d. | BB60: n.d. | BC60: n.d. | BD60: n.d. | BE60: n.d. | BF60: n.d. | BG60: n.d. | BH60: n.d. | BI60: n.d. | BJ60: n.d. | BK60: n.a. | BL60: n.d. | BM60: n.d. | BN60: n.a. | BO60: n.d. | BP60: n.a. | BQ60: n.d. | BR60: n.d. | BS60: n.d. | BT60: n.d. | BU60: n.d. | BV60: n.d. | BW60: n.d. | BX60: n.d. | BY60: n.d. | BZ60: n.d. | CA60: n.d. | CB60: n.d. | CC60: n.d. | CD60: n.d. | CE60: n.d. | CF60: n.d. | CG60: n.d. | CH60: n.d. | CI60: n.d. | CJ60: n.d. | CK60: n.d. | CL60: n.d. | CM60: n.d. | CN60: n.d. | CO60: n.d. | CP60: n.d. | CQ60: n.d. | CR60: n.d. | CS60: n.d. | CT60: n.d. | CU60: n.d. | CV60: n.d. | CW60: n.d. | CX60: n.d. | CY60: n.d. | CZ60: n.d. | DA60: n.d. | DB60: n.d. | DC60: n.d. | DD60: n.d. | DE60: n.d. | DF60: n.d. | DG60: n.d. | DH60: n.d.
A61: 1994 | B61: noviembre | C61: 1994-noviembre | D61: 12.91012839 | E61: n.d. | F61: 11.73238526 | G61: n.d. | H61: n.d. | I61: n.d. | J61: n.d. | K61: n.d. | L61: n.d. | N61: n.d. | P61: n.d. | Q61: n.d. | R61: n.d. | S61: n.d. | T61: n.d. | U61: n.d. | V61: n.d. | W61: n.d. | X61: n.d. | Y61: n.d. | Z61: n.d. | AA61: n.d. | AC61: n.d. | AD61: n.d. | AE61: n.d. | AF61: n.d. | AG61: n.d. | AH61: n.d. | AI61: n.d. | AJ61: n.d. | AK61: n.d. | AL61: n.d. | AN61: n.d. | AO61: n.d. | AP61: n.d. | AQ61: n.d. | AR61: n.d. | AS61: n.d. | AT61: n.d. | AU61: n.d. | AV61: n.d. | AW61: n.d. | AX61: n.d. | AY61: n.d. | AZ61: n.d. | BA61: n.d. | BB61: n.d. | BC61: n.d. | BD61: n.d. | BE61: n.d. | BF61: n.d. | BG61: n.d. | BH61: n.d. | BI61: n.d. | BJ61: n.d. | BK61: n.a. | BL61: n.d. | BM61: n.d. | BN61: n.a. | BO61: n.d. | BP61: n.a. | BQ61: n.d. | BR61: n.d. | BS61: n.d. | BT61: n.d. | BU61: n.d. | BV61: n.d. | BW61: n.d. | BX61: n.d. | BY61: n.d. | BZ61: n.d. | CA61: n.d. | CB61: n.d. | CC61: n.d. | CD61: n.d. | CE61: n.d. | CF61: n.d. | CG61: n.d. | CH61: n.d. | CI61: n.d. | CJ61: n.d. | CK61: n.d. | CL61: n.d. | CM61: n.d. | CN61: n.d. | CO61: n.d. | CP61: n.d. | CQ61: n.d. | CR61: n.d. | CS61: n.d. | CT61: n.d. | CU61: n.d. | CV61: n.d. | CW61: n.d. | CX61: n.d. | CY61: n.d. | CZ61: n.d. | DA61: n.d. | DB61: n.d. | DC61: n.d. | DD61: n.d. | DE61: n.d. | DF61: n.d. | DG61: n.d. | DH61: n.d.
A62: 1994 | B62: diciembre | C62: 1994-diciembre | D62: 13.79066478 | E62: n.d. | F62: 12.50400769 | G62: n.d. | H62: n.d. | I62: n.d. | J62: n.d. | K62: n.d. | L62: n.d. | M62: n.d. | N62: n.d. | O62: n.d. | P62: n.d. | Q62: n.d. | R62: n.d. | S62: n.d. | T62: n.d. | U62: n.d. | V62: n.d. | W62: n.d. | X62: n.d. | Y62: n.d. | Z62: n.d. | AA62: n.d. | AC62: n.d. | AD62: n.d. | AE62: n.d. | AF62: n.d. | AG62: n.d. | AH62: n.d. | AI62: n.d. | AJ62: n.d. | AK62: n.d. | AL62: n.d. | AN62: n.d. | AO62: n.d. | AP62: n.d. | AQ62: n.d. | AR62: n.d. | AS62: n.d. | AT62: n.d. | AU62: n.d. | AV62: n.d. | AW62: n.d. | AX62: n.d. | AY62: n.d. | AZ62: n.d. | BA62: n.d. | BB62: n.d. | BC62: n.d. | BD62: n.d. | BE62: n.d. | BF62: n.d. | BG62: n.d. | BH62: n.d. | BI62: n.d. | BJ62: n.d. | BK62: n.a. | BL62: n.d. | BM62: n.d. | BN62: n.a. | BO62: n.d. | BP62: n.a. | BQ62: n.d. | BR62: n.d. | BS62: n.d. | BT62: n.d. | BU62: n.d. | BV62: n.d. | BW62: n.d. | BX62: n.d. | BY62: n.d. | BZ62: n.d. | CA62: n.d. | CB62: n.d. | CC62: n.d. | CD62: n.d. | CE62: n.d. | CF62: n.d. | CG62: n.d. | CH62: n.d. | CI62: n.d. | CJ62: n.d. | CK62: n.d. | CL62: n.d. | CM62: n.d. | CN62: n.d. | CO62: n.d. | CP62: n.d. | CQ62: n.d. | CR62: n.d. | CS62: n.d. | CT62: n.d. | CU62: n.d. | CV62: n.d. | CW62: n.d. | CX62: n.d. | CY62: n.d. | CZ62: n.d. | DA62: n.d. | DB62: n.d. | DC62: n.d. | DD62: n.d. | DE62: n.d. | DF62: n.d. | DG62: n.d. | DH62: n.d.
A63: 1995 | B63: enero | C63: 1995-enero | D63: 13.67132867 | E63: 13.95955903 | F63: 12.44444444 | G63: 12.6816727 | H63: n.d. | I63: n.d. | J63: n.d. | K63: n.d. | L63: n.d. | N63: n.d. | P63: n.d. | Q63: n.d. | R63: n.d. | S63: n.d. | T63: n.d. | U63: n.d. | V63: n.d. | W63: n.d. | X63: n.d. | Y63: n.d. | Z63: n.d. | AA63: n.d. | AC63: n.d. | AD63: n.d. | AE63: n.d. | AF63: n.d. | AG63: n.d. | AH63: n.d. | AI63: n.d. | AJ63: n.d. | AK63: n.d. | AL63: n.d. | AN63: n.d. | AO63: n.d. | AP63: n.d. | AQ63: n.d. | AR63: n.d. | AS63: n.d. | AT63: n.d. | AU63: n.d. | AV63: n.d. | AW63: n.d. | AX63: n.d. | AY63: n.d. | AZ63: n.d. | BA63: n.d. | BB63: n.d. | BC63: n.d. | BD63: n.d. | BE63: n.d. | BF63: n.d. | BG63: n.d. | BH63: n.d. | BI63: n.d. | BJ63: n.d. | BK63: n.a. | BL63: n.d. | BM63: n.d. | BN63: n.a. | BO63: n.d. | BP63: n.a. | BQ63: n.d. | BR63: n.d. | BS63: n.d. | BT63: n.d. | BU63: n.d. | BV63: n.d. | BW63: n.d. | BX63: n.d. | BY63: n.d. | BZ63: n.d. | CA63: n.d. | CB63: n.d. | CC63: n.d. | CD63: n.d. | CE63: n.d. | CF63: n.d. | CG63: n.d. | CH63: n.d. | CI63: n.d. | CJ63: n.d. | CK63: n.d. | CL63: n.d. | CM63: n.d. | CN63: n.d. | CO63: n.d. | CP63: n.d. | CQ63: n.d. | CR63: n.d. | CS63: n.d. | CT63: n.d. | CU63: n.d. | CV63: n.d. | CW63: n.d. | CX63: n.d. | CY63: n.d. | CZ63: n.d. | DA63: n.d. | DB63: n.d. | DC63: n.d. | DD63: n.d. | DE63: n.d. | DF63: n.d. | DG63: n.d. | DH63: n.d.
A64: 1995 | B64: febrero | C64: 1995-febrero | D64: 14.04553415 | E64: 13.79137451 | F64: 12.75445293 | G64: 12.54169413 | H64: n.d. | I64: n.d. | J64: n.d. | K64: n.d. | L64: n.d. | N64: n.d. | P64: n.d. | Q64: n.d. | R64: n.d. | S64: n.d. | T64: n.d. | U64: n.d. | V64: n.d. | W64: n.d. | X64: n.d. | Y64: n.d. | Z64: n.d. | AA64: n.d. | AC64: n.d. | AD64: n.d. | AE64: n.d. | AF64: n.d. | AG64: n.d. | AH64: n.d. | AI64: n.d. | AJ64: n.d. | AK64: n.d. | AL64: n.d. | AN64: n.d. | AO64: n.d. | AP64: n.d. | AQ64: n.d. | AR64: n.d. | AS64: n.d. | AT64: n.d. | AU64: n.d. | AV64: n.d. | AW64: n.d. | AX64: n.d. | AY64: n.d. | AZ64: n.d. | BA64: n.d. | BB64: n.d. | BC64: n.d. | BD64: n.d. | BE64: n.d. | BF64: n.d. | BG64: n.d. | BH64: n.d. | BI64: n.d. | BJ64: n.d. | BK64: n.a. | BL64: n.d. | BM64: n.d. | BN64: n.a. | BO64: n.d. | BP64: n.a. | BQ64: n.d. | BR64: n.d. | BS64: n.d. | BT64: n.d. | BU64: n.d. | BV64: n.d. | BW64: n.d. | BX64: n.d. | BY64: n.d. | BZ64: n.d. | CA64: n.d. | CB64: n.d. | CC64: n.d. | CD64: n.d. | CE64: n.d. | CF64: n.d. | CG64: n.d. | CH64: n.d. | CI64: n.d. | CJ64: n.d. | CK64: n.d. | CL64: n.d. | CM64: n.d. | CN64: n.d. | CO64: n.d. | CP64: n.d. | CQ64: n.d. | CR64: n.d. | CS64: n.d. | CT64: n.d. | CU64: n.d. | CV64: n.d. | CW64: n.d. | CX64: n.d. | CY64: n.d. | CZ64: n.d. | DA64: n.d. | DB64: n.d. | DC64: n.d. | DD64: n.d. | DE64: n.d. | DF64: n.d. | DG64: n.d. | DH64: n.d.
A65: 1995 | B65: marzo | C65: 1995-marzo | D65: 13.933287 | E65: 13.62484243 | F65: 12.69740998 | G65: 12.40253515 | H65: n.d. | I65: n.d. | J65: n.d. | K65: n.d. | L65: n.d. | N65: n.d. | P65: n.d. | Q65: n.d. | R65: n.d. | S65: n.d. | T65: n.d. | U65: n.d. | V65: n.d. | W65: n.d. | X65: n.d. | Y65: n.d. | Z65: n.d. | AA65: n.d. | AC65: n.d. | AD65: n.d. | AE65: n.d. | AF65: n.d. | AG65: n.d. | AH65: n.d. | AI65: n.d. | AJ65: n.d. | AK65: n.d. | AL65: n.d. | AN65: n.d. | AO65: n.d. | AP65: n.d. | AQ65: n.d. | AR65: n.d. | AS65: n.d. | AT65: n.d. | AU65: n.d. | AV65: n.d. | AW65: n.d. | AX65: n.d. | AY65: n.d. | AZ65: n.d. | BA65: n.d. | BB65: n.d. | BC65: n.d. | BD65: n.d. | BE65: n.d. | BF65: n.d. | BG65: n.d. | BH65: n.d. | BI65: n.d. | BJ65: n.d. | BK65: n.a. | BL65: n.d. | BM65: n.d. | BN65: n.a. | BO65: n.d. | BP65: n.a. | BQ65: n.d. | BR65: n.d. | BS65: n.d. | BT65: n.d. | BU65: n.d. | BV65: n.d. | BW65: n.d. | BX65: n.d. | BY65: n.d. | BZ65: n.d. | CA65: n.d. | CB65: n.d. | CC65: n.d. | CD65: n.d. | CE65: n.d. | CF65: n.d. | CG65: n.d. | CH65: n.d. | CI65: n.d. | CJ65: n.d. | CK65: n.d. | CL65: n.d. | CM65: n.d. | CN65: n.d. | CO65: n.d. | CP65: n.d. | CQ65: n.d. | CR65: n.d. | CS65: n.d. | CT65: n.d. | CU65: n.d. | CV65: n.d. | CW65: n.d. | CX65: n.d. | CY65: n.d. | CZ65: n.d. | DA65: n.d. | DB65: n.d. | DC65: n.d. | DD65: n.d. | DE65: n.d. | DF65: n.d. | DG65: n.d. | DH65: n.d.
A66: 1995 | B66: abril | C66: 1995-abril | D66: 13.29440055 | E66: 13.45960807 | F66: 12.0625 | G66: 12.26388808 | H66: n.d. | I66: n.d. | J66: n.d. | K66: n.d. | L66: n.d. | N66: n.d. | P66: n.d. | Q66: n.d. | R66: n.d. | S66: n.d. | T66: n.d. | U66: n.d. | V66: n.d. | W66: n.d. | X66: n.d. | Y66: n.d. | Z66: n.d. | AA66: n.d. | AC66: n.d. | AD66: n.d. | AE66: n.d. | AF66: n.d. | AG66: n.d. | AH66: n.d. | AI66: n.d. | AJ66: n.d. | AK66: n.d. | AL66: n.d. | AN66: n.d. | AO66: n.d. | AP66: n.d. | AQ66: n.d. | AR66: n.d. | AS66: n.d. | AT66: n.d. | AU66: n.d. | AV66: n.d. | AW66: n.d. | AX66: n.d. | AY66: n.d. | AZ66: n.d. | BA66: n.d. | BB66: n.d. | BC66: n.d. | BD66: n.d. | BE66: n.d. | BF66: n.d. | BG66: n.d. | BH66: n.d. | BI66: n.d. | BJ66: n.d. | BK66: n.a. | BL66: n.d. | BM66: n.d. | BN66: n.a. | BO66: n.d. | BP66: n.a. | BQ66: n.d. | BR66: n.d. | BS66: n.d. | BT66: n.d. | BU66: n.d. | BV66: n.d. | BW66: n.d. | BX66: n.d. | BY66: n.d. | BZ66: n.d. | CA66: n.d. | CB66: n.d. | CC66: n.d. | CD66: n.d. | CE66: n.d. | CF66: n.d. | CG66: n.d. | CH66: n.d. | CI66: n.d. | CJ66: n.d. | CK66: n.d. | CL66: n.d. | CM66: n.d. | CN66: n.d. | CO66: n.d. | CP66: n.d. | CQ66: n.d. | CR66: n.d. | CS66: n.d. | CT66: n.d. | CU66: n.d. | CV66: n.d. | CW66: n.d. | CX66: n.d. | CY66: n.d. | CZ66: n.d. | DA66: n.d. | DB66: n.d. | DC66: n.d. | DD66: n.d. | DE66: n.d. | DF66: n.d. | DG66: n.d. | DH66: n.d.
A67: 1995 | B67: mayo | C67: 1995-mayo | D67: 13.172226 | E67: 13.29534472 | F67: 11.99256275 | G67: 12.12546935 | H67: n.d. | I67: n.d. | J67: n.d. | K67: n.d. | L67: n.d. | N67: n.d. | P67: n.d. | Q67: n.d. | R67: n.d. | S67: n.d. | T67: n.d. | U67: n.d. | V67: n.d. | W67: n.d. | X67: n.d. | Y67: n.d. | Z67: n.d. | AA67: n.d. | AC67: n.d. | AD67: n.d. | AE67: n.d. | AF67: n.d. | AG67: n.d. | AH67: n.d. | AI67: n.d. | AJ67: n.d. | AK67: n.d. | AL67: n.d. | AN67: n.d. | AO67: n.d. | AP67: n.d. | AQ67: n.d. | AR67: n.d. | AS67: n.d. | AT67: n.d. | AU67: n.d. | AV67: n.d. | AW67: n.d. | AX67: n.d. | AY67: n.d. | AZ67: n.d. | BA67: n.d. | BB67: n.d. | BC67: n.d. | BD67: n.d. | BE67: n.d. | BF67: n.d. | BG67: n.d. | BH67: n.d. | BI67: n.d. | BJ67: n.d. | BK67: n.a. | BL67: n.d. | BM67: n.d. | BN67: n.a. | BO67: n.d. | BP67: n.a. | BQ67: n.d. | BR67: n.d. | BS67: n.d. | BT67: n.d. | BU67: n.d. | BV67: n.d. | BW67: n.d. | BX67: n.d. | BY67: n.d. | BZ67: n.d. | CA67: n.d. | CB67: n.d. | CC67: n.d. | CD67: n.d. | CE67: n.d. | CF67: n.d. | CG67: n.d. | CH67: n.d. | CI67: n.d. | CJ67: n.d. | CK67: n.d. | CL67: n.d. | CM67: n.d. | CN67: n.d. | CO67: =IF(OR(CM67="n.d.",CM67="",CN67="",CN67="n.d."),"n.d.",(CM67/CN67)*100) -> n.d. | CP67: n.d. | CQ67: n.d. | CR67: n.d. | CS67: n.d. | CT67: n.d. | CU67: n.d. | CV67: n.d. | CW67: n.d. | CX67: n.d. | CY67: n.d. | CZ67: n.d. | DA67: n.d. | DB67: n.d. | DC67: n.d. | DD67: n.d. | DE67: n.d. | DF67: n.d. | DG67: n.d. | DH67: n.d.
A68: 1995 | B68: junio | C68: =A68&"-"&B68 -> 1995-junio | D68: 13.29518681 | E68: 13.13173394 | F68: 12.11656442 | G68: 11.98699927 | H68: n.d. | I68: n.d. | J68: n.d. | K68: n.d. | L68: n.d. | M68: =IF(B68<>"diciembre","",L68) ->  | N68: n.d. | O68: =IF(B68<>"diciembre","",N68) ->  | P68: n.d. | Q68: n.d. | R68: n.d. | S68: n.d. | T68: n.d. | U68: n.d. | V68: n.d. | W68: n.d. | X68: n.d. | Y68: n.d. | Z68: n.d. | AA68: n.d. | AC68: n.d. | AD68: n.d. | AE68: n.d. | AF68: n.d. | AG68: n.d. | AH68: n.d. | AI68: n.d. | AJ68: n.d. | AK68: n.d. | AL68: n.d. | AN68: n.d. | AO68: n.d. | AP68: n.d. | AQ68: n.d. | AR68: n.d. | AS68: n.d. | AT68: n.d. | AU68: n.d. | AV68: n.d. | AW68: n.d. | AX68: n.d. | AY68: n.d. | AZ68: n.d. | BA68: n.d. | BB68: n.d. | BC68: n.d. | BD68: n.d. | BE68: n.d. | BF68: n.d. | BG68: n.d. | BH68: n.d. | BI68: n.d. | BJ68: n.d. | BK68: n.a. | BL68: n.d. | BM68: n.d. | BN68: n.a. | BO68: n.d. | BP68: n.a. | BQ68: n.d. | BR68: n.d. | BS68: n.d. | BT68: n.d. | BU68: n.d. | BV68: n.d. | BW68: n.d. | BX68: n.d. | BY68: n.d. | BZ68: n.d. | CA68: n.d. | CB68: n.d. | CC68: n.d. | CD68: n.d. | CE68: n.d. | CF68: n.d. | CG68: n.d. | CH68: n.d. | CI68: n.d. | CJ68: n.d. | CK68: n.d. | CL68: n.d. | CM68: n.d. | CN68: n.d. | CO68: n.d. | CP68: n.d. | CQ68: n.d. | CR68: =IF(OR(CP68="n.d.",CP68="",CQ68="",CQ68="n.d."),"n.d.",(CP68/CQ68)*100) -> n.d. | CS68: n.d. | CT68: n.d. | CU68: n.d. | CV68: n.d. | CW68: n.d. | CX68: n.d. | CY68: n.d. | CZ68: n.d. | DA68: n.d. | DB68: n.d. | DC68: n.d. | DD68: n.d. | DE68: n.d. | DF68: n.d. | DG68: n.d. | DH68: n.d.
A69: 1995 | B69: julio | C69: 1995-julio | D69: 13.71829105 | E69: 12.96846345 | F69: 12.51141553 | G69: 11.84819793 | H69: n.d. | I69: n.d. | J69: n.d. | K69: n.d. | L69: n.d. | N69: n.d. | P69: n.d. | Q69: n.d. | R69: n.d. | S69: n.d. | T69: n.d. | U69: n.d. | V69: n.d. | W69: n.d. | X69: n.d. | Y69: n.d. | Z69: n.d. | AA69: n.d. | AC69: n.d. | AD69: n.d. | AE69: n.d. | AF69: n.d. | AG69: n.d. | AH69: n.d. | AI69: n.d. | AJ69: n.d. | AK69: n.d. | AL69: n.d. | AN69: n.d. | AO69: n.d. | AP69: n.d. | AQ69: n.d. | AR69: n.d. | AS69: n.d. | AT69: n.d. | AU69: n.d. | AV69: n.d. | AW69: n.d. | AX69: n.d. | AY69: n.d. | AZ69: n.d. | BA69: n.d. | BB69: n.d. | BC69: n.d. | BD69: n.d. | BE69: n.d. | BF69: n.d. | BG69: n.d. | BH69: n.d. | BI69: n.d. | BJ69: n.d. | BK69: n.a. | BL69: n.d. | BM69: n.d. | BN69: n.a. | BO69: n.d. | BP69: n.a. | BQ69: n.d. | BR69: n.d. | BS69: n.d. | BT69: n.d. | BU69: n.d. | BV69: n.d. | BW69: n.d. | BX69: n.d. | BY69: n.d. | BZ69: n.d. | CA69: n.d. | CB69: n.d. | CC69: n.d. | CD69: n.d. | CE69: n.d. | CF69: n.d. | CG69: n.d. | CH69: n.d. | CI69: n.d. | CJ69: n.d. | CK69: n.d. | CL69: n.d. | CM69: n.d. | CN69: n.d. | CO69: n.d. | CP69: n.d. | CQ69: n.d. | CR69: n.d. | CS69: n.d. | CT69: n.d. | CU69: n.d. | CV69: n.d. | CW69: n.d. | CX69: n.d. | CY69: n.d. | CZ69: n.d. | DA69: n.d. | DB69: n.d. | DC69: n.d. | DD69: n.d. | DE69: n.d. | DF69: n.d. | DG69: n.d. | DH69: n.d.
A70: 1995 | B70: agosto | C70: 1995-agosto | D70: 12.98914831 | E70: 12.80524892 | F70: 11.82472989 | G70: 11.70881046 | H70: n.d. | I70: n.d. | J70: n.d. | K70: n.d. | L70: n.d. | N70: n.d. | P70: n.d. | Q70: n.d. | R70: n.d. | S70: n.d. | T70: n.d. | U70: n.d. | V70: n.d. | W70: n.d. | X70: n.d. | Y70: n.d. | Z70: n.d. | AA70: n.d. | AC70: n.d. | AD70: n.d. | AE70: n.d. | AF70: n.d. | AG70: n.d. | AH70: n.d. | AI70: n.d. | AJ70: n.d. | AK70: n.d. | AL70: n.d. | AN70: n.d. | AO70: n.d. | AP70: n.d. | AQ70: n.d. | AR70: n.d. | AS70: n.d. | AT70: n.d. | AU70: n.d. | AV70: n.d. | AW70: n.d. | AX70: n.d. | AY70: n.d. | AZ70: n.d. | BA70: n.d. | BB70: n.d. | BC70: n.d. | BD70: n.d. | BE70: n.d. | BF70: n.d. | BG70: n.d. | BH70: n.d. | BI70: n.d. | BJ70: n.d. | BK70: n.a. | BL70: n.d. | BM70: n.d. | BN70: n.a. | BO70: n.d. | BP70: n.a. | BQ70: n.d. | BR70: n.d. | BS70: n.d. | BT70: n.d. | BU70: n.d. | BV70: n.d. | BW70: n.d. | BX70: n.d. | BY70: n.d. | BZ70: n.d. | CA70: n.d. | CB70: n.d. | CC70: n.d. | CD70: n.d. | CE70: n.d. | CF70: n.d. | CG70: n.d. | CH70: n.d. | CI70: n.d. | CJ70: n.d. | CK70: n.d. | CL70: n.d. | CM70: n.d. | CN70: n.d. | CO70: n.d. | CP70: n.d. | CQ70: n.d. | CR70: n.d. | CS70: n.d. | CT70: n.d. | CU70: n.d. | CV70: n.d. | CW70: n.d. | CX70: n.d. | CY70: n.d. | CZ70: n.d. | DA70: n.d. | DB70: n.d. | DC70: n.d. | DD70: n.d. | DE70: n.d. | DF70: n.d. | DG70: n.d. | DH70: n.d.
A71: 1995 | B71: septiembre | C71: 1995-septiembre | D71: 13.34415584 | E71: 12.64184877 | F71: 12.13289825 | G71: 11.56862083 | H71: n.d. | I71: n.d. | J71: n.d. | K71: n.d. | L71: n.d. | N71: n.d. | P71: n.d. | Q71: n.d. | R71: n.d. | S71: n.d. | T71: n.d. | U71: n.d. | V71: n.d. | W71: n.d. | X71: n.d. | Y71: n.d. | Z71: n.d. | AA71: n.d. | AC71: n.d. | AD71: n.d. | AE71: n.d. | AF71: n.d. | AG71: n.d. | AH71: n.d. | AI71: n.d. | AJ71: =IFERROR(+AF71+AH71,"n.d.") -> n.d. | AK71: n.d. | AL71: n.d. | AN71: n.d. | AO71: n.d. | AP71: n.d. | AQ71: n.d. | AR71: n.d. | AS71: n.d. | AT71: n.d. | AU71: n.d. | AV71: n.d. | AW71: n.d. | AX71: n.d. | AY71: n.d. | AZ71: n.d. | BA71: n.d. | BB71: n.d. | BC71: n.d. | BD71: n.d. | BE71: n.d. | BF71: n.d. | BG71: n.d. | BH71: n.d. | BI71: n.d. | BJ71: n.d. | BK71: n.a. | BL71: n.d. | BM71: n.d. | BN71: n.a. | BO71: n.d. | BP71: n.a. | BQ71: n.d. | BR71: n.d. | BS71: n.d. | BT71: n.d. | BU71: n.d. | BV71: n.d. | BW71: n.d. | BX71: n.d. | BY71: n.d. | BZ71: n.d. | CA71: n.d. | CB71: n.d. | CC71: n.d. | CD71: n.d. | CE71: n.d. | CF71: n.d. | CG71: n.d. | CH71: n.d. | CI71: n.d. | CJ71: n.d. | CK71: n.d. | CL71: n.d. | CM71: n.d. | CN71: n.d. | CO71: n.d. | CP71: n.d. | CQ71: n.d. | CR71: n.d. | CS71: n.d. | CT71: n.d. | CU71: n.d. | CV71: n.d. | CW71: n.d. | CX71: n.d. | CY71: n.d. | CZ71: n.d. | DA71: n.d. | DB71: n.d. | DC71: n.d. | DD71: n.d. | DE71: n.d. | DF71: n.d. | DG71: n.d. | DH71: n.d.
A72: 1995 | B72: octubre | C72: 1995-octubre | D72: 13.6450993 | E72: 12.47805233 | F72: 12.39378846 | G72: 11.42743985 | H72: n.d. | I72: n.d. | J72: n.d. | K72: n.d. | L72: n.d. | N72: n.d. | P72: n.d. | Q72: n.d. | R72: n.d. | S72: n.d. | T72: n.d. | U72: n.d. | V72: n.d. | W72: n.d. | X72: n.d. | Y72: n.d. | Z72: n.d. | AA72: n.d. | AC72: n.d. | AD72: n.d. | AE72: n.d. | AF72: n.d. | AG72: n.d. | AH72: n.d. | AI72: n.d. | AJ72: n.d. | AK72: n.d. | AL72: n.d. | AN72: n.d. | AO72: n.d. | AP72: n.d. | AQ72: n.d. | AR72: n.d. | AS72: n.d. | AT72: n.d. | AU72: n.d. | AV72: n.d. | AW72: n.d. | AX72: n.d. | AY72: n.d. | AZ72: n.d. | BA72: n.d. | BB72: n.d. | BC72: n.d. | BD72: n.d. | BE72: n.d. | BF72: n.d. | BG72: n.d. | BH72: n.d. | BI72: n.d. | BJ72: n.d. | BK72: n.a. | BL72: n.d. | BM72: n.d. | BN72: n.a. | BO72: n.d. | BP72: n.a. | BQ72: n.d. | BR72: n.d. | BS72: n.d. | BT72: n.d. | BU72: n.d. | BV72: n.d. | BW72: n.d. | BX72: n.d. | BY72: n.d. | BZ72: n.d. | CA72: n.d. | CB72: n.d. | CC72: n.d. | CD72: n.d. | CE72: n.d. | CF72: n.d. | CG72: n.d. | CH72: n.d. | CI72: n.d. | CJ72: n.d. | CK72: n.d. | CL72: n.d. | CM72: n.d. | CN72: n.d. | CO72: n.d. | CP72: n.d. | CQ72: n.d. | CR72: n.d. | CS72: n.d. | CT72: n.d. | CU72: n.d. | CV72: n.d. | CW72: n.d. | CX72: n.d. | CY72: n.d. | CZ72: n.d. | DA72: n.d. | DB72: n.d. | DC72: n.d. | DD72: n.d. | DE72: n.d. | DF72: n.d. | DG72: n.d. | DH72: n.d.
A73: 1995 | B73: noviembre | C73: 1995-noviembre | D73: 13.83449147 | E73: 12.31369543 | F73: 12.52531096 | G73: 11.28512033 | H73: n.d. | I73: n.d. | J73: n.d. | K73: n.d. | L73: n.d. | N73: n.d. | P73: n.d. | Q73: n.d. | R73: n.d. | S73: n.d. | T73: n.d. | U73: n.d. | V73: n.d. | W73: n.d. | X73: n.d. | Y73: n.d. | Z73: n.d. | AA73: n.d. | AC73: n.d. | AD73: n.d. | AE73: n.d. | AF73: n.d. | AG73: n.d. | AH73: n.d. | AI73: n.d. | AJ73: n.d. | AK73: n.d. | AL73: n.d. | AN73: n.d. | AO73: n.d. | AP73: n.d. | AQ73: n.d. | AR73: n.d. | AS73: n.d. | AT73: n.d. | AU73: n.d. | AV73: n.d. | AW73: n.d. | AX73: n.d. | AY73: n.d. | AZ73: n.d. | BA73: n.d. | BB73: n.d. | BC73: n.d. | BD73: n.d. | BE73: n.d. | BF73: n.d. | BG73: n.d. | BH73: n.d. | BI73: n.d. | BJ73: n.d. | BK73: n.a. | BL73: n.d. | BM73: n.d. | BN73: n.a. | BO73: n.d. | BP73: n.a. | BQ73: n.d. | BR73: n.d. | BS73: n.d. | BT73: n.d. | BU73: n.d. | BV73: n.d. | BW73: n.d. | BX73: n.d. | BY73: n.d. | BZ73: n.d. | CA73: n.d. | CB73: n.d. | CC73: n.d. | CD73: n.d. | CE73: n.d. | CF73: n.d. | CG73: n.d. | CH73: n.d. | CI73: n.d. | CJ73: n.d. | CK73: n.d. | CL73: n.d. | CM73: n.d. | CN73: n.d. | CO73: n.d. | CP73: n.d. | CQ73: n.d. | CR73: n.d. | CS73: n.d. | CT73: n.d. | CU73: n.d. | CV73: n.d. | CW73: n.d. | CX73: n.d. | CY73: n.d. | CZ73: n.d. | DA73: n.d. | DB73: n.d. | DC73: n.d. | DD73: n.d. | DE73: n.d. | DF73: n.d. | DG73: n.d. | DH73: n.d.
A74: 1995 | B74: diciembre | C74: 1995-diciembre | D74: 12.64760721 | E74: 12.14869324 | F74: 11.51325164 | G74: 11.1415903 | H74: n.d. | I74: n.d. | J74: n.d. | K74: n.d. | L74: n.d. | M74: n.d. | N74: n.d. | O74: n.d. | P74: n.d. | Q74: n.d. | R74: n.d. | S74: n.d. | T74: n.d. | U74: n.d. | V74: n.d. | W74: n.d. | X74: n.d. | Y74: n.d. | Z74: n.d. | AA74: n.d. | AC74: n.d. | AD74: n.d. | AE74: n.d. | AF74: n.d. | AG74: n.d. | AH74: n.d. | AI74: n.d. | AJ74: n.d. | AK74: n.d. | AL74: n.d. | AN74: n.d. | AO74: n.d. | AP74: n.d. | AQ74: n.d. | AR74: n.d. | AS74: n.d. | AT74: n.d. | AU74: n.d. | AV74: n.d. | AW74: n.d. | AX74: n.d. | AY74: n.d. | AZ74: n.d. | BA74: n.d. | BB74: n.d. | BC74: n.d. | BD74: n.d. | BE74: n.d. | BF74: n.d. | BG74: n.d. | BH74: n.d. | BI74: n.d. | BJ74: n.d. | BK74: n.a. | BL74: n.d. | BM74: n.d. | BN74: n.a. | BO74: n.d. | BP74: n.a. | BQ74: n.d. | BR74: n.d. | BS74: n.d. | BT74: n.d. | BU74: n.d. | BV74: n.d. | BW74: n.d. | BX74: n.d. | BY74: n.d. | BZ74: n.d. | CA74: n.d. | CB74: n.d. | CC74: n.d. | CD74: n.d. | CE74: n.d. | CF74: n.d. | CG74: n.d. | CH74: n.d. | CI74: n.d. | CJ74: n.d. | CK74: n.d. | CL74: n.d. | CM74: n.d. | CN74: n.d. | CO74: n.d. | CP74: n.d. | CQ74: n.d. | CR74: n.d. | CS74: n.d. | CT74: n.d. | CU74: n.d. | CV74: n.d. | CW74: n.d. | CX74: n.d. | CY74: n.d. | CZ74: n.d. | DA74: n.d. | DB74: n.d. | DC74: n.d. | DD74: n.d. | DE74: n.d. | DF74: n.d. | DG74: n.d. | DH74: n.d.
A75: 1996 | B75: enero | C75: 1996-enero | D75: 12.02706859 | E75: 11.98304226 | F75: 11.0107284 | G75: 10.99685222 | H75: n.d. | I75: n.d. | J75: n.d. | K75: n.d. | L75: n.d. | N75: n.d. | P75: n.d. | Q75: n.d. | R75: n.d. | S75: n.d. | T75: n.d. | U75: n.d. | V75: n.d. | W75: n.d. | X75: n.d. | Y75: n.d. | Z75: n.d. | AA75: n.d. | AC75: n.d. | AD75: n.d. | AE75: n.d. | AF75: n.d. | AG75: n.d. | AH75: n.d. | AI75: n.d. | AJ75: n.d. | AK75: n.d. | AL75: n.d. | AN75: n.d. | AO75: n.d. | AP75: n.d. | AQ75: n.d. | AR75: n.d. | AS75: n.d. | AT75: n.d. | AU75: n.d. | AV75: n.d. | AW75: n.d. | AX75: n.d. | AY75: n.d. | AZ75: n.d. | BA75: n.d. | BB75: n.d. | BC75: n.d. | BD75: n.d. | BE75: n.d. | BF75: n.d. | BG75: n.d. | BH75: n.d. | BI75: n.d. | BJ75: n.d. | BK75: n.a. | BL75: n.d. | BM75: n.d. | BN75: n.a. | BO75: n.d. | BP75: n.a. | BQ75: n.d. | BR75: n.d. | BS75: n.d. | BT75: n.d. | BU75: n.d. | BV75: n.d. | BW75: n.d. | BX75: n.d. | BY75: n.d. | BZ75: n.d. | CA75: n.d. | CB75: n.d. | CC75: n.d. | CD75: n.d. | CE75: n.d. | CF75: n.d. | CG75: n.d. | CH75: n.d. | CI75: n.d. | CJ75: n.d. | CK75: n.d. | CL75: n.d. | CM75: n.d. | CN75: n.d. | CO75: n.d. | CP75: n.d. | CQ75: n.d. | CR75: n.d. | CS75: n.d. | CT75: n.d. | CU75: n.d. | CV75: n.d. | CW75: n.d. | CX75: n.d. | CY75: n.d. | CZ75: n.d. | DA75: n.d. | DB75: n.d. | DC75: n.d. | DD75: n.d. | DE75: n.d. | DF75: n.d. | DG75: n.d. | DH75: n.d.
A76: 1996 | B76: febrero | C76: 1996-febrero | D76: 11.88574939 | E76: 11.8167753 | F76: 10.88857546 | G76: 10.85094087 | H76: n.d. | I76: n.d. | J76: n.d. | K76: n.d. | L76: n.d. | N76: n.d. | P76: n.d. | Q76: n.d. | R76: n.d. | S76: n.d. | T76: n.d. | U76: n.d. | V76: n.d. | W76: n.d. | X76: n.d. | Y76: n.d. | Z76: n.d. | AA76: n.d. | AC76: n.d. | AD76: n.d. | AE76: n.d. | AF76: n.d. | AG76: n.d. | AH76: n.d. | AI76: n.d. | AJ76: n.d. | AK76: n.d. | AL76: n.d. | AN76: n.d. | AO76: n.d. | AP76: n.d. | AQ76: n.d. | AR76: n.d. | AS76: n.d. | AT76: n.d. | AU76: n.d. | AV76: n.d. | AW76: n.d. | AX76: n.d. | AY76: n.d. | AZ76: n.d. | BA76: n.d. | BB76: n.d. | BC76: n.d. | BD76: n.d. | BE76: n.d. | BF76: n.d. | BG76: n.d. | BH76: n.d. | BI76: n.d. | BJ76: n.d. | BK76: n.a. | BL76: n.d. | BM76: n.d. | BN76: n.a. | BO76: n.d. | BP76: n.a. | BQ76: n.d. | BR76: n.d. | BS76: n.d. | BT76: n.d. | BU76: n.d. | BV76: n.d. | BW76: n.d. | BX76: n.d. | BY76: n.d. | BZ76: n.d. | CA76: n.d. | CB76: n.d. | CC76: n.d. | CD76: n.d. | CE76: n.d. | CF76: n.d. | CG76: n.d. | CH76: n.d. | CI76: n.d. | CJ76: n.d. | CK76: n.d. | CL76: n.d. | CM76: n.d. | CN76: n.d. | CO76: n.d. | CP76: n.d. | CQ76: n.d. | CR76: n.d. | CS76: n.d. | CT76: n.d. | CU76: n.d. | CV76: n.d. | CW76: n.d. | CX76: n.d. | CY76: n.d. | CZ76: n.d. | DA76: n.d. | DB76: n.d. | DC76: n.d. | DD76: n.d. | DE76: n.d. | DF76: n.d. | DG76: n.d. | DH76: n.d.
A77: 1996 | B77: marzo | C77: 1996-marzo | D77: 11.77188167 | E77: 11.64992726 | F77: 10.79035874 | G77: 10.70389189 | H77: n.d. | I77: n.d. | J77: n.d. | K77: n.d. | L77: n.d. | N77: n.d. | P77: n.d. | Q77: n.d. | R77: n.d. | S77: n.d. | T77: n.d. | U77: n.d. | V77: n.d. | W77: n.d. | X77: n.d. | Y77: n.d. | Z77: n.d. | AA77: n.d. | AC77: n.d. | AD77: n.d. | AE77: n.d. | AF77: n.d. | AG77: n.d. | AH77: n.d. | AI77: n.d. | AJ77: n.d. | AK77: n.d. | AL77: n.d. | AN77: n.d. | AO77: n.d. | AP77: n.d. | AQ77: n.d. | AR77: n.d. | AS77: n.d. | AT77: n.d. | AU77: n.d. | AV77: n.d. | AW77: n.d. | AX77: n.d. | AY77: n.d. | AZ77: n.d. | BA77: n.d. | BB77: n.d. | BC77: n.d. | BD77: n.d. | BE77: n.d. | BF77: n.d. | BG77: n.d. | BH77: n.d. | BI77: n.d. | BJ77: n.d. | BK77: n.a. | BL77: n.d. | BM77: n.d. | BN77: n.a. | BO77: n.d. | BP77: n.a. | BQ77: n.d. | BR77: n.d. | BS77: n.d. | BT77: n.d. | BU77: n.d. | BV77: n.d. | BW77: n.d. | BX77: n.d. | BY77: n.d. | BZ77: n.d. | CA77: n.d. | CB77: n.d. | CC77: n.d. | CD77: n.d. | CE77: n.d. | CF77: n.d. | CG77: n.d. | CH77: n.d. | CI77: n.d. | CJ77: n.d. | CK77: n.d. | CL77: n.d. | CM77: n.d. | CN77: n.d. | CO77: n.d. | CP77: n.d. | CQ77: n.d. | CR77: n.d. | CS77: n.d. | CT77: n.d. | CU77: n.d. | CV77: n.d. | CW77: n.d. | CX77: n.d. | CY77: n.d. | CZ77: n.d. | DA77: n.d. | DB77: n.d. | DC77: n.d. | DD77: n.d. | DE77: n.d. | DF77: n.d. | DG77: n.d. | DH77: n.d.
A78: 1996 | B78: abril | C78: 1996-abril | D78: 11.97695573 | E78: 11.48253008 | F78: 11.01505856 | G78: 10.55573658 | H78: n.d. | I78: n.d. | J78: n.d. | K78: n.d. | L78: n.d. | N78: n.d. | P78: n.d. | Q78: n.d. | R78: n.d. | S78: n.d. | T78: n.d. | U78: n.d. | V78: n.d. | W78: n.d. | X78: n.d. | Y78: n.d. | Z78: n.d. | AA78: n.d. | AC78: n.d. | AD78: n.d. | AE78: n.d. | AF78: n.d. | AG78: n.d. | AH78: n.d. | AI78: n.d. | AJ78: n.d. | AK78: n.d. | AL78: n.d. | AN78: n.d. | AO78: n.d. | AP78: n.d. | AQ78: n.d. | AR78: n.d. | AS78: n.d. | AT78: n.d. | AU78: n.d. | AV78: n.d. | AW78: n.d. | AX78: n.d. | AY78: n.d. | AZ78: n.d. | BA78: n.d. | BB78: n.d. | BC78: n.d. | BD78: n.d. | BE78: n.d. | BF78: n.d. | BG78: n.d. | BH78: n.d. | BI78: n.d. | BJ78: n.d. | BK78: n.a. | BL78: n.d. | BM78: n.d. | BN78: n.a. | BO78: n.d. | BP78: n.a. | BQ78: n.d. | BR78: n.d. | BS78: n.d. | BT78: n.d. | BU78: n.d. | BV78: n.d. | BW78: n.d. | BX78: n.d. | BY78: n.d. | BZ78: n.d. | CA78: n.d. | CB78: n.d. | CC78: n.d. | CD78: n.d. | CE78: n.d. | CF78: n.d. | CG78: n.d. | CH78: n.d. | CI78: n.d. | CJ78: n.d. | CK78: n.d. | CL78: n.d. | CM78: n.d. | CN78: n.d. | CO78: n.d. | CP78: n.d. | CQ78: n.d. | CR78: n.d. | CS78: n.d. | CT78: n.d. | CU78: n.d. | CV78: n.d. | CW78: n.d. | CX78: n.d. | CY78: n.d. | CZ78: n.d. | DA78: n.d. | DB78: n.d. | DC78: n.d. | DD78: n.d. | DE78: n.d. | DF78: n.d. | DG78: n.d. | DH78: n.d.
A79: 1996 | B79: mayo | C79: 1996-mayo | D79: 11.87969925 | E79: 11.3146225 | F79: 10.84670725 | G79: 10.40651229 | H79: n.d. | I79: n.d. | J79: n.d. | K79: n.d. | L79: n.d. | N79: n.d. | P79: n.d. | Q79: n.d. | R79: n.d. | S79: n.d. | T79: n.d. | U79: n.d. | V79: n.d. | W79: n.d. | X79: n.d. | Y79: n.d. | Z79: n.d. | AA79: n.d. | AC79: n.d. | AD79: n.d. | AE79: n.d. | AF79: n.d. | AG79: n.d. | AH79: n.d. | AI79: n.d. | AJ79: n.d. | AK79: n.d. | AL79: n.d. | AN79: n.d. | AO79: n.d. | AP79: n.d. | AQ79: n.d. | AR79: n.d. | AS79: n.d. | AT79: n.d. | AU79: n.d. | AV79: n.d. | AW79: n.d. | AX79: n.d. | AY79: n.d. | AZ79: n.d. | BA79: n.d. | BB79: n.d. | BC79: n.d. | BD79: n.d. | BE79: n.d. | BF79: n.d. | BG79: n.d. | BH79: n.d. | BI79: n.d. | BJ79: n.d. | BK79: n.a. | BL79: n.d. | BM79: n.d. | BN79: n.a. | BO79: n.d. | BP79: n.a. | BQ79: n.d. | BR79: n.d. | BS79: n.d. | BT79: n.d. | BU79: n.d. | BV79: n.d. | BW79: n.d. | BX79: n.d. | BY79: n.d. | BZ79: n.d. | CA79: n.d. | CB79: n.d. | CC79: n.d. | CD79: n.d. | CE79: n.d. | CF79: n.d. | CG79: n.d. | CH79: n.d. | CI79: n.d. | CJ79: n.d. | CK79: n.d. | CL79: n.d. | CM79: n.d. | CN79: n.d. | CO79: n.d. | CP79: n.d. | CQ79: n.d. | CR79: n.d. | CS79: n.d. | CT79: n.d. | CU79: n.d. | CV79: n.d. | CW79: n.d. | CX79: n.d. | CY79: n.d. | CZ79: n.d. | DA79: n.d. | DB79: n.d. | DC79: n.d. | DD79: n.d. | DE79: n.d. | DF79: n.d. | DG79: n.d. | DH79: n.d.
A80: 1996 | B80: junio | C80: 1996-junio | D80: 11.70528818 | E80: 11.14626477 | F80: 10.69767442 | G80: 10.25627807 | H80: n.d. | I80: n.d. | J80: n.d. | K80: n.d. | L80: n.d. | N80: n.d. | P80: n.d. | Q80: n.d. | R80: n.d. | S80: n.d. | T80: n.d. | U80: n.d. | V80: n.d. | W80: n.d. | X80: n.d. | Y80: n.d. | Z80: n.d. | AA80: n.d. | AC80: n.d. | AD80: n.d. | AE80: n.d. | AF80: n.d. | AG80: n.d. | AH80: n.d. | AI80: n.d. | AJ80: n.d. | AK80: n.d. | AL80: n.d. | AN80: n.d. | AO80: n.d. | AP80: n.d. | AQ80: n.d. | AR80: n.d. | AS80: n.d. | AT80: n.d. | AU80: n.d. | AV80: n.d. | AW80: n.d. | AX80: n.d. | AY80: n.d. | AZ80: n.d. | BA80: n.d. | BB80: n.d. | BC80: n.d. | BD80: n.d. | BE80: n.d. | BF80: n.d. | BG80: n.d. | BH80: n.d. | BI80: n.d. | BJ80: n.d. | BK80: n.a. | BL80: n.d. | BM80: n.d. | BN80: n.a. | BO80: n.d. | BP80: n.a. | BQ80: n.d. | BR80: n.d. | BS80: n.d. | BT80: n.d. | BU80: n.d. | BV80: n.d. | BW80: n.d. | BX80: n.d. | BY80: n.d. | BZ80: n.d. | CA80: n.d. | CB80: n.d. | CC80: n.d. | CD80: n.d. | CE80: n.d. | CF80: n.d. | CG80: n.d. | CH80: n.d. | CI80: n.d. | CJ80: n.d. | CK80: n.d. | CL80: n.d. | CM80: n.d. | CN80: n.d. | CO80: n.d. | CP80: n.d. | CQ80: n.d. | CR80: n.d. | CS80: n.d. | CT80: n.d. | CU80: n.d. | CV80: n.d. | CW80: n.d. | CX80: n.d. | CY80: n.d. | CZ80: n.d. | DA80: n.d. | DB80: n.d. | DC80: n.d. | DD80: n.d. | DE80: n.d. | DF80: n.d. | DG80: n.d. | DH80: n.d.
A81: 1996 | B81: julio | C81: 1996-julio | D81: 11.50572351 | E81: 10.97754418 | F81: 10.4978355 | G81: 10.10512093 | H81: n.d. | I81: n.d. | J81: n.d. | K81: n.d. | L81: n.d. | N81: n.d. | P81: n.d. | Q81: n.d. | R81: n.d. | S81: n.d. | T81: n.d. | U81: n.d. | V81: n.d. | W81: n.d. | X81: n.d. | Y81: n.d. | Z81: n.d. | AA81: n.d. | AC81: n.d. | AD81: n.d. | AE81: n.d. | AF81: n.d. | AG81: n.d. | AH81: n.d. | AI81: n.d. | AJ81: n.d. | AK81: n.d. | AL81: n.d. | AN81: n.d. | AO81: n.d. | AP81: n.d. | AQ81: n.d. | AR81: n.d. | AS81: n.d. | AT81: n.d. | AU81: n.d. | AV81: n.d. | AW81: n.d. | AX81: n.d. | AY81: n.d. | AZ81: n.d. | BA81: n.d. | BB81: n.d. | BC81: n.d. | BD81: n.d. | BE81: n.d. | BF81: n.d. | BG81: n.d. | BH81: n.d. | BI81: n.d. | BJ81: n.d. | BK81: n.a. | BL81: n.d. | BM81: n.d. | BN81: n.a. | BO81: n.d. | BP81: n.a. | BQ81: n.d. | BR81: n.d. | BS81: n.d. | BT81: n.d. | BU81: n.d. | BV81: n.d. | BW81: n.d. | BX81: n.d. | BY81: n.d. | BZ81: n.d. | CA81: n.d. | CB81: n.d. | CC81: n.d. | CD81: n.d. | CE81: n.d. | CF81: n.d. | CG81: n.d. | CH81: n.d. | CI81: n.d. | CJ81: n.d. | CK81: n.d. | CL81: n.d. | CM81: n.d. | CN81: n.d. | CO81: n.d. | CP81: n.d. | CQ81: n.d. | CR81: n.d. | CS81: n.d. | CT81: n.d. | CU81: n.d. | CV81: n.d. | CW81: n.d. | CX81: n.d. | CY81: n.d. | CZ81: n.d. | DA81: n.d. | DB81: n.d. | DC81: n.d. | DD81: n.d. | DE81: n.d. | DF81: n.d. | DG81: n.d. | DH81: n.d.
A82: 1996 | B82: agosto | C82: 1996-agosto | D82: 11.96158324 | E82: 10.80857268 | F82: 10.92324208 | G82: 9.953148018 | H82: n.d. | I82: n.d. | J82: n.d. | K82: n.d. | L82: n.d. | N82: n.d. | P82: n.d. | Q82: n.d. | R82: n.d. | S82: n.d. | T82: n.d. | U82: n.d. | V82: n.d. | W82: n.d. | X82: n.d. | Y82: n.d. | Z82: n.d. | AA82: n.d. | AC82: n.d. | AD82: n.d. | AE82: n.d. | AF82: n.d. | AG82: n.d. | AH82: n.d. | AI82: n.d. | AJ82: n.d. | AK82: n.d. | AL82: n.d. | AN82: n.d. | AO82: n.d. | AP82: n.d. | AQ82: n.d. | AR82: n.d. | AS82: n.d. | AT82: n.d. | AU82: n.d. | AV82: n.d. | AW82: n.d. | AX82: n.d. | AY82: n.d. | AZ82: n.d. | BA82: n.d. | BB82: n.d. | BC82: n.d. | BD82: n.d. | BE82: n.d. | BF82: n.d. | BG82: n.d. | BH82: n.d. | BI82: n.d. | BJ82: n.d. | BK82: n.a. | BL82: n.d. | BM82: n.d. | BN82: n.a. | BO82: n.d. | BP82: n.a. | BQ82: n.d. | BR82: n.d. | BS82: n.d. | BT82: n.d. | BU82: n.d. | BV82: n.d. | BW82: n.d. | BX82: n.d. | BY82: n.d. | BZ82: n.d. | CA82: n.d. | CB82: n.d. | CC82: n.d. | CD82: n.d. | CE82: n.d. | CF82: n.d. | CG82: n.d. | CH82: n.d. | CI82: n.d. | CJ82: n.d. | CK82: n.d. | CL82: n.d. | CM82: n.d. | CN82: n.d. | CO82: n.d. | CP82: n.d. | CQ82: n.d. | CR82: n.d. | CS82: n.d. | CT82: n.d. | CU82: n.d. | CV82: n.d. | CW82: n.d. | CX82: n.d. | CY82: n.d. | CZ82: n.d. | DA82: n.d. | DB82: n.d. | DC82: n.d. | DD82: n.d. | DE82: n.d. | DF82: n.d. | DG82: n.d. | DH82: n.d.
A83: 1996 | B83: septiembre | C83: 1996-septiembre | D83: 11.05700372 | E83: 10.63949449 | F83: 10.15873016 | G83: 9.800497222 | H83: n.d. | I83: n.d. | J83: n.d. | K83: n.d. | L83: n.d. | N83: n.d. | P83: n.d. | Q83: n.d. | R83: n.d. | S83: n.d. | T83: n.d. | U83: n.d. | V83: n.d. | W83: n.d. | X83: n.d. | Y83: n.d. | Z83: n.d. | AA83: n.d. | AC83: n.d. | AD83: n.d. | AE83: n.d. | AF83: n.d. | AG83: n.d. | AH83: n.d. | AI83: n.d. | AJ83: n.d. | AK83: n.d. | AL83: n.d. | AN83: n.d. | AO83: n.d. | AP83: n.d. | AQ83: n.d. | AR83: n.d. | AS83: n.d. | AT83: n.d. | AU83: n.d. | AV83: n.d. | AW83: n.d. | AX83: n.d. | AY83: n.d. | AZ83: n.d. | BA83: n.d. | BB83: n.d. | BC83: n.d. | BD83: n.d. | BE83: n.d. | BF83: n.d. | BG83: n.d. | BH83: n.d. | BI83: n.d. | BJ83: n.d. | BK83: n.a. | BL83: n.d. | BM83: n.d. | BN83: n.a. | BO83: n.d. | BP83: n.a. | BQ83: n.d. | BR83: n.d. | BS83: n.d. | BT83: n.d. | BU83: n.d. | BV83: n.d. | BW83: n.d. | BX83: n.d. | BY83: n.d. | BZ83: n.d. | CA83: n.d. | CB83: n.d. | CC83: n.d. | CD83: n.d. | CE83: n.d. | CF83: n.d. | CG83: n.d. | CH83: n.d. | CI83: n.d. | CJ83: n.d. | CK83: n.d. | CL83: n.d. | CM83: n.d. | CN83: n.d. | CO83: n.d. | CP83: n.d. | CQ83: n.d. | CR83: n.d. | CS83: n.d. | CT83: n.d. | CU83: n.d. | CV83: n.d. | CW83: n.d. | CX83: n.d. | CY83: n.d. | CZ83: n.d. | DA83: n.d. | DB83: n.d. | DC83: n.d. | DD83: n.d. | DE83: n.d. | DF83: n.d. | DG83: n.d. | DH83: n.d.
A84: 1996 | B84: octubre | C84: 1996-octubre | D84: 10.14656144 | E84: 10.47050223 | F84: 9.358706986 | G84: 9.647352815 | H84: n.d. | I84: n.d. | J84: n.d. | K84: n.d. | L84: n.d. | N84: n.d. | P84: n.d. | Q84: n.d. | R84: n.d. | S84: n.d. | T84: n.d. | U84: n.d. | V84: n.d. | W84: n.d. | X84: n.d. | Y84: n.d. | Z84: n.d. | AA84: n.d. | AC84: n.d. | AD84: n.d. | AE84: n.d. | AF84: n.d. | AG84: n.d. | AH84: n.d. | AI84: n.d. | AJ84: n.d. | AK84: n.d. | AL84: n.d. | AN84: n.d. | AO84: n.d. | AP84: n.d. | AQ84: n.d. | AR84: n.d. | AS84: n.d. | AT84: n.d. | AU84: n.d. | AV84: n.d. | AW84: n.d. | AX84: n.d. | AY84: n.d. | AZ84: n.d. | BA84: n.d. | BB84: n.d. | BC84: n.d. | BD84: n.d. | BE84: n.d. | BF84: n.d. | BG84: n.d. | BH84: n.d. | BI84: n.d. | BJ84: n.d. | BK84: n.a. | BL84: n.d. | BM84: n.d. | BN84: n.a. | BO84: n.d. | BP84: n.a. | BQ84: n.d. | BR84: n.d. | BS84: n.d. | BT84: n.d. | BU84: n.d. | BV84: n.d. | BW84: n.d. | BX84: n.d. | BY84: n.d. | BZ84: n.d. | CA84: n.d. | CB84: n.d. | CC84: n.d. | CD84: n.d. | CE84: n.d. | CF84: n.d. | CG84: n.d. | CH84: n.d. | CI84: n.d. | CJ84: n.d. | CK84: n.d. | CL84: n.d. | CM84: n.d. | CN84: n.d. | CO84: n.d. | CP84: n.d. | CQ84: n.d. | CR84: n.d. | CS84: n.d. | CT84: n.d. | CU84: n.d. | CV84: n.d. | CW84: n.d. | CX84: n.d. | CY84: n.d. | CZ84: n.d. | DA84: n.d. | DB84: n.d. | DC84: n.d. | DD84: n.d. | DE84: n.d. | DF84: n.d. | DG84: n.d. | DH84: n.d.
A85: 1996 | B85: noviembre | C85: 1996-noviembre | D85: 9.544950055 | E85: 10.30180715 | F85: 8.868894602 | G85: 9.493918526 | H85: n.d. | I85: n.d. | J85: n.d. | K85: n.d. | L85: n.d. | N85: n.d. | P85: n.d. | Q85: n.d. | R85: n.d. | S85: n.d. | T85: n.d. | U85: n.d. | V85: n.d. | W85: n.d. | X85: n.d. | Y85: n.d. | Z85: n.d. | AA85: n.d. | AC85: n.d. | AD85: n.d. | AE85: n.d. | AF85: n.d. | AG85: n.d. | AH85: n.d. | AI85: n.d. | AJ85: n.d. | AK85: n.d. | AL85: n.d. | AN85: n.d. | AO85: n.d. | AP85: n.d. | AQ85: n.d. | AR85: n.d. | AS85: n.d. | AT85: n.d. | AU85: n.d. | AV85: n.d. | AW85: n.d. | AX85: n.d. | AY85: n.d. | AZ85: n.d. | BA85: n.d. | BB85: n.d. | BC85: n.d. | BD85: n.d. | BE85: n.d. | BF85: n.d. | BG85: n.d. | BH85: n.d. | BI85: n.d. | BJ85: n.d. | BK85: n.a. | BL85: n.d. | BM85: n.d. | BN85: n.a. | BO85: n.d. | BP85: n.a. | BQ85: n.d. | BR85: n.d. | BS85: n.d. | BT85: n.d. | BU85: n.d. | BV85: n.d. | BW85: n.d. | BX85: n.d. | BY85: n.d. | BZ85: n.d. | CA85: n.d. | CB85: n.d. | CC85: n.d. | CD85: n.d. | CE85: n.d. | CF85: n.d. | CG85: n.d. | CH85: n.d. | CI85: n.d. | CJ85: n.d. | CK85: n.d. | CL85: n.d. | CM85: n.d. | CN85: n.d. | CO85: n.d. | CP85: n.d. | CQ85: n.d. | CR85: n.d. | CS85: n.d. | CT85: n.d. | CU85: n.d. | CV85: n.d. | CW85: n.d. | CX85: n.d. | CY85: n.d. | CZ85: n.d. | DA85: n.d. | DB85: n.d. | DC85: n.d. | DD85: n.d. | DE85: n.d. | DF85: n.d. | DG85: n.d. | DH85: n.d.
A86: 1996 | B86: diciembre | C86: 1996-diciembre | D86: 10.12413793 | E86: 10.13359188 | F86: 9.3789931 | G86: 9.340368127 | H86: n.d. | I86: n.d. | J86: n.d. | K86: n.d. | L86: n.d. | M86: n.d. | N86: n.d. | O86: n.d. | P86: n.d. | Q86: n.d. | R86: n.d. | S86: n.d. | T86: n.d. | U86: n.d. | V86: n.d. | W86: n.d. | X86: n.d. | Y86: n.d. | Z86: n.d. | AA86: n.d. | AC86: n.d. | AD86: n.d. | AE86: n.d. | AF86: n.d. | AG86: n.d. | AH86: n.d. | AI86: n.d. | AJ86: n.d. | AK86: n.d. | AL86: n.d. | AN86: n.d. | AO86: n.d. | AP86: n.d. | AQ86: n.d. | AR86: n.d. | AS86: n.d. | AT86: n.d. | AU86: n.d. | AV86: n.d. | AW86: n.d. | AX86: n.d. | AY86: n.d. | AZ86: n.d. | BA86: n.d. | BB86: n.d. | BC86: n.d. | BD86: n.d. | BE86: n.d. | BF86: n.d. | BG86: n.d. | BH86: n.d. | BI86: n.d. | BJ86: n.d. | BK86: n.a. | BL86: n.d. | BM86: n.d. | BN86: n.a. | BO86: n.d. | BP86: n.a. | BQ86: n.d. | BR86: n.d. | BS86: n.d. | BT86: n.d. | BU86: n.d. | BV86: n.d. | BW86: n.d. | BX86: n.d. | BY86: n.d. | BZ86: n.d. | CA86: n.d. | CB86: n.d. | CC86: n.d. | CD86: n.d. | CE86: n.d. | CF86: n.d. | CG86: n.d. | CH86: n.d. | CI86: n.d. | CJ86: n.d. | CK86: n.d. | CL86: n.d. | CM86: n.d. | CN86: n.d. | CO86: n.d. | CP86: n.d. | CQ86: n.d. | CR86: n.d. | CS86: n.d. | CT86: n.d. | CU86: n.d. | CV86: n.d. | CW86: n.d. | CX86: n.d. | CY86: n.d. | CZ86: n.d. | DA86: n.d. | DB86: n.d. | DC86: n.d. | DD86: n.d. | DE86: n.d. | DF86: n.d. | DG86: n.d. | DH86: n.d.
A87: 1997 | B87: enero | C87: 1997-enero | D87: 10.9280615 | E87: 9.965994752 | F87: 10.12207528 | G87: 9.186834705 | H87: n.d. | I87: n.d. | J87: n.d. | K87: n.d. | L87: n.d. | N87: n.d. | P87: n.d. | Q87: n.d. | R87: n.d. | S87: n.d. | T87: n.d. | U87: n.d. | V87: n.d. | W87: n.d. | X87: n.d. | Y87: n.d. | Z87: n.d. | AA87: n.d. | AC87: n.d. | AD87: n.d. | AE87: n.d. | AF87: n.d. | AG87: n.d. | AH87: n.d. | AI87: n.d. | AJ87: n.d. | AK87: n.d. | AL87: n.d. | AN87: n.d. | AO87: n.d. | AP87: n.d. | AQ87: n.d. | AR87: n.d. | AS87: n.d. | AT87: n.d. | AU87: n.d. | AV87: n.d. | AW87: n.d. | AX87: n.d. | AY87: n.d. | AZ87: n.d. | BA87: n.d. | BB87: n.d. | BC87: n.d. | BD87: n.d. | BE87: n.d. | BF87: n.d. | BG87: n.d. | BH87: n.d. | BI87: n.d. | BJ87: n.d. | BK87: n.a. | BL87: n.d. | BM87: n.d. | BN87: n.a. | BO87: n.d. | BP87: n.a. | BQ87: n.d. | BR87: n.d. | BS87: n.d. | BT87: n.d. | BU87: n.d. | BV87: n.d. | BW87: n.d. | BX87: n.d. | BY87: n.d. | BZ87: n.d. | CA87: n.d. | CB87: n.d. | CC87: n.d. | CD87: n.d. | CE87: n.d. | CF87: n.d. | CG87: n.d. | CH87: n.d. | CI87: n.d. | CJ87: n.d. | CK87: n.d. | CL87: n.d. | CM87: n.d. | CN87: n.d. | CO87: n.d. | CP87: n.d. | CQ87: n.d. | CR87: n.d. | CS87: n.d. | CT87: n.d. | CU87: n.d. | CV87: n.d. | CW87: n.d. | CX87: n.d. | CY87: n.d. | CZ87: n.d. | DA87: n.d. | DB87: n.d. | DC87: n.d. | DD87: n.d. | DE87: n.d. | DF87: n.d. | DG87: n.d. | DH87: n.d.
A88: 1997 | B88: febrero | C88: 1997-febrero | D88: 11.50150974 | E88: 9.799146847 | F88: 10.63342661 | G88: 9.033449492 | H88: n.d. | I88: n.d. | J88: n.d. | K88: n.d. | L88: n.d. | N88: n.d. | P88: n.d. | Q88: n.d. | R88: n.d. | S88: n.d. | T88: n.d. | U88: n.d. | V88: n.d. | W88: n.d. | X88: n.d. | Y88: n.d. | Z88: n.d. | AA88: n.d. | AC88: n.d. | AD88: n.d. | AE88: n.d. | AF88: n.d. | AG88: n.d. | AH88: n.d. | AI88: n.d. | AJ88: n.d. | AK88: n.d. | AL88: n.d. | AN88: n.d. | AO88: n.d. | AP88: n.d. | AQ88: n.d. | AR88: n.d. | AS88: n.d. | AT88: n.d. | AU88: n.d. | AV88: n.d. | AW88: n.d. | AX88: n.d. | AY88: n.d. | AZ88: n.d. | BA88: n.d. | BB88: n.d. | BC88: n.d. | BD88: n.d. | BE88: n.d. | BF88: n.d. | BG88: n.d. | BH88: n.d. | BI88: n.d. | BJ88: n.d. | BK88: n.a. | BL88: n.d. | BM88: n.d. | BN88: n.a. | BO88: n.d. | BP88: n.a. | BQ88: n.d. | BR88: n.d. | BS88: n.d. | BT88: n.d. | BU88: n.d. | BV88: n.d. | BW88: n.d. | BX88: n.d. | BY88: n.d. | BZ88: n.d. | CA88: n.d. | CB88: n.d. | CC88: n.d. | CD88: n.d. | CE88: n.d. | CF88: n.d. | CG88: n.d. | CH88: n.d. | CI88: n.d. | CJ88: n.d. | CK88: n.d. | CL88: n.d. | CM88: n.d. | CN88: n.d. | CO88: n.d. | CP88: n.d. | CQ88: n.d. | CR88: n.d. | CS88: n.d. | CT88: n.d. | CU88: n.d. | CV88: n.d. | CW88: n.d. | CX88: n.d. | CY88: n.d. | CZ88: n.d. | DA88: n.d. | DB88: n.d. | DC88: n.d. | DD88: n.d. | DE88: n.d. | DF88: n.d. | DG88: n.d. | DH88: n.d.
A89: 1997 | B89: marzo | C89: 1997-marzo | D89: 11.02319236 | E89: 9.63323118 | F89: 10.16949153 | G89: 8.880402712 | H89: n.d. | I89: n.d. | J89: n.d. | K89: n.d. | L89: n.d. | N89: n.d. | P89: n.d. | Q89: n.d. | R89: n.d. | S89: n.d. | T89: n.d. | U89: n.d. | V89: n.d. | W89: n.d. | X89: n.d. | Y89: n.d. | Z89: n.d. | AA89: n.d. | AC89: n.d. | AD89: n.d. | AE89: n.d. | AF89: n.d. | AG89: n.d. | AH89: n.d. | AI89: n.d. | AJ89: n.d. | AK89: n.d. | AL89: n.d. | AN89: n.d. | AO89: n.d. | AP89: n.d. | AQ89: n.d. | AR89: n.d. | AS89: n.d. | AT89: n.d. | AU89: n.d. | AV89: n.d. | AW89: n.d. | AX89: n.d. | AY89: n.d. | AZ89: n.d. | BA89: n.d. | BB89: n.d. | BC89: n.d. | BD89: n.d. | BE89: n.d. | BF89: n.d. | BG89: n.d. | BH89: n.d. | BI89: n.d. | BJ89: n.d. | BK89: n.a. | BL89: n.d. | BM89: n.d. | BN89: n.a. | BO89: n.d. | BP89: n.a. | BQ89: n.d. | BR89: n.d. | BS89: n.d. | BT89: n.d. | BU89: n.d. | BV89: n.d. | BW89: n.d. | BX89: n.d. | BY89: n.d. | BZ89: n.d. | CA89: n.d. | CB89: n.d. | CC89: n.d. | CD89: n.d. | CE89: n.d. | CF89: n.d. | CG89: n.d. | CH89: n.d. | CI89: n.d. | CJ89: n.d. | CK89: n.d. | CL89: n.d. | CM89: n.d. | CN89: n.d. | CO89: n.d. | CP89: n.d. | CQ89: n.d. | CR89: n.d. | CS89: n.d. | CT89: n.d. | CU89: n.d. | CV89: n.d. | CW89: n.d. | CX89: n.d. | CY89: n.d. | CZ89: n.d. | DA89: n.d. | DB89: n.d. | DC89: n.d. | DD89: n.d. | DE89: n.d. | DF89: n.d. | DG89: n.d. | DH89: n.d.
A90: 1997 | B90: abril | C90: 1997-abril | D90: 10.66883293 | E90: 9.468514874 | F90: 9.796533534 | G90: 8.727978022 | H90: n.d. | I90: n.d. | J90: n.d. | K90: n.d. | L90: n.d. | N90: n.d. | P90: n.d. | Q90: n.d. | R90: n.d. | S90: n.d. | T90: n.d. | U90: n.d. | V90: n.d. | W90: n.d. | X90: n.d. | Y90: n.d. | Z90: n.d. | AA90: n.d. | AC90: n.d. | AD90: n.d. | AE90: n.d. | AF90: n.d. | AG90: n.d. | AH90: n.d. | AI90: n.d. | AJ90: n.d. | AK90: n.d. | AL90: n.d. | AN90: n.d. | AO90: n.d. | AP90: n.d. | AQ90: n.d. | AR90: n.d. | AS90: n.d. | AT90: n.d. | AU90: n.d. | AV90: n.d. | AW90: n.d. | AX90: n.d. | AY90: n.d. | AZ90: n.d. | BA90: n.d. | BB90: n.d. | BC90: n.d. | BD90: n.d. | BE90: n.d. | BF90: n.d. | BG90: n.d. | BH90: n.d. | BI90: n.d. | BJ90: n.d. | BK90: n.a. | BL90: n.d. | BM90: n.d. | BN90: n.a. | BO90: n.d. | BP90: n.a. | BQ90: n.d. | BR90: n.d. | BS90: n.d. | BT90: n.d. | BU90: n.d. | BV90: n.d. | BW90: n.d. | BX90: n.d. | BY90: n.d. | BZ90: n.d. | CA90: n.d. | CB90: n.d. | CC90: n.d. | CD90: n.d. | CE90: n.d. | CF90: n.d. | CG90: n.d. | CH90: n.d. | CI90: n.d. | CJ90: n.d. | CK90: n.d. | CL90: n.d. | CM90: n.d. | CN90: n.d. | CO90: n.d. | CP90: n.d. | CQ90: n.d. | CR90: n.d. | CS90: n.d. | CT90: n.d. | CU90: n.d. | CV90: n.d. | CW90: n.d. | CX90: n.d. | CY90: n.d. | CZ90: n.d. | DA90: n.d. | DB90: n.d. | DC90: n.d. | DD90: n.d. | DE90: n.d. | DF90: n.d. | DG90: n.d. | DH90: n.d.
A91: 1997 | B91: mayo | C91: 1997-mayo | D91: 10 | E91: 9.305341318 | F91: 9.236145781 | G91: 8.576541143 | H91: n.d. | I91: n.d. | J91: n.d. | K91: n.d. | L91: n.d. | N91: n.d. | P91: n.d. | Q91: n.d. | R91: n.d. | S91: n.d. | T91: n.d. | U91: n.d. | V91: n.d. | W91: n.d. | X91: n.d. | Y91: n.d. | Z91: n.d. | AA91: n.d. | AC91: n.d. | AD91: n.d. | AE91: n.d. | AF91: n.d. | AG91: n.d. | AH91: n.d. | AI91: n.d. | AJ91: n.d. | AK91: n.d. | AL91: n.d. | AN91: n.d. | AO91: n.d. | AP91: n.d. | AQ91: n.d. | AR91: n.d. | AS91: n.d. | AT91: n.d. | AU91: n.d. | AV91: n.d. | AW91: n.d. | AX91: n.d. | AY91: n.d. | AZ91: n.d. | BA91: n.d. | BB91: n.d. | BC91: n.d. | BD91: n.d. | BE91: n.d. | BF91: n.d. | BG91: n.d. | BH91: n.d. | BI91: n.d. | BJ91: n.d. | BK91: n.a. | BL91: n.d. | BM91: n.d. | BN91: n.a. | BO91: n.d. | BP91: n.a. | BQ91: n.d. | BR91: n.d. | BS91: n.d. | BT91: n.d. | BU91: n.d. | BV91: n.d. | BW91: n.d. | BX91: n.d. | BY91: n.d. | BZ91: n.d. | CA91: n.d. | CB91: n.d. | CC91: n.d. | CD91: n.d. | CE91: n.d. | CF91: n.d. | CG91: n.d. | CH91: n.d. | CI91: n.d. | CJ91: n.d. | CK91: n.d. | CL91: n.d. | CM91: n.d. | CN91: n.d. | CO91: n.d. | CP91: n.d. | CQ91: n.d. | CR91: n.d. | CS91: n.d. | CT91: n.d. | CU91: n.d. | CV91: n.d. | CW91: n.d. | CX91: n.d. | CY91: n.d. | CZ91: n.d. | DA91: n.d. | DB91: n.d. | DC91: n.d. | DD91: n.d. | DE91: n.d. | DF91: n.d. | DG91: n.d. | DH91: n.d.
A92: 1997 | B92: junio | C92: 1997-junio | D92: 9.521276596 | E92: 9.144107967 | F92: 8.823529412 | G92: 8.426515061 | H92: n.d. | I92: n.d. | J92: n.d. | K92: n.d. | L92: n.d. | N92: n.d. | P92: n.d. | Q92: n.d. | R92: n.d. | S92: n.d. | T92: n.d. | U92: n.d. | V92: n.d. | W92: n.d. | X92: n.d. | Y92: n.d. | Z92: n.d. | AA92: n.d. | AC92: n.d. | AD92: n.d. | AE92: n.d. | AF92: n.d. | AG92: n.d. | AH92: n.d. | AI92: n.d. | AJ92: n.d. | AK92: n.d. | AL92: n.d. | AN92: n.d. | AO92: n.d. | AP92: n.d. | AQ92: n.d. | AR92: n.d. | AS92: n.d. | AT92: n.d. | AU92: n.d. | AV92: n.d. | AW92: n.d. | AX92: n.d. | AY92: n.d. | AZ92: n.d. | BA92: n.d. | BB92: n.d. | BC92: n.d. | BD92: n.d. | BE92: n.d. | BF92: n.d. | BG92: n.d. | BH92: n.d. | BI92: n.d. | BJ92: n.d. | BK92: n.a. | BL92: n.d. | BM92: n.d. | BN92: n.a. | BO92: n.d. | BP92: n.a. | BQ92: n.d. | BR92: n.d. | BS92: n.d. | BT92: n.d. | BU92: n.d. | BV92: n.d. | BW92: n.d. | BX92: n.d. | BY92: n.d. | BZ92: n.d. | CA92: n.d. | CB92: n.d. | CC92: n.d. | CD92: n.d. | CE92: n.d. | CF92: n.d. | CG92: n.d. | CH92: n.d. | CI92: n.d. | CJ92: n.d. | CK92: n.d. | CL92: n.d. | CM92: n.d. | CN92: n.d. | CO92: n.d. | CP92: n.d. | CQ92: n.d. | CR92: n.d. | CS92: n.d. | CT92: n.d. | CU92: n.d. | CV92: n.d. | CW92: n.d. | CX92: n.d. | CY92: n.d. | CZ92: n.d. | DA92: n.d. | DB92: n.d. | DC92: n.d. | DD92: n.d. | DE92: n.d. | DF92: n.d. | DG92: n.d. | DH92: n.d.
A93: 1997 | B93: julio | C93: 1997-julio | D93: 9.739405107 | E93: 8.985240163 | F93: 9.035259549 | G93: 8.278351016 | H93: n.d. | I93: n.d. | J93: n.d. | K93: n.d. | L93: n.d. | N93: n.d. | P93: n.d. | Q93: n.d. | R93: n.d. | S93: n.d. | T93: n.d. | U93: n.d. | V93: n.d. | W93: n.d. | X93: n.d. | Y93: n.d. | Z93: n.d. | AA93: n.d. | AC93: n.d. | AD93: n.d. | AE93: n.d. | AF93: n.d. | AG93: n.d. | AH93: n.d. | AI93: n.d. | AJ93: n.d. | AK93: n.d. | AL93: n.d. | AN93: n.d. | AO93: n.d. | AP93: n.d. | AQ93: n.d. | AR93: n.d. | AS93: n.d. | AT93: n.d. | AU93: n.d. | AV93: n.d. | AW93: n.d. | AX93: n.d. | AY93: n.d. | AZ93: n.d. | BA93: n.d. | BB93: n.d. | BC93: n.d. | BD93: n.d. | BE93: n.d. | BF93: n.d. | BG93: n.d. | BH93: n.d. | BI93: n.d. | BJ93: n.d. | BK93: n.a. | BL93: n.d. | BM93: n.d. | BN93: n.a. | BO93: n.d. | BP93: n.a. | BQ93: n.d. | BR93: n.d. | BS93: n.d. | BT93: n.d. | BU93: n.d. | BV93: n.d. | BW93: n.d. | BX93: n.d. | BY93: n.d. | BZ93: n.d. | CA93: n.d. | CB93: n.d. | CC93: n.d. | CD93: n.d. | CE93: n.d. | CF93: n.d. | CG93: n.d. | CH93: n.d. | CI93: n.d. | CJ93: n.d. | CK93: n.d. | CL93: n.d. | CM93: n.d. | CN93: n.d. | CO93: n.d. | CP93: n.d. | CQ93: n.d. | CR93: n.d. | CS93: n.d. | CT93: n.d. | CU93: n.d. | CV93: n.d. | CW93: n.d. | CX93: n.d. | CY93: n.d. | CZ93: n.d. | DA93: n.d. | DB93: n.d. | DC93: n.d. | DD93: n.d. | DE93: n.d. | DF93: n.d. | DG93: n.d. | DH93: n.d.
A94: 1997 | B94: agosto | C94: 1997-agosto | D94: 9.201975565 | E94: 8.829177434 | F94: 8.492620373 | G94: 8.132519764 | H94: n.d. | I94: n.d. | J94: n.d. | K94: n.d. | L94: n.d. | N94: n.d. | P94: n.d. | Q94: n.d. | R94: n.d. | S94: n.d. | T94: n.d. | U94: n.d. | V94: n.d. | W94: n.d. | X94: n.d. | Y94: n.d. | Z94: n.d. | AA94: n.d. | AC94: n.d. | AD94: n.d. | AE94: n.d. | AF94: n.d. | AG94: n.d. | AH94: n.d. | AI94: n.d. | AJ94: n.d. | AK94: n.d. | AL94: n.d. | AN94: n.d. | AO94: n.d. | AP94: n.d. | AQ94: n.d. | AR94: n.d. | AS94: n.d. | AT94: n.d. | AU94: n.d. | AV94: n.d. | AW94: n.d. | AX94: n.d. | AY94: n.d. | AZ94: n.d. | BA94: n.d. | BB94: n.d. | BC94: n.d. | BD94: n.d. | BE94: n.d. | BF94: n.d. | BG94: n.d. | BH94: n.d. | BI94: n.d. | BJ94: n.d. | BK94: n.a. | BL94: n.d. | BM94: n.d. | BN94: n.a. | BO94: n.d. | BP94: n.a. | BQ94: n.d. | BR94: n.d. | BS94: n.d. | BT94: n.d. | BU94: n.d. | BV94: n.d. | BW94: n.d. | BX94: n.d. | BY94: n.d. | BZ94: n.d. | CA94: n.d. | CB94: n.d. | CC94: n.d. | CD94: n.d. | CE94: n.d. | CF94: n.d. | CG94: n.d. | CH94: n.d. | CI94: n.d. | CJ94: n.d. | CK94: n.d. | CL94: n.d. | CM94: n.d. | CN94: n.d. | CO94: n.d. | CP94: n.d. | CQ94: n.d. | CR94: n.d. | CS94: n.d. | CT94: n.d. | CU94: n.d. | CV94: n.d. | CW94: n.d. | CX94: n.d. | CY94: n.d. | CZ94: n.d. | DA94: n.d. | DB94: n.d. | DC94: n.d. | DD94: n.d. | DE94: n.d. | DF94: n.d. | DG94: n.d. | DH94: n.d.
A95: 1997 | B95: septiembre | C95: 1997-septiembre | D95: 8.924426103 | E95: 8.676380796 | F95: 8.213256484 | G95: 7.98951801 | H95: n.d. | I95: n.d. | J95: n.d. | K95: n.d. | L95: n.d. | N95: n.d. | P95: n.d. | Q95: n.d. | R95: n.d. | S95: n.d. | T95: n.d. | U95: n.d. | V95: n.d. | W95: n.d. | X95: n.d. | Y95: n.d. | Z95: n.d. | AA95: n.d. | AC95: n.d. | AD95: n.d. | AE95: n.d. | AF95: n.d. | AG95: n.d. | AH95: n.d. | AI95: n.d. | AJ95: n.d. | AK95: n.d. | AL95: n.d. | AN95: n.d. | AO95: n.d. | AP95: n.d. | AQ95: n.d. | AR95: n.d. | AS95: n.d. | AT95: n.d. | AU95: n.d. | AV95: n.d. | AW95: n.d. | AX95: n.d. | AY95: n.d. | AZ95: n.d. | BA95: n.d. | BB95: n.d. | BC95: n.d. | BD95: n.d. | BE95: n.d. | BF95: n.d. | BG95: n.d. | BH95: n.d. | BI95: n.d. | BJ95: n.d. | BK95: n.a. | BL95: n.d. | BM95: n.d. | BN95: n.a. | BO95: n.d. | BP95: n.a. | BQ95: n.d. | BR95: n.d. | BS95: n.d. | BT95: n.d. | BU95: n.d. | BV95: n.d. | BW95: n.d. | BX95: n.d. | BY95: n.d. | BZ95: n.d. | CA95: n.d. | CB95: n.d. | CC95: n.d. | CD95: n.d. | CE95: n.d. | CF95: n.d. | CG95: n.d. | CH95: n.d. | CI95: n.d. | CJ95: n.d. | CK95: n.d. | CL95: n.d. | CM95: n.d. | CN95: n.d. | CO95: n.d. | CP95: n.d. | CQ95: n.d. | CR95: n.d. | CS95: n.d. | CT95: n.d. | CU95: n.d. | CV95: n.d. | CW95: n.d. | CX95: n.d. | CY95: n.d. | CZ95: n.d. | DA95: n.d. | DB95: n.d. | DC95: n.d. | DD95: n.d. | DE95: n.d. | DF95: n.d. | DG95: n.d. | DH95: n.d.
A96: 1997 | B96: octubre | C96: 1997-octubre | D96: 8.469805527 | E96: 8.527323733 | F96: 7.723480334 | G96: 7.849859188 | H96: n.d. | I96: n.d. | J96: n.d. | K96: n.d. | L96: n.d. | N96: n.d. | P96: n.d. | Q96: n.d. | R96: n.d. | S96: n.d. | T96: n.d. | U96: n.d. | V96: n.d. | W96: n.d. | X96: n.d. | Y96: n.d. | Z96: n.d. | AA96: n.d. | AC96: n.d. | AD96: n.d. | AE96: n.d. | AF96: n.d. | AG96: n.d. | AH96: n.d. | AI96: n.d. | AJ96: n.d. | AK96: n.d. | AL96: n.d. | AN96: n.d. | AO96: n.d. | AP96: n.d. | AQ96: n.d. | AR96: n.d. | AS96: n.d. | AT96: n.d. | AU96: n.d. | AV96: n.d. | AW96: n.d. | AX96: n.d. | AY96: n.d. | AZ96: n.d. | BA96: n.d. | BB96: n.d. | BC96: n.d. | BD96: n.d. | BE96: n.d. | BF96: n.d. | BG96: n.d. | BH96: n.d. | BI96: n.d. | BJ96: n.d. | BK96: n.a. | BL96: n.d. | BM96: n.d. | BN96: n.a. | BO96: n.d. | BP96: n.a. | BQ96: n.d. | BR96: n.d. | BS96: n.d. | BT96: n.d. | BU96: n.d. | BV96: n.d. | BW96: n.d. | BX96: n.d. | BY96: n.d. | BZ96: n.d. | CA96: n.d. | CB96: n.d. | CC96: n.d. | CD96: n.d. | CE96: n.d. | CF96: n.d. | CG96: n.d. | CH96: n.d. | CI96: n.d. | CJ96: n.d. | CK96: n.d. | CL96: n.d. | CM96: n.d. | CN96: n.d. | CO96: n.d. | CP96: n.d. | CQ96: n.d. | CR96: n.d. | CS96: n.d. | CT96: n.d. | CU96: n.d. | CV96: n.d. | CW96: n.d. | CX96: n.d. | CY96: n.d. | CZ96: n.d. | DA96: n.d. | DB96: n.d. | DC96: n.d. | DD96: n.d. | DE96: n.d. | DF96: n.d. | DG96: n.d. | DH96: n.d.
A97: 1997 | B97: noviembre | C97: 1997-noviembre | D97: 8.257345491 | E97: 8.382478819 | F97: 7.508854782 | G97: 7.714056007 | H97: n.d. | I97: n.d. | J97: n.d. | K97: n.d. | L97: n.d. | N97: n.d. | P97: n.d. | Q97: n.d. | R97: n.d. | S97: n.d. | T97: n.d. | U97: n.d. | V97: n.d. | W97: n.d. | X97: n.d. | Y97: n.d. | Z97: n.d. | AA97: n.d. | AC97: n.d. | AD97: n.d. | AE97: n.d. | AF97: n.d. | AG97: n.d. | AH97: n.d. | AI97: n.d. | AJ97: n.d. | AK97: n.d. | AL97: n.d. | AN97: n.d. | AO97: n.d. | AP97: n.d. | AQ97: n.d. | AR97: n.d. | AS97: n.d. | AT97: n.d. | AU97: n.d. | AV97: n.d. | AW97: n.d. | AX97: n.d. | AY97: n.d. | AZ97: n.d. | BA97: n.d. | BB97: n.d. | BC97: n.d. | BD97: n.d. | BE97: n.d. | BF97: n.d. | BG97: n.d. | BH97: n.d. | BI97: n.d. | BJ97: n.d. | BK97: n.a. | BL97: n.d. | BM97: n.d. | BN97: n.a. | BO97: n.d. | BP97: n.a. | BQ97: n.d. | BR97: n.d. | BS97: n.d. | BT97: n.d. | BU97: n.d. | BV97: n.d. | BW97: n.d. | BX97: n.d. | BY97: n.d. | BZ97: n.d. | CA97: n.d. | CB97: n.d. | CC97: n.d. | CD97: n.d. | CE97: n.d. | CF97: n.d. | CG97: n.d. | CH97: n.d. | CI97: n.d. | CJ97: n.d. | CK97: n.d. | CL97: n.d. | CM97: n.d. | CN97: n.d. | CO97: n.d. | CP97: n.d. | CQ97: n.d. | CR97: n.d. | CS97: n.d. | CT97: n.d. | CU97: n.d. | CV97: n.d. | CW97: n.d. | CX97: n.d. | CY97: n.d. | CZ97: n.d. | DA97: n.d. | DB97: n.d. | DC97: n.d. | DD97: n.d. | DE97: n.d. | DF97: n.d. | DG97: n.d. | DH97: n.d.
A98: 1997 | B98: diciembre | C98: 1997-diciembre | D98: 7.565130261 | E98: 8.242307023 | F98: 6.845794393 | G98: 7.582606163 | H98: n.d. | I98: n.d. | J98: n.d. | K98: n.d. | L98: n.d. | M98: n.d. | N98: n.d. | O98: n.d. | P98: n.d. | Q98: n.d. | R98: n.d. | S98: n.d. | T98: n.d. | U98: n.d. | V98: n.d. | W98: n.d. | X98: n.d. | Y98: n.d. | Z98: n.d. | AA98: n.d. | AC98: n.d. | AD98: n.d. | AE98: n.d. | AF98: n.d. | AG98: n.d. | AH98: n.d. | AI98: n.d. | AJ98: n.d. | AK98: n.d. | AL98: n.d. | AN98: n.d. | AO98: n.d. | AP98: n.d. | AQ98: n.d. | AR98: n.d. | AS98: n.d. | AT98: n.d. | AU98: n.d. | AV98: n.d. | AW98: n.d. | AX98: n.d. | AY98: n.d. | AZ98: n.d. | BA98: n.d. | BB98: n.d. | BC98: n.d. | BD98: n.d. | BE98: n.d. | BF98: n.d. | BG98: n.d. | BH98: n.d. | BI98: n.d. | BJ98: n.d. | BK98: n.a. | BL98: n.d. | BM98: n.d. | BN98: n.a. | BO98: n.d. | BP98: n.a. | BQ98: n.d. | BR98: n.d. | BS98: n.d. | BT98: n.d. | BU98: n.d. | BV98: n.d. | BW98: n.d. | BX98: n.d. | BY98: n.d. | BZ98: n.d. | CA98: n.d. | CB98: n.d. | CC98: n.d. | CD98: n.d. | CE98: n.d. | CF98: n.d. | CG98: n.d. | CH98: n.d. | CI98: n.d. | CJ98: n.d. | CK98: n.d. | CL98: n.d. | CM98: n.d. | CN98: n.d. | CO98: n.d. | CP98: n.d. | CQ98: n.d. | CR98: n.d. | CS98: n.d. | CT98: n.d. | CU98: n.d. | CV98: n.d. | CW98: n.d. | CX98: n.d. | CY98: n.d. | CZ98: n.d. | DA98: n.d. | DB98: n.d. | DC98: n.d. | DD98: n.d. | DE98: n.d. | DF98: n.d. | DG98: n.d. | DH98: n.d.
A99: 1998 | B99: enero | C99: 1998-enero | D99: 6.905940594 | E99: 8.107246693 | F99: 6.281755196 | G99: 7.455977582 | H99: n.d. | I99: n.d. | J99: n.d. | K99: n.d. | L99: n.d. | N99: n.d. | P99: n.d. | Q99: n.d. | R99: n.d. | S99: n.d. | T99: n.d. | U99: n.d. | V99: n.d. | W99: n.d. | X99: n.d. | Y99: n.d. | Z99: n.d. | AA99: n.d. | AC99: n.d. | AD99: n.d. | AE99: n.d. | AF99: n.d. | AG99: n.d. | AH99: n.d. | AI99: n.d. | AJ99: n.d. | AK99: n.d. | AL99: n.d. | AN99: n.d. | AO99: n.d. | AP99: n.d. | AQ99: n.d. | AR99: n.d. | AS99: n.d. | AT99: n.d. | AU99: n.d. | AV99: n.d. | AW99: n.d. | AX99: n.d. | AY99: n.d. | AZ99: n.d. | BA99: n.d. | BB99: n.d. | BC99: n.d. | BD99: n.d. | BE99: n.d. | BF99: n.d. | BG99: n.d. | BH99: n.d. | BI99: n.d. | BJ99: n.d. | BK99: n.a. | BL99: n.d. | BM99: n.d. | BN99: n.a. | BO99: n.d. | BP99: n.a. | BQ99: n.d. | BR99: n.d. | BS99: n.d. | BT99: n.d. | BU99: n.d. | BV99: n.d. | BW99: n.d. | BX99: n.d. | BY99: n.d. | BZ99: n.d. | CA99: n.d. | CB99: n.d. | CC99: n.d. | CD99: n.d. | CE99: n.d. | CF99: n.d. | CG99: n.d. | CH99: n.d. | CI99: n.d. | CJ99: n.d. | CK99: n.d. | CL99: n.d. | CM99: n.d. | CN99: n.d. | CO99: n.d. | CP99: n.d. | CQ99: n.d. | CR99: n.d. | CS99: n.d. | CT99: n.d. | CU99: n.d. | CV99: n.d. | CW99: n.d. | CX99: n.d. | CY99: n.d. | CZ99: n.d. | DA99: n.d. | DB99: n.d. | DC99: n.d. | DD99: n.d. | DE99: n.d. | DF99: n.d. | DG99: n.d. | DH99: n.d.
A100: 1998 | B100: febrero | C100: 1998-febrero | D100: 6.326932546 | E100: 7.977688275 | F100: 5.748447919 | G100: 7.334581804 | H100: n.d. | I100: n.d. | J100: n.d. | K100: n.d. | L100: n.d. | N100: n.d. | P100: n.d. | Q100: n.d. | R100: n.d. | S100: n.d. | T100: n.d. | U100: n.d. | V100: n.d. | W100: n.d. | X100: n.d. | Y100: n.d. | Z100: n.d. | AA100: n.d. | AC100: n.d. | AD100: n.d. | AE100: n.d. | AF100: n.d. | AG100: n.d. | AH100: n.d. | AI100: n.d. | AJ100: n.d. | AK100: n.d. | AL100: n.d. | AN100: n.d. | AO100: n.d. | AP100: n.d. | AQ100: n.d. | AR100: n.d. | AS100: n.d. | AT100: n.d. | AU100: n.d. | AV100: n.d. | AW100: n.d. | AX100: n.d. | AY100: n.d. | AZ100: n.d. | BA100: n.d. | BB100: n.d. | BC100: n.d. | BD100: n.d. | BE100: n.d. | BF100: n.d. | BG100: n.d. | BH100: n.d. | BI100: n.d. | BJ100: n.d. | BK100: n.a. | BL100: n.d. | BM100: n.d. | BN100: n.a. | BO100: n.d. | BP100: n.a. | BQ100: n.d. | BR100: n.d. | BS100: n.d. | BT100: n.d. | BU100: n.d. | BV100: n.d. | BW100: n.d. | BX100: n.d. | BY100: n.d. | BZ100: n.d. | CA100: n.d. | CB100: n.d. | CC100: n.d. | CD100: n.d. | CE100: n.d. | CF100: n.d. | CG100: n.d. | CH100: n.d. | CI100: n.d. | CJ100: n.d. | CK100: n.d. | CL100: n.d. | CM100: n.d. | CN100: n.d. | CO100: n.d. | CP100: n.d. | CQ100: n.d. | CR100: n.d. | CS100: n.d. | CT100: n.d. | CU100: n.d. | CV100: n.d. | CW100: n.d. | CX100: n.d. | CY100: n.d. | CZ100: n.d. | DA100: n.d. | DB100: n.d. | DC100: n.d. | DD100: n.d. | DE100: n.d. | DF100: n.d. | DG100: n.d. | DH100: n.d.
A101: 1998 | B101: marzo | C101: 1998-marzo | D101: 6.635536987 | E101: 7.853938649 | F101: 6.039035591 | G101: 7.218737924 | H101: n.d. | I101: n.d. | J101: n.d. | K101: n.d. | L101: n.d. | N101: n.d. | P101: n.d. | Q101: n.d. | R101: n.d. | S101: n.d. | T101: n.d. | U101: n.d. | V101: n.d. | W101: n.d. | X101: n.d. | Y101: n.d. | Z101: n.d. | AA101: n.d. | AC101: n.d. | AD101: n.d. | AE101: n.d. | AF101: n.d. | AG101: n.d. | AH101: n.d. | AI101: n.d. | AJ101: n.d. | AK101: n.d. | AL101: n.d. | AN101: n.d. | AO101: n.d. | AP101: n.d. | AQ101: n.d. | AR101: n.d. | AS101: n.d. | AT101: n.d. | AU101: n.d. | AV101: n.d. | AW101: n.d. | AX101: n.d. | AY101: n.d. | AZ101: n.d. | BA101: n.d. | BB101: n.d. | BC101: n.d. | BD101: n.d. | BE101: n.d. | BF101: n.d. | BG101: n.d. | BH101: n.d. | BI101: n.d. | BJ101: n.d. | BK101: n.a. | BL101: n.d. | BM101: n.d. | BN101: n.a. | BO101: n.d. | BP101: n.a. | BQ101: n.d. | BR101: n.d. | BS101: n.d. | BT101: n.d. | BU101: n.d. | BV101: n.d. | BW101: n.d. | BX101: n.d. | BY101: n.d. | BZ101: n.d. | CA101: n.d. | CB101: n.d. | CC101: n.d. | CD101: n.d. | CE101: n.d. | CF101: n.d. | CG101: n.d. | CH101: n.d. | CI101: n.d. | CJ101: n.d. | CK101: n.d. | CL101: n.d. | CM101: n.d. | CN101: n.d. | CO101: n.d. | CP101: n.d. | CQ101: n.d. | CR101: n.d. | CS101: n.d. | CT101: n.d. | CU101: n.d. | CV101: n.d. | CW101: n.d. | CX101: n.d. | CY101: n.d. | CZ101: n.d. | DA101: n.d. | DB101: n.d. | DC101: n.d. | DD101: n.d. | DE101: n.d. | DF101: n.d. | DG101: n.d. | DH101: n.d.
A102: 1998 | B102: abril | C102: 1998-abril | D102: 6.948862246 | E102: 7.736205503 | F102: 6.337222604 | G102: 7.108654511 | H102: n.d. | I102: n.d. | J102: n.d. | K102: n.d. | L102: n.d. | N102: n.d. | P102: n.d. | Q102: n.d. | R102: n.d. | S102: n.d. | T102: n.d. | U102: n.d. | V102: n.d. | W102: n.d. | X102: n.d. | Y102: n.d. | Z102: n.d. | AA102: n.d. | AC102: n.d. | AD102: n.d. | AE102: n.d. | AF102: n.d. | AG102: n.d. | AH102: n.d. | AI102: n.d. | AJ102: n.d. | AK102: n.d. | AL102: n.d. | AN102: n.d. | AO102: n.d. | AP102: n.d. | AQ102: n.d. | AR102: n.d. | AS102: n.d. | AT102: n.d. | AU102: n.d. | AV102: n.d. | AW102: n.d. | AX102: n.d. | AY102: n.d. | AZ102: n.d. | BA102: n.d. | BB102: n.d. | BC102: n.d. | BD102: n.d. | BE102: n.d. | BF102: n.d. | BG102: n.d. | BH102: n.d. | BI102: n.d. | BJ102: n.d. | BK102: n.a. | BL102: n.d. | BM102: n.d. | BN102: n.a. | BO102: n.d. | BP102: n.a. | BQ102: n.d. | BR102: n.d. | BS102: n.d. | BT102: n.d. | BU102: n.d. | BV102: n.d. | BW102: n.d. | BX102: n.d. | BY102: n.d. | BZ102: n.d. | CA102: n.d. | CB102: n.d. | CC102: n.d. | CD102: n.d. | CE102: n.d. | CF102: n.d. | CG102: n.d. | CH102: n.d. | CI102: n.d. | CJ102: n.d. | CK102: n.d. | CL102: n.d. | CM102: n.d. | CN102: n.d. | CO102: n.d. | CP102: n.d. | CQ102: n.d. | CR102: n.d. | CS102: n.d. | CT102: n.d. | CU102: n.d. | CV102: n.d. | CW102: n.d. | CX102: n.d. | CY102: n.d. | CZ102: n.d. | DA102: n.d. | DB102: n.d. | DC102: n.d. | DD102: n.d. | DE102: n.d. | DF102: n.d. | DG102: n.d. | DH102: n.d.
A103: 1998 | B103: mayo | C103: 1998-mayo | D103: 7.404692082 | E103: 7.624614853 | F103: 6.741316271 | G103: 7.004450291 | H103: n.d. | I103: n.d. | J103: n.d. | K103: n.d. | L103: n.d. | N103: n.d. | P103: n.d. | Q103: n.d. | R103: n.d. | S103: n.d. | T103: n.d. | U103: n.d. | V103: n.d. | W103: n.d. | X103: n.d. | Y103: n.d. | Z103: n.d. | AA103: n.d. | AC103: n.d. | AD103: n.d. | AE103: n.d. | AF103: n.d. | AG103: n.d. | AH103: n.d. | AI103: n.d. | AJ103: n.d. | AK103: n.d. | AL103: n.d. | AN103: n.d. | AO103: n.d. | AP103: n.d. | AQ103: n.d. | AR103: n.d. | AS103: n.d. | AT103: n.d. | AU103: n.d. | AV103: n.d. | AW103: n.d. | AX103: n.d. | AY103: n.d. | AZ103: n.d. | BA103: n.d. | BB103: n.d. | BC103: n.d. | BD103: n.d. | BE103: n.d. | BF103: n.d. | BG103: n.d. | BH103: n.d. | BI103: n.d. | BJ103: n.d. | BK103: n.a. | BL103: n.d. | BM103: n.d. | BN103: n.a. | BO103: n.d. | BP103: n.a. | BQ103: n.d. | BR103: n.d. | BS103: n.d. | BT103: n.d. | BU103: n.d. | BV103: n.d. | BW103: n.d. | BX103: n.d. | BY103: n.d. | BZ103: n.d. | CA103: n.d. | CB103: n.d. | CC103: n.d. | CD103: n.d. | CE103: n.d. | CF103: n.d. | CG103: n.d. | CH103: n.d. | CI103: n.d. | CJ103: n.d. | CK103: n.d. | CL103: n.d. | CM103: n.d. | CN103: n.d. | CO103: n.d. | CP103: n.d. | CQ103: n.d. | CR103: n.d. | CS103: n.d. | CT103: n.d. | CU103: n.d. | CV103: n.d. | CW103: n.d. | CX103: n.d. | CY103: n.d. | CZ103: n.d. | DA103: n.d. | DB103: n.d. | DC103: n.d. | DD103: n.d. | DE103: n.d. | DF103: n.d. | DG103: n.d. | DH103: n.d.
A104: 1998 | B104: junio | C104: 1998-junio | D104: 7.455075279 | E104: 7.519247163 | F104: 6.76811265 | G104: 6.90619143 | H104: n.d. | I104: n.d. | J104: n.d. | K104: n.d. | L104: n.d. | N104: n.d. | P104: n.d. | Q104: n.d. | R104: n.d. | S104: n.d. | T104: n.d. | U104: n.d. | V104: n.d. | W104: n.d. | X104: n.d. | Y104: n.d. | Z104: n.d. | AA104: n.d. | AC104: n.d. | AD104: n.d. | AE104: n.d. | AF104: n.d. | AG104: n.d. | AH104: n.d. | AI104: n.d. | AJ104: n.d. | AK104: n.d. | AL104: n.d. | AN104: n.d. | AO104: n.d. | AP104: n.d. | AQ104: n.d. | AR104: n.d. | AS104: n.d. | AT104: n.d. | AU104: n.d. | AV104: n.d. | AW104: n.d. | AX104: n.d. | AY104: n.d. | AZ104: n.d. | BA104: n.d. | BB104: n.d. | BC104: n.d. | BD104: n.d. | BE104: n.d. | BF104: n.d. | BG104: n.d. | BH104: n.d. | BI104: n.d. | BJ104: n.d. | BK104: n.a. | BL104: n.d. | BM104: n.d. | BN104: n.a. | BO104: n.d. | BP104: n.a. | BQ104: n.d. | BR104: n.d. | BS104: n.d. | BT104: n.d. | BU104: n.d. | BV104: n.d. | BW104: n.d. | BX104: n.d. | BY104: n.d. | BZ104: n.d. | CA104: n.d. | CB104: n.d. | CC104: n.d. | CD104: n.d. | CE104: n.d. | CF104: n.d. | CG104: n.d. | CH104: n.d. | CI104: n.d. | CJ104: n.d. | CK104: n.d. | CL104: n.d. | CM104: n.d. | CN104: n.d. | CO104: n.d. | CP104: n.d. | CQ104: n.d. | CR104: n.d. | CS104: n.d. | CT104: n.d. | CU104: n.d. | CV104: n.d. | CW104: n.d. | CX104: n.d. | CY104: n.d. | CZ104: n.d. | DA104: n.d. | DB104: n.d. | DC104: n.d. | DD104: n.d. | DE104: n.d. | DF104: n.d. | DG104: n.d. | DH104: n.d.
A105: 1998 | B105: julio | C105: 1998-julio | D105: 7.004077716 | E105: 7.420167177 | F105: 6.377722883 | G105: 6.813923775 | H105: n.d. | I105: n.d. | J105: n.d. | K105: n.d. | L105: n.d. | N105: n.d. | P105: n.d. | Q105: n.d. | R105: n.d. | S105: n.d. | T105: n.d. | U105: n.d. | V105: n.d. | W105: n.d. | X105: n.d. | Y105: n.d. | Z105: n.d. | AA105: n.d. | AC105: n.d. | AD105: n.d. | AE105: n.d. | AF105: n.d. | AG105: n.d. | AH105: n.d. | AI105: n.d. | AJ105: n.d. | AK105: n.d. | AL105: n.d. | AN105: n.d. | AO105: n.d. | AP105: n.d. | AQ105: n.d. | AR105: n.d. | AS105: n.d. | AT105: n.d. | AU105: n.d. | AV105: n.d. | AW105: n.d. | AX105: n.d. | AY105: n.d. | AZ105: n.d. | BA105: n.d. | BB105: n.d. | BC105: n.d. | BD105: n.d. | BE105: n.d. | BF105: n.d. | BG105: n.d. | BH105: n.d. | BI105: n.d. | BJ105: n.d. | BK105: n.a. | BL105: n.d. | BM105: n.d. | BN105: n.a. | BO105: n.d. | BP105: n.a. | BQ105: n.d. | BR105: n.d. | BS105: n.d. | BT105: n.d. | BU105: n.d. | BV105: n.d. | BW105: n.d. | BX105: n.d. | BY105: n.d. | BZ105: n.d. | CA105: n.d. | CB105: n.d. | CC105: n.d. | CD105: n.d. | CE105: n.d. | CF105: n.d. | CG105: n.d. | CH105: n.d. | CI105: n.d. | CJ105: n.d. | CK105: n.d. | CL105: n.d. | CM105: n.d. | CN105: n.d. | CO105: n.d. | CP105: n.d. | CQ105: n.d. | CR105: n.d. | CS105: n.d. | CT105: n.d. | CU105: n.d. | CV105: n.d. | CW105: n.d. | CX105: n.d. | CY105: n.d. | CZ105: n.d. | DA105: n.d. | DB105: n.d. | DC105: n.d. | DD105: n.d. | DE105: n.d. | DF105: n.d. | DG105: n.d. | DH105: n.d.
A106: 1998 | B106: agosto | C106: 1998-agosto | D106: 6.569864318 | E106: 7.327433966 | F106: 5.976806423 | G106: 6.72768223 | H106: n.d. | I106: n.d. | J106: n.d. | K106: n.d. | L106: n.d. | N106: n.d. | P106: n.d. | Q106: n.d. | R106: n.d. | S106: n.d. | T106: n.d. | U106: n.d. | V106: n.d. | W106: n.d. | X106: n.d. | Y106: n.d. | Z106: n.d. | AA106: n.d. | AC106: n.d. | AD106: n.d. | AE106: n.d. | AF106: n.d. | AG106: n.d. | AH106: n.d. | AI106: n.d. | AJ106: n.d. | AK106: n.d. | AL106: n.d. | AN106: n.d. | AO106: n.d. | AP106: n.d. | AQ106: n.d. | AR106: n.d. | AS106: n.d. | AT106: n.d. | AU106: n.d. | AV106: n.d. | AW106: n.d. | AX106: n.d. | AY106: n.d. | AZ106: n.d. | BA106: n.d. | BB106: n.d. | BC106: n.d. | BD106: n.d. | BE106: n.d. | BF106: n.d. | BG106: n.d. | BH106: n.d. | BI106: n.d. | BJ106: n.d. | BK106: n.a. | BL106: n.d. | BM106: n.d. | BN106: n.a. | BO106: n.d. | BP106: n.a. | BQ106: n.d. | BR106: n.d. | BS106: n.d. | BT106: n.d. | BU106: n.d. | BV106: n.d. | BW106: n.d. | BX106: n.d. | BY106: n.d. | BZ106: n.d. | CA106: n.d. | CB106: n.d. | CC106: n.d. | CD106: n.d. | CE106: n.d. | CF106: n.d. | CG106: n.d. | CH106: n.d. | CI106: n.d. | CJ106: n.d. | CK106: n.d. | CL106: n.d. | CM106: n.d. | CN106: n.d. | CO106: n.d. | CP106: n.d. | CQ106: n.d. | CR106: n.d. | CS106: n.d. | CT106: n.d. | CU106: n.d. | CV106: n.d. | CW106: n.d. | CX106: n.d. | CY106: n.d. | CZ106: n.d. | DA106: n.d. | DB106: n.d. | DC106: n.d. | DD106: n.d. | DE106: n.d. | DF106: n.d. | DG106: n.d. | DH106: n.d.
A107: 1998 | B107: septiembre | C107: 1998-septiembre | D107: 6.275159839 | E107: 7.241084247 | F107: 5.770084332 | G107: 6.647474918 | H107: n.d. | I107: n.d. | J107: n.d. | K107: n.d. | L107: n.d. | N107: n.d. | P107: n.d. | Q107: n.d. | R107: n.d. | S107: n.d. | T107: n.d. | U107: n.d. | V107: n.d. | W107: n.d. | X107: n.d. | Y107: n.d. | Z107: n.d. | AA107: n.d. | AC107: n.d. | AD107: n.d. | AE107: n.d. | AF107: n.d. | AG107: n.d. | AH107: n.d. | AI107: n.d. | AJ107: n.d. | AK107: n.d. | AL107: n.d. | AN107: n.d. | AO107: n.d. | AP107: n.d. | AQ107: n.d. | AR107: n.d. | AS107: n.d. | AT107: n.d. | AU107: n.d. | AV107: n.d. | AW107: n.d. | AX107: n.d. | AY107: n.d. | AZ107: n.d. | BA107: n.d. | BB107: n.d. | BC107: n.d. | BD107: n.d. | BE107: n.d. | BF107: n.d. | BG107: n.d. | BH107: n.d. | BI107: n.d. | BJ107: n.d. | BK107: n.a. | BL107: n.d. | BM107: n.d. | BN107: n.a. | BO107: n.d. | BP107: n.a. | BQ107: n.d. | BR107: n.d. | BS107: n.d. | BT107: n.d. | BU107: n.d. | BV107: n.d. | BW107: n.d. | BX107: n.d. | BY107: n.d. | BZ107: n.d. | CA107: n.d. | CB107: n.d. | CC107: n.d. | CD107: n.d. | CE107: n.d. | CF107: n.d. | CG107: n.d. | CH107: n.d. | CI107: n.d. | CJ107: n.d. | CK107: n.d. | CL107: n.d. | CM107: n.d. | CN107: n.d. | CO107: n.d. | CP107: n.d. | CQ107: n.d. | CR107: n.d. | CS107: n.d. | CT107: n.d. | CU107: n.d. | CV107: n.d. | CW107: n.d. | CX107: n.d. | CY107: n.d. | CZ107: n.d. | DA107: n.d. | DB107: n.d. | DC107: n.d. | DD107: n.d. | DE107: n.d. | DF107: n.d. | DG107: n.d. | DH107: n.d.
A108: 1998 | B108: octubre | C108: 1998-octubre | D108: 6.86482661 | E108: 7.161109496 | F108: 6.395220181 | G108: 6.573258844 | H108: n.d. | I108: n.d. | J108: n.d. | K108: n.d. | L108: n.d. | N108: n.d. | P108: n.d. | Q108: n.d. | R108: n.d. | S108: n.d. | T108: n.d. | U108: n.d. | V108: n.d. | W108: n.d. | X108: n.d. | Y108: n.d. | Z108: n.d. | AA108: n.d. | AC108: n.d. | AD108: n.d. | AE108: n.d. | AF108: n.d. | AG108: n.d. | AH108: n.d. | AI108: n.d. | AJ108: n.d. | AK108: n.d. | AL108: n.d. | AN108: n.d. | AO108: n.d. | AP108: n.d. | AQ108: n.d. | AR108: n.d. | AS108: n.d. | AT108: n.d. | AU108: n.d. | AV108: n.d. | AW108: n.d. | AX108: n.d. | AY108: n.d. | AZ108: n.d. | BA108: n.d. | BB108: n.d. | BC108: n.d. | BD108: n.d. | BE108: n.d. | BF108: n.d. | BG108: n.d. | BH108: n.d. | BI108: n.d. | BJ108: n.d. | BK108: n.a. | BL108: n.d. | BM108: n.d. | BN108: n.a. | BO108: n.d. | BP108: n.a. | BQ108: n.d. | BR108: n.d. | BS108: n.d. | BT108: n.d. | BU108: n.d. | BV108: n.d. | BW108: n.d. | BX108: n.d. | BY108: n.d. | BZ108: n.d. | CA108: n.d. | CB108: n.d. | CC108: n.d. | CD108: n.d. | CE108: n.d. | CF108: n.d. | CG108: n.d. | CH108: n.d. | CI108: n.d. | CJ108: n.d. | CK108: n.d. | CL108: n.d. | CM108: n.d. | CN108: n.d. | CO108: n.d. | CP108: n.d. | CQ108: n.d. | CR108: n.d. | CS108: n.d. | CT108: n.d. | CU108: n.d. | CV108: n.d. | CW108: n.d. | CX108: n.d. | CY108: n.d. | CZ108: n.d. | DA108: n.d. | DB108: n.d. | DC108: n.d. | DD108: n.d. | DE108: n.d. | DF108: n.d. | DG108: n.d. | DH108: n.d.
A109: 1998 | B109: noviembre | C109: 1998-noviembre | D109: 8.633598503 | E109: 7.087454934 | F109: 7.97276521 | G109: 6.504943551 | H109: n.d. | I109: n.d. | J109: n.d. | K109: n.d. | L109: n.d. | N109: n.d. | P109: n.d. | Q109: n.d. | R109: n.d. | S109: n.d. | T109: n.d. | U109: n.d. | V109: n.d. | W109: n.d. | X109: n.d. | Y109: n.d. | Z109: n.d. | AA109: n.d. | AC109: n.d. | AD109: n.d. | AE109: n.d. | AF109: n.d. | AG109: n.d. | AH109: n.d. | AI109: n.d. | AJ109: n.d. | AK109: n.d. | AL109: n.d. | AN109: n.d. | AO109: n.d. | AP109: n.d. | AQ109: n.d. | AR109: n.d. | AS109: n.d. | AT109: n.d. | AU109: n.d. | AV109: n.d. | AW109: n.d. | AX109: n.d. | AY109: n.d. | AZ109: n.d. | BA109: n.d. | BB109: n.d. | BC109: n.d. | BD109: n.d. | BE109: n.d. | BF109: n.d. | BG109: n.d. | BH109: n.d. | BI109: n.d. | BJ109: n.d. | BK109: n.a. | BL109: n.d. | BM109: n.d. | BN109: n.a. | BO109: n.d. | BP109: n.a. | BQ109: n.d. | BR109: n.d. | BS109: n.d. | BT109: n.d. | BU109: n.d. | BV109: n.d. | BW109: n.d. | BX109: n.d. | BY109: n.d. | BZ109: n.d. | CA109: n.d. | CB109: n.d. | CC109: n.d. | CD109: n.d. | CE109: n.d. | CF109: n.d. | CG109: n.d. | CH109: n.d. | CI109: n.d. | CJ109: n.d. | CK109: n.d. | CL109: n.d. | CM109: n.d. | CN109: n.d. | CO109: n.d. | CP109: n.d. | CQ109: n.d. | CR109: n.d. | CS109: n.d. | CT109: n.d. | CU109: n.d. | CV109: n.d. | CW109: n.d. | CX109: n.d. | CY109: n.d. | CZ109: n.d. | DA109: n.d. | DB109: n.d. | DC109: n.d. | DD109: n.d. | DE109: n.d. | DF109: n.d. | DG109: n.d. | DH109: n.d.
A110: 1998 | B110: diciembre | C110: 1998-diciembre | D110: 9.035863996 | E110: 7.020046826 | F110: 8.30964356 | G110: 6.442425249 | H110: n.d. | I110: n.d. | J110: n.d. | K110: n.d. | L110: n.d. | M110: n.d. | N110: n.d. | O110: n.d. | P110: n.d. | Q110: n.d. | R110: n.d. | S110: n.d. | T110: n.d. | U110: n.d. | V110: n.d. | W110: n.d. | X110: n.d. | Y110: n.d. | Z110: n.d. | AA110: n.d. | AC110: n.d. | AD110: n.d. | AE110: n.d. | AF110: n.d. | AG110: n.d. | AH110: n.d. | AI110: n.d. | AJ110: n.d. | AK110: n.d. | AL110: n.d. | AN110: n.d. | AO110: n.d. | AP110: n.d. | AQ110: n.d. | AR110: n.d. | AS110: n.d. | AT110: n.d. | AU110: n.d. | AV110: n.d. | AW110: n.d. | AX110: n.d. | AY110: n.d. | AZ110: n.d. | BA110: n.d. | BB110: n.d. | BC110: n.d. | BD110: n.d. | BE110: n.d. | BF110: n.d. | BG110: n.d. | BH110: n.d. | BI110: n.d. | BJ110: n.d. | BK110: n.a. | BL110: n.d. | BM110: n.d. | BN110: n.a. | BO110: n.d. | BP110: n.a. | BQ110: n.d. | BR110: n.d. | BS110: n.d. | BT110: n.d. | BU110: n.d. | BV110: n.d. | BW110: n.d. | BX110: n.d. | BY110: n.d. | BZ110: n.d. | CA110: n.d. | CB110: n.d. | CC110: n.d. | CD110: n.d. | CE110: n.d. | CF110: n.d. | CG110: n.d. | CH110: n.d. | CI110: n.d. | CJ110: n.d. | CK110: n.d. | CL110: n.d. | CM110: n.d. | CN110: n.d. | CO110: n.d. | CP110: n.d. | CQ110: n.d. | CR110: n.d. | CS110: n.d. | CT110: n.d. | CU110: n.d. | CV110: n.d. | CW110: n.d. | CX110: n.d. | CY110: n.d. | CZ110: n.d. | DA110: n.d. | DB110: n.d. | DC110: n.d. | DD110: n.d. | DE110: n.d. | DF110: n.d. | DG110: n.d. | DH110: n.d.
A111: 1999 | B111: enero | C111: 1999-enero | D111: 8.3584163 | E111: 6.95883476 | F111: 7.627118644 | G111: 6.38563078 | H111: n.d. | I111: n.d. | J111: n.d. | K111: n.d. | L111: n.d. | N111: n.d. | P111: n.d. | Q111: n.d. | R111: n.d. | S111: n.d. | T111: n.d. | U111: n.d. | V111: n.d. | W111: n.d. | X111: n.d. | Y111: n.d. | Z111: n.d. | AA111: n.d. | AC111: n.d. | AD111: n.d. | AE111: n.d. | AF111: n.d. | AG111: n.d. | AH111: n.d. | AI111: n.d. | AJ111: n.d. | AK111: n.d. | AL111: n.d. | AN111: n.d. | AO111: n.d. | AP111: n.d. | AQ111: n.d. | AR111: n.d. | AS111: n.d. | AT111: n.d. | AU111: n.d. | AV111: n.d. | AW111: n.d. | AX111: n.d. | AY111: n.d. | AZ111: n.d. | BA111: n.d. | BB111: n.d. | BC111: n.d. | BD111: n.d. | BE111: n.d. | BF111: n.d. | BG111: n.d. | BH111: n.d. | BI111: n.d. | BJ111: n.d. | BK111: n.a. | BL111: n.d. | BM111: n.d. | BN111: n.a. | BO111: n.d. | BP111: n.a. | BQ111: n.d. | BR111: n.d. | BS111: n.d. | BT111: n.d. | BU111: n.d. | BV111: n.d. | BW111: n.d. | BX111: n.d. | BY111: n.d. | BZ111: n.d. | CA111: n.d. | CB111: n.d. | CC111: n.d. | CD111: n.d. | CE111: n.d. | CF111: n.d. | CG111: n.d. | CH111: n.d. | CI111: n.d. | CJ111: n.d. | CK111: n.d. | CL111: n.d. | CM111: n.d. | CN111: n.d. | CO111: n.d. | CP111: n.d. | CQ111: n.d. | CR111: n.d. | CS111: n.d. | CT111: n.d. | CU111: n.d. | CV111: n.d. | CW111: n.d. | CX111: n.d. | CY111: n.d. | CZ111: n.d. | DA111: n.d. | DB111: n.d. | DC111: n.d. | DD111: n.d. | DE111: n.d. | DF111: n.d. | DG111: n.d. | DH111: n.d.
A112: 1999 | B112: febrero | C112: 1999-febrero | D112: 7.548043529 | E112: 6.90382515 | F112: 6.914546641 | G112: 6.334547597 | H112: n.d. | I112: n.d. | J112: n.d. | K112: n.d. | L112: n.d. | N112: n.d. | P112: n.d. | Q112: n.d. | R112: n.d. | S112: n.d. | T112: n.d. | U112: n.d. | V112: n.d. | W112: n.d. | X112: n.d. | Y112: n.d. | Z112: n.d. | AA112: n.d. | AC112: n.d. | AD112: n.d. | AE112: n.d. | AF112: n.d. | AG112: n.d. | AH112: n.d. | AI112: n.d. | AJ112: n.d. | AK112: n.d. | AL112: n.d. | AN112: n.d. | AO112: n.d. | AP112: n.d. | AQ112: n.d. | AR112: n.d. | AS112: n.d. | AT112: n.d. | AU112: n.d. | AV112: n.d. | AW112: n.d. | AX112: n.d. | AY112: n.d. | AZ112: n.d. | BA112: n.d. | BB112: n.d. | BC112: n.d. | BD112: n.d. | BE112: n.d. | BF112: n.d. | BG112: n.d. | BH112: n.d. | BI112: n.d. | BJ112: n.d. | BK112: n.a. | BL112: n.d. | BM112: n.d. | BN112: n.a. | BO112: n.d. | BP112: n.a. | BQ112: n.d. | BR112: n.d. | BS112: n.d. | BT112: n.d. | BU112: n.d. | BV112: n.d. | BW112: n.d. | BX112: n.d. | BY112: n.d. | BZ112: n.d. | CA112: n.d. | CB112: n.d. | CC112: n.d. | CD112: n.d. | CE112: n.d. | CF112: n.d. | CG112: n.d. | CH112: n.d. | CI112: n.d. | CJ112: n.d. | CK112: n.d. | CL112: n.d. | CM112: n.d. | CN112: n.d. | CO112: n.d. | CP112: n.d. | CQ112: n.d. | CR112: n.d. | CS112: n.d. | CT112: n.d. | CU112: n.d. | CV112: n.d. | CW112: n.d. | CX112: n.d. | CY112: n.d. | CZ112: n.d. | DA112: n.d. | DB112: n.d. | DC112: n.d. | DD112: n.d. | DE112: n.d. | DF112: n.d. | DG112: n.d. | DH112: n.d.
A113: 1999 | B113: marzo | C113: 1999-marzo | D113: 6.729661212 | E113: 6.855072869 | F113: 6.193157211 | G113: 6.289213446 | H113: n.d. | I113: n.d. | J113: n.d. | K113: n.d. | L113: n.d. | N113: n.d. | P113: n.d. | Q113: n.d. | R113: n.d. | S113: n.d. | T113: n.d. | U113: n.d. | V113: n.d. | W113: n.d. | X113: n.d. | Y113: n.d. | Z113: n.d. | AA113: n.d. | AC113: n.d. | AD113: n.d. | AE113: n.d. | AF113: n.d. | AG113: n.d. | AH113: n.d. | AI113: n.d. | AJ113: n.d. | AK113: n.d. | AL113: n.d. | AN113: n.d. | AO113: n.d. | AP113: n.d. | AQ113: n.d. | AR113: n.d. | AS113: n.d. | AT113: n.d. | AU113: n.d. | AV113: n.d. | AW113: n.d. | AX113: n.d. | AY113: n.d. | AZ113: n.d. | BA113: n.d. | BB113: n.d. | BC113: n.d. | BD113: n.d. | BE113: n.d. | BF113: n.d. | BG113: n.d. | BH113: n.d. | BI113: n.d. | BJ113: n.d. | BK113: n.a. | BL113: n.d. | BM113: n.d. | BN113: n.a. | BO113: n.d. | BP113: n.a. | BQ113: n.d. | BR113: n.d. | BS113: n.d. | BT113: n.d. | BU113: n.d. | BV113: n.d. | BW113: n.d. | BX113: n.d. | BY113: n.d. | BZ113: n.d. | CA113: n.d. | CB113: n.d. | CC113: n.d. | CD113: n.d. | CE113: n.d. | CF113: n.d. | CG113: n.d. | CH113: n.d. | CI113: n.d. | CJ113: n.d. | CK113: n.d. | CL113: n.d. | CM113: n.d. | CN113: n.d. | CO113: n.d. | CP113: n.d. | CQ113: n.d. | CR113: n.d. | CS113: n.d. | CT113: n.d. | CU113: n.d. | CV113: n.d. | CW113: n.d. | CX113: n.d. | CY113: n.d. | CZ113: n.d. | DA113: n.d. | DB113: n.d. | DC113: n.d. | DD113: n.d. | DE113: n.d. | DF113: n.d. | DG113: n.d. | DH113: n.d.
A114: 1999 | B114: abril | C114: 1999-abril | D114: 6.062685884 | E114: 6.812641926 | F114: 5.615318417 | G114: 6.249675915 | H114: n.d. | I114: n.d. | J114: n.d. | K114: n.d. | L114: n.d. | N114: n.d. | P114: n.d. | Q114: n.d. | R114: n.d. | S114: n.d. | T114: n.d. | U114: n.d. | V114: n.d. | W114: n.d. | X114: n.d. | Y114: n.d. | Z114: n.d. | AA114: n.d. | AC114: n.d. | AD114: n.d. | AE114: n.d. | AF114: n.d. | AG114: n.d. | AH114: n.d. | AI114: n.d. | AJ114: n.d. | AK114: n.d. | AL114: n.d. | AN114: n.d. | AO114: n.d. | AP114: n.d. | AQ114: n.d. | AR114: n.d. | AS114: n.d. | AT114: n.d. | AU114: n.d. | AV114: n.d. | AW114: n.d. | AX114: n.d. | AY114: n.d. | AZ114: n.d. | BA114: n.d. | BB114: n.d. | BC114: n.d. | BD114: n.d. | BE114: n.d. | BF114: n.d. | BG114: n.d. | BH114: n.d. | BI114: n.d. | BJ114: n.d. | BK114: n.a. | BL114: n.d. | BM114: n.d. | BN114: n.a. | BO114: n.d. | BP114: n.a. | BQ114: n.d. | BR114: n.d. | BS114: n.d. | BT114: n.d. | BU114: n.d. | BV114: n.d. | BW114: n.d. | BX114: n.d. | BY114: n.d. | BZ114: n.d. | CA114: n.d. | CB114: n.d. | CC114: n.d. | CD114: n.d. | CE114: n.d. | CF114: n.d. | CG114: n.d. | CH114: n.d. | CI114: n.d. | CJ114: n.d. | CK114: n.d. | CL114: n.d. | CM114: n.d. | CN114: n.d. | CO114: n.d. | CP114: n.d. | CQ114: n.d. | CR114: n.d. | CS114: n.d. | CT114: n.d. | CU114: n.d. | CV114: n.d. | CW114: n.d. | CX114: n.d. | CY114: n.d. | CZ114: n.d. | DA114: n.d. | DB114: n.d. | DC114: n.d. | DD114: n.d. | DE114: n.d. | DF114: n.d. | DG114: n.d. | DH114: n.d.
A115: 1999 | B115: mayo | C115: 1999-mayo | D115: 5.756541524 | E115: 6.776567991 | F115: 5.309355598 | G115: 6.215953865 | H115: n.d. | I115: n.d. | J115: n.d. | K115: n.d. | L115: n.d. | N115: n.d. | P115: n.d. | Q115: n.d. | R115: n.d. | S115: n.d. | T115: n.d. | U115: n.d. | V115: n.d. | W115: n.d. | X115: n.d. | Y115: n.d. | Z115: n.d. | AA115: n.d. | AC115: n.d. | AD115: n.d. | AE115: n.d. | AF115: n.d. | AG115: n.d. | AH115: n.d. | AI115: n.d. | AJ115: n.d. | AK115: n.d. | AL115: n.d. | AN115: n.d. | AO115: n.d. | AP115: n.d. | AQ115: n.d. | AR115: n.d. | AS115: n.d. | AT115: n.d. | AU115: n.d. | AV115: n.d. | AW115: n.d. | AX115: n.d. | AY115: n.d. | AZ115: n.d. | BA115: n.d. | BB115: n.d. | BC115: n.d. | BD115: n.d. | BE115: n.d. | BF115: n.d. | BG115: n.d. | BH115: n.d. | BI115: n.d. | BJ115: n.d. | BK115: n.a. | BL115: n.d. | BM115: n.d. | BN115: n.a. | BO115: n.d. | BP115: n.a. | BQ115: n.d. | BR115: n.d. | BS115: n.d. | BT115: n.d. | BU115: n.d. | BV115: n.d. | BW115: n.d. | BX115: n.d. | BY115: n.d. | BZ115: n.d. | CA115: n.d. | CB115: n.d. | CC115: n.d. | CD115: n.d. | CE115: n.d. | CF115: n.d. | CG115: n.d. | CH115: n.d. | CI115: n.d. | CJ115: n.d. | CK115: n.d. | CL115: n.d. | CM115: n.d. | CN115: n.d. | CO115: n.d. | CP115: n.d. | CQ115: n.d. | CR115: n.d. | CS115: n.d. | CT115: n.d. | CU115: n.d. | CV115: n.d. | CW115: n.d. | CX115: n.d. | CY115: n.d. | CZ115: n.d. | DA115: n.d. | DB115: n.d. | DC115: n.d. | DD115: n.d. | DE115: n.d. | DF115: n.d. | DG115: n.d. | DH115: n.d.
A116: 1999 | B116: junio | C116: 1999-junio | D116: 5.559322034 | E116: 6.746828046 | F116: 5.147840885 | G116: 6.188008013 | H116: n.d. | I116: n.d. | J116: n.d. | K116: n.d. | L116: n.d. | N116: n.d. | P116: n.d. | Q116: n.d. | R116: n.d. | S116: n.d. | T116: n.d. | U116: n.d. | V116: n.d. | W116: n.d. | X116: n.d. | Y116: n.d. | Z116: n.d. | AA116: n.d. | AC116: n.d. | AD116: n.d. | AE116: n.d. | AF116: n.d. | AG116: n.d. | AH116: n.d. | AI116: n.d. | AJ116: n.d. | AK116: n.d. | AL116: n.d. | AN116: n.d. | AO116: n.d. | AP116: n.d. | AQ116: n.d. | AR116: n.d. | AS116: n.d. | AT116: n.d. | AU116: n.d. | AV116: n.d. | AW116: n.d. | AX116: n.d. | AY116: n.d. | AZ116: n.d. | BA116: n.d. | BB116: n.d. | BC116: n.d. | BD116: n.d. | BE116: n.d. | BF116: n.d. | BG116: n.d. | BH116: n.d. | BI116: n.d. | BJ116: n.d. | BK116: n.a. | BL116: n.d. | BM116: n.d. | BN116: n.a. | BO116: n.d. | BP116: n.a. | BQ116: n.d. | BR116: n.d. | BS116: n.d. | BT116: n.d. | BU116: n.d. | BV116: n.d. | BW116: n.d. | BX116: n.d. | BY116: n.d. | BZ116: n.d. | CA116: n.d. | CB116: n.d. | CC116: n.d. | CD116: n.d. | CE116: n.d. | CF116: n.d. | CG116: n.d. | CH116: n.d. | CI116: n.d. | CJ116: n.d. | CK116: n.d. | CL116: n.d. | CM116: n.d. | CN116: n.d. | CO116: n.d. | CP116: n.d. | CQ116: n.d. | CR116: n.d. | CS116: n.d. | CT116: n.d. | CU116: n.d. | CV116: n.d. | CW116: n.d. | CX116: n.d. | CY116: n.d. | CZ116: n.d. | DA116: n.d. | DB116: n.d. | DC116: n.d. | DD116: n.d. | DE116: n.d. | DF116: n.d. | DG116: n.d. | DH116: n.d.
A117: 1999 | B117: julio | C117: 1999-julio | D117: 5.469625644 | E117: 6.723327322 | F117: 5.045387376 | G117: 6.165726941 | H117: n.d. | I117: n.d. | J117: n.d. | K117: n.d. | L117: n.d. | N117: n.d. | P117: n.d. | Q117: n.d. | R117: n.d. | S117: n.d. | T117: n.d. | U117: n.d. | V117: n.d. | W117: n.d. | X117: n.d. | Y117: n.d. | Z117: n.d. | AA117: n.d. | AC117: n.d. | AD117: n.d. | AE117: n.d. | AF117: n.d. | AG117: n.d. | AH117: n.d. | AI117: n.d. | AJ117: n.d. | AK117: n.d. | AL117: n.d. | AN117: n.d. | AO117: n.d. | AP117: n.d. | AQ117: n.d. | AR117: n.d. | AS117: n.d. | AT117: n.d. | AU117: n.d. | AV117: n.d. | AW117: n.d. | AX117: n.d. | AY117: n.d. | AZ117: n.d. | BA117: n.d. | BB117: n.d. | BC117: n.d. | BD117: n.d. | BE117: n.d. | BF117: n.d. | BG117: n.d. | BH117: n.d. | BI117: n.d. | BJ117: n.d. | BK117: n.a. | BL117: n.d. | BM117: n.d. | BN117: n.a. | BO117: n.d. | BP117: n.a. | BQ117: n.d. | BR117: n.d. | BS117: n.d. | BT117: n.d. | BU117: n.d. | BV117: n.d. | BW117: n.d. | BX117: n.d. | BY117: n.d. | BZ117: n.d. | CA117: n.d. | CB117: n.d. | CC117: n.d. | CD117: n.d. | CE117: n.d. | CF117: n.d. | CG117: n.d. | CH117: n.d. | CI117: n.d. | CJ117: n.d. | CK117: n.d. | CL117: n.d. | CM117: n.d. | CN117: n.d. | CO117: n.d. | CP117: n.d. | CQ117: n.d. | CR117: n.d. | CS117: n.d. | CT117: n.d. | CU117: n.d. | CV117: n.d. | CW117: n.d. | CX117: n.d. | CY117: n.d. | CZ117: n.d. | DA117: n.d. | DB117: n.d. | DC117: n.d. | DD117: n.d. | DE117: n.d. | DF117: n.d. | DG117: n.d. | DH117: n.d.
A118: 1999 | B118: agosto | C118: 1999-agosto | D118: 5.919142283 | E118: 6.70589352 | F118: 5.471380471 | G118: 6.148920816 | H118: n.d. | I118: n.d. | J118: n.d. | K118: n.d. | L118: n.d. | N118: n.d. | P118: n.d. | Q118: n.d. | R118: n.d. | S118: n.d. | T118: n.d. | U118: n.d. | V118: n.d. | W118: n.d. | X118: n.d. | Y118: n.d. | Z118: n.d. | AA118: n.d. | AC118: n.d. | AD118: n.d. | AE118: n.d. | AF118: n.d. | AG118: n.d. | AH118: n.d. | AI118: n.d. | AJ118: n.d. | AK118: n.d. | AL118: n.d. | AN118: n.d. | AO118: n.d. | AP118: n.d. | AQ118: n.d. | AR118: n.d. | AS118: n.d. | AT118: n.d. | AU118: n.d. | AV118: n.d. | AW118: n.d. | AX118: n.d. | AY118: n.d. | AZ118: n.d. | BA118: n.d. | BB118: n.d. | BC118: n.d. | BD118: n.d. | BE118: n.d. | BF118: n.d. | BG118: n.d. | BH118: n.d. | BI118: n.d. | BJ118: n.d. | BK118: n.a. | BL118: n.d. | BM118: n.d. | BN118: n.a. | BO118: n.d. | BP118: n.a. | BQ118: n.d. | BR118: n.d. | BS118: n.d. | BT118: n.d. | BU118: n.d. | BV118: n.d. | BW118: n.d. | BX118: n.d. | BY118: n.d. | BZ118: n.d. | CA118: n.d. | CB118: n.d. | CC118: n.d. | CD118: n.d. | CE118: n.d. | CF118: n.d. | CG118: n.d. | CH118: n.d. | CI118: n.d. | CJ118: n.d. | CK118: n.d. | CL118: n.d. | CM118: n.d. | CN118: n.d. | CO118: n.d. | CP118: n.d. | CQ118: n.d. | CR118: n.d. | CS118: n.d. | CT118: n.d. | CU118: n.d. | CV118: n.d. | CW118: n.d. | CX118: n.d. | CY118: n.d. | CZ118: n.d. | DA118: n.d. | DB118: n.d. | DC118: n.d. | DD118: n.d. | DE118: n.d. | DF118: n.d. | DG118: n.d. | DH118: n.d.
A119: 1999 | B119: septiembre | C119: 1999-septiembre | D119: 6.550802139 | E119: 6.694280525 | F119: 5.979857323 | G119: 6.137325351 | H119: n.d. | I119: n.d. | J119: n.d. | K119: n.d. | L119: n.d. | N119: n.d. | P119: n.d. | Q119: n.d. | R119: n.d. | S119: n.d. | T119: n.d. | U119: n.d. | V119: n.d. | W119: n.d. | X119: n.d. | Y119: n.d. | Z119: n.d. | AA119: n.d. | AC119: n.d. | AD119: n.d. | AE119: n.d. | AF119: n.d. | AG119: n.d. | AH119: n.d. | AI119: n.d. | AJ119: n.d. | AK119: n.d. | AL119: n.d. | AN119: n.d. | AO119: n.d. | AP119: n.d. | AQ119: n.d. | AR119: n.d. | AS119: n.d. | AT119: n.d. | AU119: n.d. | AV119: n.d. | AW119: n.d. | AX119: n.d. | AY119: n.d. | AZ119: n.d. | BA119: n.d. | BB119: n.d. | BC119: n.d. | BD119: n.d. | BE119: n.d. | BF119: n.d. | BG119: n.d. | BH119: n.d. | BI119: n.d. | BJ119: n.d. | BK119: n.a. | BL119: n.d. | BM119: n.d. | BN119: n.a. | BO119: n.d. | BP119: n.a. | BQ119: n.d. | BR119: n.d. | BS119: n.d. | BT119: n.d. | BU119: n.d. | BV119: n.d. | BW119: n.d. | BX119: n.d. | BY119: n.d. | BZ119: n.d. | CA119: n.d. | CB119: n.d. | CC119: n.d. | CD119: n.d. | CE119: n.d. | CF119: n.d. | CG119: n.d. | CH119: n.d. | CI119: n.d. | CJ119: n.d. | CK119: n.d. | CL119: n.d. | CM119: n.d. | CN119: n.d. | CO119: n.d. | CP119: n.d. | CQ119: n.d. | CR119: n.d. | CS119: n.d. | CT119: n.d. | CU119: n.d. | CV119: n.d. | CW119: n.d. | CX119: n.d. | CY119: n.d. | CZ119: n.d. | DA119: n.d. | DB119: n.d. | DC119: n.d. | DD119: n.d. | DE119: n.d. | DF119: n.d. | DG119: n.d. | DH119: n.d.
A120: 1999 | B120: octubre | C120: 1999-octubre | D120: 7.395143488 | E120: 6.688196711 | F120: 6.697171381 | G120: 6.130630836 | H120: n.d. | I120: n.d. | J120: n.d. | K120: n.d. | L120: n.d. | N120: n.d. | P120: n.d. | Q120: n.d. | R120: n.d. | S120: n.d. | T120: n.d. | U120: n.d. | V120: n.d. | W120: n.d. | X120: n.d. | Y120: n.d. | Z120: n.d. | AA120: n.d. | AC120: n.d. | AD120: n.d. | AE120: n.d. | AF120: n.d. | AG120: n.d. | AH120: n.d. | AI120: n.d. | AJ120: n.d. | AK120: n.d. | AL120: n.d. | AN120: n.d. | AO120: n.d. | AP120: n.d. | AQ120: n.d. | AR120: n.d. | AS120: n.d. | AT120: n.d. | AU120: n.d. | AV120: n.d. | AW120: n.d. | AX120: n.d. | AY120: n.d. | AZ120: n.d. | BA120: n.d. | BB120: n.d. | BC120: n.d. | BD120: n.d. | BE120: n.d. | BF120: n.d. | BG120: n.d. | BH120: n.d. | BI120: n.d. | BJ120: n.d. | BK120: n.a. | BL120: n.d. | BM120: n.d. | BN120: n.a. | BO120: n.d. | BP120: n.a. | BQ120: n.d. | BR120: n.d. | BS120: n.d. | BT120: n.d. | BU120: n.d. | BV120: n.d. | BW120: n.d. | BX120: n.d. | BY120: n.d. | BZ120: n.d. | CA120: n.d. | CB120: n.d. | CC120: n.d. | CD120: n.d. | CE120: n.d. | CF120: n.d. | CG120: n.d. | CH120: n.d. | CI120: n.d. | CJ120: n.d. | CK120: n.d. | CL120: n.d. | CM120: n.d. | CN120: n.d. | CO120: n.d. | CP120: n.d. | CQ120: n.d. | CR120: n.d. | CS120: n.d. | CT120: n.d. | CU120: n.d. | CV120: n.d. | CW120: n.d. | CX120: n.d. | CY120: n.d. | CZ120: n.d. | DA120: n.d. | DB120: n.d. | DC120: n.d. | DD120: n.d. | DE120: n.d. | DF120: n.d. | DG120: n.d. | DH120: n.d.
A121: 1999 | B121: noviembre | C121: 1999-noviembre | D121: 5.707516692 | E121: 6.68735193 | F121: 5.227827502 | G121: 6.128527041 | H121: n.d. | I121: n.d. | J121: n.d. | K121: n.d. | L121: n.d. | N121: n.d. | P121: n.d. | Q121: n.d. | R121: n.d. | S121: n.d. | T121: n.d. | U121: n.d. | V121: n.d. | W121: n.d. | X121: n.d. | Y121: n.d. | Z121: n.d. | AA121: n.d. | AC121: n.d. | AD121: n.d. | AE121: n.d. | AF121: n.d. | AG121: n.d. | AH121: n.d. | AI121: n.d. | AJ121: n.d. | AK121: n.d. | AL121: n.d. | AN121: n.d. | AO121: n.d. | AP121: n.d. | AQ121: n.d. | AR121: n.d. | AS121: n.d. | AT121: n.d. | AU121: n.d. | AV121: n.d. | AW121: n.d. | AX121: n.d. | AY121: n.d. | AZ121: n.d. | BA121: n.d. | BB121: n.d. | BC121: n.d. | BD121: n.d. | BE121: n.d. | BF121: n.d. | BG121: n.d. | BH121: n.d. | BI121: n.d. | BJ121: n.d. | BK121: n.a. | BL121: n.d. | BM121: n.d. | BN121: n.a. | BO121: n.d. | BP121: n.a. | BQ121: n.d. | BR121: n.d. | BS121: n.d. | BT121: n.d. | BU121: n.d. | BV121: n.d. | BW121: n.d. | BX121: n.d. | BY121: n.d. | BZ121: n.d. | CA121: n.d. | CB121: n.d. | CC121: n.d. | CD121: n.d. | CE121: n.d. | CF121: n.d. | CG121: n.d. | CH121: n.d. | CI121: n.d. | CJ121: n.d. | CK121: n.d. | CL121: n.d. | CM121: n.d. | CN121: n.d. | CO121: n.d. | CP121: n.d. | CQ121: n.d. | CR121: n.d. | CS121: n.d. | CT121: n.d. | CU121: n.d. | CV121: n.d. | CW121: n.d. | CX121: n.d. | CY121: n.d. | CZ121: n.d. | DA121: n.d. | DB121: n.d. | DC121: n.d. | DD121: n.d. | DE121: n.d. | DF121: n.d. | DG121: n.d. | DH121: n.d.
A122: 1999 | B122: diciembre | C122: 1999-diciembre | D122: 5.38231525 | E122: 6.691497292 | F122: 5.007066424 | G122: 6.130742371 | H122: n.d. | I122: n.d. | J122: n.d. | K122: n.d. | L122: n.d. | M122: n.d. | N122: n.d. | O122: n.d. | P122: n.d. | Q122: n.d. | R122: n.d. | S122: n.d. | T122: n.d. | U122: n.d. | V122: n.d. | W122: n.d. | X122: n.d. | Y122: n.d. | Z122: n.d. | AA122: n.d. | AC122: n.d. | AD122: n.d. | AE122: n.d. | AF122: n.d. | AG122: n.d. | AH122: n.d. | AI122: n.d. | AJ122: n.d. | AK122: n.d. | AL122: n.d. | AN122: n.d. | AO122: n.d. | AP122: n.d. | AQ122: n.d. | AR122: n.d. | AS122: n.d. | AT122: n.d. | AU122: n.d. | AV122: n.d. | AW122: n.d. | AX122: n.d. | AY122: n.d. | AZ122: n.d. | BA122: n.d. | BB122: n.d. | BC122: n.d. | BD122: n.d. | BE122: n.d. | BF122: n.d. | BG122: n.d. | BH122: n.d. | BI122: n.d. | BJ122: n.d. | BK122: n.a. | BL122: n.d. | BM122: n.d. | BN122: n.a. | BO122: n.d. | BP122: n.a. | BQ122: n.d. | BR122: n.d. | BS122: n.d. | BT122: n.d. | BU122: n.d. | BV122: n.d. | BW122: n.d. | BX122: n.d. | BY122: n.d. | BZ122: n.d. | CA122: n.d. | CB122: n.d. | CC122: n.d. | CD122: n.d. | CE122: n.d. | CF122: n.d. | CG122: n.d. | CH122: n.d. | CI122: n.d. | CJ122: n.d. | CK122: n.d. | CL122: n.d. | CM122: n.d. | CN122: n.d. | CO122: n.d. | CP122: n.d. | CQ122: n.d. | CR122: n.d. | CS122: n.d. | CT122: n.d. | CU122: n.d. | CV122: n.d. | CW122: n.d. | CX122: n.d. | CY122: n.d. | CZ122: n.d. | DA122: n.d. | DB122: n.d. | DC122: n.d. | DD122: n.d. | DE122: n.d. | DF122: n.d. | DG122: n.d. | DH122: n.d.
A123: 2000 | B123: enero | C123: 2000-enero | D123: 5.811965812 | E123: 6.700413166 | F123: 5.350292752 | G123: 6.13703324 | H123: n.d. | I123: n.d. | J123: n.d. | K123: n.d. | L123: n.d. | N123: n.d. | P123: n.d. | Q123: n.d. | R123: n.d. | S123: n.d. | T123: n.d. | U123: n.d. | V123: n.d. | W123: n.d. | X123: n.d. | Y123: n.d. | Z123: n.d. | AA123: n.d. | AC123: n.d. | AD123: n.d. | AE123: n.d. | AF123: n.d. | AG123: n.d. | AH123: n.d. | AI123: n.d. | AJ123: n.d. | AK123: n.d. | AL123: n.d. | AN123: n.d. | AO123: n.d. | AP123: n.d. | AQ123: n.d. | AR123: n.d. | AS123: n.d. | AT123: n.d. | AU123: n.d. | AV123: n.d. | AW123: n.d. | AX123: n.d. | AY123: n.d. | AZ123: n.d. | BA123: n.d. | BB123: n.d. | BC123: n.d. | BD123: n.d. | BE123: n.d. | BF123: n.d. | BG123: n.d. | BH123: n.d. | BI123: n.d. | BJ123: n.d. | BK123: n.a. | BL123: n.d. | BM123: n.d. | BN123: n.a. | BO123: n.d. | BP123: n.a. | BQ123: n.d. | BR123: n.d. | BS123: n.d. | BT123: n.d. | BU123: n.d. | BV123: n.d. | BW123: n.d. | BX123: n.d. | BY123: n.d. | BZ123: n.d. | CA123: n.d. | CB123: n.d. | CC123: n.d. | CD123: n.d. | CE123: n.d. | CF123: n.d. | CG123: n.d. | CH123: n.d. | CI123: n.d. | CJ123: n.d. | CK123: n.d. | CL123: n.d. | CM123: n.d. | CN123: n.d. | CO123: n.d. | CP123: n.d. | CQ123: n.d. | CR123: n.d. | CS123: n.d. | CT123: n.d. | CU123: n.d. | CV123: n.d. | CW123: n.d. | CX123: n.d. | CY123: n.d. | CZ123: n.d. | DA123: n.d. | DB123: n.d. | DC123: n.d. | DD123: n.d. | DE123: n.d. | DF123: n.d. | DG123: n.d. | DH123: n.d.
A124: 2000 | B124: febrero | C124: 2000-febrero | D124: 6.803013994 | E124: 6.713872903 | F124: 6.243644499 | G124: 6.147151394 | H124: n.d. | I124: n.d. | J124: n.d. | K124: n.d. | L124: n.d. | N124: n.d. | P124: n.d. | Q124: n.d. | R124: n.d. | S124: n.d. | T124: n.d. | U124: n.d. | V124: n.d. | W124: n.d. | X124: n.d. | Y124: n.d. | Z124: n.d. | AA124: n.d. | AC124: n.d. | AD124: n.d. | AE124: n.d. | AF124: n.d. | AG124: n.d. | AH124: n.d. | AI124: n.d. | AJ124: n.d. | AK124: n.d. | AL124: n.d. | AN124: n.d. | AO124: n.d. | AP124: n.d. | AQ124: n.d. | AR124: n.d. | AS124: n.d. | AT124: n.d. | AU124: n.d. | AV124: n.d. | AW124: n.d. | AX124: n.d. | AY124: n.d. | AZ124: n.d. | BA124: n.d. | BB124: n.d. | BC124: n.d. | BD124: n.d. | BE124: n.d. | BF124: n.d. | BG124: n.d. | BH124: n.d. | BI124: n.d. | BJ124: n.d. | BK124: n.a. | BL124: n.d. | BM124: n.d. | BN124: n.a. | BO124: n.d. | BP124: n.a. | BQ124: n.d. | BR124: n.d. | BS124: n.d. | BT124: n.d. | BU124: n.d. | BV124: n.d. | BW124: n.d. | BX124: n.d. | BY124: n.d. | BZ124: n.d. | CA124: n.d. | CB124: n.d. | CC124: n.d. | CD124: n.d. | CE124: n.d. | CF124: n.d. | CG124: n.d. | CH124: n.d. | CI124: n.d. | CJ124: n.d. | CK124: n.d. | CL124: n.d. | CM124: n.d. | CN124: n.d. | CO124: n.d. | CP124: n.d. | CQ124: n.d. | CR124: n.d. | CS124: n.d. | CT124: n.d. | CU124: n.d. | CV124: n.d. | CW124: n.d. | CX124: n.d. | CY124: n.d. | CZ124: n.d. | DA124: n.d. | DB124: n.d. | DC124: n.d. | DD124: n.d. | DE124: n.d. | DF124: n.d. | DG124: n.d. | DH124: n.d.
A125: 2000 | B125: marzo | C125: 2000-marzo | D125: 7.687324552 | E125: 6.73164513 | F125: 7.055464927 | G125: 6.160843785 | H125: n.d. | I125: n.d. | J125: n.d. | K125: n.d. | L125: n.d. | N125: n.d. | P125: n.d. | Q125: n.d. | R125: n.d. | S125: n.d. | T125: n.d. | U125: n.d. | V125: n.d. | W125: n.d. | X125: n.d. | Y125: n.d. | Z125: n.d. | AA125: n.d. | AC125: n.d. | AD125: n.d. | AE125: n.d. | AF125: n.d. | AG125: n.d. | AH125: n.d. | AI125: n.d. | AJ125: n.d. | AK125: n.d. | AL125: n.d. | AN125: n.d. | AO125: n.d. | AP125: n.d. | AQ125: n.d. | AR125: n.d. | AS125: n.d. | AT125: n.d. | AU125: n.d. | AV125: n.d. | AW125: n.d. | AX125: n.d. | AY125: n.d. | AZ125: n.d. | BA125: n.d. | BB125: n.d. | BC125: n.d. | BD125: n.d. | BE125: n.d. | BF125: n.d. | BG125: n.d. | BH125: n.d. | BI125: n.d. | BJ125: n.d. | BK125: n.a. | BL125: n.d. | BM125: n.d. | BN125: n.a. | BO125: n.d. | BP125: n.a. | BQ125: n.d. | BR125: n.d. | BS125: n.d. | BT125: n.d. | BU125: n.d. | BV125: n.d. | BW125: n.d. | BX125: n.d. | BY125: n.d. | BZ125: n.d. | CA125: n.d. | CB125: n.d. | CC125: n.d. | CD125: n.d. | CE125: n.d. | CF125: n.d. | CG125: n.d. | CH125: n.d. | CI125: n.d. | CJ125: n.d. | CK125: n.d. | CL125: n.d. | CM125: n.d. | CN125: n.d. | CO125: n.d. | CP125: n.d. | CQ125: n.d. | CR125: n.d. | CS125: n.d. | CT125: n.d. | CU125: n.d. | CV125: n.d. | CW125: n.d. | CX125: n.d. | CY125: n.d. | CZ125: n.d. | DA125: n.d. | DB125: n.d. | DC125: n.d. | DD125: n.d. | DE125: n.d. | DF125: n.d. | DG125: n.d. | DH125: n.d.
A126: 2000 | B126: abril | C126: 2000-abril | D126: 8.002588438 | E126: 6.753534738 | F126: 7.333469138 | G126: 6.177895784 | H126: n.d. | I126: n.d. | J126: n.d. | K126: n.d. | L126: n.d. | N126: n.d. | P126: n.d. | Q126: n.d. | R126: n.d. | S126: n.d. | T126: n.d. | U126: n.d. | V126: n.d. | W126: n.d. | X126: n.d. | Y126: n.d. | Z126: n.d. | AA126: n.d. | AC126: n.d. | AD126: n.d. | AE126: n.d. | AF126: n.d. | AG126: n.d. | AH126: n.d. | AI126: n.d. | AJ126: n.d. | AK126: n.d. | AL126: n.d. | AN126: n.d. | AO126: n.d. | AP126: n.d. | AQ126: n.d. | AR126: n.d. | AS126: n.d. | AT126: n.d. | AU126: n.d. | AV126: n.d. | AW126: n.d. | AX126: n.d. | AY126: n.d. | AZ126: n.d. | BA126: n.d. | BB126: n.d. | BC126: n.d. | BD126: n.d. | BE126: n.d. | BF126: n.d. | BG126: n.d. | BH126: n.d. | BI126: n.d. | BJ126: n.d. | BK126: n.a. | BL126: n.d. | BM126: n.d. | BN126: n.a. | BO126: n.d. | BP126: n.a. | BQ126: n.d. | BR126: n.d. | BS126: n.d. | BT126: n.d. | BU126: n.d. | BV126: n.d. | BW126: n.d. | BX126: n.d. | BY126: n.d. | BZ126: n.d. | CA126: n.d. | CB126: n.d. | CC126: n.d. | CD126: n.d. | CE126: n.d. | CF126: n.d. | CG126: n.d. | CH126: n.d. | CI126: n.d. | CJ126: n.d. | CK126: n.d. | CL126: n.d. | CM126: n.d. | CN126: n.d. | CO126: n.d. | CP126: n.d. | CQ126: n.d. | CR126: n.d. | CS126: n.d. | CT126: n.d. | CU126: n.d. | CV126: n.d. | CW126: n.d. | CX126: n.d. | CY126: n.d. | CZ126: n.d. | DA126: n.d. | DB126: n.d. | DC126: n.d. | DD126: n.d. | DE126: n.d. | DF126: n.d. | DG126: n.d. | DH126: n.d.
A127: 2000 | B127: mayo | C127: 2000-mayo | D127: 7.508605852 | E127: 6.779423046 | F127: 6.911973978 | G127: 6.19817372 | H127: n.d. | I127: n.d. | J127: n.d. | K127: n.d. | L127: n.d. | N127: n.d. | P127: n.d. | Q127: n.d. | R127: n.d. | S127: n.d. | T127: n.d. | U127: n.d. | V127: n.d. | W127: n.d. | X127: n.d. | Y127: n.d. | Z127: n.d. | AA127: n.d. | AC127: n.d. | AD127: n.d. | AE127: n.d. | AF127: n.d. | AG127: n.d. | AH127: n.d. | AI127: n.d. | AJ127: n.d. | AK127: n.d. | AL127: n.d. | AN127: n.d. | AO127: n.d. | AP127: n.d. | AQ127: n.d. | AR127: n.d. | AS127: n.d. | AT127: n.d. | AU127: n.d. | AV127: n.d. | AW127: n.d. | AX127: n.d. | AY127: n.d. | AZ127: n.d. | BA127: n.d. | BB127: n.d. | BC127: n.d. | BD127: n.d. | BE127: n.d. | BF127: n.d. | BG127: n.d. | BH127: n.d. | BI127: n.d. | BJ127: n.d. | BK127: n.a. | BL127: n.d. | BM127: n.d. | BN127: n.a. | BO127: n.d. | BP127: n.a. | BQ127: n.d. | BR127: n.d. | BS127: n.d. | BT127: n.d. | BU127: n.d. | BV127: n.d. | BW127: n.d. | BX127: n.d. | BY127: n.d. | BZ127: n.d. | CA127: n.d. | CB127: n.d. | CC127: n.d. | CD127: n.d. | CE127: n.d. | CF127: n.d. | CG127: n.d. | CH127: n.d. | CI127: n.d. | CJ127: n.d. | CK127: n.d. | CL127: n.d. | CM127: n.d. | CN127: n.d. | CO127: n.d. | CP127: n.d. | CQ127: n.d. | CR127: n.d. | CS127: n.d. | CT127: n.d. | CU127: n.d. | CV127: n.d. | CW127: n.d. | CX127: n.d. | CY127: n.d. | CZ127: n.d. | DA127: n.d. | DB127: n.d. | DC127: n.d. | DD127: n.d. | DE127: n.d. | DF127: n.d. | DG127: n.d. | DH127: n.d.
A128: 2000 | B128: junio | C128: 2000-junio | D128: 8.006850781 | E128: 6.809270818 | F128: 7.363949019 | G128: 6.221628792 | H128: n.d. | I128: n.d. | J128: n.d. | K128: n.d. | L128: n.d. | N128: n.d. | P128: n.d. | Q128: n.d. | R128: n.d. | S128: n.d. | T128: n.d. | U128: n.d. | V128: n.d. | W128: n.d. | X128: n.d. | Y128: n.d. | Z128: n.d. | AA128: n.d. | AC128: n.d. | AD128: n.d. | AE128: n.d. | AF128: n.d. | AG128: n.d. | AH128: n.d. | AI128: n.d. | AJ128: n.d. | AK128: n.d. | AL128: n.d. | AN128: n.d. | AO128: n.d. | AP128: n.d. | AQ128: n.d. | AR128: n.d. | AS128: n.d. | AT128: n.d. | AU128: n.d. | AV128: n.d. | AW128: n.d. | AX128: n.d. | AY128: n.d. | AZ128: n.d. | BA128: n.d. | BB128: n.d. | BC128: n.d. | BD128: n.d. | BE128: n.d. | BF128: n.d. | BG128: n.d. | BH128: n.d. | BI128: n.d. | BJ128: n.d. | BK128: n.a. | BL128: n.d. | BM128: n.d. | BN128: n.a. | BO128: n.d. | BP128: n.a. | BQ128: n.d. | BR128: n.d. | BS128: n.d. | BT128: n.d. | BU128: n.d. | BV128: n.d. | BW128: n.d. | BX128: n.d. | BY128: n.d. | BZ128: n.d. | CA128: n.d. | CB128: n.d. | CC128: n.d. | CD128: n.d. | CE128: n.d. | CF128: n.d. | CG128: n.d. | CH128: n.d. | CI128: n.d. | CJ128: n.d. | CK128: n.d. | CL128: n.d. | CM128: n.d. | CN128: n.d. | CO128: n.d. | CP128: n.d. | CQ128: n.d. | CR128: n.d. | CS128: n.d. | CT128: n.d. | CU128: n.d. | CV128: n.d. | CW128: n.d. | CX128: n.d. | CY128: n.d. | CZ128: n.d. | DA128: n.d. | DB128: n.d. | DC128: n.d. | DD128: n.d. | DE128: n.d. | DF128: n.d. | DG128: n.d. | DH128: n.d.
A129: 2000 | B129: julio | C129: 2000-julio | D129: 7.821466525 | E129: 6.84310232 | F129: 7.194533762 | G129: 6.24828198 | H129: n.d. | I129: n.d. | J129: n.d. | K129: n.d. | L129: n.d. | N129: n.d. | P129: n.d. | Q129: n.d. | R129: n.d. | S129: n.d. | T129: n.d. | U129: n.d. | V129: n.d. | W129: n.d. | X129: n.d. | Y129: n.d. | Z129: n.d. | AA129: n.d. | AC129: n.d. | AD129: n.d. | AE129: n.d. | AF129: n.d. | AG129: n.d. | AH129: n.d. | AI129: n.d. | AJ129: n.d. | AK129: n.d. | AL129: n.d. | AN129: n.d. | AO129: n.d. | AP129: n.d. | AQ129: n.d. | AR129: n.d. | AS129: n.d. | AT129: n.d. | AU129: n.d. | AV129: n.d. | AW129: n.d. | AX129: n.d. | AY129: n.d. | AZ129: n.d. | BA129: n.d. | BB129: n.d. | BC129: n.d. | BD129: n.d. | BE129: n.d. | BF129: n.d. | BG129: n.d. | BH129: n.d. | BI129: n.d. | BJ129: n.d. | BK129: n.a. | BL129: n.d. | BM129: n.d. | BN129: n.a. | BO129: n.d. | BP129: n.a. | BQ129: n.d. | BR129: n.d. | BS129: n.d. | BT129: n.d. | BU129: n.d. | BV129: n.d. | BW129: n.d. | BX129: n.d. | BY129: n.d. | BZ129: n.d. | CA129: n.d. | CB129: n.d. | CC129: n.d. | CD129: n.d. | CE129: n.d. | CF129: n.d. | CG129: n.d. | CH129: n.d. | CI129: n.d. | CJ129: n.d. | CK129: n.d. | CL129: n.d. | CM129: n.d. | CN129: n.d. | CO129: n.d. | CP129: n.d. | CQ129: n.d. | CR129: n.d. | CS129: n.d. | CT129: n.d. | CU129: n.d. | CV129: n.d. | CW129: n.d. | CX129: n.d. | CY129: n.d. | CZ129: n.d. | DA129: n.d. | DB129: n.d. | DC129: n.d. | DD129: n.d. | DE129: n.d. | DF129: n.d. | DG129: n.d. | DH129: n.d.
A130: 2000 | B130: agosto | C130: 2000-agosto | D130: 7.507380852 | E130: 6.881007392 | F130: 6.883479649 | G130: 6.278226981 | H130: n.d. | I130: n.d. | J130: n.d. | K130: n.d. | L130: n.d. | N130: n.d. | P130: n.d. | Q130: n.d. | R130: n.d. | S130: n.d. | T130: n.d. | U130: n.d. | V130: n.d. | W130: n.d. | X130: n.d. | Y130: n.d. | Z130: n.d. | AA130: n.d. | AC130: n.d. | AD130: n.d. | AE130: n.d. | AF130: n.d. | AG130: n.d. | AH130: n.d. | AI130: n.d. | AJ130: n.d. | AK130: n.d. | AL130: n.d. | AN130: n.d. | AO130: n.d. | AP130: n.d. | AQ130: n.d. | AR130: n.d. | AS130: n.d. | AT130: n.d. | AU130: n.d. | AV130: n.d. | AW130: n.d. | AX130: n.d. | AY130: n.d. | AZ130: n.d. | BA130: n.d. | BB130: n.d. | BC130: n.d. | BD130: n.d. | BE130: n.d. | BF130: n.d. | BG130: n.d. | BH130: n.d. | BI130: n.d. | BJ130: n.d. | BK130: n.a. | BL130: n.d. | BM130: n.d. | BN130: n.a. | BO130: n.d. | BP130: n.a. | BQ130: n.d. | BR130: n.d. | BS130: n.d. | BT130: n.d. | BU130: n.d. | BV130: n.d. | BW130: n.d. | BX130: n.d. | BY130: n.d. | BZ130: n.d. | CA130: n.d. | CB130: n.d. | CC130: n.d. | CD130: n.d. | CE130: n.d. | CF130: n.d. | CG130: n.d. | CH130: n.d. | CI130: n.d. | CJ130: n.d. | CK130: n.d. | CL130: n.d. | CM130: n.d. | CN130: n.d. | CO130: n.d. | CP130: n.d. | CQ130: n.d. | CR130: n.d. | CS130: n.d. | CT130: n.d. | CU130: n.d. | CV130: n.d. | CW130: n.d. | CX130: n.d. | CY130: n.d. | CZ130: n.d. | DA130: n.d. | DB130: n.d. | DC130: n.d. | DD130: n.d. | DE130: n.d. | DF130: n.d. | DG130: n.d. | DH130: n.d.
A131: 2000 | B131: septiembre | C131: 2000-septiembre | D131: 8.134671685 | E131: 6.923135268 | F131: 7.483666601 | G131: 6.311624245 | H131: n.d. | I131: n.d. | J131: n.d. | K131: n.d. | L131: n.d. | N131: n.d. | P131: n.d. | Q131: n.d. | R131: n.d. | S131: n.d. | T131: n.d. | U131: n.d. | V131: n.d. | W131: n.d. | X131: n.d. | Y131: n.d. | Z131: n.d. | AA131: n.d. | AC131: n.d. | AD131: n.d. | AE131: n.d. | AF131: n.d. | AG131: n.d. | AH131: n.d. | AI131: n.d. | AJ131: n.d. | AK131: n.d. | AL131: n.d. | AN131: n.d. | AO131: n.d. | AP131: n.d. | AQ131: n.d. | AR131: n.d. | AS131: n.d. | AT131: n.d. | AU131: n.d. | AV131: n.d. | AW131: n.d. | AX131: n.d. | AY131: n.d. | AZ131: n.d. | BA131: n.d. | BB131: n.d. | BC131: n.d. | BD131: n.d. | BE131: n.d. | BF131: n.d. | BG131: n.d. | BH131: n.d. | BI131: n.d. | BJ131: n.d. | BK131: n.a. | BL131: n.d. | BM131: n.d. | BN131: n.a. | BO131: n.d. | BP131: n.a. | BQ131: n.d. | BR131: n.d. | BS131: n.d. | BT131: n.d. | BU131: n.d. | BV131: n.d. | BW131: n.d. | BX131: n.d. | BY131: n.d. | BZ131: n.d. | CA131: n.d. | CB131: n.d. | CC131: n.d. | CD131: n.d. | CE131: n.d. | CF131: n.d. | CG131: n.d. | CH131: n.d. | CI131: n.d. | CJ131: n.d. | CK131: n.d. | CL131: n.d. | CM131: n.d. | CN131: n.d. | CO131: =IF(OR(CM131="n.d.",CM131="",CN131="",CN131="n.d."),"n.d.",(CM131/CN131)*100) -> n.d. | CP131: n.d. | CQ131: n.d. | CR131: n.d. | CS131: n.d. | CT131: n.d. | CU131: n.d. | CV131: n.d. | CW131: n.d. | CX131: n.d. | CY131: n.d. | CZ131: n.d. | DA131: n.d. | DB131: n.d. | DC131: n.d. | DD131: n.d. | DE131: n.d. | DF131: n.d. | DG131: n.d. | DH131: n.d.
A132: 2000 | B132: octubre | C132: =A132&"-"&B132 -> 2000-octubre | D132: 6.803699897 | E132: 6.969673913 | F132: 6.276803119 | G132: 6.3486767 | H132: n.d. | I132: n.d. | J132: n.d. | K132: n.d. | L132: n.d. | M132: =IF(B132<>"diciembre","",L132) ->  | N132: n.d. | O132: =IF(B132<>"diciembre","",N132) ->  | P132: n.d. | Q132: n.d. | R132: n.d. | S132: n.d. | T132: n.d. | U132: n.d. | V132: n.d. | W132: n.d. | X132: n.d. | Y132: n.d. | Z132: n.d. | AA132: n.d. | AC132: n.d. | AD132: n.d. | AE132: n.d. | AF132: n.d. | AG132: n.d. | AH132: n.d. | AI132: n.d. | AJ132: n.d. | AK132: n.d. | AL132: n.d. | AN132: n.d. | AO132: n.d. | AP132: n.d. | AQ132: n.d. | AR132: n.d. | AS132: n.d. | AT132: n.d. | AU132: n.d. | AV132: n.d. | AW132: n.d. | AX132: n.d. | AY132: n.d. | AZ132: n.d. | BA132: n.d. | BB132: n.d. | BC132: n.d. | BD132: n.d. | BE132: n.d. | BF132: n.d. | BG132: n.d. | BH132: n.d. | BI132: n.d. | BJ132: n.d. | BK132: n.a. | BL132: n.d. | BM132: n.d. | BN132: n.a. | BO132: n.d. | BP132: n.a. | BQ132: n.d. | BR132: n.d. | BS132: n.d. | BT132: n.d. | BU132: n.d. | BV132: n.d. | BW132: n.d. | BX132: n.d. | BY132: n.d. | BZ132: n.d. | CA132: n.d. | CB132: n.d. | CC132: n.d. | CD132: n.d. | CE132: n.d. | CF132: n.d. | CG132: n.d. | CH132: n.d. | CI132: n.d. | CJ132: n.d. | CK132: n.d. | CL132: n.d. | CM132: n.d. | CN132: n.d. | CO132: n.d. | CP132: n.d. | CQ132: n.d. | CR132: =IF(OR(CP132="n.d.",CP132="",CQ132="",CQ132="n.d."),"n.d.",(CP132/CQ132)*100) -> n.d. | CS132: n.d. | CT132: n.d. | CU132: n.d. | CV132: n.d. | CW132: n.d. | CX132: n.d. | CY132: n.d. | CZ132: n.d. | DA132: n.d. | DB132: n.d. | DC132: n.d. | DD132: n.d. | DE132: n.d. | DF132: n.d. | DG132: n.d. | DH132: n.d.
A133: 2000 | B133: noviembre | C133: 2000-noviembre | D133: 6.74409128 | E133: 7.020814665 | F133: 6.166634448 | G133: 6.389592474 | H133: n.d. | I133: n.d. | J133: n.d. | K133: n.d. | L133: n.d. | N133: n.d. | P133: n.d. | Q133: n.d. | R133: n.d. | S133: n.d. | T133: n.d. | U133: n.d. | V133: n.d. | W133: n.d. | X133: n.d. | Y133: n.d. | Z133: n.d. | AA133: n.d. | AC133: n.d. | AD133: n.d. | AE133: n.d. | AF133: n.d. | AG133: n.d. | AH133: n.d. | AI133: n.d. | AJ133: n.d. | AK133: n.d. | AL133: n.d. | AN133: n.d. | AO133: n.d. | AP133: n.d. | AQ133: n.d. | AR133: n.d. | AS133: n.d. | AT133: n.d. | AU133: n.d. | AV133: n.d. | AW133: n.d. | AX133: n.d. | AY133: n.d. | AZ133: n.d. | BA133: n.d. | BB133: n.d. | BC133: n.d. | BD133: n.d. | BE133: n.d. | BF133: n.d. | BG133: n.d. | BH133: n.d. | BI133: n.d. | BJ133: n.d. | BK133: n.a. | BL133: n.d. | BM133: n.d. | BN133: n.a. | BO133: n.d. | BP133: n.a. | BQ133: n.d. | BR133: n.d. | BS133: n.d. | BT133: n.d. | BU133: n.d. | BV133: n.d. | BW133: n.d. | BX133: n.d. | BY133: n.d. | BZ133: n.d. | CA133: n.d. | CB133: n.d. | CC133: n.d. | CD133: n.d. | CE133: n.d. | CF133: n.d. | CG133: n.d. | CH133: n.d. | CI133: n.d. | CJ133: n.d. | CK133: n.d. | CL133: n.d. | CM133: n.d. | CN133: n.d. | CO133: n.d. | CP133: n.d. | CQ133: n.d. | CR133: n.d. | CS133: n.d. | CT133: n.d. | CU133: n.d. | CV133: n.d. | CW133: n.d. | CX133: n.d. | CY133: n.d. | CZ133: n.d. | DA133: n.d. | DB133: n.d. | DC133: n.d. | DD133: n.d. | DE133: n.d. | DF133: n.d. | DG133: n.d. | DH133: n.d.
A134: 2000 | B134: diciembre | C134: 2000-diciembre | D134: 7.377381435 | E134: 7.076706576 | F134: 6.691020958 | G134: 6.434537898 | H134: n.d. | I134: n.d. | J134: n.d. | K134: n.d. | L134: n.d. | M134: n.d. | N134: n.d. | O134: n.d. | P134: n.d. | Q134: n.d. | R134: n.d. | S134: n.d. | T134: n.d. | U134: n.d. | V134: n.d. | W134: n.d. | X134: n.d. | Y134: n.d. | Z134: n.d. | AA134: n.d. | AC134: n.d. | AD134: n.d. | AE134: n.d. | AF134: n.d. | AG134: n.d. | AH134: n.d. | AI134: n.d. | AJ134: n.d. | AK134: n.d. | AL134: n.d. | AN134: n.d. | AO134: n.d. | AP134: n.d. | AQ134: n.d. | AR134: n.d. | AS134: n.d. | AT134: n.d. | AU134: n.d. | AV134: n.d. | AW134: n.d. | AX134: n.d. | AY134: n.d. | AZ134: n.d. | BA134: n.d. | BB134: n.d. | BC134: n.d. | BD134: n.d. | BE134: n.d. | BF134: n.d. | BG134: n.d. | BH134: n.d. | BI134: n.d. | BJ134: n.d. | BK134: n.a. | BL134: n.d. | BM134: n.d. | BN134: n.a. | BO134: n.d. | BP134: n.a. | BQ134: n.d. | BR134: n.d. | BS134: n.d. | BT134: n.d. | BU134: n.d. | BV134: n.d. | BW134: n.d. | BX134: n.d. | BY134: n.d. | BZ134: n.d. | CA134: n.d. | CB134: n.d. | CC134: n.d. | CD134: n.d. | CE134: n.d. | CF134: n.d. | CG134: n.d. | CH134: n.d. | CI134: n.d. | CJ134: n.d. | CK134: n.d. | CL134: n.d. | CM134: n.d. | CN134: n.d. | CO134: n.d. | CP134: n.d. | CQ134: n.d. | CR134: n.d. | CS134: n.d. | CT134: n.d. | CU134: n.d. | CV134: n.d. | CW134: n.d. | CX134: n.d. | CY134: n.d. | CZ134: n.d. | DA134: n.d. | DB134: n.d. | DC134: n.d. | DD134: n.d. | DE134: n.d. | DF134: n.d. | DG134: n.d. | DH134: n.d.
A135: 2001 | B135: enero | C135: 2001-enero | D135: 8.461227787 | E135: 7.137453013 | F135: 7.74243005 | G135: 6.48363333 | H135: n.d. | I135: n.d. | J135: n.d. | K135: n.d. | L135: n.d. | N135: n.d. | P135: n.d. | Q135: n.d. | R135: n.d. | S135: n.d. | T135: n.d. | U135: n.d. | V135: n.d. | W135: n.d. | X135: n.d. | Y135: n.d. | Z135: n.d. | AA135: n.d. | AC135: n.d. | AD135: n.d. | AE135: n.d. | AF135: n.d. | AG135: n.d. | AH135: n.d. | AI135: n.d. | AJ135: =IFERROR(+AF135+AH135,"n.d.") -> n.d. | AK135: n.d. | AL135: n.d. | AN135: n.d. | AO135: n.d. | AP135: n.d. | AQ135: n.d. | AR135: n.d. | AS135: n.d. | AT135: n.d. | AU135: n.d. | AV135: n.d. | AW135: n.d. | AX135: n.d. | AY135: n.d. | AZ135: n.d. | BA135: n.d. | BB135: n.d. | BC135: n.d. | BD135: n.d. | BE135: n.d. | BF135: n.d. | BG135: n.d. | BH135: n.d. | BI135: n.d. | BJ135: n.d. | BK135: n.a. | BL135: n.d. | BM135: n.d. | BN135: n.a. | BO135: n.d. | BP135: n.a. | BQ135: n.d. | BR135: n.d. | BS135: n.d. | BT135: n.d. | BU135: n.d. | BV135: n.d. | BW135: n.d. | BX135: n.d. | BY135: n.d. | BZ135: n.d. | CA135: n.d. | CB135: n.d. | CC135: n.d. | CD135: n.d. | CE135: n.d. | CF135: n.d. | CG135: n.d. | CH135: n.d. | CI135: n.d. | CJ135: n.d. | CK135: n.d. | CL135: n.d. | CM135: n.d. | CN135: 86214.19102 | CO135: n.d. | CP135: n.d. | CQ135: n.d. | CR135: n.d. | CS135: n.d. | CT135: n.d. | CU135: n.d. | CV135: n.d. | CW135: n.d. | CX135: n.d. | CY135: n.d. | CZ135: n.d. | DA135: n.d. | DB135: n.d. | DC135: n.d. | DD135: n.d. | DE135: n.d. | DF135: n.d. | DG135: n.d. | DH135: n.d.
A136: 2001 | B136: febrero | C136: 2001-febrero | D136: 8.203991131 | E136: 7.203161734 | F136: 7.522970904 | G136: 6.537004169 | H136: n.d. | I136: n.d. | J136: n.d. | K136: n.d. | L136: n.d. | N136: n.d. | P136: n.d. | Q136: n.d. | R136: n.d. | S136: n.d. | T136: n.d. | U136: n.d. | V136: n.d. | W136: n.d. | X136: n.d. | Y136: n.d. | Z136: n.d. | AA136: n.d. | AC136: n.d. | AD136: n.d. | AE136: n.d. | AF136: n.d. | AG136: n.d. | AH136: n.d. | AI136: n.d. | AJ136: n.d. | AK136: n.d. | AL136: n.d. | AN136: n.d. | AO136: n.d. | AP136: n.d. | AQ136: n.d. | AR136: n.d. | AS136: n.d. | AT136: n.d. | AU136: n.d. | AV136: n.d. | AW136: n.d. | AX136: n.d. | AY136: n.d. | AZ136: n.d. | BA136: n.d. | BB136: n.d. | BC136: n.d. | BD136: n.d. | BE136: n.d. | BF136: n.d. | BG136: n.d. | BH136: n.d. | BI136: n.d. | BJ136: n.d. | BK136: n.a. | BL136: n.d. | BM136: n.d. | BN136: n.a. | BO136: n.d. | BP136: n.a. | BQ136: n.d. | BR136: n.d. | BS136: n.d. | BT136: n.d. | BU136: n.d. | BV136: n.d. | BW136: n.d. | BX136: n.d. | BY136: n.d. | BZ136: n.d. | CA136: n.d. | CB136: n.d. | CC136: n.d. | CD136: n.d. | CE136: n.d. | CF136: n.d. | CG136: n.d. | CH136: n.d. | CI136: n.d. | CJ136: n.d. | CK136: n.d. | CL136: n.d. | CM136: n.d. | CN136: 86214.19102 | CO136: n.d. | CP136: n.d. | CQ136: n.d. | CR136: n.d. | CS136: n.d. | CT136: n.d. | CU136: n.d. | CV136: n.d. | CW136: n.d. | CX136: n.d. | CY136: n.d. | CZ136: n.d. | DA136: n.d. | DB136: n.d. | DC136: n.d. | DD136: n.d. | DE136: n.d. | DF136: n.d. | DG136: n.d. | DH136: n.d.
A137: 2001 | B137: marzo | C137: 2001-marzo | D137: 8.000802085 | E137: 7.273990741 | F137: 7.314285714 | G137: 6.594833132 | H137: n.d. | I137: n.d. | J137: n.d. | K137: n.d. | L137: n.d. | N137: n.d. | P137: n.d. | Q137: n.d. | R137: n.d. | S137: n.d. | T137: n.d. | U137: n.d. | V137: n.d. | W137: n.d. | X137: n.d. | Y137: n.d. | Z137: n.d. | AA137: n.d. | AC137: n.d. | AD137: n.d. | AE137: n.d. | AF137: n.d. | AG137: n.d. | AH137: n.d. | AI137: n.d. | AJ137: n.d. | AK137: n.d. | AL137: n.d. | AN137: n.d. | AO137: n.d. | AP137: n.d. | AQ137: n.d. | AR137: n.d. | AS137: n.d. | AT137: n.d. | AU137: n.d. | AV137: n.d. | AW137: n.d. | AX137: n.d. | AY137: n.d. | AZ137: n.d. | BA137: n.d. | BB137: n.d. | BC137: n.d. | BD137: n.d. | BE137: n.d. | BF137: n.d. | BG137: n.d. | BH137: n.d. | BI137: n.d. | BJ137: n.d. | BK137: n.a. | BL137: n.d. | BM137: n.d. | BN137: n.a. | BO137: n.d. | BP137: n.a. | BQ137: n.d. | BR137: n.d. | BS137: n.d. | BT137: n.d. | BU137: n.d. | BV137: n.d. | BW137: n.d. | BX137: n.d. | BY137: n.d. | BZ137: n.d. | CA137: n.d. | CB137: n.d. | CC137: n.d. | CD137: n.d. | CE137: n.d. | CF137: n.d. | CG137: n.d. | CH137: n.d. | CI137: n.d. | CJ137: n.d. | CK137: n.d. | CL137: n.d. | CM137: n.d. | CN137: 86214.19102 | CO137: n.d. | CP137: n.d. | CQ137: n.d. | CR137: n.d. | CS137: n.d. | CT137: n.d. | CU137: n.d. | CV137: n.d. | CW137: n.d. | CX137: n.d. | CY137: n.d. | CZ137: n.d. | DA137: n.d. | DB137: n.d. | DC137: n.d. | DD137: n.d. | DE137: n.d. | DF137: n.d. | DG137: n.d. | DH137: n.d.
A138: 2001 | B138: abril | C138: 2001-abril | D138: 8.16856401 | E138: 7.350146337 | F138: 7.477699753 | G138: 6.657359245 | H138: n.d. | I138: n.d. | J138: n.d. | K138: n.d. | L138: n.d. | N138: n.d. | P138: n.d. | Q138: n.d. | R138: n.d. | S138: n.d. | T138: n.d. | U138: n.d. | V138: n.d. | W138: n.d. | X138: n.d. | Y138: n.d. | Z138: n.d. | AA138: n.d. | AC138: n.d. | AD138: n.d. | AE138: n.d. | AF138: n.d. | AG138: n.d. | AH138: n.d. | AI138: n.d. | AJ138: n.d. | AK138: n.d. | AL138: n.d. | AN138: n.d. | AO138: n.d. | AP138: n.d. | AQ138: n.d. | AR138: n.d. | AS138: n.d. | AT138: n.d. | AU138: n.d. | AV138: n.d. | AW138: n.d. | AX138: n.d. | AY138: n.d. | AZ138: n.d. | BA138: n.d. | BB138: n.d. | BC138: n.d. | BD138: n.d. | BE138: n.d. | BF138: n.d. | BG138: n.d. | BH138: n.d. | BI138: n.d. | BJ138: n.d. | BK138: n.a. | BL138: n.d. | BM138: n.d. | BN138: n.a. | BO138: n.d. | BP138: n.a. | BQ138: n.d. | BR138: n.d. | BS138: n.d. | BT138: n.d. | BU138: n.d. | BV138: n.d. | BW138: n.d. | BX138: n.d. | BY138: n.d. | BZ138: n.d. | CA138: n.d. | CB138: n.d. | CC138: n.d. | CD138: n.d. | CE138: n.d. | CF138: n.d. | CG138: n.d. | CH138: n.d. | CI138: n.d. | CJ138: n.d. | CK138: n.d. | CL138: n.d. | CM138: n.d. | CN138: 86214.19102 | CO138: n.d. | CP138: n.d. | CQ138: n.d. | CR138: n.d. | CS138: n.d. | CT138: n.d. | CU138: n.d. | CV138: n.d. | CW138: n.d. | CX138: n.d. | CY138: n.d. | CZ138: n.d. | DA138: n.d. | DB138: n.d. | DC138: n.d. | DD138: n.d. | DE138: n.d. | DF138: n.d. | DG138: n.d. | DH138: n.d.
A139: 2001 | B139: mayo | C139: 2001-mayo | D139: 8.665199119 | E139: 7.431863197 | F139: 7.910249097 | G139: 6.724857331 | H139: n.d. | I139: n.d. | J139: n.d. | K139: n.d. | L139: n.d. | N139: n.d. | P139: n.d. | Q139: n.d. | R139: n.d. | S139: n.d. | T139: n.d. | U139: n.d. | V139: n.d. | W139: n.d. | X139: n.d. | Y139: n.d. | Z139: n.d. | AA139: n.d. | AC139: n.d. | AD139: n.d. | AE139: n.d. | AF139: n.d. | AG139: n.d. | AH139: n.d. | AI139: n.d. | AJ139: n.d. | AK139: n.d. | AL139: n.d. | AN139: n.d. | AO139: n.d. | AP139: n.d. | AQ139: n.d. | AR139: n.d. | AS139: n.d. | AT139: n.d. | AU139: n.d. | AV139: n.d. | AW139: n.d. | AX139: n.d. | AY139: n.d. | AZ139: n.d. | BA139: n.d. | BB139: n.d. | BC139: n.d. | BD139: n.d. | BE139: n.d. | BF139: n.d. | BG139: n.d. | BH139: n.d. | BI139: n.d. | BJ139: n.d. | BK139: n.a. | BL139: n.d. | BM139: n.d. | BN139: n.a. | BO139: n.d. | BP139: n.a. | BQ139: n.d. | BR139: n.d. | BS139: n.d. | BT139: n.d. | BU139: n.d. | BV139: n.d. | BW139: n.d. | BX139: n.d. | BY139: n.d. | BZ139: n.d. | CA139: n.d. | CB139: n.d. | CC139: n.d. | CD139: n.d. | CE139: n.d. | CF139: n.d. | CG139: n.d. | CH139: n.d. | CI139: n.d. | CJ139: n.d. | CK139: n.d. | CL139: n.d. | CM139: n.d. | CN139: 86214.19102 | CO139: n.d. | CP139: n.d. | CQ139: n.d. | CR139: n.d. | CS139: n.d. | CT139: n.d. | CU139: n.d. | CV139: n.d. | CW139: n.d. | CX139: n.d. | CY139: n.d. | CZ139: n.d. | DA139: n.d. | DB139: n.d. | DC139: n.d. | DD139: n.d. | DE139: n.d. | DF139: n.d. | DG139: n.d. | DH139: n.d.
A140: 2001 | B140: junio | C140: 2001-junio | D140: 7.988107037 | E140: 7.519413568 | F140: 7.216883362 | G140: 6.797647674 | H140: n.d. | I140: n.d. | J140: n.d. | K140: n.d. | L140: n.d. | N140: n.d. | P140: n.d. | Q140: n.d. | R140: n.d. | S140: n.d. | T140: n.d. | U140: n.d. | V140: n.d. | W140: n.d. | X140: n.d. | Y140: n.d. | Z140: n.d. | AA140: n.d. | AC140: n.d. | AD140: n.d. | AE140: n.d. | AF140: n.d. | AG140: n.d. | AH140: n.d. | AI140: n.d. | AJ140: n.d. | AK140: n.d. | AL140: n.d. | AN140: n.d. | AO140: n.d. | AP140: n.d. | AQ140: n.d. | AR140: n.d. | AS140: n.d. | AT140: n.d. | AU140: n.d. | AV140: n.d. | AW140: n.d. | AX140: n.d. | AY140: n.d. | AZ140: n.d. | BA140: n.d. | BB140: n.d. | BC140: n.d. | BD140: n.d. | BE140: n.d. | BF140: n.d. | BG140: n.d. | BH140: n.d. | BI140: n.d. | BJ140: n.d. | BK140: n.a. | BL140: n.d. | BM140: n.d. | BN140: n.a. | BO140: n.d. | BP140: n.a. | BQ140: n.d. | BR140: n.d. | BS140: n.d. | BT140: n.d. | BU140: n.d. | BV140: n.d. | BW140: n.d. | BX140: n.d. | BY140: n.d. | BZ140: n.d. | CA140: n.d. | CB140: n.d. | CC140: n.d. | CD140: n.d. | CE140: n.d. | CF140: n.d. | CG140: n.d. | CH140: n.d. | CI140: n.d. | CJ140: n.d. | CK140: n.d. | CL140: n.d. | CM140: n.d. | CN140: 86214.19102 | CO140: n.d. | CP140: n.d. | CQ140: n.d. | CR140: n.d. | CS140: n.d. | CT140: n.d. | CU140: n.d. | CV140: n.d. | CW140: n.d. | CX140: n.d. | CY140: n.d. | CZ140: n.d. | DA140: n.d. | DB140: n.d. | DC140: n.d. | DD140: n.d. | DE140: n.d. | DF140: n.d. | DG140: n.d. | DH140: n.d.
A141: 2001 | B141: julio | C141: 2001-julio | D141: 7.884880741 | E141: 7.613115009 | F141: 7.124109486 | G141: 6.876101509 | H141: n.d. | I141: n.d. | J141: n.d. | K141: n.d. | L141: n.d. | N141: n.d. | P141: n.d. | Q141: n.d. | R141: n.d. | S141: n.d. | T141: n.d. | U141: n.d. | V141: n.d. | W141: n.d. | X141: n.d. | Y141: n.d. | Z141: n.d. | AA141: n.d. | AC141: n.d. | AD141: n.d. | AE141: n.d. | AF141: n.d. | AG141: n.d. | AH141: n.d. | AI141: n.d. | AJ141: n.d. | AK141: n.d. | AL141: n.d. | AN141: n.d. | AO141: n.d. | AP141: n.d. | AQ141: n.d. | AR141: n.d. | AS141: n.d. | AT141: n.d. | AU141: n.d. | AV141: n.d. | AW141: n.d. | AX141: n.d. | AY141: n.d. | AZ141: n.d. | BA141: n.d. | BB141: n.d. | BC141: n.d. | BD141: n.d. | BE141: n.d. | BF141: n.d. | BG141: n.d. | BH141: n.d. | BI141: n.d. | BJ141: n.d. | BK141: n.a. | BL141: n.d. | BM141: n.d. | BN141: n.a. | BO141: n.d. | BP141: n.a. | BQ141: n.d. | BR141: n.d. | BS141: n.d. | BT141: n.d. | BU141: n.d. | BV141: n.d. | BW141: n.d. | BX141: n.d. | BY141: n.d. | BZ141: n.d. | CA141: n.d. | CB141: n.d. | CC141: n.d. | CD141: n.d. | CE141: n.d. | CF141: n.d. | CG141: n.d. | CH141: n.d. | CI141: n.d. | CJ141: n.d. | CK141: n.d. | CL141: n.d. | CM141: n.d. | CN141: 86214.19102 | CO141: n.d. | CP141: n.d. | CQ141: n.d. | CR141: n.d. | CS141: n.d. | CT141: n.d. | CU141: n.d. | CV141: n.d. | CW141: n.d. | CX141: n.d. | CY141: n.d. | CZ141: n.d. | DA141: n.d. | DB141: n.d. | DC141: n.d. | DD141: n.d. | DE141: n.d. | DF141: n.d. | DG141: n.d. | DH141: n.d.
A142: 2001 | B142: agosto | C142: 2001-agosto | D142: 8.37583366 | E142: 7.713302958 | F142: 7.597535934 | G142: 6.960609689 | H142: n.d. | I142: n.d. | J142: n.d. | K142: n.d. | L142: n.d. | N142: n.d. | P142: n.d. | Q142: n.d. | R142: n.d. | S142: n.d. | T142: n.d. | U142: n.d. | V142: n.d. | W142: n.d. | X142: n.d. | Y142: n.d. | Z142: n.d. | AA142: n.d. | AC142: n.d. | AD142: n.d. | AE142: n.d. | AF142: n.d. | AG142: n.d. | AH142: n.d. | AI142: n.d. | AJ142: n.d. | AK142: n.d. | AL142: n.d. | AN142: n.d. | AO142: n.d. | AP142: n.d. | AQ142: n.d. | AR142: n.d. | AS142: n.d. | AT142: n.d. | AU142: n.d. | AV142: n.d. | AW142: n.d. | AX142: n.d. | AY142: n.d. | AZ142: n.d. | BA142: n.d. | BB142: n.d. | BC142: n.d. | BD142: n.d. | BE142: n.d. | BF142: n.d. | BG142: n.d. | BH142: n.d. | BI142: n.d. | BJ142: n.d. | BK142: n.a. | BL142: n.d. | BM142: n.d. | BN142: n.a. | BO142: n.d. | BP142: n.a. | BQ142: n.d. | BR142: n.d. | BS142: n.d. | BT142: n.d. | BU142: n.d. | BV142: n.d. | BW142: n.d. | BX142: n.d. | BY142: n.d. | BZ142: n.d. | CA142: n.d. | CB142: n.d. | CC142: n.d. | CD142: n.d. | CE142: n.d. | CF142: n.d. | CG142: n.d. | CH142: n.d. | CI142: n.d. | CJ142: n.d. | CK142: n.d. | CL142: n.d. | CM142: n.d. | CN142: 86214.19102 | CO142: n.d. | CP142: n.d. | CQ142: n.d. | CR142: n.d. | CS142: n.d. | CT142: n.d. | CU142: n.d. | CV142: n.d. | CW142: n.d. | CX142: n.d. | CY142: n.d. | CZ142: n.d. | DA142: n.d. | DB142: n.d. | DC142: n.d. | DD142: n.d. | DE142: n.d. | DF142: n.d. | DG142: n.d. | DH142: n.d.
A143: 2001 | B143: septiembre | C143: 2001-septiembre | D143: 7.71610907 | E143: 7.820316892 | F143: 7.036286609 | G143: 7.05156744 | H143: n.d. | I143: n.d. | J143: n.d. | K143: n.d. | L143: n.d. | N143: n.d. | P143: n.d. | Q143: n.d. | R143: n.d. | S143: n.d. | T143: n.d. | U143: n.d. | V143: n.d. | W143: n.d. | X143: n.d. | Y143: n.d. | Z143: n.d. | AA143: n.d. | AC143: n.d. | AD143: n.d. | AE143: n.d. | AF143: n.d. | AG143: n.d. | AH143: n.d. | AI143: n.d. | AJ143: n.d. | AK143: n.d. | AL143: n.d. | AN143: n.d. | AO143: n.d. | AP143: n.d. | AQ143: n.d. | AR143: n.d. | AS143: n.d. | AT143: n.d. | AU143: n.d. | AV143: n.d. | AW143: n.d. | AX143: n.d. | AY143: n.d. | AZ143: n.d. | BA143: n.d. | BB143: n.d. | BC143: n.d. | BD143: n.d. | BE143: n.d. | BF143: n.d. | BG143: n.d. | BH143: n.d. | BI143: n.d. | BJ143: n.d. | BK143: n.a. | BL143: n.d. | BM143: n.d. | BN143: n.a. | BO143: n.d. | BP143: n.a. | BQ143: n.d. | BR143: n.d. | BS143: n.d. | BT143: n.d. | BU143: n.d. | BV143: n.d. | BW143: n.d. | BX143: n.d. | BY143: n.d. | BZ143: n.d. | CA143: n.d. | CB143: n.d. | CC143: n.d. | CD143: n.d. | CE143: n.d. | CF143: n.d. | CG143: n.d. | CH143: n.d. | CI143: n.d. | CJ143: n.d. | CK143: n.d. | CL143: n.d. | CM143: n.d. | CN143: 86214.19102 | CO143: n.d. | CP143: n.d. | CQ143: n.d. | CR143: n.d. | CS143: n.d. | CT143: n.d. | CU143: n.d. | CV143: n.d. | CW143: n.d. | CX143: n.d. | CY143: n.d. | CZ143: n.d. | DA143: n.d. | DB143: n.d. | DC143: n.d. | DD143: n.d. | DE143: n.d. | DF143: n.d. | DG143: n.d. | DH143: n.d.
A144: 2001 | B144: octubre | C144: 2001-octubre | D144: 7.467282525 | E144: 7.934518495 | F144: 6.823184153 | G144: 7.14939944 | H144: n.d. | I144: n.d. | J144: n.d. | K144: n.d. | L144: n.d. | N144: n.d. | P144: n.d. | Q144: n.d. | R144: n.d. | S144: n.d. | T144: n.d. | U144: n.d. | V144: n.d. | W144: n.d. | X144: n.d. | Y144: n.d. | Z144: n.d. | AA144: n.d. | AC144: n.d. | AD144: n.d. | AE144: n.d. | AF144: n.d. | AG144: n.d. | AH144: n.d. | AI144: n.d. | AJ144: n.d. | AK144: n.d. | AL144: n.d. | AN144: n.d. | AO144: n.d. | AP144: n.d. | AQ144: n.d. | AR144: n.d. | AS144: n.d. | AT144: n.d. | AU144: n.d. | AV144: n.d. | AW144: n.d. | AX144: n.d. | AY144: n.d. | AZ144: n.d. | BA144: n.d. | BB144: n.d. | BC144: n.d. | BD144: n.d. | BE144: n.d. | BF144: n.d. | BG144: n.d. | BH144: n.d. | BI144: n.d. | BJ144: n.d. | BK144: n.a. | BL144: n.d. | BM144: n.d. | BN144: n.a. | BO144: n.d. | BP144: n.a. | BQ144: n.d. | BR144: n.d. | BS144: n.d. | BT144: n.d. | BU144: n.d. | BV144: n.d. | BW144: n.d. | BX144: n.d. | BY144: n.d. | BZ144: n.d. | CA144: n.d. | CB144: n.d. | CC144: n.d. | CD144: n.d. | CE144: n.d. | CF144: n.d. | CG144: n.d. | CH144: n.d. | CI144: n.d. | CJ144: n.d. | CK144: n.d. | CL144: n.d. | CM144: n.d. | CN144: 86214.19102 | CO144: n.d. | CP144: n.d. | CQ144: n.d. | CR144: n.d. | CS144: n.d. | CT144: n.d. | CU144: n.d. | CV144: n.d. | CW144: n.d. | CX144: n.d. | CY144: n.d. | CZ144: n.d. | DA144: n.d. | DB144: n.d. | DC144: n.d. | DD144: n.d. | DE144: n.d. | DF144: n.d. | DG144: n.d. | DH144: n.d.
A145: 2001 | B145: noviembre | C145: 2001-noviembre | D145: 7.40599351 | E145: 8.056297848 | F145: 6.737072105 | G145: 7.254570397 | H145: n.d. | I145: n.d. | J145: n.d. | K145: n.d. | L145: n.d. | N145: n.d. | P145: n.d. | Q145: n.d. | R145: n.d. | S145: n.d. | T145: n.d. | U145: n.d. | V145: n.d. | W145: n.d. | X145: n.d. | Y145: n.d. | Z145: n.d. | AA145: n.d. | AC145: n.d. | AD145: n.d. | AE145: n.d. | AF145: n.d. | AG145: n.d. | AH145: n.d. | AI145: n.d. | AJ145: n.d. | AK145: n.d. | AL145: n.d. | AN145: n.d. | AO145: n.d. | AP145: n.d. | AQ145: n.d. | AR145: n.d. | AS145: n.d. | AT145: n.d. | AU145: n.d. | AV145: n.d. | AW145: n.d. | AX145: n.d. | AY145: n.d. | AZ145: n.d. | BA145: n.d. | BB145: n.d. | BC145: n.d. | BD145: n.d. | BE145: n.d. | BF145: n.d. | BG145: n.d. | BH145: n.d. | BI145: n.d. | BJ145: n.d. | BK145: n.a. | BL145: n.d. | BM145: n.d. | BN145: n.a. | BO145: n.d. | BP145: n.a. | BQ145: n.d. | BR145: n.d. | BS145: n.d. | BT145: n.d. | BU145: n.d. | BV145: n.d. | BW145: n.d. | BX145: n.d. | BY145: n.d. | BZ145: n.d. | CA145: n.d. | CB145: n.d. | CC145: n.d. | CD145: n.d. | CE145: n.d. | CF145: n.d. | CG145: n.d. | CH145: n.d. | CI145: n.d. | CJ145: n.d. | CK145: n.d. | CL145: n.d. | CM145: n.d. | CN145: 86214.19102 | CO145: n.d. | CP145: n.d. | CQ145: n.d. | CR145: n.d. | CS145: n.d. | CT145: n.d. | CU145: n.d. | CV145: n.d. | CW145: n.d. | CX145: n.d. | CY145: n.d. | CZ145: n.d. | DA145: n.d. | DB145: n.d. | DC145: n.d. | DD145: n.d. | DE145: n.d. | DF145: n.d. | DG145: n.d. | DH145: n.d.
A146: 2001 | B146: diciembre | C146: 2001-diciembre | D146: 6.64401661 | E146: 8.186049408 | F146: 6.019102541 | G146: 7.36756127 | H146: n.d. | I146: n.d. | J146: n.d. | K146: n.d. | L146: 7764.971124 | M146: 7764.971124 | N146: 7764.971124 | O146: 7764.971124 | P146: 7462.432323 | Q146: 15753.82004 | R146: 6146.045948 | S146: n.d. | T146: n.d. | U146: n.d. | V146: 7462.432323 | W146: 15753.82004 | X146: 6146.045948 | Y146: n.d. | Z146: n.d. | AA146: n.d. | AB146: 293.5130307 | AC146: 68.19190985 | AD146: 1950.161282 | AE146: n.d. | AF146: 31.64999656 | AG146: 17.02112151 | AH146: 13128.82592 | AI146: 7496.446556 | AJ146: 13160.47592 | AK146: =IF(OR(AF146="",AG146="",AH146="",AI146=""),"",SUM(AF146:AI146)) -> 20673.94359 | AL146: n.d. | AN146: n.d. | AO146: n.d. | AP146: n.d. | AQ146: n.d. | AR146: n.d. | AS146: 2345.293688 | AT146: 1950.161282 | AU146: 395.1324063 | AV146: n.d. | AW146: 31.64999656 | AX146: 17.02112151 | AY146: 13128.82592 | AZ146: 7496.446556 | BA146: =IFERROR(+AW146+AY146,"n.d.") -> 13160.47592 | BB146: =IF(OR(AW146="",AX146="",AY146="",AZ146=""),"",SUM(AW146:AZ146)) -> 20673.94359 | BC146: n.d. | BD146: n.d. | BE146: n.d. | BF146: n.d. | BG146: n.d. | BH146: n.d. | BI146: n.d. | BJ146: n.d. | BK146: n.a. | BL146: n.d. | BM146: n.d. | BN146: n.a. | BO146: n.d. | BP146: n.a. | BQ146: n.d. | BR146: n.d. | BS146: n.d. | BT146: n.d. | BU146: n.d. | BV146: n.d. | BW146: n.d. | BX146: n.d. | BY146: 1530647.716 | BZ146: 5793.657743 | CA146: 36171.97872 | CB146: 41245.89378 | CC146: 9904.012781 | CD146: 134642.912 | CE146: 0 | CF146: n.d. | CG146: n.d. | CH146: n.d. | CI146: n.d. | CJ146: n.d. | CK146: n.d. | CL146: n.d. | CM146: n.d. | CN146: 86214.19102 | CO146: n.d. | CP146: n.d. | CQ146: n.d. | CR146: n.d. | CS146: n.d. | CT146: n.d. | CU146: n.d. | CV146: n.d. | CW146: n.d. | CX146: n.d. | CY146: n.d. | CZ146: n.d. | DA146: n.d. | DB146: n.d. | DC146: n.d. | DD146: n.d. | DE146: n.d. | DF146: n.d. | DG146: n.d. | DH146: n.d.
A147: 2002 | B147: enero | C147: 2002-enero | D147: 5.976540681 | E147: 8.32413787 | F147: 5.460690146 | G147: 7.488829351 | H147: n.d. | I147: n.d. | J147: n.d. | K147: n.d. | L147: 7465.788389 | N147: 7465.788389 | P147: 6733.427739 | Q147: 13811.0529 | R147: 5418.457622 | S147: n.d. | T147: n.d. | U147: n.d. | V147: 6733.427739 | W147: 13811.0529 | X147: 5418.457622 | Y147: n.d. | Z147: n.d. | AA147: n.d. | AB147: 299.7793591 | AC147: 15.06162471 | AD147: 2285.247372 | AE147: n.d. | AF147: 44.89665229 | AG147: 15.46622437 | AH147: 10706.94276 | AI147: 7393.702703 | AJ147: 10751.83941 | AK147: 18161.00834 | AL147: n.d. | AN147: n.d. | AO147: n.d. | AP147: n.d. | AQ147: n.d. | AR147: n.d. | AS147: 2371.748663 | AT147: 2285.247372 | AU147: 86.50129028 | AV147: n.d. | AW147: 44.89665229 | AX147: 15.46622437 | AY147: 10706.94276 | AZ147: 7393.702703 | BA147: 10751.83941 | BB147: 18161.00834 | BC147: n.d. | BD147: n.d. | BE147: n.d. | BF147: n.d. | BG147: n.d. | BH147: n.d. | BI147: n.d. | BJ147: n.d. | BK147: n.a. | BL147: n.d. | BM147: n.d. | BN147: n.a. | BO147: n.d. | BP147: n.a. | BQ147: 15.59640379 | BR147: 66.14449444 | BS147: n.d. | BT147: n.d. | BU147: n.d. | BV147: n.d. | BW147: n.d. | BX147: n.d. | BY147: 1555656.221 | BZ147: 5805.661743 | CA147: 35624.89343 | CB147: 42270.62013 | CC147: 10101.97608 | CD147: 136430.586 | CE147: 0 | CF147: n.d. | CG147: n.d. | CH147: n.d. | CI147: n.d. | CJ147: n.d. | CK147: n.d. | CL147: n.d. | CM147: 15.59640379 | CN147: 90015.23753 | CO147: 0.01732640408 | CP147: 66.14449444 | CQ147: n.d. | CR147: n.d. | CS147: n.d. | CT147: 6609.524532 | CU147: 26129.73145 | CV147: 843.1576242 | CW147: n.d. | CX147: n.d. | CY147: n.d. | CZ147: n.d. | DA147: n.d. | DB147: n.d. | DC147: n.d. | DD147: n.d. | DE147: n.d. | DF147: n.d. | DG147: n.d. | DH147: n.d.
A148: 2002 | B148: febrero | C148: 2002-febrero | D148: 5.923994039 | E148: 8.470844577 | F148: 5.412141713 | G148: 7.618750948 | H148: n.d. | I148: n.d. | J148: n.d. | K148: n.d. | L148: 7585.243796 | N148: 7585.243796 | P148: 6562.959991 | Q148: 14277.5068 | R148: 5643.510286 | S148: n.d. | T148: n.d. | U148: n.d. | V148: 6562.959991 | W148: 14277.5068 | X148: 5643.510286 | Y148: n.d. | Z148: n.d. | AA148: n.d. | AB148: 294.3540809 | AC148: 13.80955719 | AD148: 1913.427941 | AE148: n.d. | AF148: 34.01974832 | AG148: 15.38422549 | AH148: 10631.20198 | AI148: 7546.096976 | AJ148: 10665.22173 | AK148: 18226.70293 | AL148: n.d. | AN148: n.d. | AO148: n.d. | AP148: n.d. | AQ148: n.d. | AR148: n.d. | AS148: 2372.167067 | AT148: 1913.427941 | AU148: 458.7391262 | AV148: n.d. | AW148: 34.01974832 | AX148: 15.38422549 | AY148: 10631.20198 | AZ148: 7546.096976 | BA148: 10665.22173 | BB148: 18226.70293 | BC148: n.d. | BD148: n.d. | BE148: n.d. | BF148: n.d. | BG148: n.d. | BH148: n.d. | BI148: n.d. | BJ148: n.d. | BK148: n.a. | BL148: n.d. | BM148: n.d. | BN148: n.a. | BO148: n.d. | BP148: n.a. | BQ148: -203.4934739 | BR148: -369.6650336 | BS148: n.d. | BT148: n.d. | BU148: n.d. | BV148: n.d. | BW148: n.d. | BX148: n.d. | BY148: 1565422.957 | BZ148: 5890.665743 | CA148: 36059.33847 | CB148: 42544.85475 | CC148: 10157.00283 | CD148: 138279.5257 | CE148: 0 | CF148: n.d. | CG148: n.d. | CH148: n.d. | CI148: n.d. | CJ148: n.d. | CK148: n.d. | CL148: n.d. | CM148: -203.4934739 | CN148: 90015.23753 | CO148: -0.2260655857 | CP148: -369.6650336 | CQ148: n.d. | CR148: n.d. | CS148: n.d. | CT148: 6803.225516 | CU148: 26379.83477 | CV148: 806.1650743 | CW148: n.d. | CX148: n.d. | CY148: n.d. | CZ148: n.d. | DA148: n.d. | DB148: n.d. | DC148: n.d. | DD148: n.d. | DE148: n.d. | DF148: n.d. | DG148: n.d. | DH148: n.d.
A149: 2002 | B149: marzo | C149: 2002-marzo | D149: 6.256962495 | E149: 8.626313119 | F149: 5.733049343 | G149: 7.757566549 | H149: n.d. | I149: n.d. | J149: n.d. | K149: n.d. | L149: 7737.905236 | N149: 7737.905236 | P149: 6836.772073 | Q149: 14089.99671 | R149: 5605.501744 | S149: n.d. | T149: n.d. | U149: n.d. | V149: 6836.772073 | W149: 14089.99671 | X149: 5605.501744 | Y149: n.d. | Z149: n.d. | AA149: n.d. | AB149: 284.0274949 | AC149: 12.79655178 | AD149: 2444.536234 | AE149: n.d. | AF149: 40.20338536 | AG149: 15.33166959 | AH149: 10786.20936 | AI149: 7601.49792 | AJ149: 10826.41275 | AK149: 18443.24234 | AL149: n.d. | AN149: n.d. | AO149: n.d. | AP149: n.d. | AQ149: n.d. | AR149: n.d. | AS149: 2429.539423 | AT149: 2444.536234 | AU149: -14.99681149 | AV149: n.d. | AW149: 40.20338536 | AX149: 15.33166959 | AY149: 10786.20936 | AZ149: 7601.49792 | BA149: 10826.41275 | BB149: 18443.24234 | BC149: n.d. | BD149: n.d. | BE149: n.d. | BF149: n.d. | BG149: n.d. | BH149: n.d. | BI149: n.d. | BJ149: n.d. | BK149: n.a. | BL149: n.d. | BM149: n.d. | BN149: n.a. | BO149: n.d. | BP149: n.a. | BQ149: -239.4839633 | BR149: -398.2337095 | BS149: n.d. | BT149: n.d. | BU149: n.d. | BV149: n.d. | BW149: n.d. | BX149: n.d. | BY149: 1596602.956 | BZ149: 5811.225743 | CA149: 35860.14733 | CB149: 42927.81596 | CC149: 9924.119513 | CD149: 140953.0951 | CE149: 0 | CF149: n.d. | CG149: n.d. | CH149: n.d. | CI149: n.d. | CJ149: n.d. | CK149: n.d. | CL149: n.d. | CM149: -239.4839633 | CN149: 90015.23753 | CO149: -0.266048249 | CP149: -398.2337095 | CQ149: n.d. | CR149: n.d. | CS149: n.d. | CT149: 7063.216063 | CU149: 26538.53332 | CV149: 864.486908 | CW149: n.d. | CX149: n.d. | CY149: n.d. | CZ149: n.d. | DA149: n.d. | DB149: n.d. | DC149: n.d. | DD149: n.d. | DE149: n.d. | DF149: n.d. | DG149: n.d. | DH149: n.d.
A150: 2002 | B150: abril | C150: 2002-abril | D150: 6.203840473 | E150: 8.790531389 | F150: 5.668373654 | G150: 7.905362813 | H150: n.d. | I150: n.d. | J150: n.d. | K150: n.d. | L150: 8031.561702 | N150: 8031.561702 | P150: 6681.107167 | Q150: 13858.77333 | R150: 5630.368388 | S150: n.d. | T150: n.d. | U150: n.d. | V150: 6681.107167 | W150: 13858.77333 | X150: 5630.368388 | Y150: n.d. | Z150: n.d. | AA150: n.d. | AB150: 286.4854483 | AC150: 11.11712385 | AD150: 2566.539567 | AE150: n.d. | AF150: 36.91229231 | AG150: 6.384828188 | AH150: 10660.46683 | AI150: 7574.50249 | AJ150: 10697.37912 | AK150: 18278.26644 | AL150: n.d. | AN150: n.d. | AO150: n.d. | AP150: n.d. | AQ150: n.d. | AR150: n.d. | AS150: 2526.726959 | AT150: 2566.539567 | AU150: -39.81260838 | AV150: n.d. | AW150: 36.91229231 | AX150: 6.384828188 | AY150: 10660.46683 | AZ150: 7574.50249 | BA150: 10697.37912 | BB150: 18278.26644 | BC150: n.d. | BD150: n.d. | BE150: n.d. | BF150: n.d. | BG150: n.d. | BH150: n.d. | BI150: n.d. | BJ150: n.d. | BK150: n.a. | BL150: n.d. | BM150: n.d. | BN150: n.a. | BO150: n.d. | BP150: n.a. | BQ150: -231.4308625 | BR150: -464.4523543 | BS150: n.d. | BT150: n.d. | BU150: n.d. | BV150: n.d. | BW150: n.d. | BX150: n.d. | BY150: 1624659.088 | BZ150: 5737.405743 | CA150: 35844.91056 | CB150: 42985.76773 | CC150: 9786.53501 | CD150: 140390.0391 | CE150: 0 | CF150: n.d. | CG150: n.d. | CH150: n.d. | CI150: n.d. | CJ150: n.d. | CK150: n.d. | CL150: n.d. | CM150: -231.4308625 | CN150: 90015.23753 | CO150: -0.2571018739 | CP150: -464.4523543 | CQ150: n.d. | CR150: n.d. | CS150: n.d. | CT150: 7117.996299 | CU150: 26281.54874 | CV150: 864.9606062 | CW150: n.d. | CX150: n.d. | CY150: n.d. | CZ150: n.d. | DA150: n.d. | DB150: n.d. | DC150: n.d. | DD150: n.d. | DE150: n.d. | DF150: n.d. | DG150: n.d. | DH150: n.d.
A151: 2002 | B151: mayo | C151: 2002-mayo | D151: 5.930018416 | E151: 8.963334646 | F151: 5.40969163 | G151: 8.06207608 | H151: n.d. | I151: n.d. | J151: n.d. | K151: n.d. | L151: 7688.476041 | N151: 7688.476041 | P151: 6414.88496 | Q151: 13934.48795 | R151: 5721.083662 | S151: n.d. | T151: n.d. | U151: n.d. | V151: 6414.88496 | W151: 13934.48795 | X151: 5721.083662 | Y151: n.d. | Z151: n.d. | AA151: n.d. | AB151: 290.0692737 | AC151: 9.940818736 | AD151: 2491.161786 | AE151: n.d. | AF151: 31.89445085 | AG151: 7.995836706 | AH151: 10811.29725 | AI151: 7570.156538 | AJ151: 10843.1917 | AK151: 18421.34408 | AL151: n.d. | AN151: n.d. | AO151: n.d. | AP151: n.d. | AQ151: n.d. | AR151: n.d. | AS151: 2378.071776 | AT151: 2491.161786 | AU151: -113.09001 | AV151: n.d. | AW151: 31.89445085 | AX151: 7.995836706 | AY151: 10811.29725 | AZ151: 7570.156538 | BA151: 10843.1917 | BB151: 18421.34408 | BC151: n.d. | BD151: n.d. | BE151: n.d. | BF151: n.d. | BG151: n.d. | BH151: n.d. | BI151: n.d. | BJ151: n.d. | BK151: n.a. | BL151: n.d. | BM151: n.d. | BN151: n.a. | BO151: n.d. | BP151: n.a. | BQ151: -262.9714127 | BR151: -554.6497091 | BS151: n.d. | BT151: n.d. | BU151: n.d. | BV151: n.d. | BW151: n.d. | BX151: n.d. | BY151: 1654548.198 | BZ151: 5752.369743 | CA151: 35836.64004 | CB151: 42658.40694 | CC151: 10037.05021 | CD151: 141147.0823 | CE151: 0 | CF151: n.d. | CG151: n.d. | CH151: n.d. | CI151: n.d. | CJ151: n.d. | CK151: n.d. | CL151: n.d. | CM151: -262.9714127 | CN151: 90015.23753 | CO151: -0.2921409973 | CP151: -554.6497091 | CQ151: n.d. | CR151: n.d. | CS151: n.d. | CT151: 6831.953144 | CU151: 26327.18343 | CV151: 940.3164555 | CW151: n.d. | CX151: n.d. | CY151: n.d. | CZ151: n.d. | DA151: n.d. | DB151: n.d. | DC151: n.d. | DD151: n.d. | DE151: n.d. | DF151: n.d. | DG151: n.d. | DH151: n.d.
A152: 2002 | B152: junio | C152: 2002-junio | D152: 6.185756241 | E152: 9.144395006 | F152: 5.694200351 | G152: 8.227479736 | H152: n.d. | I152: n.d. | J152: n.d. | K152: n.d. | L152: 7693.135416 | N152: 7693.135416 | P152: 6262.844364 | Q152: 14112.80552 | R152: 5718.639574 | S152: n.d. | T152: n.d. | U152: n.d. | V152: 6262.844364 | W152: 14112.80552 | X152: 5718.639574 | Y152: n.d. | Z152: n.d. | AA152: n.d. | AB152: 313.9838396 | AC152: 8.796335511 | AD152: 2422.351663 | AE152: n.d. | AF152: 26.29120614 | AG152: 0.5557656316 | AH152: 10983.11354 | AI152: 7677.801612 | AJ152: 11009.40475 | AK152: 18687.76212 | AL152: n.d. | AN152: n.d. | AO152: n.d. | AP152: n.d. | AQ152: n.d. | AR152: n.d. | AS152: 2476.621046 | AT152: 2422.351663 | AU152: 54.26938273 | AV152: n.d. | AW152: 26.29120614 | AX152: 0.5557656316 | AY152: 10983.11354 | AZ152: 7677.801612 | BA152: 11009.40475 | BB152: 18687.76212 | BC152: n.d. | BD152: n.d. | BE152: n.d. | BF152: n.d. | BG152: n.d. | BH152: n.d. | BI152: n.d. | BJ152: n.d. | BK152: n.a. | BL152: n.d. | BM152: n.d. | BN152: n.a. | BO152: n.d. | BP152: n.a. | BQ152: -502.9116133 | BR152: -715.0264463 | BS152: n.d. | BT152: n.d. | BU152: n.d. | BV152: n.d. | BW152: n.d. | BX152: n.d. | BY152: 1699922.53 | BZ152: 5783.618743 | CA152: 36447.31597 | CB152: 42336.0798 | CC152: 9958.375845 | CD152: 146163.846 | CE152: 0 | CF152: n.d. | CG152: n.d. | CH152: n.d. | CI152: n.d. | CJ152: n.d. | CK152: n.d. | CL152: n.d. | CM152: -502.9116133 | CN152: 90015.23753 | CO152: -0.558696091 | CP152: -715.0264463 | CQ152: n.d. | CR152: n.d. | CS152: n.d. | CT152: 6966.989672 | CU152: 26726.34244 | CV152: 935.2872754 | CW152: n.d. | CX152: n.d. | CY152: n.d. | CZ152: n.d. | DA152: n.d. | DB152: n.d. | DC152: n.d. | DD152: n.d. | DE152: n.d. | DF152: n.d. | DG152: n.d. | DH152: n.d.
